Workbook

Sheet Contents
C2: Contents
F3: Colour Codes | K3: File Name: | M3: =IFERROR(File_name(),"") -> 
C4: RAROC Analysis | G4: Inputs | I4: 1234567890
G5: Section Titles | I5: TITLE ROW | K5: Last Save Date | M5: =IFERROR(lastsaved(),"") -> 
C6: IRR Analysis | G6: Sum Column | I6: 1000000000
D7: Date | G7: True or 1 | I7: =1=1 -> TRUE | K7: Last Save By | M7: =IFERROR(last_save_by(),"") -> 
D8: Grace Period | G8: False or 0 | I8: =1=2 -> FALSE
D9: Repayment Period | G9: Other Sheet Links | I9: |||||||||||||||||||
D10: General Inputs
D11: Inputs
D12: Cash Flow
D13: Cummulative Probability Trends
D14: Calculation of Equivalent Cumulative PD with Loan Balance
D15: Loss on Loan from Risk Rating
D16: Balance Sheet
D17: Profit and Loss
D18: Implied Equity Funding
D19: Alternative Method of Computing Implied Default
C21: Loan Inputs
C23: Weights and Defaults
C25: Bond Rating Simulation
D26: Project Finance
D27: Real Estate
C29: Rating and PD
D30: Inputs for Default Probability
D31: Updated Default Study
D32: Hypothetical Cash Flow
D33: Cumulative PD from Risk Rating
D34: Implied PD from Risk
D35: Alternative PD Estimates
C37: Capital Allocation
D38: Risk Rating
D39: Capital %
D40: Loan
D41: Capital Allocation
D42: AAA/AA
D43: A
D44: BBB
D45: BB- below
D46: Rating Scale
D47: Capital Assignment
D48: Risk Category
D49: Commercial
D50: Com Real Estate
D51: Construction
D52: Consumer
D53: Residential
D54: Total Loans
D55: Commercial
D56: Com Real Estate
D57: Construction
D58: Consumer
D59: Residential
D60: Total Loans
D61: •Multiply Book Value of Loans by
D62: •1.6%
D63: •4.0%
D64: •8.0%
D65: •12.0%
D66: •8.0%
D67: •Exposure at default accounts for collateral, credit derivatives, quarantees.
D68: •Problems: too much capital allocation for high rated credits and too little for below BB- credits
D69: •More than 70% of credits unrated.
C71: Audits
D72: Industry Weight not 100%
D73: Management Weight not 100%
D74: Collateral Weight not 100%
D75: Enhancement Weight not 100%
D76: Ratio Weight not 100%
D77: Total Business not 100%
D78: Garce Period Doesn’t Match
D79: Level Maturity Doesn't Match
D80: Mtg Maturity Doesn't Match
D81: Maturity Doesn’t Match
C83: RAROC Example
C85: Notes
D86: Idea of RAROC
D87: Computes profit and used as management tool
D88: Can be highly complex
D89: Requires risk assessment of loans
D90: Can be used for portfolio of for individual loans

Sheet RAROC Analysis
M1: Loan Date | N1: 2018-01-01 | P1: Currency | R1: USD | S1: Periods | T1: 12
D3: RAROC Outputs for Loan | M3: Business Risk Rating | N3: =SUMPRODUCT(T8:T22,U8:U22) -> 5.92 | P3: Simulated Credit Rating | S3: =U26 -> 
E4: Overall IRR on Loan without Risk Adjustment | H4: ='IRR Analysis'!F55 -> 0.07544702198
E5: NPV of Risk Premium Earned Before Risk Adj | H5: ='IRR Analysis'!G66 -> 2003.18249 | J5: Risk Input Data | N5: Input | O5: Default | P5: Rating | Q5: Weight | T5: Rating | U5: Weight
E6: Implied Max Cumulative Loss Probability | H6: ='IRR Analysis'!F111 -> 0.3212931517 | K6: Industry Assesment
E7: Risk Rating from Analysis | H7: =IF(U28="",T26,U28) -> 0.9335000138 | L7: Industry Price Variation | O7: =IFERROR(INDEX('Weights and Defaults'!G:G,MATCH(L7,'Weights and Defaults'!E:E,0)),"") -> 7 | P7: =IF(N7,N7,O7) -> 7 | Q7: =IFERROR(INDEX('Weights and Defaults'!$H:$H,MATCH(L7,'Weights and Defaults'!$E:$E,0)),"") -> 0.2
E8: Probability of Defalut from Risk Assessment | H8: ='Rating and PD'!E81 -> 0.008093600022 | L8: Industry Capital Intensity | O8: =IFERROR(INDEX('Weights and Defaults'!G:G,MATCH(L8,'Weights and Defaults'!E:E,0)),"") -> 6 | P8: =IF(N8,N8,O8) -> 6 | Q8: =IFERROR(INDEX('Weights and Defaults'!$H:$H,MATCH(L8,'Weights and Defaults'!$E:$E,0)),"") -> 0.2 | S8: Industry | T8: =SUMPRODUCT(P7:P11,Q7:Q11) -> 5.7 | U8: 0.6
E9: Capital Allocation From Risk Rating | H9: ='Capital Allocation'!C3 -> 0.016 | L9: Oblosense Risk | O9: =IFERROR(INDEX('Weights and Defaults'!G:G,MATCH(L9,'Weights and Defaults'!E:E,0)),"") -> 4 | P9: 4 | Q9: =IFERROR(INDEX('Weights and Defaults'!$H:$H,MATCH(L9,'Weights and Defaults'!$E:$E,0)),"") -> 0.1
E10: New Capital Required for Loan | H10: ='IRR Analysis'!F171 -> 206 | L10: Operating Leverage | O10: =IFERROR(INDEX('Weights and Defaults'!G:G,MATCH(L10,'Weights and Defaults'!E:E,0)),"") -> 6 | P10: 6 | Q10: =IFERROR(INDEX('Weights and Defaults'!$H:$H,MATCH(L10,'Weights and Defaults'!$E:$E,0)),"") -> 0.2
E11: Final RAROC (From IRR Analysis) | H11: ='IRR Analysis'!F169 -> 1.634147227 | L11: Contract Strength | O11: =IFERROR(INDEX('Weights and Defaults'!G:G,MATCH(L11,'Weights and Defaults'!E:E,0)),"") -> 5 | P11: 5 | Q11: =IFERROR(INDEX('Weights and Defaults'!$H:$H,MATCH(L11,'Weights and Defaults'!$E:$E,0)),"") -> 0.3
D12: Loan Terms Input | K12: Management Assessment | Q12: =IFERROR(INDEX('Weights and Defaults'!$H:$H,MATCH(L12,'Weights and Defaults'!$E:$E,0)),"") -> 
E13: Credit Spread and Fees | L13: Company Size | O13: =IFERROR(INDEX('Weights and Defaults'!G:G,MATCH(L13,'Weights and Defaults'!E:E,0)),"") -> 5 | P13: 5 | Q13: =IFERROR(INDEX('Weights and Defaults'!$H:$H,MATCH(L13,'Weights and Defaults'!$E:$E,0)),"") -> 0.05
F14: ="Loan Amount ("&R1&" 000's)" -> Loan Amount (USD 000's) | H14: ='Loan Inputs'!E5 -> 10000 | L14: Prior Projects | O14: =IFERROR(INDEX('Weights and Defaults'!G:G,MATCH(L14,'Weights and Defaults'!E:E,0)),"") -> 5 | P14: 5 | Q14: =IFERROR(INDEX('Weights and Defaults'!$H:$H,MATCH(L14,'Weights and Defaults'!$E:$E,0)),"") -> 0.2 | S14: Mgmt | T14: =SUMPRODUCT(Q13:Q16,P13:P16) -> 5 | U14: 0.3
F15: ="Base Interest Rate ("&R1&" Percent)" -> Base Interest Rate (USD Percent) | H15: ='Loan Inputs'!E6 -> 0.03 | L15: Reputation Assessment | O15: =IFERROR(INDEX('Weights and Defaults'!G:G,MATCH(L15,'Weights and Defaults'!E:E,0)),"") -> 5 | P15: 5 | Q15: =IFERROR(INDEX('Weights and Defaults'!$H:$H,MATCH(L15,'Weights and Defaults'!$E:$E,0)),"") -> 0.05
F16: Credit Spread (Annual Percent) | H16: ='Loan Inputs'!E7 -> 0.039 | L16: Excessive Project IRR | O16: =IFERROR(INDEX('Weights and Defaults'!G:G,MATCH(L16,'Weights and Defaults'!E:E,0)),"") -> 5 | P16: 5 | Q16: =IFERROR(INDEX('Weights and Defaults'!$H:$H,MATCH(L16,'Weights and Defaults'!$E:$E,0)),"") -> 0.7
F17: Up-front Fee (Annual Percent) | H17: ='Loan Inputs'!E8 -> 0.01 | K17: Collateral | Q17: =IFERROR(INDEX('Weights and Defaults'!$H:$H,MATCH(L17,'Weights and Defaults'!$E:$E,0)),"") -> 
F18: Commitment Fee (Annual Percent) | H18: ='Loan Inputs'!E9 -> 0.015 | L18: Collateral Included | O18: =IFERROR(INDEX('Weights and Defaults'!G:G,MATCH(L18,'Weights and Defaults'!E:E,0)),"") -> 5 | P18: =IF(N18,N18,O18) -> 5 | Q18: =IFERROR(INDEX('Weights and Defaults'!$H:$H,MATCH(L18,'Weights and Defaults'!$E:$E,0)),"") -> 0.5 | S18: Collateral | T18: =SUMPRODUCT(P18:P19,Q18:Q19) -> 5 | U18: 0.1
F19: ="Other Fees "&R1&" 000's)" -> Other Fees USD 000's) | H19: ='Loan Inputs'!E10 -> 0 | L19: Value of Collateral/Loan | O19: =IFERROR(INDEX('Weights and Defaults'!G:G,MATCH(L19,'Weights and Defaults'!E:E,0)),"") -> 5 | P19: 5 | Q19: =IFERROR(INDEX('Weights and Defaults'!$H:$H,MATCH(L19,'Weights and Defaults'!$E:$E,0)),"") -> 0.5
E20: Loan Repayment | K20: Credit Enhancements | O20: =IFERROR(INDEX('Weights and Defaults'!G:G,MATCH(L20,'Weights and Defaults'!E:E,0)),"") ->  | Q20: =IFERROR(INDEX('Weights and Defaults'!$H:$H,MATCH(L20,'Weights and Defaults'!$E:$E,0)),"") -> 
F21: Maturity | H21: ='Loan Inputs'!E12 -> 10 | L21: DSRA | O21: =IFERROR(INDEX('Weights and Defaults'!G:G,MATCH(L21,'Weights and Defaults'!E:E,0)),"") -> 5 | P21: 5 | Q21: =IFERROR(INDEX('Weights and Defaults'!$H:$H,MATCH(L21,'Weights and Defaults'!$E:$E,0)),"") -> 0.5 | S21: Enhance | T21: =SUMPRODUCT(P21:P22,Q21:Q22) -> 5 | U21: 0.1
F22: Grace Period | H22: ='Loan Inputs'!E13 -> 0 | L22: Dividend Lock-up Covenant | O22: =IFERROR(INDEX('Weights and Defaults'!G:G,MATCH(L22,'Weights and Defaults'!E:E,0)),"") -> 5 | P22: 5 | Q22: =IFERROR(INDEX('Weights and Defaults'!$H:$H,MATCH(L22,'Weights and Defaults'!$E:$E,0)),"") -> 0.5
F23: Repayments (1-Mtg,2-Level,3-Sculpt) | H23: ='Loan Inputs'!E14 -> 1 | K23: Capital Assessment | O23: =IFERROR(INDEX('Weights and Defaults'!G:G,MATCH(L23,'Weights and Defaults'!E:E,0)),"") ->  | Q23: =IFERROR(INDEX('Weights and Defaults'!$H:$H,MATCH(L23,'Weights and Defaults'!$E:$E,0)),"") -> 
D24: Loan Expense and Deposit Inputs | L24: Debt to Capital Ratio | O24: ='Loan Inputs'!E19 -> 0.49 | P24: =CHOOSE(Notes!S20,'Bond Rating Simulation'!Q22,'Bond Rating Simulation'!Q49,'Bond Rating Simulation'!Q75) -> 1.752 | Q24: =IFERROR(INDEX('Weights and Defaults'!$H:$H,MATCH(L24,'Weights and Defaults'!$E:$E,0)),"") -> 0.2
E25: Cost of Deposits/Funds (USD Percent) | H25: =H15 -> 0.03 | L25: Coverage Ratio - Minimum | O25: ='Loan Inputs'!E16 -> 1.89 | P25: =CHOOSE(Notes!S20,'Bond Rating Simulation'!E22,'Bond Rating Simulation'!E49,'Bond Rating Simulation'!E75) -> 3.254999984 | Q25: =IFERROR(INDEX('Weights and Defaults'!$H:$H,MATCH(L25,'Weights and Defaults'!$E:$E,0)),"") -> 0.1
E26: Return on Safe Investments (USD Percent) | H26: 0.015 | L26: Coverage Ratio - Average | O26: ='Loan Inputs'!E17 -> 2.81 | P26: =CHOOSE(Notes!S20,'Bond Rating Simulation'!E22,'Bond Rating Simulation'!K49,'Bond Rating Simulation'!K75) -> 2.576000154 | Q26: =IFERROR(INDEX('Weights and Defaults'!$H:$H,MATCH(L26,'Weights and Defaults'!$E:$E,0)),"") -> 0.1 | S26: Capital | T26: =SUMPRODUCT(P24:P28,Q24:Q28) -> 0.9335000138 | U26: =INDEX('Bond Rating Simulation'!E3:I3,MATCH(T26,'Bond Rating Simulation'!E2:H2)+1) -> 
E27: Loan Expenses - Annual | H27: 0.005 | L27: Debt to EBITDA | O27: ='Loan Inputs'!E24 -> 4.5 | P27: =CHOOSE(Notes!S20,'Bond Rating Simulation'!K23,0,0) -> 0 | Q27: =IFERROR(INDEX('Weights and Defaults'!$H:$H,MATCH(L27,'Weights and Defaults'!$E:$E,0)),"") -> 0.2
E28: Loss Given Default Estimate | H28: 0.6 | L28: PLCR/Loan to Value | O28: ='Loan Inputs'!E26 -> 0.6 | Q28: =IFERROR(INDEX('Weights and Defaults'!$H:$H,MATCH(L28,'Weights and Defaults'!$E:$E,0)),"") -> 0.4 | S28: Input Rating

Sheet IRR Analysis
G1: =F7 -> 12
B2: Date | H2: 2018-01-01 | I2: =EDATE(H2,$F$7) -> 2019-01-01 | J2: =EDATE(I2,$F$7) -> 2020-01-01 | K2: =EDATE(J2,$F$7) -> 2021-01-01 | L2: =EDATE(K2,$F$7) -> 2022-01-01 | M2: =EDATE(L2,$F$7) -> 2023-01-01 | N2: =EDATE(M2,$F$7) -> 2024-01-01 | O2: =EDATE(N2,$F$7) -> 2025-01-01 | P2: =EDATE(O2,$F$7) -> 2026-01-01 | Q2: =EDATE(P2,$F$7) -> 2027-01-01 | R2: =EDATE(Q2,$F$7) -> 2028-01-01 | S2: =EDATE(R2,$F$7) -> 2029-01-01 | T2: =EDATE(S2,$F$7) -> 2030-01-01 | U2: =EDATE(T2,$F$7) -> 2031-01-01 | V2: =EDATE(U2,$F$7) -> 2032-01-01 | W2: =EDATE(V2,$F$7) -> 2033-01-01 | X2: =EDATE(W2,$F$7) -> 2034-01-01 | Y2: =EDATE(X2,$F$7) -> 2035-01-01 | Z2: =EDATE(Y2,$F$7) -> 2036-01-01 | AA2: =EDATE(Z2,$F$7) -> 2037-01-01 | AB2: =EDATE(AA2,$F$7) -> 2038-01-01 | AC2: =EDATE(AB2,$F$7) -> 2039-01-01 | AD2: =EDATE(AC2,$F$7) -> 2040-01-01 | AE2: =EDATE(AD2,$F$7) -> 2041-01-01 | AF2: =EDATE(AE2,$F$7) -> 2042-01-01 | AG2: =EDATE(AF2,$F$7) -> 2043-01-01 | AH2: =EDATE(AG2,$F$7) -> 2044-01-01 | AI2: =EDATE(AH2,$F$7) -> 2045-01-01 | AJ2: =EDATE(AI2,$F$7) -> 2046-01-01 | AK2: =EDATE(AJ2,$F$7) -> 2047-01-01 | AL2: =EDATE(AK2,$F$7) -> 2048-01-01 | AM2: =EDATE(AL2,$F$7) -> 2049-01-01 | AN2: =EDATE(AM2,$F$7) -> 2050-01-01 | AO2: =EDATE(AN2,$F$7) -> 2051-01-01 | AP2: =EDATE(AO2,$F$7) -> 2052-01-01 | AQ2: =EDATE(AP2,$F$7) -> 2053-01-01 | AR2: =EDATE(AQ2,$F$7) -> 2054-01-01 | AS2: =EDATE(AR2,$F$7) -> 2055-01-01 | AT2: =EDATE(AS2,$F$7) -> 2056-01-01 | AU2: =EDATE(AT2,$F$7) -> 2057-01-01 | AV2: =EDATE(AU2,$F$7) -> 2058-01-01 | AW2: =EDATE(AV2,$F$7) -> 2059-01-01 | AX2: =EDATE(AW2,$F$7) -> 2060-01-01 | AY2: =EDATE(AX2,$F$7) -> 2061-01-01 | AZ2: =EDATE(AY2,$F$7) -> 2062-01-01 | BA2: =EDATE(AZ2,$F$7) -> 2063-01-01 | BB2: =EDATE(BA2,$F$7) -> 2064-01-01 | BC2: =EDATE(BB2,$F$7) -> 2065-01-01 | BD2: =EDATE(BC2,$F$7) -> 2066-01-01 | BE2: =EDATE(BD2,$F$7) -> 2067-01-01 | BF2: =EDATE(BE2,$F$7) -> 2068-01-01 | BG2: =EDATE(BF2,$F$7) -> 2069-01-01 | BH2: =EDATE(BG2,$F$7) -> 2070-01-01 | BI2: =EDATE(BH2,$F$7) -> 2071-01-01 | BJ2: =EDATE(BI2,$F$7) -> 2072-01-01 | BK2: =EDATE(BJ2,$F$7) -> 2073-01-01 | BL2: =EDATE(BK2,$F$7) -> 2074-01-01 | BM2: =EDATE(BL2,$F$7) -> 2075-01-01 | BN2: =EDATE(BM2,$F$7) -> 2076-01-01 | BO2: =EDATE(BN2,$F$7) -> 2077-01-01 | BP2: =EDATE(BO2,$F$7) -> 2078-01-01 | BQ2: =EDATE(BP2,$F$7) -> 2079-01-01 | BR2: =EDATE(BQ2,$F$7) -> 2080-01-01 | BS2: =EDATE(BR2,$F$7) -> 2081-01-01 | BT2: =EDATE(BS2,$F$7) -> 2082-01-01 | BU2: =EDATE(BT2,$F$7) -> 2083-01-01 | BV2: =EDATE(BU2,$F$7) -> 2084-01-01 | BW2: =EDATE(BV2,$F$7) -> 2085-01-01 | BX2: =EDATE(BW2,$F$7) -> 2086-01-01 | BY2: =EDATE(BX2,$F$7) -> 2087-01-01 | BZ2: =EDATE(BY2,$F$7) -> 2088-01-01 | CA2: =EDATE(BZ2,$F$7) -> 2089-01-01 | CB2: =EDATE(CA2,$F$7) -> 2090-01-01 | CC2: =EDATE(CB2,$F$7) -> 2091-01-01 | CD2: =EDATE(CC2,$F$7) -> 2092-01-01 | CE2: =EDATE(CD2,$F$7) -> 2093-01-01 | CF2: =EDATE(CE2,$F$7) -> 2094-01-01 | CG2: =EDATE(CF2,$F$7) -> 2095-01-01 | CH2: =EDATE(CG2,$F$7) -> 2096-01-01 | CI2: =EDATE(CH2,$F$7) -> 2097-01-01 | CJ2: =EDATE(CI2,$F$7) -> 2098-01-01 | CK2: =EDATE(CJ2,$F$7) -> 2099-01-01 | CL2: =EDATE(CK2,$F$7) -> 2100-01-01 | CM2: =EDATE(CL2,$F$7) -> 2101-01-01 | CN2: =EDATE(CM2,$F$7) -> 2102-01-01 | CO2: =EDATE(CN2,$F$7) -> 2103-01-01 | CP2: =EDATE(CO2,$F$7) -> 2104-01-01 | CQ2: =EDATE(CP2,$F$7) -> 2105-01-01 | CR2: =EDATE(CQ2,$F$7) -> 2106-01-01 | CS2: =EDATE(CR2,$F$7) -> 2107-01-01 | CT2: =EDATE(CS2,$F$7) -> 2108-01-01 | CU2: =EDATE(CT2,$F$7) -> 2109-01-01 | CV2: =EDATE(CU2,$F$7) -> 2110-01-01 | CW2: =EDATE(CV2,$F$7) -> 2111-01-01 | CX2: =EDATE(CW2,$F$7) -> 2112-01-01 | CY2: =EDATE(CX2,$F$7) -> 2113-01-01 | CZ2: =EDATE(CY2,$F$7) -> 2114-01-01 | DA2: =EDATE(CZ2,$F$7) -> 2115-01-01 | DB2: =EDATE(DA2,$F$7) -> 2116-01-01 | DC2: =EDATE(DB2,$F$7) -> 2117-01-01 | DD2: =EDATE(DC2,$F$7) -> 2118-01-01 | DE2: =EDATE(DD2,$F$7) -> 2119-01-01 | DF2: =EDATE(DE2,$F$7) -> 2120-01-01 | DG2: =EDATE(DF2,$F$7) -> 2121-01-01 | DH2: =EDATE(DG2,$F$7) -> 2122-01-01 | DI2: =EDATE(DH2,$F$7) -> 2123-01-01 | DJ2: =EDATE(DI2,$F$7) -> 2124-01-01 | DK2: =EDATE(DJ2,$F$7) -> 2125-01-01 | DL2: =EDATE(DK2,$F$7) -> 2126-01-01 | DM2: =EDATE(DL2,$F$7) -> 2127-01-01 | DN2: =EDATE(DM2,$F$7) -> 2128-01-01 | DO2: =EDATE(DN2,$F$7) -> 2129-01-01 | DP2: =EDATE(DO2,$F$7) -> 2130-01-01 | DQ2: =EDATE(DP2,$F$7) -> 2131-01-01 | DR2: =EDATE(DQ2,$F$7) -> 2132-01-01 | DS2: =EDATE(DR2,$F$7) -> 2133-01-01 | DT2: =EDATE(DS2,$F$7) -> 2134-01-01 | DU2: =EDATE(DT2,$F$7) -> 2135-01-01 | DV2: =EDATE(DU2,$F$7) -> 2136-01-01 | DW2: =EDATE(DV2,$F$7) -> 2137-01-01 | DX2: =EDATE(DW2,$F$7) -> 2138-01-01 | DY2: =EDATE(DX2,$F$7) -> 2139-01-01
B3: Grace Period | F3: =F27 -> 2019-01-01 | G3: =COUNTIF(H3:AO3,TRUE) -> 1 | H3: =H2<$F$3 -> TRUE | I3: =I2<$F$3 -> FALSE | J3: =J2<$F$3 -> FALSE | K3: =K2<$F$3 -> FALSE | L3: =L2<$F$3 -> FALSE | M3: =M2<$F$3 -> FALSE | N3: =N2<$F$3 -> FALSE | O3: =O2<$F$3 -> FALSE | P3: =P2<$F$3 -> FALSE | Q3: =Q2<$F$3 -> FALSE | R3: =R2<$F$3 -> FALSE | S3: =S2<$F$3 -> FALSE | T3: =T2<$F$3 -> FALSE | U3: =U2<$F$3 -> FALSE | V3: =V2<$F$3 -> FALSE | W3: =W2<$F$3 -> FALSE | X3: =X2<$F$3 -> FALSE | Y3: =Y2<$F$3 -> FALSE | Z3: =Z2<$F$3 -> FALSE | AA3: =AA2<$F$3 -> FALSE | AB3: =AB2<$F$3 -> FALSE | AC3: =AC2<$F$3 -> FALSE | AD3: =AD2<$F$3 -> FALSE | AE3: =AE2<$F$3 -> FALSE | AF3: =AF2<$F$3 -> FALSE | AG3: =AG2<$F$3 -> FALSE | AH3: =AH2<$F$3 -> FALSE | AI3: =AI2<$F$3 -> FALSE | AJ3: =AJ2<$F$3 -> FALSE | AK3: =AK2<$F$3 -> FALSE | AL3: =AL2<$F$3 -> FALSE | AM3: =AM2<$F$3 -> FALSE | AN3: =AN2<$F$3 -> FALSE | AO3: =AO2<$F$3 -> FALSE | AP3: =AP2<$F$3 -> FALSE | AQ3: =AQ2<$F$3 -> FALSE | AR3: =AR2<$F$3 -> FALSE | AS3: =AS2<$F$3 -> FALSE | AT3: =AT2<$F$3 -> FALSE | AU3: =AU2<$F$3 -> FALSE | AV3: =AV2<$F$3 -> FALSE | AW3: =AW2<$F$3 -> FALSE | AX3: =AX2<$F$3 -> FALSE | AY3: =AY2<$F$3 -> FALSE | AZ3: =AZ2<$F$3 -> FALSE | BA3: =BA2<$F$3 -> FALSE | BB3: =BB2<$F$3 -> FALSE | BC3: =BC2<$F$3 -> FALSE | BD3: =BD2<$F$3 -> FALSE | BE3: =BE2<$F$3 -> FALSE | BF3: =BF2<$F$3 -> FALSE | BG3: =BG2<$F$3 -> FALSE | BH3: =BH2<$F$3 -> FALSE | BI3: =BI2<$F$3 -> FALSE | BJ3: =BJ2<$F$3 -> FALSE | BK3: =BK2<$F$3 -> FALSE | BL3: =BL2<$F$3 -> FALSE | BM3: =BM2<$F$3 -> FALSE | BN3: =BN2<$F$3 -> FALSE | BO3: =BO2<$F$3 -> FALSE | BP3: =BP2<$F$3 -> FALSE | BQ3: =BQ2<$F$3 -> FALSE | BR3: =BR2<$F$3 -> FALSE | BS3: =BS2<$F$3 -> FALSE | BT3: =BT2<$F$3 -> FALSE | BU3: =BU2<$F$3 -> FALSE | BV3: =BV2<$F$3 -> FALSE | BW3: =BW2<$F$3 -> FALSE | BX3: =BX2<$F$3 -> FALSE | BY3: =BY2<$F$3 -> FALSE | BZ3: =BZ2<$F$3 -> FALSE | CA3: =CA2<$F$3 -> FALSE | CB3: =CB2<$F$3 -> FALSE | CC3: =CC2<$F$3 -> FALSE | CD3: =CD2<$F$3 -> FALSE | CE3: =CE2<$F$3 -> FALSE | CF3: =CF2<$F$3 -> FALSE | CG3: =CG2<$F$3 -> FALSE | CH3: =CH2<$F$3 -> FALSE | CI3: =CI2<$F$3 -> FALSE | CJ3: =CJ2<$F$3 -> FALSE | CK3: =CK2<$F$3 -> FALSE | CL3: =CL2<$F$3 -> FALSE | CM3: =CM2<$F$3 -> FALSE | CN3: =CN2<$F$3 -> FALSE | CO3: =CO2<$F$3 -> FALSE | CP3: =CP2<$F$3 -> FALSE | CQ3: =CQ2<$F$3 -> FALSE | CR3: =CR2<$F$3 -> FALSE | CS3: =CS2<$F$3 -> FALSE | CT3: =CT2<$F$3 -> FALSE | CU3: =CU2<$F$3 -> FALSE | CV3: =CV2<$F$3 -> FALSE | CW3: =CW2<$F$3 -> FALSE | CX3: =CX2<$F$3 -> FALSE | CY3: =CY2<$F$3 -> FALSE | CZ3: =CZ2<$F$3 -> FALSE | DA3: =DA2<$F$3 -> FALSE | DB3: =DB2<$F$3 -> FALSE | DC3: =DC2<$F$3 -> FALSE | DD3: =DD2<$F$3 -> FALSE | DE3: =DE2<$F$3 -> FALSE | DF3: =DF2<$F$3 -> FALSE | DG3: =DG2<$F$3 -> FALSE | DH3: =DH2<$F$3 -> FALSE | DI3: =DI2<$F$3 -> FALSE | DJ3: =DJ2<$F$3 -> FALSE | DK3: =DK2<$F$3 -> FALSE | DL3: =DL2<$F$3 -> FALSE | DM3: =DM2<$F$3 -> FALSE | DN3: =DN2<$F$3 -> FALSE | DO3: =DO2<$F$3 -> FALSE | DP3: =DP2<$F$3 -> FALSE | DQ3: =DQ2<$F$3 -> FALSE | DR3: =DR2<$F$3 -> FALSE | DS3: =DS2<$F$3 -> FALSE | DT3: =DT2<$F$3 -> FALSE | DU3: =DU2<$F$3 -> FALSE | DV3: =DV2<$F$3 -> FALSE | DW3: =DW2<$F$3 -> FALSE | DX3: =DX2<$F$3 -> FALSE | DY3: =DY2<$F$3 -> FALSE
B4: Repayment Period | F4: =F28 -> 2028-01-01 | G4: =COUNTIF(H4:ZO4,TRUE) -> 9 | H4: =AND(H2>=$F$3,H2<$F$4) -> FALSE | I4: =AND(I2>=$F$3,I2<$F$4) -> TRUE | J4: =AND(J2>=$F$3,J2<$F$4) -> TRUE | K4: =AND(K2>=$F$3,K2<$F$4) -> TRUE | L4: =AND(L2>=$F$3,L2<$F$4) -> TRUE | M4: =AND(M2>=$F$3,M2<$F$4) -> TRUE | N4: =AND(N2>=$F$3,N2<$F$4) -> TRUE | O4: =AND(O2>=$F$3,O2<$F$4) -> TRUE | P4: =AND(P2>=$F$3,P2<$F$4) -> TRUE | Q4: =AND(Q2>=$F$3,Q2<$F$4) -> TRUE | R4: =AND(R2>=$F$3,R2<$F$4) -> FALSE | S4: =AND(S2>=$F$3,S2<$F$4) -> FALSE | T4: =AND(T2>=$F$3,T2<$F$4) -> FALSE | U4: =AND(U2>=$F$3,U2<$F$4) -> FALSE | V4: =AND(V2>=$F$3,V2<$F$4) -> FALSE | W4: =AND(W2>=$F$3,W2<$F$4) -> FALSE | X4: =AND(X2>=$F$3,X2<$F$4) -> FALSE | Y4: =AND(Y2>=$F$3,Y2<$F$4) -> FALSE | Z4: =AND(Z2>=$F$3,Z2<$F$4) -> FALSE | AA4: =AND(AA2>=$F$3,AA2<$F$4) -> FALSE | AB4: =AND(AB2>=$F$3,AB2<$F$4) -> FALSE | AC4: =AND(AC2>=$F$3,AC2<$F$4) -> FALSE | AD4: =AND(AD2>=$F$3,AD2<$F$4) -> FALSE | AE4: =AND(AE2>=$F$3,AE2<$F$4) -> FALSE | AF4: =AND(AF2>=$F$3,AF2<$F$4) -> FALSE | AG4: =AND(AG2>=$F$3,AG2<$F$4) -> FALSE | AH4: =AND(AH2>=$F$3,AH2<$F$4) -> FALSE | AI4: =AND(AI2>=$F$3,AI2<$F$4) -> FALSE | AJ4: =AND(AJ2>=$F$3,AJ2<$F$4) -> FALSE | AK4: =AND(AK2>=$F$3,AK2<$F$4) -> FALSE | AL4: =AND(AL2>=$F$3,AL2<$F$4) -> FALSE | AM4: =AND(AM2>=$F$3,AM2<$F$4) -> FALSE | AN4: =AND(AN2>=$F$3,AN2<$F$4) -> FALSE | AO4: =AND(AO2>=$F$3,AO2<$F$4) -> FALSE | AP4: =AND(AP2>=$F$3,AP2<$F$4) -> FALSE | AQ4: =AND(AQ2>=$F$3,AQ2<$F$4) -> FALSE | AR4: =AND(AR2>=$F$3,AR2<$F$4) -> FALSE | AS4: =AND(AS2>=$F$3,AS2<$F$4) -> FALSE | AT4: =AND(AT2>=$F$3,AT2<$F$4) -> FALSE | AU4: =AND(AU2>=$F$3,AU2<$F$4) -> FALSE | AV4: =AND(AV2>=$F$3,AV2<$F$4) -> FALSE | AW4: =AND(AW2>=$F$3,AW2<$F$4) -> FALSE | AX4: =AND(AX2>=$F$3,AX2<$F$4) -> FALSE | AY4: =AND(AY2>=$F$3,AY2<$F$4) -> FALSE | AZ4: =AND(AZ2>=$F$3,AZ2<$F$4) -> FALSE | BA4: =AND(BA2>=$F$3,BA2<$F$4) -> FALSE | BB4: =AND(BB2>=$F$3,BB2<$F$4) -> FALSE | BC4: =AND(BC2>=$F$3,BC2<$F$4) -> FALSE | BD4: =AND(BD2>=$F$3,BD2<$F$4) -> FALSE | BE4: =AND(BE2>=$F$3,BE2<$F$4) -> FALSE | BF4: =AND(BF2>=$F$3,BF2<$F$4) -> FALSE | BG4: =AND(BG2>=$F$3,BG2<$F$4) -> FALSE | BH4: =AND(BH2>=$F$3,BH2<$F$4) -> FALSE | BI4: =AND(BI2>=$F$3,BI2<$F$4) -> FALSE | BJ4: =AND(BJ2>=$F$3,BJ2<$F$4) -> FALSE | BK4: =AND(BK2>=$F$3,BK2<$F$4) -> FALSE | BL4: =AND(BL2>=$F$3,BL2<$F$4) -> FALSE | BM4: =AND(BM2>=$F$3,BM2<$F$4) -> FALSE | BN4: =AND(BN2>=$F$3,BN2<$F$4) -> FALSE | BO4: =AND(BO2>=$F$3,BO2<$F$4) -> FALSE | BP4: =AND(BP2>=$F$3,BP2<$F$4) -> FALSE | BQ4: =AND(BQ2>=$F$3,BQ2<$F$4) -> FALSE | BR4: =AND(BR2>=$F$3,BR2<$F$4) -> FALSE | BS4: =AND(BS2>=$F$3,BS2<$F$4) -> FALSE | BT4: =AND(BT2>=$F$3,BT2<$F$4) -> FALSE | BU4: =AND(BU2>=$F$3,BU2<$F$4) -> FALSE | BV4: =AND(BV2>=$F$3,BV2<$F$4) -> FALSE | BW4: =AND(BW2>=$F$3,BW2<$F$4) -> FALSE | BX4: =AND(BX2>=$F$3,BX2<$F$4) -> FALSE | BY4: =AND(BY2>=$F$3,BY2<$F$4) -> FALSE | BZ4: =AND(BZ2>=$F$3,BZ2<$F$4) -> FALSE | CA4: =AND(CA2>=$F$3,CA2<$F$4) -> FALSE | CB4: =AND(CB2>=$F$3,CB2<$F$4) -> FALSE | CC4: =AND(CC2>=$F$3,CC2<$F$4) -> FALSE | CD4: =AND(CD2>=$F$3,CD2<$F$4) -> FALSE | CE4: =AND(CE2>=$F$3,CE2<$F$4) -> FALSE | CF4: =AND(CF2>=$F$3,CF2<$F$4) -> FALSE | CG4: =AND(CG2>=$F$3,CG2<$F$4) -> FALSE | CH4: =AND(CH2>=$F$3,CH2<$F$4) -> FALSE | CI4: =AND(CI2>=$F$3,CI2<$F$4) -> FALSE | CJ4: =AND(CJ2>=$F$3,CJ2<$F$4) -> FALSE | CK4: =AND(CK2>=$F$3,CK2<$F$4) -> FALSE | CL4: =AND(CL2>=$F$3,CL2<$F$4) -> FALSE | CM4: =AND(CM2>=$F$3,CM2<$F$4) -> FALSE | CN4: =AND(CN2>=$F$3,CN2<$F$4) -> FALSE | CO4: =AND(CO2>=$F$3,CO2<$F$4) -> FALSE | CP4: =AND(CP2>=$F$3,CP2<$F$4) -> FALSE | CQ4: =AND(CQ2>=$F$3,CQ2<$F$4) -> FALSE | CR4: =AND(CR2>=$F$3,CR2<$F$4) -> FALSE | CS4: =AND(CS2>=$F$3,CS2<$F$4) -> FALSE | CT4: =AND(CT2>=$F$3,CT2<$F$4) -> FALSE | CU4: =AND(CU2>=$F$3,CU2<$F$4) -> FALSE | CV4: =AND(CV2>=$F$3,CV2<$F$4) -> FALSE | CW4: =AND(CW2>=$F$3,CW2<$F$4) -> FALSE | CX4: =AND(CX2>=$F$3,CX2<$F$4) -> FALSE | CY4: =AND(CY2>=$F$3,CY2<$F$4) -> FALSE | CZ4: =AND(CZ2>=$F$3,CZ2<$F$4) -> FALSE | DA4: =AND(DA2>=$F$3,DA2<$F$4) -> FALSE | DB4: =AND(DB2>=$F$3,DB2<$F$4) -> FALSE | DC4: =AND(DC2>=$F$3,DC2<$F$4) -> FALSE | DD4: =AND(DD2>=$F$3,DD2<$F$4) -> FALSE | DE4: =AND(DE2>=$F$3,DE2<$F$4) -> FALSE | DF4: =AND(DF2>=$F$3,DF2<$F$4) -> FALSE | DG4: =AND(DG2>=$F$3,DG2<$F$4) -> FALSE | DH4: =AND(DH2>=$F$3,DH2<$F$4) -> FALSE | DI4: =AND(DI2>=$F$3,DI2<$F$4) -> FALSE | DJ4: =AND(DJ2>=$F$3,DJ2<$F$4) -> FALSE | DK4: =AND(DK2>=$F$3,DK2<$F$4) -> FALSE | DL4: =AND(DL2>=$F$3,DL2<$F$4) -> FALSE | DM4: =AND(DM2>=$F$3,DM2<$F$4) -> FALSE | DN4: =AND(DN2>=$F$3,DN2<$F$4) -> FALSE | DO4: =AND(DO2>=$F$3,DO2<$F$4) -> FALSE | DP4: =AND(DP2>=$F$3,DP2<$F$4) -> FALSE | DQ4: =AND(DQ2>=$F$3,DQ2<$F$4) -> FALSE | DR4: =AND(DR2>=$F$3,DR2<$F$4) -> FALSE | DS4: =AND(DS2>=$F$3,DS2<$F$4) -> FALSE | DT4: =AND(DT2>=$F$3,DT2<$F$4) -> FALSE | DU4: =AND(DU2>=$F$3,DU2<$F$4) -> FALSE | DV4: =AND(DV2>=$F$3,DV2<$F$4) -> FALSE | DW4: =AND(DW2>=$F$3,DW2<$F$4) -> FALSE | DX4: =AND(DX2>=$F$3,DX2<$F$4) -> FALSE | DY4: =AND(DY2>=$F$3,DY2<$F$4) -> FALSE
G5: =SUM(G3:G4)/F8 -> 10
B6: General Inputs
C7: Months in Period | F7: ='RAROC Analysis'!T1 -> 12
C8: Periods in Year | F8: =12/F7 -> 1
B10: Inputs
C11: Loan Amount | F11: ='RAROC Analysis'!H14 -> 10000
C12: Credit Spread | F12: ='RAROC Analysis'!H16 -> 0.039
C13: Base Rate | F13: ='RAROC Analysis'!H15 -> 0.03
C14: Total Rate Added | F14: =F12+F13 -> 0.069
C16: Cost of Funds | F16: ='RAROC Analysis'!H25 -> 0.03
C17: Implied Effective Credit Spread | F17: =F58 -> 0.04412332231
C19: Up Front Fees | F19: ='RAROC Analysis'!H17 -> 0.01
C20: Commitment Fees | F20: ='RAROC Analysis'!H18 -> 0.015
C21: Other Fees | F21: ='RAROC Analysis'!H19 -> 0
C23: Maturity | F23: ='RAROC Analysis'!H21 -> 10
C24: Grace Period | F24: =IF('RAROC Analysis'!H22>0,'RAROC Analysis'!H22,1/F8) -> 1
C25: Repayments (1-Mtg,2-Level,3-Sculpt) | F25: ='RAROC Analysis'!H23 -> 1
C27: End of Grace Period | F27: =EDATE(H2,F24*12) -> 2019-01-01
C28: End of Repayment Period | F28: =EDATE(H2,F23*12) -> 2028-01-01
B30: Cash Flow
C31: Draw Percent | F31: =(1/F24/F8) -> 1 | H31: =$F$31*H3 -> 1 | I31: =$F$31*I3 -> 0 | J31: =$F$31*J3 -> 0 | K31: =$F$31*K3 -> 0 | L31: =$F$31*L3 -> 0 | M31: =$F$31*M3 -> 0 | N31: =$F$31*N3 -> 0 | O31: =$F$31*O3 -> 0 | P31: =$F$31*P3 -> 0 | Q31: =$F$31*Q3 -> 0 | R31: =$F$31*R3 -> 0 | S31: =$F$31*S3 -> 0 | T31: =$F$31*T3 -> 0 | U31: =$F$31*U3 -> 0 | V31: =$F$31*V3 -> 0 | W31: =$F$31*W3 -> 0 | X31: =$F$31*X3 -> 0 | Y31: =$F$31*Y3 -> 0 | Z31: =$F$31*Z3 -> 0 | AA31: =$F$31*AA3 -> 0 | AB31: =$F$31*AB3 -> 0 | AC31: =$F$31*AC3 -> 0 | AD31: =$F$31*AD3 -> 0 | AE31: =$F$31*AE3 -> 0 | AF31: =$F$31*AF3 -> 0 | AG31: =$F$31*AG3 -> 0 | AH31: =$F$31*AH3 -> 0 | AI31: =$F$31*AI3 -> 0 | AJ31: =$F$31*AJ3 -> 0 | AK31: =$F$31*AK3 -> 0 | AL31: =$F$31*AL3 -> 0 | AM31: =$F$31*AM3 -> 0 | AN31: =$F$31*AN3 -> 0 | AO31: =$F$31*AO3 -> 0 | AP31: =$F$31*AP3 -> 0 | AQ31: =$F$31*AQ3 -> 0 | AR31: =$F$31*AR3 -> 0 | AS31: =$F$31*AS3 -> 0 | AT31: =$F$31*AT3 -> 0 | AU31: =$F$31*AU3 -> 0 | AV31: =$F$31*AV3 -> 0 | AW31: =$F$31*AW3 -> 0 | AX31: =$F$31*AX3 -> 0 | AY31: =$F$31*AY3 -> 0 | AZ31: =$F$31*AZ3 -> 0 | BA31: =$F$31*BA3 -> 0 | BB31: =$F$31*BB3 -> 0 | BC31: =$F$31*BC3 -> 0 | BD31: =$F$31*BD3 -> 0 | BE31: =$F$31*BE3 -> 0 | BF31: =$F$31*BF3 -> 0 | BG31: =$F$31*BG3 -> 0 | BH31: =$F$31*BH3 -> 0 | BI31: =$F$31*BI3 -> 0 | BJ31: =$F$31*BJ3 -> 0 | BK31: =$F$31*BK3 -> 0 | BL31: =$F$31*BL3 -> 0 | BM31: =$F$31*BM3 -> 0 | BN31: =$F$31*BN3 -> 0 | BO31: =$F$31*BO3 -> 0 | BP31: =$F$31*BP3 -> 0 | BQ31: =$F$31*BQ3 -> 0 | BR31: =$F$31*BR3 -> 0 | BS31: =$F$31*BS3 -> 0 | BT31: =$F$31*BT3 -> 0 | BU31: =$F$31*BU3 -> 0 | BV31: =$F$31*BV3 -> 0 | BW31: =$F$31*BW3 -> 0 | BX31: =$F$31*BX3 -> 0 | BY31: =$F$31*BY3 -> 0 | BZ31: =$F$31*BZ3 -> 0 | CA31: =$F$31*CA3 -> 0 | CB31: =$F$31*CB3 -> 0 | CC31: =$F$31*CC3 -> 0 | CD31: =$F$31*CD3 -> 0 | CE31: =$F$31*CE3 -> 0 | CF31: =$F$31*CF3 -> 0 | CG31: =$F$31*CG3 -> 0 | CH31: =$F$31*CH3 -> 0 | CI31: =$F$31*CI3 -> 0 | CJ31: =$F$31*CJ3 -> 0 | CK31: =$F$31*CK3 -> 0 | CL31: =$F$31*CL3 -> 0 | CM31: =$F$31*CM3 -> 0 | CN31: =$F$31*CN3 -> 0 | CO31: =$F$31*CO3 -> 0 | CP31: =$F$31*CP3 -> 0 | CQ31: =$F$31*CQ3 -> 0 | CR31: =$F$31*CR3 -> 0 | CS31: =$F$31*CS3 -> 0 | CT31: =$F$31*CT3 -> 0 | CU31: =$F$31*CU3 -> 0 | CV31: =$F$31*CV3 -> 0 | CW31: =$F$31*CW3 -> 0 | CX31: =$F$31*CX3 -> 0 | CY31: =$F$31*CY3 -> 0 | CZ31: =$F$31*CZ3 -> 0 | DA31: =$F$31*DA3 -> 0 | DB31: =$F$31*DB3 -> 0 | DC31: =$F$31*DC3 -> 0 | DD31: =$F$31*DD3 -> 0 | DE31: =$F$31*DE3 -> 0 | DF31: =$F$31*DF3 -> 0 | DG31: =$F$31*DG3 -> 0 | DH31: =$F$31*DH3 -> 0 | DI31: =$F$31*DI3 -> 0 | DJ31: =$F$31*DJ3 -> 0 | DK31: =$F$31*DK3 -> 0 | DL31: =$F$31*DL3 -> 0 | DM31: =$F$31*DM3 -> 0 | DN31: =$F$31*DN3 -> 0 | DO31: =$F$31*DO3 -> 0 | DP31: =$F$31*DP3 -> 0 | DQ31: =$F$31*DQ3 -> 0 | DR31: =$F$31*DR3 -> 0 | DS31: =$F$31*DS3 -> 0 | DT31: =$F$31*DT3 -> 0 | DU31: =$F$31*DU3 -> 0 | DV31: =$F$31*DV3 -> 0 | DW31: =$F$31*DW3 -> 0 | DX31: =$F$31*DX3 -> 0 | DY31: =$F$31*DY3 -> 0
C32: Draws | F32: =F11 -> 10000 | H32: =$F$32*H31 -> 10000 | I32: =$F$32*I31 -> 0 | J32: =$F$32*J31 -> 0 | K32: =$F$32*K31 -> 0 | L32: =$F$32*L31 -> 0 | M32: =$F$32*M31 -> 0 | N32: =$F$32*N31 -> 0 | O32: =$F$32*O31 -> 0 | P32: =$F$32*P31 -> 0 | Q32: =$F$32*Q31 -> 0 | R32: =$F$32*R31 -> 0 | S32: =$F$32*S31 -> 0 | T32: =$F$32*T31 -> 0 | U32: =$F$32*U31 -> 0 | V32: =$F$32*V31 -> 0 | W32: =$F$32*W31 -> 0 | X32: =$F$32*X31 -> 0 | Y32: =$F$32*Y31 -> 0 | Z32: =$F$32*Z31 -> 0 | AA32: =$F$32*AA31 -> 0 | AB32: =$F$32*AB31 -> 0 | AC32: =$F$32*AC31 -> 0 | AD32: =$F$32*AD31 -> 0 | AE32: =$F$32*AE31 -> 0 | AF32: =$F$32*AF31 -> 0 | AG32: =$F$32*AG31 -> 0 | AH32: =$F$32*AH31 -> 0 | AI32: =$F$32*AI31 -> 0 | AJ32: =$F$32*AJ31 -> 0 | AK32: =$F$32*AK31 -> 0 | AL32: =$F$32*AL31 -> 0 | AM32: =$F$32*AM31 -> 0 | AN32: =$F$32*AN31 -> 0 | AO32: =$F$32*AO31 -> 0 | AP32: =$F$32*AP31 -> 0 | AQ32: =$F$32*AQ31 -> 0 | AR32: =$F$32*AR31 -> 0 | AS32: =$F$32*AS31 -> 0 | AT32: =$F$32*AT31 -> 0 | AU32: =$F$32*AU31 -> 0 | AV32: =$F$32*AV31 -> 0 | AW32: =$F$32*AW31 -> 0 | AX32: =$F$32*AX31 -> 0 | AY32: =$F$32*AY31 -> 0 | AZ32: =$F$32*AZ31 -> 0 | BA32: =$F$32*BA31 -> 0 | BB32: =$F$32*BB31 -> 0 | BC32: =$F$32*BC31 -> 0 | BD32: =$F$32*BD31 -> 0 | BE32: =$F$32*BE31 -> 0 | BF32: =$F$32*BF31 -> 0 | BG32: =$F$32*BG31 -> 0 | BH32: =$F$32*BH31 -> 0 | BI32: =$F$32*BI31 -> 0 | BJ32: =$F$32*BJ31 -> 0 | BK32: =$F$32*BK31 -> 0 | BL32: =$F$32*BL31 -> 0 | BM32: =$F$32*BM31 -> 0 | BN32: =$F$32*BN31 -> 0 | BO32: =$F$32*BO31 -> 0 | BP32: =$F$32*BP31 -> 0 | BQ32: =$F$32*BQ31 -> 0 | BR32: =$F$32*BR31 -> 0 | BS32: =$F$32*BS31 -> 0 | BT32: =$F$32*BT31 -> 0 | BU32: =$F$32*BU31 -> 0 | BV32: =$F$32*BV31 -> 0 | BW32: =$F$32*BW31 -> 0 | BX32: =$F$32*BX31 -> 0 | BY32: =$F$32*BY31 -> 0 | BZ32: =$F$32*BZ31 -> 0 | CA32: =$F$32*CA31 -> 0 | CB32: =$F$32*CB31 -> 0 | CC32: =$F$32*CC31 -> 0 | CD32: =$F$32*CD31 -> 0 | CE32: =$F$32*CE31 -> 0 | CF32: =$F$32*CF31 -> 0 | CG32: =$F$32*CG31 -> 0 | CH32: =$F$32*CH31 -> 0 | CI32: =$F$32*CI31 -> 0 | CJ32: =$F$32*CJ31 -> 0 | CK32: =$F$32*CK31 -> 0 | CL32: =$F$32*CL31 -> 0 | CM32: =$F$32*CM31 -> 0 | CN32: =$F$32*CN31 -> 0 | CO32: =$F$32*CO31 -> 0 | CP32: =$F$32*CP31 -> 0 | CQ32: =$F$32*CQ31 -> 0 | CR32: =$F$32*CR31 -> 0 | CS32: =$F$32*CS31 -> 0 | CT32: =$F$32*CT31 -> 0 | CU32: =$F$32*CU31 -> 0 | CV32: =$F$32*CV31 -> 0 | CW32: =$F$32*CW31 -> 0 | CX32: =$F$32*CX31 -> 0 | CY32: =$F$32*CY31 -> 0 | CZ32: =$F$32*CZ31 -> 0 | DA32: =$F$32*DA31 -> 0 | DB32: =$F$32*DB31 -> 0 | DC32: =$F$32*DC31 -> 0 | DD32: =$F$32*DD31 -> 0 | DE32: =$F$32*DE31 -> 0 | DF32: =$F$32*DF31 -> 0 | DG32: =$F$32*DG31 -> 0 | DH32: =$F$32*DH31 -> 0 | DI32: =$F$32*DI31 -> 0 | DJ32: =$F$32*DJ31 -> 0 | DK32: =$F$32*DK31 -> 0 | DL32: =$F$32*DL31 -> 0 | DM32: =$F$32*DM31 -> 0 | DN32: =$F$32*DN31 -> 0 | DO32: =$F$32*DO31 -> 0 | DP32: =$F$32*DP31 -> 0 | DQ32: =$F$32*DQ31 -> 0 | DR32: =$F$32*DR31 -> 0 | DS32: =$F$32*DS31 -> 0 | DT32: =$F$32*DT31 -> 0 | DU32: =$F$32*DU31 -> 0 | DV32: =$F$32*DV31 -> 0 | DW32: =$F$32*DW31 -> 0 | DX32: =$F$32*DX31 -> 0 | DY32: =$F$32*DY31 -> 0
C33: Loan Repayment Period | H33: =G33+H4 -> 0 | I33: 1 | J33: 2 | K33: 3 | L33: 4 | M33: 5 | N33: 6 | O33: 7 | P33: 8 | Q33: 9 | R33: 9 | S33: 9 | T33: 9 | U33: 9 | V33: 9 | W33: 9 | X33: 9 | Y33: 9 | Z33: 9 | AA33: 9 | AB33: 9 | AC33: 9 | AD33: 9 | AE33: 9 | AF33: 9 | AG33: 9 | AH33: 9 | AI33: 9 | AJ33: 9 | AK33: 9 | AL33: 9 | AM33: 9 | AN33: =AM33+AN4 -> 9 | AO33: 9 | AP33: 9 | AQ33: 9 | AR33: 9 | AS33: 9 | AT33: 9 | AU33: 9 | AV33: 9 | AW33: 9 | AX33: 9 | AY33: 9 | AZ33: 9 | BA33: 9 | BB33: 9 | BC33: 9 | BD33: 9 | BE33: 9 | BF33: 9 | BG33: 9 | BH33: 9 | BI33: 9 | BJ33: 9 | BK33: 9 | BL33: 9 | BM33: 9 | BN33: 9 | BO33: 9 | BP33: 9 | BQ33: 9 | BR33: 9 | BS33: 9 | BT33: =BS33+BT4 -> 9 | BU33: 9 | BV33: 9 | BW33: 9 | BX33: 9 | BY33: 9 | BZ33: 9 | CA33: 9 | CB33: 9 | CC33: 9 | CD33: 9 | CE33: 9 | CF33: 9 | CG33: 9 | CH33: 9 | CI33: 9 | CJ33: 9 | CK33: 9 | CL33: 9 | CM33: 9 | CN33: 9 | CO33: 9 | CP33: 9 | CQ33: 9 | CR33: 9 | CS33: 9 | CT33: 9 | CU33: 9 | CV33: 9 | CW33: 9 | CX33: 9 | CY33: 9 | CZ33: =CY33+CZ4 -> 9 | DA33: 9 | DB33: 9 | DC33: 9 | DD33: 9 | DE33: 9 | DF33: 9 | DG33: 9 | DH33: 9 | DI33: 9 | DJ33: 9 | DK33: 9 | DL33: 9 | DM33: 9 | DN33: 9 | DO33: 9 | DP33: 9 | DQ33: 9 | DR33: 9 | DS33: 9 | DT33: 9 | DU33: 9 | DV33: 9 | DW33: 9 | DX33: 9 | DY33: 9
C34: Repayment Percent - Level | F34: =1/(F23-F24)/F8 -> 0.1111111111 | G34: =SUM(H34:BA34) -> 1 | H34: =$F$34*H4 -> 0 | I34: =$F$34*I4 -> 0.1111111111 | J34: =$F$34*J4 -> 0.1111111111 | K34: =$F$34*K4 -> 0.1111111111 | L34: =$F$34*L4 -> 0.1111111111 | M34: =$F$34*M4 -> 0.1111111111 | N34: =$F$34*N4 -> 0.1111111111 | O34: =$F$34*O4 -> 0.1111111111 | P34: =$F$34*P4 -> 0.1111111111 | Q34: =$F$34*Q4 -> 0.1111111111 | R34: =$F$34*R4 -> 0 | S34: =$F$34*S4 -> 0 | T34: =$F$34*T4 -> 0 | U34: =$F$34*U4 -> 0 | V34: =$F$34*V4 -> 0 | W34: =$F$34*W4 -> 0 | X34: =$F$34*X4 -> 0 | Y34: =$F$34*Y4 -> 0 | Z34: =$F$34*Z4 -> 0 | AA34: =$F$34*AA4 -> 0 | AB34: =$F$34*AB4 -> 0 | AC34: =$F$34*AC4 -> 0 | AD34: =$F$34*AD4 -> 0 | AE34: =$F$34*AE4 -> 0 | AF34: =$F$34*AF4 -> 0 | AG34: =$F$34*AG4 -> 0 | AH34: =$F$34*AH4 -> 0 | AI34: =$F$34*AI4 -> 0 | AJ34: =$F$34*AJ4 -> 0 | AK34: =$F$34*AK4 -> 0 | AL34: =$F$34*AL4 -> 0 | AM34: =$F$34*AM4 -> 0 | AN34: =$F$34*AN4 -> 0 | AO34: =$F$34*AO4 -> 0 | AP34: =$F$34*AP4 -> 0 | AQ34: =$F$34*AQ4 -> 0 | AR34: =$F$34*AR4 -> 0 | AS34: =$F$34*AS4 -> 0 | AT34: =$F$34*AT4 -> 0 | AU34: =$F$34*AU4 -> 0 | AV34: =$F$34*AV4 -> 0 | AW34: =$F$34*AW4 -> 0 | AX34: =$F$34*AX4 -> 0 | AY34: =$F$34*AY4 -> 0 | AZ34: =$F$34*AZ4 -> 0 | BA34: =$F$34*BA4 -> 0 | BB34: =$F$34*BB4 -> 0 | BC34: =$F$34*BC4 -> 0 | BD34: =$F$34*BD4 -> 0 | BE34: =$F$34*BE4 -> 0 | BF34: =$F$34*BF4 -> 0 | BG34: =$F$34*BG4 -> 0 | BH34: =$F$34*BH4 -> 0 | BI34: =$F$34*BI4 -> 0 | BJ34: =$F$34*BJ4 -> 0 | BK34: =$F$34*BK4 -> 0 | BL34: =$F$34*BL4 -> 0 | BM34: =$F$34*BM4 -> 0 | BN34: =$F$34*BN4 -> 0 | BO34: =$F$34*BO4 -> 0 | BP34: =$F$34*BP4 -> 0 | BQ34: =$F$34*BQ4 -> 0 | BR34: =$F$34*BR4 -> 0 | BS34: =$F$34*BS4 -> 0 | BT34: =$F$34*BT4 -> 0 | BU34: =$F$34*BU4 -> 0 | BV34: =$F$34*BV4 -> 0 | BW34: =$F$34*BW4 -> 0 | BX34: =$F$34*BX4 -> 0 | BY34: =$F$34*BY4 -> 0 | BZ34: =$F$34*BZ4 -> 0 | CA34: =$F$34*CA4 -> 0 | CB34: =$F$34*CB4 -> 0 | CC34: =$F$34*CC4 -> 0 | CD34: =$F$34*CD4 -> 0 | CE34: =$F$34*CE4 -> 0 | CF34: =$F$34*CF4 -> 0 | CG34: =$F$34*CG4 -> 0 | CH34: =$F$34*CH4 -> 0 | CI34: =$F$34*CI4 -> 0 | CJ34: =$F$34*CJ4 -> 0 | CK34: =$F$34*CK4 -> 0 | CL34: =$F$34*CL4 -> 0 | CM34: =$F$34*CM4 -> 0 | CN34: =$F$34*CN4 -> 0 | CO34: =$F$34*CO4 -> 0 | CP34: =$F$34*CP4 -> 0 | CQ34: =$F$34*CQ4 -> 0 | CR34: =$F$34*CR4 -> 0 | CS34: =$F$34*CS4 -> 0 | CT34: =$F$34*CT4 -> 0 | CU34: =$F$34*CU4 -> 0 | CV34: =$F$34*CV4 -> 0 | CW34: =$F$34*CW4 -> 0 | CX34: =$F$34*CX4 -> 0 | CY34: =$F$34*CY4 -> 0 | CZ34: =$F$34*CZ4 -> 0 | DA34: =$F$34*DA4 -> 0 | DB34: =$F$34*DB4 -> 0 | DC34: =$F$34*DC4 -> 0 | DD34: =$F$34*DD4 -> 0 | DE34: =$F$34*DE4 -> 0 | DF34: =$F$34*DF4 -> 0 | DG34: =$F$34*DG4 -> 0 | DH34: =$F$34*DH4 -> 0 | DI34: =$F$34*DI4 -> 0 | DJ34: =$F$34*DJ4 -> 0 | DK34: =$F$34*DK4 -> 0 | DL34: =$F$34*DL4 -> 0 | DM34: =$F$34*DM4 -> 0 | DN34: =$F$34*DN4 -> 0 | DO34: =$F$34*DO4 -> 0 | DP34: =$F$34*DP4 -> 0 | DQ34: =$F$34*DQ4 -> 0 | DR34: =$F$34*DR4 -> 0 | DS34: =$F$34*DS4 -> 0 | DT34: =$F$34*DT4 -> 0 | DU34: =$F$34*DU4 -> 0 | DV34: =$F$34*DV4 -> 0 | DW34: =$F$34*DW4 -> 0 | DX34: =$F$34*DX4 -> 0 | DY34: =$F$34*DY4 -> 0
C35: Repayment Percent - Mortgage | F35: =F14/F8 -> 0.069 | G35: =(F23-F24)*F8 -> 9 | H35: =IF(H4,PPMT($F$35,H33,$G$35,-1))*1 -> 0 | I35: =IF(I4,PPMT($F$35,I33,$G$35,-1))*1 -> 0.08383419007 | J35: =IF(J4,PPMT($F$35,J33,$G$35,-1))*1 -> 0.08961874918 | K35: =IF(K4,PPMT($F$35,K33,$G$35,-1))*1 -> 0.09580244287 | L35: =IF(L4,PPMT($F$35,L33,$G$35,-1))*1 -> 0.1024128114 | M35: =IF(M4,PPMT($F$35,M33,$G$35,-1))*1 -> 0.1094792954 | N35: =IF(N4,PPMT($F$35,N33,$G$35,-1))*1 -> 0.1170333668 | O35: =IF(O4,PPMT($F$35,O33,$G$35,-1))*1 -> 0.1251086691 | P35: =IF(P4,PPMT($F$35,P33,$G$35,-1))*1 -> 0.1337411673 | Q35: =IF(Q4,PPMT($F$35,Q33,$G$35,-1))*1 -> 0.1429693078 | R35: =IF(R4,PPMT($F$35,R33,$G$35,-1))*1 -> 0 | S35: =IF(S4,PPMT($F$35,S33,$G$35,-1))*1 -> 0 | T35: =IF(T4,PPMT($F$35,T33,$G$35,-1))*1 -> 0 | U35: =IF(U4,PPMT($F$35,U33,$G$35,-1))*1 -> 0 | V35: =IF(V4,PPMT($F$35,V33,$G$35,-1))*1 -> 0 | W35: =IF(W4,PPMT($F$35,W33,$G$35,-1))*1 -> 0 | X35: =IF(X4,PPMT($F$35,X33,$G$35,-1))*1 -> 0 | Y35: =IF(Y4,PPMT($F$35,Y33,$G$35,-1))*1 -> 0 | Z35: =IF(Z4,PPMT($F$35,Z33,$G$35,-1))*1 -> 0 | AA35: =IF(AA4,PPMT($F$35,AA33,$G$35,-1))*1 -> 0 | AB35: =IF(AB4,PPMT($F$35,AB33,$G$35,-1))*1 -> 0 | AC35: =IF(AC4,PPMT($F$35,AC33,$G$35,-1))*1 -> 0 | AD35: =IF(AD4,PPMT($F$35,AD33,$G$35,-1))*1 -> 0 | AE35: =IF(AE4,PPMT($F$35,AE33,$G$35,-1))*1 -> 0 | AF35: =IF(AF4,PPMT($F$35,AF33,$G$35,-1))*1 -> 0 | AG35: =IF(AG4,PPMT($F$35,AG33,$G$35,-1))*1 -> 0 | AH35: =IF(AH4,PPMT($F$35,AH33,$G$35,-1))*1 -> 0 | AI35: =IF(AI4,PPMT($F$35,AI33,$G$35,-1))*1 -> 0 | AJ35: =IF(AJ4,PPMT($F$35,AJ33,$G$35,-1))*1 -> 0 | AK35: =IF(AK4,PPMT($F$35,AK33,$G$35,-1))*1 -> 0 | AL35: =IF(AL4,PPMT($F$35,AL33,$G$35,-1))*1 -> 0 | AM35: =IF(AM4,PPMT($F$35,AM33,$G$35,-1))*1 -> 0 | AN35: =IF(AN4,PPMT($F$35,AN33,$G$35,-1))*1 -> 0 | AO35: =IF(AO4,PPMT($F$35,AO33,$G$35,-1))*1 -> 0 | AP35: =IF(AP4,PPMT($F$35,AP33,$G$35,-1))*1 -> 0 | AQ35: =IF(AQ4,PPMT($F$35,AQ33,$G$35,-1))*1 -> 0 | AR35: =IF(AR4,PPMT($F$35,AR33,$G$35,-1))*1 -> 0 | AS35: =IF(AS4,PPMT($F$35,AS33,$G$35,-1))*1 -> 0 | AT35: =IF(AT4,PPMT($F$35,AT33,$G$35,-1))*1 -> 0 | AU35: =IF(AU4,PPMT($F$35,AU33,$G$35,-1))*1 -> 0 | AV35: =IF(AV4,PPMT($F$35,AV33,$G$35,-1))*1 -> 0 | AW35: =IF(AW4,PPMT($F$35,AW33,$G$35,-1))*1 -> 0 | AX35: =IF(AX4,PPMT($F$35,AX33,$G$35,-1))*1 -> 0 | AY35: =IF(AY4,PPMT($F$35,AY33,$G$35,-1))*1 -> 0 | AZ35: =IF(AZ4,PPMT($F$35,AZ33,$G$35,-1))*1 -> 0 | BA35: =IF(BA4,PPMT($F$35,BA33,$G$35,-1))*1 -> 0 | BB35: =IF(BB4,PPMT($F$35,BB33,$G$35,-1))*1 -> 0 | BC35: =IF(BC4,PPMT($F$35,BC33,$G$35,-1))*1 -> 0 | BD35: =IF(BD4,PPMT($F$35,BD33,$G$35,-1))*1 -> 0 | BE35: =IF(BE4,PPMT($F$35,BE33,$G$35,-1))*1 -> 0 | BF35: =IF(BF4,PPMT($F$35,BF33,$G$35,-1))*1 -> 0 | BG35: =IF(BG4,PPMT($F$35,BG33,$G$35,-1))*1 -> 0 | BH35: =IF(BH4,PPMT($F$35,BH33,$G$35,-1))*1 -> 0 | BI35: =IF(BI4,PPMT($F$35,BI33,$G$35,-1))*1 -> 0 | BJ35: =IF(BJ4,PPMT($F$35,BJ33,$G$35,-1))*1 -> 0 | BK35: =IF(BK4,PPMT($F$35,BK33,$G$35,-1))*1 -> 0 | BL35: =IF(BL4,PPMT($F$35,BL33,$G$35,-1))*1 -> 0 | BM35: =IF(BM4,PPMT($F$35,BM33,$G$35,-1))*1 -> 0 | BN35: =IF(BN4,PPMT($F$35,BN33,$G$35,-1))*1 -> 0 | BO35: =IF(BO4,PPMT($F$35,BO33,$G$35,-1))*1 -> 0 | BP35: =IF(BP4,PPMT($F$35,BP33,$G$35,-1))*1 -> 0 | BQ35: =IF(BQ4,PPMT($F$35,BQ33,$G$35,-1))*1 -> 0 | BR35: =IF(BR4,PPMT($F$35,BR33,$G$35,-1))*1 -> 0 | BS35: =IF(BS4,PPMT($F$35,BS33,$G$35,-1))*1 -> 0 | BT35: =IF(BT4,PPMT($F$35,BT33,$G$35,-1))*1 -> 0 | BU35: =IF(BU4,PPMT($F$35,BU33,$G$35,-1))*1 -> 0 | BV35: =IF(BV4,PPMT($F$35,BV33,$G$35,-1))*1 -> 0 | BW35: =IF(BW4,PPMT($F$35,BW33,$G$35,-1))*1 -> 0 | BX35: =IF(BX4,PPMT($F$35,BX33,$G$35,-1))*1 -> 0 | BY35: =IF(BY4,PPMT($F$35,BY33,$G$35,-1))*1 -> 0 | BZ35: =IF(BZ4,PPMT($F$35,BZ33,$G$35,-1))*1 -> 0 | CA35: =IF(CA4,PPMT($F$35,CA33,$G$35,-1))*1 -> 0 | CB35: =IF(CB4,PPMT($F$35,CB33,$G$35,-1))*1 -> 0 | CC35: =IF(CC4,PPMT($F$35,CC33,$G$35,-1))*1 -> 0 | CD35: =IF(CD4,PPMT($F$35,CD33,$G$35,-1))*1 -> 0 | CE35: =IF(CE4,PPMT($F$35,CE33,$G$35,-1))*1 -> 0 | CF35: =IF(CF4,PPMT($F$35,CF33,$G$35,-1))*1 -> 0 | CG35: =IF(CG4,PPMT($F$35,CG33,$G$35,-1))*1 -> 0 | CH35: =IF(CH4,PPMT($F$35,CH33,$G$35,-1))*1 -> 0 | CI35: =IF(CI4,PPMT($F$35,CI33,$G$35,-1))*1 -> 0 | CJ35: =IF(CJ4,PPMT($F$35,CJ33,$G$35,-1))*1 -> 0 | CK35: =IF(CK4,PPMT($F$35,CK33,$G$35,-1))*1 -> 0 | CL35: =IF(CL4,PPMT($F$35,CL33,$G$35,-1))*1 -> 0 | CM35: =IF(CM4,PPMT($F$35,CM33,$G$35,-1))*1 -> 0 | CN35: =IF(CN4,PPMT($F$35,CN33,$G$35,-1))*1 -> 0 | CO35: =IF(CO4,PPMT($F$35,CO33,$G$35,-1))*1 -> 0 | CP35: =IF(CP4,PPMT($F$35,CP33,$G$35,-1))*1 -> 0 | CQ35: =IF(CQ4,PPMT($F$35,CQ33,$G$35,-1))*1 -> 0 | CR35: =IF(CR4,PPMT($F$35,CR33,$G$35,-1))*1 -> 0 | CS35: =IF(CS4,PPMT($F$35,CS33,$G$35,-1))*1 -> 0 | CT35: =IF(CT4,PPMT($F$35,CT33,$G$35,-1))*1 -> 0 | CU35: =IF(CU4,PPMT($F$35,CU33,$G$35,-1))*1 -> 0 | CV35: =IF(CV4,PPMT($F$35,CV33,$G$35,-1))*1 -> 0 | CW35: =IF(CW4,PPMT($F$35,CW33,$G$35,-1))*1 -> 0 | CX35: =IF(CX4,PPMT($F$35,CX33,$G$35,-1))*1 -> 0 | CY35: =IF(CY4,PPMT($F$35,CY33,$G$35,-1))*1 -> 0 | CZ35: =IF(CZ4,PPMT($F$35,CZ33,$G$35,-1))*1 -> 0 | DA35: =IF(DA4,PPMT($F$35,DA33,$G$35,-1))*1 -> 0 | DB35: =IF(DB4,PPMT($F$35,DB33,$G$35,-1))*1 -> 0 | DC35: =IF(DC4,PPMT($F$35,DC33,$G$35,-1))*1 -> 0 | DD35: =IF(DD4,PPMT($F$35,DD33,$G$35,-1))*1 -> 0 | DE35: =IF(DE4,PPMT($F$35,DE33,$G$35,-1))*1 -> 0 | DF35: =IF(DF4,PPMT($F$35,DF33,$G$35,-1))*1 -> 0 | DG35: =IF(DG4,PPMT($F$35,DG33,$G$35,-1))*1 -> 0 | DH35: =IF(DH4,PPMT($F$35,DH33,$G$35,-1))*1 -> 0 | DI35: =IF(DI4,PPMT($F$35,DI33,$G$35,-1))*1 -> 0 | DJ35: =IF(DJ4,PPMT($F$35,DJ33,$G$35,-1))*1 -> 0 | DK35: =IF(DK4,PPMT($F$35,DK33,$G$35,-1))*1 -> 0 | DL35: =IF(DL4,PPMT($F$35,DL33,$G$35,-1))*1 -> 0 | DM35: =IF(DM4,PPMT($F$35,DM33,$G$35,-1))*1 -> 0 | DN35: =IF(DN4,PPMT($F$35,DN33,$G$35,-1))*1 -> 0 | DO35: =IF(DO4,PPMT($F$35,DO33,$G$35,-1))*1 -> 0 | DP35: =IF(DP4,PPMT($F$35,DP33,$G$35,-1))*1 -> 0 | DQ35: =IF(DQ4,PPMT($F$35,DQ33,$G$35,-1))*1 -> 0 | DR35: =IF(DR4,PPMT($F$35,DR33,$G$35,-1))*1 -> 0 | DS35: =IF(DS4,PPMT($F$35,DS33,$G$35,-1))*1 -> 0 | DT35: =IF(DT4,PPMT($F$35,DT33,$G$35,-1))*1 -> 0 | DU35: =IF(DU4,PPMT($F$35,DU33,$G$35,-1))*1 -> 0 | DV35: =IF(DV4,PPMT($F$35,DV33,$G$35,-1))*1 -> 0 | DW35: =IF(DW4,PPMT($F$35,DW33,$G$35,-1))*1 -> 0 | DX35: =IF(DX4,PPMT($F$35,DX33,$G$35,-1))*1 -> 0 | DY35: =IF(DY4,PPMT($F$35,DY33,$G$35,-1))*1 -> 0
C36: Repayments | F36: =F25 -> 1 | H36: =CHOOSE($F$36,H34,H35) -> 0 | I36: =CHOOSE($F$36,I34,I35) -> 0.1111111111 | J36: =CHOOSE($F$36,J34,J35) -> 0.1111111111 | K36: =CHOOSE($F$36,K34,K35) -> 0.1111111111 | L36: =CHOOSE($F$36,L34,L35) -> 0.1111111111 | M36: =CHOOSE($F$36,M34,M35) -> 0.1111111111 | N36: =CHOOSE($F$36,N34,N35) -> 0.1111111111 | O36: =CHOOSE($F$36,O34,O35) -> 0.1111111111 | P36: =CHOOSE($F$36,P34,P35) -> 0.1111111111 | Q36: =CHOOSE($F$36,Q34,Q35) -> 0.1111111111 | R36: =CHOOSE($F$36,R34,R35) -> 0 | S36: =CHOOSE($F$36,S34,S35) -> 0 | T36: =CHOOSE($F$36,T34,T35) -> 0 | U36: =CHOOSE($F$36,U34,U35) -> 0 | V36: =CHOOSE($F$36,V34,V35) -> 0 | W36: =CHOOSE($F$36,W34,W35) -> 0 | X36: =CHOOSE($F$36,X34,X35) -> 0 | Y36: =CHOOSE($F$36,Y34,Y35) -> 0 | Z36: =CHOOSE($F$36,Z34,Z35) -> 0 | AA36: =CHOOSE($F$36,AA34,AA35) -> 0 | AB36: =CHOOSE($F$36,AB34,AB35) -> 0 | AC36: =CHOOSE($F$36,AC34,AC35) -> 0 | AD36: =CHOOSE($F$36,AD34,AD35) -> 0 | AE36: =CHOOSE($F$36,AE34,AE35) -> 0 | AF36: =CHOOSE($F$36,AF34,AF35) -> 0 | AG36: =CHOOSE($F$36,AG34,AG35) -> 0 | AH36: =CHOOSE($F$36,AH34,AH35) -> 0 | AI36: =CHOOSE($F$36,AI34,AI35) -> 0 | AJ36: =CHOOSE($F$36,AJ34,AJ35) -> 0 | AK36: =CHOOSE($F$36,AK34,AK35) -> 0 | AL36: =CHOOSE($F$36,AL34,AL35) -> 0 | AM36: =CHOOSE($F$36,AM34,AM35) -> 0 | AN36: =CHOOSE($F$36,AN34,AN35) -> 0 | AO36: =CHOOSE($F$36,AO34,AO35) -> 0 | AP36: =CHOOSE($F$36,AP34,AP35) -> 0 | AQ36: =CHOOSE($F$36,AQ34,AQ35) -> 0 | AR36: =CHOOSE($F$36,AR34,AR35) -> 0 | AS36: =CHOOSE($F$36,AS34,AS35) -> 0 | AT36: =CHOOSE($F$36,AT34,AT35) -> 0 | AU36: =CHOOSE($F$36,AU34,AU35) -> 0 | AV36: =CHOOSE($F$36,AV34,AV35) -> 0 | AW36: =CHOOSE($F$36,AW34,AW35) -> 0 | AX36: =CHOOSE($F$36,AX34,AX35) -> 0 | AY36: =CHOOSE($F$36,AY34,AY35) -> 0 | AZ36: =CHOOSE($F$36,AZ34,AZ35) -> 0 | BA36: =CHOOSE($F$36,BA34,BA35) -> 0 | BB36: =CHOOSE($F$36,BB34,BB35) -> 0 | BC36: =CHOOSE($F$36,BC34,BC35) -> 0 | BD36: =CHOOSE($F$36,BD34,BD35) -> 0 | BE36: =CHOOSE($F$36,BE34,BE35) -> 0 | BF36: =CHOOSE($F$36,BF34,BF35) -> 0 | BG36: =CHOOSE($F$36,BG34,BG35) -> 0 | BH36: =CHOOSE($F$36,BH34,BH35) -> 0 | BI36: =CHOOSE($F$36,BI34,BI35) -> 0 | BJ36: =CHOOSE($F$36,BJ34,BJ35) -> 0 | BK36: =CHOOSE($F$36,BK34,BK35) -> 0 | BL36: =CHOOSE($F$36,BL34,BL35) -> 0 | BM36: =CHOOSE($F$36,BM34,BM35) -> 0 | BN36: =CHOOSE($F$36,BN34,BN35) -> 0 | BO36: =CHOOSE($F$36,BO34,BO35) -> 0 | BP36: =CHOOSE($F$36,BP34,BP35) -> 0 | BQ36: =CHOOSE($F$36,BQ34,BQ35) -> 0 | BR36: =CHOOSE($F$36,BR34,BR35) -> 0 | BS36: =CHOOSE($F$36,BS34,BS35) -> 0 | BT36: =CHOOSE($F$36,BT34,BT35) -> 0 | BU36: =CHOOSE($F$36,BU34,BU35) -> 0 | BV36: =CHOOSE($F$36,BV34,BV35) -> 0 | BW36: =CHOOSE($F$36,BW34,BW35) -> 0 | BX36: =CHOOSE($F$36,BX34,BX35) -> 0 | BY36: =CHOOSE($F$36,BY34,BY35) -> 0 | BZ36: =CHOOSE($F$36,BZ34,BZ35) -> 0 | CA36: =CHOOSE($F$36,CA34,CA35) -> 0 | CB36: =CHOOSE($F$36,CB34,CB35) -> 0 | CC36: =CHOOSE($F$36,CC34,CC35) -> 0 | CD36: =CHOOSE($F$36,CD34,CD35) -> 0 | CE36: =CHOOSE($F$36,CE34,CE35) -> 0 | CF36: =CHOOSE($F$36,CF34,CF35) -> 0 | CG36: =CHOOSE($F$36,CG34,CG35) -> 0 | CH36: =CHOOSE($F$36,CH34,CH35) -> 0 | CI36: =CHOOSE($F$36,CI34,CI35) -> 0 | CJ36: =CHOOSE($F$36,CJ34,CJ35) -> 0 | CK36: =CHOOSE($F$36,CK34,CK35) -> 0 | CL36: =CHOOSE($F$36,CL34,CL35) -> 0 | CM36: =CHOOSE($F$36,CM34,CM35) -> 0 | CN36: =CHOOSE($F$36,CN34,CN35) -> 0 | CO36: =CHOOSE($F$36,CO34,CO35) -> 0 | CP36: =CHOOSE($F$36,CP34,CP35) -> 0 | CQ36: =CHOOSE($F$36,CQ34,CQ35) -> 0 | CR36: =CHOOSE($F$36,CR34,CR35) -> 0 | CS36: =CHOOSE($F$36,CS34,CS35) -> 0 | CT36: =CHOOSE($F$36,CT34,CT35) -> 0 | CU36: =CHOOSE($F$36,CU34,CU35) -> 0 | CV36: =CHOOSE($F$36,CV34,CV35) -> 0 | CW36: =CHOOSE($F$36,CW34,CW35) -> 0 | CX36: =CHOOSE($F$36,CX34,CX35) -> 0 | CY36: =CHOOSE($F$36,CY34,CY35) -> 0 | CZ36: =CHOOSE($F$36,CZ34,CZ35) -> 0 | DA36: =CHOOSE($F$36,DA34,DA35) -> 0 | DB36: =CHOOSE($F$36,DB34,DB35) -> 0 | DC36: =CHOOSE($F$36,DC34,DC35) -> 0 | DD36: =CHOOSE($F$36,DD34,DD35) -> 0 | DE36: =CHOOSE($F$36,DE34,DE35) -> 0 | DF36: =CHOOSE($F$36,DF34,DF35) -> 0 | DG36: =CHOOSE($F$36,DG34,DG35) -> 0 | DH36: =CHOOSE($F$36,DH34,DH35) -> 0 | DI36: =CHOOSE($F$36,DI34,DI35) -> 0 | DJ36: =CHOOSE($F$36,DJ34,DJ35) -> 0 | DK36: =CHOOSE($F$36,DK34,DK35) -> 0 | DL36: =CHOOSE($F$36,DL34,DL35) -> 0 | DM36: =CHOOSE($F$36,DM34,DM35) -> 0 | DN36: =CHOOSE($F$36,DN34,DN35) -> 0 | DO36: =CHOOSE($F$36,DO34,DO35) -> 0 | DP36: =CHOOSE($F$36,DP34,DP35) -> 0 | DQ36: =CHOOSE($F$36,DQ34,DQ35) -> 0 | DR36: =CHOOSE($F$36,DR34,DR35) -> 0 | DS36: =CHOOSE($F$36,DS34,DS35) -> 0 | DT36: =CHOOSE($F$36,DT34,DT35) -> 0 | DU36: =CHOOSE($F$36,DU34,DU35) -> 0 | DV36: =CHOOSE($F$36,DV34,DV35) -> 0 | DW36: =CHOOSE($F$36,DW34,DW35) -> 0 | DX36: =CHOOSE($F$36,DX34,DX35) -> 0 | DY36: =CHOOSE($F$36,DY34,DY35) -> 0
C37: Repayments | F37: =F25 -> 1 | H37: =CHOOSE($F$37,H34*$F$32,H35*$F$32) -> 0 | I37: =CHOOSE($F$37,I34*$F$32,I35*$F$32) -> 1111.111111 | J37: =CHOOSE($F$37,J34*$F$32,J35*$F$32) -> 1111.111111 | K37: =CHOOSE($F$37,K34*$F$32,K35*$F$32) -> 1111.111111 | L37: =CHOOSE($F$37,L34*$F$32,L35*$F$32) -> 1111.111111 | M37: =CHOOSE($F$37,M34*$F$32,M35*$F$32) -> 1111.111111 | N37: =CHOOSE($F$37,N34*$F$32,N35*$F$32) -> 1111.111111 | O37: =CHOOSE($F$37,O34*$F$32,O35*$F$32) -> 1111.111111 | P37: =CHOOSE($F$37,P34*$F$32,P35*$F$32) -> 1111.111111 | Q37: =CHOOSE($F$37,Q34*$F$32,Q35*$F$32) -> 1111.111111 | R37: =CHOOSE($F$37,R34*$F$32,R35*$F$32) -> 0 | S37: =CHOOSE($F$37,S34*$F$32,S35*$F$32) -> 0 | T37: =CHOOSE($F$37,T34*$F$32,T35*$F$32) -> 0 | U37: =CHOOSE($F$37,U34*$F$32,U35*$F$32) -> 0 | V37: =CHOOSE($F$37,V34*$F$32,V35*$F$32) -> 0 | W37: =CHOOSE($F$37,W34*$F$32,W35*$F$32) -> 0 | X37: =CHOOSE($F$37,X34*$F$32,X35*$F$32) -> 0 | Y37: =CHOOSE($F$37,Y34*$F$32,Y35*$F$32) -> 0 | Z37: =CHOOSE($F$37,Z34*$F$32,Z35*$F$32) -> 0 | AA37: =CHOOSE($F$37,AA34*$F$32,AA35*$F$32) -> 0 | AB37: =CHOOSE($F$37,AB34*$F$32,AB35*$F$32) -> 0 | AC37: =CHOOSE($F$37,AC34*$F$32,AC35*$F$32) -> 0 | AD37: =CHOOSE($F$37,AD34*$F$32,AD35*$F$32) -> 0 | AE37: =CHOOSE($F$37,AE34*$F$32,AE35*$F$32) -> 0 | AF37: =CHOOSE($F$37,AF34*$F$32,AF35*$F$32) -> 0 | AG37: =CHOOSE($F$37,AG34*$F$32,AG35*$F$32) -> 0 | AH37: =CHOOSE($F$37,AH34*$F$32,AH35*$F$32) -> 0 | AI37: =CHOOSE($F$37,AI34*$F$32,AI35*$F$32) -> 0 | AJ37: =CHOOSE($F$37,AJ34*$F$32,AJ35*$F$32) -> 0 | AK37: =CHOOSE($F$37,AK34*$F$32,AK35*$F$32) -> 0 | AL37: =CHOOSE($F$37,AL34*$F$32,AL35*$F$32) -> 0 | AM37: =CHOOSE($F$37,AM34*$F$32,AM35*$F$32) -> 0 | AN37: =CHOOSE($F$37,AN34*$F$32,AN35*$F$32) -> 0 | AO37: =CHOOSE($F$37,AO34*$F$32,AO35*$F$32) -> 0 | AP37: =CHOOSE($F$37,AP34*$F$32,AP35*$F$32) -> 0 | AQ37: =CHOOSE($F$37,AQ34*$F$32,AQ35*$F$32) -> 0 | AR37: =CHOOSE($F$37,AR34*$F$32,AR35*$F$32) -> 0 | AS37: =CHOOSE($F$37,AS34*$F$32,AS35*$F$32) -> 0 | AT37: =CHOOSE($F$37,AT34*$F$32,AT35*$F$32) -> 0 | AU37: =CHOOSE($F$37,AU34*$F$32,AU35*$F$32) -> 0 | AV37: =CHOOSE($F$37,AV34*$F$32,AV35*$F$32) -> 0 | AW37: =CHOOSE($F$37,AW34*$F$32,AW35*$F$32) -> 0 | AX37: =CHOOSE($F$37,AX34*$F$32,AX35*$F$32) -> 0 | AY37: =CHOOSE($F$37,AY34*$F$32,AY35*$F$32) -> 0 | AZ37: =CHOOSE($F$37,AZ34*$F$32,AZ35*$F$32) -> 0 | BA37: =CHOOSE($F$37,BA34*$F$32,BA35*$F$32) -> 0 | BB37: =CHOOSE($F$37,BB34*$F$32,BB35*$F$32) -> 0 | BC37: =CHOOSE($F$37,BC34*$F$32,BC35*$F$32) -> 0 | BD37: =CHOOSE($F$37,BD34*$F$32,BD35*$F$32) -> 0 | BE37: =CHOOSE($F$37,BE34*$F$32,BE35*$F$32) -> 0 | BF37: =CHOOSE($F$37,BF34*$F$32,BF35*$F$32) -> 0 | BG37: =CHOOSE($F$37,BG34*$F$32,BG35*$F$32) -> 0 | BH37: =CHOOSE($F$37,BH34*$F$32,BH35*$F$32) -> 0 | BI37: =CHOOSE($F$37,BI34*$F$32,BI35*$F$32) -> 0 | BJ37: =CHOOSE($F$37,BJ34*$F$32,BJ35*$F$32) -> 0 | BK37: =CHOOSE($F$37,BK34*$F$32,BK35*$F$32) -> 0 | BL37: =CHOOSE($F$37,BL34*$F$32,BL35*$F$32) -> 0 | BM37: =CHOOSE($F$37,BM34*$F$32,BM35*$F$32) -> 0 | BN37: =CHOOSE($F$37,BN34*$F$32,BN35*$F$32) -> 0 | BO37: =CHOOSE($F$37,BO34*$F$32,BO35*$F$32) -> 0 | BP37: =CHOOSE($F$37,BP34*$F$32,BP35*$F$32) -> 0 | BQ37: =CHOOSE($F$37,BQ34*$F$32,BQ35*$F$32) -> 0 | BR37: =CHOOSE($F$37,BR34*$F$32,BR35*$F$32) -> 0 | BS37: =CHOOSE($F$37,BS34*$F$32,BS35*$F$32) -> 0 | BT37: =CHOOSE($F$37,BT34*$F$32,BT35*$F$32) -> 0 | BU37: =CHOOSE($F$37,BU34*$F$32,BU35*$F$32) -> 0 | BV37: =CHOOSE($F$37,BV34*$F$32,BV35*$F$32) -> 0 | BW37: =CHOOSE($F$37,BW34*$F$32,BW35*$F$32) -> 0 | BX37: =CHOOSE($F$37,BX34*$F$32,BX35*$F$32) -> 0 | BY37: =CHOOSE($F$37,BY34*$F$32,BY35*$F$32) -> 0 | BZ37: =CHOOSE($F$37,BZ34*$F$32,BZ35*$F$32) -> 0 | CA37: =CHOOSE($F$37,CA34*$F$32,CA35*$F$32) -> 0 | CB37: =CHOOSE($F$37,CB34*$F$32,CB35*$F$32) -> 0 | CC37: =CHOOSE($F$37,CC34*$F$32,CC35*$F$32) -> 0 | CD37: =CHOOSE($F$37,CD34*$F$32,CD35*$F$32) -> 0 | CE37: =CHOOSE($F$37,CE34*$F$32,CE35*$F$32) -> 0 | CF37: =CHOOSE($F$37,CF34*$F$32,CF35*$F$32) -> 0 | CG37: =CHOOSE($F$37,CG34*$F$32,CG35*$F$32) -> 0 | CH37: =CHOOSE($F$37,CH34*$F$32,CH35*$F$32) -> 0 | CI37: =CHOOSE($F$37,CI34*$F$32,CI35*$F$32) -> 0 | CJ37: =CHOOSE($F$37,CJ34*$F$32,CJ35*$F$32) -> 0 | CK37: =CHOOSE($F$37,CK34*$F$32,CK35*$F$32) -> 0 | CL37: =CHOOSE($F$37,CL34*$F$32,CL35*$F$32) -> 0 | CM37: =CHOOSE($F$37,CM34*$F$32,CM35*$F$32) -> 0 | CN37: =CHOOSE($F$37,CN34*$F$32,CN35*$F$32) -> 0 | CO37: =CHOOSE($F$37,CO34*$F$32,CO35*$F$32) -> 0 | CP37: =CHOOSE($F$37,CP34*$F$32,CP35*$F$32) -> 0 | CQ37: =CHOOSE($F$37,CQ34*$F$32,CQ35*$F$32) -> 0 | CR37: =CHOOSE($F$37,CR34*$F$32,CR35*$F$32) -> 0 | CS37: =CHOOSE($F$37,CS34*$F$32,CS35*$F$32) -> 0 | CT37: =CHOOSE($F$37,CT34*$F$32,CT35*$F$32) -> 0 | CU37: =CHOOSE($F$37,CU34*$F$32,CU35*$F$32) -> 0 | CV37: =CHOOSE($F$37,CV34*$F$32,CV35*$F$32) -> 0 | CW37: =CHOOSE($F$37,CW34*$F$32,CW35*$F$32) -> 0 | CX37: =CHOOSE($F$37,CX34*$F$32,CX35*$F$32) -> 0 | CY37: =CHOOSE($F$37,CY34*$F$32,CY35*$F$32) -> 0 | CZ37: =CHOOSE($F$37,CZ34*$F$32,CZ35*$F$32) -> 0 | DA37: =CHOOSE($F$37,DA34*$F$32,DA35*$F$32) -> 0 | DB37: =CHOOSE($F$37,DB34*$F$32,DB35*$F$32) -> 0 | DC37: =CHOOSE($F$37,DC34*$F$32,DC35*$F$32) -> 0 | DD37: =CHOOSE($F$37,DD34*$F$32,DD35*$F$32) -> 0 | DE37: =CHOOSE($F$37,DE34*$F$32,DE35*$F$32) -> 0 | DF37: =CHOOSE($F$37,DF34*$F$32,DF35*$F$32) -> 0 | DG37: =CHOOSE($F$37,DG34*$F$32,DG35*$F$32) -> 0 | DH37: =CHOOSE($F$37,DH34*$F$32,DH35*$F$32) -> 0 | DI37: =CHOOSE($F$37,DI34*$F$32,DI35*$F$32) -> 0 | DJ37: =CHOOSE($F$37,DJ34*$F$32,DJ35*$F$32) -> 0 | DK37: =CHOOSE($F$37,DK34*$F$32,DK35*$F$32) -> 0 | DL37: =CHOOSE($F$37,DL34*$F$32,DL35*$F$32) -> 0 | DM37: =CHOOSE($F$37,DM34*$F$32,DM35*$F$32) -> 0 | DN37: =CHOOSE($F$37,DN34*$F$32,DN35*$F$32) -> 0 | DO37: =CHOOSE($F$37,DO34*$F$32,DO35*$F$32) -> 0 | DP37: =CHOOSE($F$37,DP34*$F$32,DP35*$F$32) -> 0 | DQ37: =CHOOSE($F$37,DQ34*$F$32,DQ35*$F$32) -> 0 | DR37: =CHOOSE($F$37,DR34*$F$32,DR35*$F$32) -> 0 | DS37: =CHOOSE($F$37,DS34*$F$32,DS35*$F$32) -> 0 | DT37: =CHOOSE($F$37,DT34*$F$32,DT35*$F$32) -> 0 | DU37: =CHOOSE($F$37,DU34*$F$32,DU35*$F$32) -> 0 | DV37: =CHOOSE($F$37,DV34*$F$32,DV35*$F$32) -> 0 | DW37: =CHOOSE($F$37,DW34*$F$32,DW35*$F$32) -> 0 | DX37: =CHOOSE($F$37,DX34*$F$32,DX35*$F$32) -> 0 | DY37: =CHOOSE($F$37,DY34*$F$32,DY35*$F$32) -> 0
C39: Loan Balance
D40: Opening Balance | H40: =G43 -> 0 | I40: =H43 -> 10000 | J40: 8888.888889 | K40: 7777.777778 | L40: 6666.666667 | M40: 5555.555556 | N40: 4444.444444 | O40: 3333.333333 | P40: 2222.222222 | Q40: 1111.111111 | R40: 0 | S40: 0 | T40: 0 | U40: 0 | V40: 0 | W40: 0 | X40: 0 | Y40: 0 | Z40: 0 | AA40: 0 | AB40: 0 | AC40: 0 | AD40: 0 | AE40: 0 | AF40: 0 | AG40: 0 | AH40: 0 | AI40: 0 | AJ40: 0 | AK40: 0 | AL40: 0 | AM40: 0 | AN40: 0 | AO40: 0 | AP40: =AO43 -> 0 | AQ40: 0 | AR40: 0 | AS40: 0 | AT40: 0 | AU40: 0 | AV40: 0 | AW40: 0 | AX40: 0 | AY40: 0 | AZ40: 0 | BA40: 0 | BB40: 0 | BC40: 0 | BD40: 0 | BE40: 0 | BF40: 0 | BG40: 0 | BH40: 0 | BI40: 0 | BJ40: 0 | BK40: 0 | BL40: 0 | BM40: 0 | BN40: 0 | BO40: 0 | BP40: 0 | BQ40: 0 | BR40: 0 | BS40: 0 | BT40: 0 | BU40: 0 | BV40: 0 | BW40: 0 | BX40: 0 | BY40: 0 | BZ40: 0 | CA40: 0 | CB40: 0 | CC40: 0 | CD40: 0 | CE40: 0 | CF40: 0 | CG40: 0 | CH40: 0 | CI40: 0 | CJ40: 0 | CK40: 0 | CL40: 0 | CM40: 0 | CN40: 0 | CO40: 0 | CP40: 0 | CQ40: 0 | CR40: 0 | CS40: 0 | CT40: 0 | CU40: 0 | CV40: 0 | CW40: 0 | CX40: 0 | CY40: 0 | CZ40: 0 | DA40: 0 | DB40: =DA43 -> 0 | DC40: 0 | DD40: 0 | DE40: 0 | DF40: 0 | DG40: 0 | DH40: 0 | DI40: 0 | DJ40: 0 | DK40: 0 | DL40: 0 | DM40: 0 | DN40: 0 | DO40: 0 | DP40: 0 | DQ40: 0 | DR40: 0 | DS40: 0 | DT40: 0 | DU40: 0 | DV40: 0 | DW40: 0 | DX40: 0 | DY40: 0
D41: Add: Draws | H41: =H32 -> 10000 | I41: =I32 -> 0 | J41: 0 | K41: 0 | L41: 0 | M41: 0 | N41: 0 | O41: 0 | P41: 0 | Q41: 0 | R41: 0 | S41: 0 | T41: 0 | U41: 0 | V41: 0 | W41: 0 | X41: 0 | Y41: 0 | Z41: 0 | AA41: 0 | AB41: 0 | AC41: 0 | AD41: 0 | AE41: 0 | AF41: 0 | AG41: 0 | AH41: 0 | AI41: 0 | AJ41: 0 | AK41: 0 | AL41: 0 | AM41: 0 | AN41: 0 | AO41: 0 | AP41: =AP32 -> 0 | AQ41: 0 | AR41: 0 | AS41: 0 | AT41: 0 | AU41: 0 | AV41: 0 | AW41: 0 | AX41: 0 | AY41: 0 | AZ41: 0 | BA41: 0 | BB41: 0 | BC41: 0 | BD41: 0 | BE41: 0 | BF41: 0 | BG41: 0 | BH41: 0 | BI41: 0 | BJ41: 0 | BK41: 0 | BL41: 0 | BM41: 0 | BN41: 0 | BO41: 0 | BP41: 0 | BQ41: 0 | BR41: 0 | BS41: 0 | BT41: 0 | BU41: 0 | BV41: 0 | BW41: 0 | BX41: 0 | BY41: 0 | BZ41: 0 | CA41: 0 | CB41: 0 | CC41: 0 | CD41: 0 | CE41: 0 | CF41: 0 | CG41: 0 | CH41: 0 | CI41: 0 | CJ41: 0 | CK41: 0 | CL41: 0 | CM41: 0 | CN41: 0 | CO41: 0 | CP41: 0 | CQ41: 0 | CR41: 0 | CS41: 0 | CT41: 0 | CU41: 0 | CV41: 0 | CW41: 0 | CX41: 0 | CY41: 0 | CZ41: 0 | DA41: 0 | DB41: =DB32 -> 0 | DC41: 0 | DD41: 0 | DE41: 0 | DF41: 0 | DG41: 0 | DH41: 0 | DI41: 0 | DJ41: 0 | DK41: 0 | DL41: 0 | DM41: 0 | DN41: 0 | DO41: 0 | DP41: 0 | DQ41: 0 | DR41: 0 | DS41: 0 | DT41: 0 | DU41: 0 | DV41: 0 | DW41: 0 | DX41: 0 | DY41: 0
D42: Less: Repayments | H42: =H37 -> 0 | I42: =I37 -> 1111.111111 | J42: 1111.111111 | K42: 1111.111111 | L42: 1111.111111 | M42: 1111.111111 | N42: 1111.111111 | O42: 1111.111111 | P42: 1111.111111 | Q42: 1111.111111 | R42: 0 | S42: 0 | T42: 0 | U42: 0 | V42: 0 | W42: 0 | X42: 0 | Y42: 0 | Z42: 0 | AA42: 0 | AB42: 0 | AC42: 0 | AD42: 0 | AE42: 0 | AF42: 0 | AG42: 0 | AH42: 0 | AI42: 0 | AJ42: 0 | AK42: 0 | AL42: 0 | AM42: 0 | AN42: 0 | AO42: 0 | AP42: =AP37 -> 0 | AQ42: 0 | AR42: 0 | AS42: 0 | AT42: 0 | AU42: 0 | AV42: 0 | AW42: 0 | AX42: 0 | AY42: 0 | AZ42: 0 | BA42: 0 | BB42: 0 | BC42: 0 | BD42: 0 | BE42: 0 | BF42: 0 | BG42: 0 | BH42: 0 | BI42: 0 | BJ42: 0 | BK42: 0 | BL42: 0 | BM42: 0 | BN42: 0 | BO42: 0 | BP42: 0 | BQ42: 0 | BR42: 0 | BS42: 0 | BT42: 0 | BU42: 0 | BV42: 0 | BW42: 0 | BX42: 0 | BY42: 0 | BZ42: 0 | CA42: 0 | CB42: 0 | CC42: 0 | CD42: 0 | CE42: 0 | CF42: 0 | CG42: 0 | CH42: 0 | CI42: 0 | CJ42: 0 | CK42: 0 | CL42: 0 | CM42: 0 | CN42: 0 | CO42: 0 | CP42: 0 | CQ42: 0 | CR42: 0 | CS42: 0 | CT42: 0 | CU42: 0 | CV42: 0 | CW42: 0 | CX42: 0 | CY42: 0 | CZ42: 0 | DA42: 0 | DB42: =DB37 -> 0 | DC42: 0 | DD42: 0 | DE42: 0 | DF42: 0 | DG42: 0 | DH42: 0 | DI42: 0 | DJ42: 0 | DK42: 0 | DL42: 0 | DM42: 0 | DN42: 0 | DO42: 0 | DP42: 0 | DQ42: 0 | DR42: 0 | DS42: 0 | DT42: 0 | DU42: 0 | DV42: 0 | DW42: 0 | DX42: 0 | DY42: 0
D43: Closing Balance | H43: =H40+H41-H42 -> 10000 | I43: =I40+I41-I42 -> 8888.888889 | J43: 7777.777778 | K43: 6666.666667 | L43: 5555.555556 | M43: 4444.444444 | N43: 3333.333333 | O43: 2222.222222 | P43: 1111.111111 | Q43: 0 | R43: 0 | S43: 0 | T43: 0 | U43: 0 | V43: 0 | W43: 0 | X43: 0 | Y43: 0 | Z43: 0 | AA43: 0 | AB43: 0 | AC43: 0 | AD43: 0 | AE43: 0 | AF43: 0 | AG43: 0 | AH43: 0 | AI43: 0 | AJ43: 0 | AK43: 0 | AL43: 0 | AM43: 0 | AN43: 0 | AO43: 0 | AP43: =AP40+AP41-AP42 -> 0 | AQ43: =AQ40+AQ41-AQ42 -> 0 | AR43: =AR40+AR41-AR42 -> 0 | AS43: =AS40+AS41-AS42 -> 0 | AT43: =AT40+AT41-AT42 -> 0 | AU43: =AU40+AU41-AU42 -> 0 | AV43: =AV40+AV41-AV42 -> 0 | AW43: =AW40+AW41-AW42 -> 0 | AX43: =AX40+AX41-AX42 -> 0 | AY43: =AY40+AY41-AY42 -> 0 | AZ43: =AZ40+AZ41-AZ42 -> 0 | BA43: =BA40+BA41-BA42 -> 0 | BB43: =BB40+BB41-BB42 -> 0 | BC43: =BC40+BC41-BC42 -> 0 | BD43: =BD40+BD41-BD42 -> 0 | BE43: =BE40+BE41-BE42 -> 0 | BF43: =BF40+BF41-BF42 -> 0 | BG43: =BG40+BG41-BG42 -> 0 | BH43: =BH40+BH41-BH42 -> 0 | BI43: =BI40+BI41-BI42 -> 0 | BJ43: =BJ40+BJ41-BJ42 -> 0 | BK43: =BK40+BK41-BK42 -> 0 | BL43: =BL40+BL41-BL42 -> 0 | BM43: =BM40+BM41-BM42 -> 0 | BN43: =BN40+BN41-BN42 -> 0 | BO43: =BO40+BO41-BO42 -> 0 | BP43: =BP40+BP41-BP42 -> 0 | BQ43: =BQ40+BQ41-BQ42 -> 0 | BR43: =BR40+BR41-BR42 -> 0 | BS43: =BS40+BS41-BS42 -> 0 | BT43: =BT40+BT41-BT42 -> 0 | BU43: =BU40+BU41-BU42 -> 0 | BV43: =BV40+BV41-BV42 -> 0 | BW43: =BW40+BW41-BW42 -> 0 | BX43: =BX40+BX41-BX42 -> 0 | BY43: =BY40+BY41-BY42 -> 0 | BZ43: =BZ40+BZ41-BZ42 -> 0 | CA43: =CA40+CA41-CA42 -> 0 | CB43: =CB40+CB41-CB42 -> 0 | CC43: =CC40+CC41-CC42 -> 0 | CD43: =CD40+CD41-CD42 -> 0 | CE43: =CE40+CE41-CE42 -> 0 | CF43: =CF40+CF41-CF42 -> 0 | CG43: =CG40+CG41-CG42 -> 0 | CH43: =CH40+CH41-CH42 -> 0 | CI43: =CI40+CI41-CI42 -> 0 | CJ43: =CJ40+CJ41-CJ42 -> 0 | CK43: =CK40+CK41-CK42 -> 0 | CL43: =CL40+CL41-CL42 -> 0 | CM43: =CM40+CM41-CM42 -> 0 | CN43: =CN40+CN41-CN42 -> 0 | CO43: =CO40+CO41-CO42 -> 0 | CP43: =CP40+CP41-CP42 -> 0 | CQ43: =CQ40+CQ41-CQ42 -> 0 | CR43: =CR40+CR41-CR42 -> 0 | CS43: =CS40+CS41-CS42 -> 0 | CT43: =CT40+CT41-CT42 -> 0 | CU43: =CU40+CU41-CU42 -> 0 | CV43: =CV40+CV41-CV42 -> 0 | CW43: =CW40+CW41-CW42 -> 0 | CX43: =CX40+CX41-CX42 -> 0 | CY43: =CY40+CY41-CY42 -> 0 | CZ43: =CZ40+CZ41-CZ42 -> 0 | DA43: =DA40+DA41-DA42 -> 0 | DB43: =DB40+DB41-DB42 -> 0 | DC43: =DC40+DC41-DC42 -> 0 | DD43: =DD40+DD41-DD42 -> 0 | DE43: =DE40+DE41-DE42 -> 0 | DF43: =DF40+DF41-DF42 -> 0 | DG43: =DG40+DG41-DG42 -> 0 | DH43: =DH40+DH41-DH42 -> 0 | DI43: =DI40+DI41-DI42 -> 0 | DJ43: =DJ40+DJ41-DJ42 -> 0 | DK43: =DK40+DK41-DK42 -> 0 | DL43: =DL40+DL41-DL42 -> 0 | DM43: =DM40+DM41-DM42 -> 0 | DN43: =DN40+DN41-DN42 -> 0 | DO43: =DO40+DO41-DO42 -> 0 | DP43: =DP40+DP41-DP42 -> 0 | DQ43: =DQ40+DQ41-DQ42 -> 0 | DR43: =DR40+DR41-DR42 -> 0 | DS43: =DS40+DS41-DS42 -> 0 | DT43: =DT40+DT41-DT42 -> 0 | DU43: =DU40+DU41-DU42 -> 0 | DV43: =DV40+DV41-DV42 -> 0 | DW43: =DW40+DW41-DW42 -> 0 | DX43: =DX40+DX41-DX42 -> 0 | DY43: =DY40+DY41-DY42 -> 0
D44: Interest | F44: =F14/F8 -> 0.069 | H44: =H40*$F$44 -> 0 | I44: =I40*$F$44 -> 690 | J44: =J40*$F$44 -> 613.3333333 | K44: =K40*$F$44 -> 536.6666667 | L44: =L40*$F$44 -> 460 | M44: =M40*$F$44 -> 383.3333333 | N44: =N40*$F$44 -> 306.6666667 | O44: =O40*$F$44 -> 230 | P44: =P40*$F$44 -> 153.3333333 | Q44: =Q40*$F$44 -> 76.66666667 | R44: =R40*$F$44 -> 0 | S44: =S40*$F$44 -> 0 | T44: =T40*$F$44 -> 0 | U44: =U40*$F$44 -> 0 | V44: =V40*$F$44 -> 0 | W44: =W40*$F$44 -> 0 | X44: =X40*$F$44 -> 0 | Y44: =Y40*$F$44 -> 0 | Z44: =Z40*$F$44 -> 0 | AA44: =AA40*$F$44 -> 0 | AB44: =AB40*$F$44 -> 0 | AC44: =AC40*$F$44 -> 0 | AD44: =AD40*$F$44 -> 0 | AE44: =AE40*$F$44 -> 0 | AF44: =AF40*$F$44 -> 0 | AG44: =AG40*$F$44 -> 0 | AH44: =AH40*$F$44 -> 0 | AI44: =AI40*$F$44 -> 0 | AJ44: =AJ40*$F$44 -> 0 | AK44: =AK40*$F$44 -> 0 | AL44: =AL40*$F$44 -> 0 | AM44: =AM40*$F$44 -> 0 | AN44: =AN40*$F$44 -> 0 | AO44: =AO40*$F$44 -> 0 | AP44: =AP40*$F$44 -> 0 | AQ44: =AQ40*$F$44 -> 0 | AR44: =AR40*$F$44 -> 0 | AS44: =AS40*$F$44 -> 0 | AT44: =AT40*$F$44 -> 0 | AU44: =AU40*$F$44 -> 0 | AV44: =AV40*$F$44 -> 0 | AW44: =AW40*$F$44 -> 0 | AX44: =AX40*$F$44 -> 0 | AY44: =AY40*$F$44 -> 0 | AZ44: =AZ40*$F$44 -> 0 | BA44: =BA40*$F$44 -> 0 | BB44: =BB40*$F$44 -> 0 | BC44: =BC40*$F$44 -> 0 | BD44: =BD40*$F$44 -> 0 | BE44: =BE40*$F$44 -> 0 | BF44: =BF40*$F$44 -> 0 | BG44: =BG40*$F$44 -> 0 | BH44: =BH40*$F$44 -> 0 | BI44: =BI40*$F$44 -> 0 | BJ44: =BJ40*$F$44 -> 0 | BK44: =BK40*$F$44 -> 0 | BL44: =BL40*$F$44 -> 0 | BM44: =BM40*$F$44 -> 0 | BN44: =BN40*$F$44 -> 0 | BO44: =BO40*$F$44 -> 0 | BP44: =BP40*$F$44 -> 0 | BQ44: =BQ40*$F$44 -> 0 | BR44: =BR40*$F$44 -> 0 | BS44: =BS40*$F$44 -> 0 | BT44: =BT40*$F$44 -> 0 | BU44: =BU40*$F$44 -> 0 | BV44: =BV40*$F$44 -> 0 | BW44: =BW40*$F$44 -> 0 | BX44: =BX40*$F$44 -> 0 | BY44: =BY40*$F$44 -> 0 | BZ44: =BZ40*$F$44 -> 0 | CA44: =CA40*$F$44 -> 0 | CB44: =CB40*$F$44 -> 0 | CC44: =CC40*$F$44 -> 0 | CD44: =CD40*$F$44 -> 0 | CE44: =CE40*$F$44 -> 0 | CF44: =CF40*$F$44 -> 0 | CG44: =CG40*$F$44 -> 0 | CH44: =CH40*$F$44 -> 0 | CI44: =CI40*$F$44 -> 0 | CJ44: =CJ40*$F$44 -> 0 | CK44: =CK40*$F$44 -> 0 | CL44: =CL40*$F$44 -> 0 | CM44: =CM40*$F$44 -> 0 | CN44: =CN40*$F$44 -> 0 | CO44: =CO40*$F$44 -> 0 | CP44: =CP40*$F$44 -> 0 | CQ44: =CQ40*$F$44 -> 0 | CR44: =CR40*$F$44 -> 0 | CS44: =CS40*$F$44 -> 0 | CT44: =CT40*$F$44 -> 0 | CU44: =CU40*$F$44 -> 0 | CV44: =CV40*$F$44 -> 0 | CW44: =CW40*$F$44 -> 0 | CX44: =CX40*$F$44 -> 0 | CY44: =CY40*$F$44 -> 0 | CZ44: =CZ40*$F$44 -> 0 | DA44: =DA40*$F$44 -> 0 | DB44: =DB40*$F$44 -> 0 | DC44: =DC40*$F$44 -> 0 | DD44: =DD40*$F$44 -> 0 | DE44: =DE40*$F$44 -> 0 | DF44: =DF40*$F$44 -> 0 | DG44: =DG40*$F$44 -> 0 | DH44: =DH40*$F$44 -> 0 | DI44: =DI40*$F$44 -> 0 | DJ44: =DJ40*$F$44 -> 0 | DK44: =DK40*$F$44 -> 0 | DL44: =DL40*$F$44 -> 0 | DM44: =DM40*$F$44 -> 0 | DN44: =DN40*$F$44 -> 0 | DO44: =DO40*$F$44 -> 0 | DP44: =DP40*$F$44 -> 0 | DQ44: =DQ40*$F$44 -> 0 | DR44: =DR40*$F$44 -> 0 | DS44: =DS40*$F$44 -> 0 | DT44: =DT40*$F$44 -> 0 | DU44: =DU40*$F$44 -> 0 | DV44: =DV40*$F$44 -> 0 | DW44: =DW40*$F$44 -> 0 | DX44: =DX40*$F$44 -> 0 | DY44: =DY40*$F$44 -> 0
D45: Debt Service on Loan | H45: =H44+H42 -> 0 | I45: =I44+I42 -> 1801.111111 | J45: 1724.444444 | K45: 1647.777778 | L45: 1571.111111 | M45: 1494.444444 | N45: 1417.777778 | O45: 1341.111111 | P45: 1264.444444 | Q45: 1187.777778 | R45: 0 | S45: 0 | T45: 0 | U45: 0 | V45: 0 | W45: 0 | X45: 0 | Y45: 0 | Z45: 0 | AA45: 0 | AB45: 0 | AC45: 0 | AD45: 0 | AE45: 0 | AF45: 0 | AG45: 0 | AH45: 0 | AI45: 0 | AJ45: 0 | AK45: 0 | AL45: 0 | AM45: 0 | AN45: 0 | AO45: 0 | AP45: =AP44+AP42 -> 0 | AQ45: =AQ44+AQ42 -> 0 | AR45: =AR44+AR42 -> 0 | AS45: =AS44+AS42 -> 0 | AT45: =AT44+AT42 -> 0 | AU45: =AU44+AU42 -> 0 | AV45: =AV44+AV42 -> 0 | AW45: =AW44+AW42 -> 0 | AX45: =AX44+AX42 -> 0 | AY45: =AY44+AY42 -> 0 | AZ45: =AZ44+AZ42 -> 0 | BA45: =BA44+BA42 -> 0 | BB45: =BB44+BB42 -> 0 | BC45: =BC44+BC42 -> 0 | BD45: =BD44+BD42 -> 0 | BE45: =BE44+BE42 -> 0 | BF45: =BF44+BF42 -> 0 | BG45: =BG44+BG42 -> 0 | BH45: =BH44+BH42 -> 0 | BI45: =BI44+BI42 -> 0 | BJ45: =BJ44+BJ42 -> 0 | BK45: =BK44+BK42 -> 0 | BL45: =BL44+BL42 -> 0 | BM45: =BM44+BM42 -> 0 | BN45: =BN44+BN42 -> 0 | BO45: =BO44+BO42 -> 0 | BP45: =BP44+BP42 -> 0 | BQ45: =BQ44+BQ42 -> 0 | BR45: =BR44+BR42 -> 0 | BS45: =BS44+BS42 -> 0 | BT45: =BT44+BT42 -> 0 | BU45: =BU44+BU42 -> 0 | BV45: =BV44+BV42 -> 0 | BW45: =BW44+BW42 -> 0 | BX45: =BX44+BX42 -> 0 | BY45: =BY44+BY42 -> 0 | BZ45: =BZ44+BZ42 -> 0 | CA45: =CA44+CA42 -> 0 | CB45: =CB44+CB42 -> 0 | CC45: =CC44+CC42 -> 0 | CD45: =CD44+CD42 -> 0 | CE45: =CE44+CE42 -> 0 | CF45: =CF44+CF42 -> 0 | CG45: =CG44+CG42 -> 0 | CH45: =CH44+CH42 -> 0 | CI45: =CI44+CI42 -> 0 | CJ45: =CJ44+CJ42 -> 0 | CK45: =CK44+CK42 -> 0 | CL45: =CL44+CL42 -> 0 | CM45: =CM44+CM42 -> 0 | CN45: =CN44+CN42 -> 0 | CO45: =CO44+CO42 -> 0 | CP45: =CP44+CP42 -> 0 | CQ45: =CQ44+CQ42 -> 0 | CR45: =CR44+CR42 -> 0 | CS45: =CS44+CS42 -> 0 | CT45: =CT44+CT42 -> 0 | CU45: =CU44+CU42 -> 0 | CV45: =CV44+CV42 -> 0 | CW45: =CW44+CW42 -> 0 | CX45: =CX44+CX42 -> 0 | CY45: =CY44+CY42 -> 0 | CZ45: =CZ44+CZ42 -> 0 | DA45: =DA44+DA42 -> 0 | DB45: =DB44+DB42 -> 0 | DC45: =DC44+DC42 -> 0 | DD45: =DD44+DD42 -> 0 | DE45: =DE44+DE42 -> 0 | DF45: =DF44+DF42 -> 0 | DG45: =DG44+DG42 -> 0 | DH45: =DH44+DH42 -> 0 | DI45: =DI44+DI42 -> 0 | DJ45: =DJ44+DJ42 -> 0 | DK45: =DK44+DK42 -> 0 | DL45: =DL44+DL42 -> 0 | DM45: =DM44+DM42 -> 0 | DN45: =DN44+DN42 -> 0 | DO45: =DO44+DO42 -> 0 | DP45: =DP44+DP42 -> 0 | DQ45: =DQ44+DQ42 -> 0 | DR45: =DR44+DR42 -> 0 | DS45: =DS44+DS42 -> 0 | DT45: =DT44+DT42 -> 0 | DU45: =DU44+DU42 -> 0 | DV45: =DV44+DV42 -> 0 | DW45: =DW44+DW42 -> 0 | DX45: =DX44+DX42 -> 0 | DY45: =DY44+DY42 -> 0
D47: Undrawn Balance | F47: =F32 -> 10000 | H47: =($F$47-H40)*H3 -> 10000 | I47: =($F$47-I40)*I3 -> 0 | J47: =($F$47-J40)*J3 -> 0 | K47: =($F$47-K40)*K3 -> 0 | L47: =($F$47-L40)*L3 -> 0 | M47: =($F$47-M40)*M3 -> 0 | N47: =($F$47-N40)*N3 -> 0 | O47: =($F$47-O40)*O3 -> 0 | P47: =($F$47-P40)*P3 -> 0 | Q47: =($F$47-Q40)*Q3 -> 0 | R47: =($F$47-R40)*R3 -> 0 | S47: =($F$47-S40)*S3 -> 0 | T47: =($F$47-T40)*T3 -> 0 | U47: =($F$47-U40)*U3 -> 0 | V47: =($F$47-V40)*V3 -> 0 | W47: =($F$47-W40)*W3 -> 0 | X47: =($F$47-X40)*X3 -> 0 | Y47: =($F$47-Y40)*Y3 -> 0 | Z47: =($F$47-Z40)*Z3 -> 0 | AA47: =($F$47-AA40)*AA3 -> 0 | AB47: =($F$47-AB40)*AB3 -> 0 | AC47: =($F$47-AC40)*AC3 -> 0 | AD47: =($F$47-AD40)*AD3 -> 0 | AE47: =($F$47-AE40)*AE3 -> 0 | AF47: =($F$47-AF40)*AF3 -> 0 | AG47: =($F$47-AG40)*AG3 -> 0 | AH47: =($F$47-AH40)*AH3 -> 0 | AI47: =($F$47-AI40)*AI3 -> 0 | AJ47: =($F$47-AJ40)*AJ3 -> 0 | AK47: =($F$47-AK40)*AK3 -> 0 | AL47: =($F$47-AL40)*AL3 -> 0 | AM47: =($F$47-AM40)*AM3 -> 0 | AN47: =($F$47-AN40)*AN3 -> 0 | AO47: =($F$47-AO40)*AO3 -> 0 | AP47: =($F$47-AP40)*AP3 -> 0 | AQ47: =($F$47-AQ40)*AQ3 -> 0 | AR47: =($F$47-AR40)*AR3 -> 0 | AS47: =($F$47-AS40)*AS3 -> 0 | AT47: =($F$47-AT40)*AT3 -> 0 | AU47: =($F$47-AU40)*AU3 -> 0 | AV47: =($F$47-AV40)*AV3 -> 0 | AW47: =($F$47-AW40)*AW3 -> 0 | AX47: =($F$47-AX40)*AX3 -> 0 | AY47: =($F$47-AY40)*AY3 -> 0 | AZ47: =($F$47-AZ40)*AZ3 -> 0 | BA47: =($F$47-BA40)*BA3 -> 0 | BB47: =($F$47-BB40)*BB3 -> 0 | BC47: =($F$47-BC40)*BC3 -> 0 | BD47: =($F$47-BD40)*BD3 -> 0 | BE47: =($F$47-BE40)*BE3 -> 0 | BF47: =($F$47-BF40)*BF3 -> 0 | BG47: =($F$47-BG40)*BG3 -> 0 | BH47: =($F$47-BH40)*BH3 -> 0 | BI47: =($F$47-BI40)*BI3 -> 0 | BJ47: =($F$47-BJ40)*BJ3 -> 0 | BK47: =($F$47-BK40)*BK3 -> 0 | BL47: =($F$47-BL40)*BL3 -> 0 | BM47: =($F$47-BM40)*BM3 -> 0 | BN47: =($F$47-BN40)*BN3 -> 0 | BO47: =($F$47-BO40)*BO3 -> 0 | BP47: =($F$47-BP40)*BP3 -> 0 | BQ47: =($F$47-BQ40)*BQ3 -> 0 | BR47: =($F$47-BR40)*BR3 -> 0 | BS47: =($F$47-BS40)*BS3 -> 0 | BT47: =($F$47-BT40)*BT3 -> 0 | BU47: =($F$47-BU40)*BU3 -> 0 | BV47: =($F$47-BV40)*BV3 -> 0 | BW47: =($F$47-BW40)*BW3 -> 0 | BX47: =($F$47-BX40)*BX3 -> 0 | BY47: =($F$47-BY40)*BY3 -> 0 | BZ47: =($F$47-BZ40)*BZ3 -> 0 | CA47: =($F$47-CA40)*CA3 -> 0 | CB47: =($F$47-CB40)*CB3 -> 0 | CC47: =($F$47-CC40)*CC3 -> 0 | CD47: =($F$47-CD40)*CD3 -> 0 | CE47: =($F$47-CE40)*CE3 -> 0 | CF47: =($F$47-CF40)*CF3 -> 0 | CG47: =($F$47-CG40)*CG3 -> 0 | CH47: =($F$47-CH40)*CH3 -> 0 | CI47: =($F$47-CI40)*CI3 -> 0 | CJ47: =($F$47-CJ40)*CJ3 -> 0 | CK47: =($F$47-CK40)*CK3 -> 0 | CL47: =($F$47-CL40)*CL3 -> 0 | CM47: =($F$47-CM40)*CM3 -> 0 | CN47: =($F$47-CN40)*CN3 -> 0 | CO47: =($F$47-CO40)*CO3 -> 0 | CP47: =($F$47-CP40)*CP3 -> 0 | CQ47: =($F$47-CQ40)*CQ3 -> 0 | CR47: =($F$47-CR40)*CR3 -> 0 | CS47: =($F$47-CS40)*CS3 -> 0 | CT47: =($F$47-CT40)*CT3 -> 0 | CU47: =($F$47-CU40)*CU3 -> 0 | CV47: =($F$47-CV40)*CV3 -> 0 | CW47: =($F$47-CW40)*CW3 -> 0 | CX47: =($F$47-CX40)*CX3 -> 0 | CY47: =($F$47-CY40)*CY3 -> 0 | CZ47: =($F$47-CZ40)*CZ3 -> 0 | DA47: =($F$47-DA40)*DA3 -> 0 | DB47: =($F$47-DB40)*DB3 -> 0 | DC47: =($F$47-DC40)*DC3 -> 0 | DD47: =($F$47-DD40)*DD3 -> 0 | DE47: =($F$47-DE40)*DE3 -> 0 | DF47: =($F$47-DF40)*DF3 -> 0 | DG47: =($F$47-DG40)*DG3 -> 0 | DH47: =($F$47-DH40)*DH3 -> 0 | DI47: =($F$47-DI40)*DI3 -> 0 | DJ47: =($F$47-DJ40)*DJ3 -> 0 | DK47: =($F$47-DK40)*DK3 -> 0 | DL47: =($F$47-DL40)*DL3 -> 0 | DM47: =($F$47-DM40)*DM3 -> 0 | DN47: =($F$47-DN40)*DN3 -> 0 | DO47: =($F$47-DO40)*DO3 -> 0 | DP47: =($F$47-DP40)*DP3 -> 0 | DQ47: =($F$47-DQ40)*DQ3 -> 0 | DR47: =($F$47-DR40)*DR3 -> 0 | DS47: =($F$47-DS40)*DS3 -> 0 | DT47: =($F$47-DT40)*DT3 -> 0 | DU47: =($F$47-DU40)*DU3 -> 0 | DV47: =($F$47-DV40)*DV3 -> 0 | DW47: =($F$47-DW40)*DW3 -> 0 | DX47: =($F$47-DX40)*DX3 -> 0 | DY47: =($F$47-DY40)*DY3 -> 0
D48: Commitment Fee | F48: =F20 -> 0.015 | H48: =$F$48*H47 -> 150 | I48: =$F$48*I47 -> 0 | J48: =$F$48*J47 -> 0 | K48: =$F$48*K47 -> 0 | L48: =$F$48*L47 -> 0 | M48: =$F$48*M47 -> 0 | N48: =$F$48*N47 -> 0 | O48: =$F$48*O47 -> 0 | P48: =$F$48*P47 -> 0 | Q48: =$F$48*Q47 -> 0 | R48: =$F$48*R47 -> 0 | S48: =$F$48*S47 -> 0 | T48: =$F$48*T47 -> 0 | U48: =$F$48*U47 -> 0 | V48: =$F$48*V47 -> 0 | W48: =$F$48*W47 -> 0 | X48: =$F$48*X47 -> 0 | Y48: =$F$48*Y47 -> 0 | Z48: =$F$48*Z47 -> 0 | AA48: =$F$48*AA47 -> 0 | AB48: =$F$48*AB47 -> 0 | AC48: =$F$48*AC47 -> 0 | AD48: =$F$48*AD47 -> 0 | AE48: =$F$48*AE47 -> 0 | AF48: =$F$48*AF47 -> 0 | AG48: =$F$48*AG47 -> 0 | AH48: =$F$48*AH47 -> 0 | AI48: =$F$48*AI47 -> 0 | AJ48: =$F$48*AJ47 -> 0 | AK48: =$F$48*AK47 -> 0 | AL48: =$F$48*AL47 -> 0 | AM48: =$F$48*AM47 -> 0 | AN48: =$F$48*AN47 -> 0 | AO48: =$F$48*AO47 -> 0 | AP48: =$F$48*AP47 -> 0 | AQ48: =$F$48*AQ47 -> 0 | AR48: =$F$48*AR47 -> 0 | AS48: =$F$48*AS47 -> 0 | AT48: =$F$48*AT47 -> 0 | AU48: =$F$48*AU47 -> 0 | AV48: =$F$48*AV47 -> 0 | AW48: =$F$48*AW47 -> 0 | AX48: =$F$48*AX47 -> 0 | AY48: =$F$48*AY47 -> 0 | AZ48: =$F$48*AZ47 -> 0 | BA48: =$F$48*BA47 -> 0 | BB48: =$F$48*BB47 -> 0 | BC48: =$F$48*BC47 -> 0 | BD48: =$F$48*BD47 -> 0 | BE48: =$F$48*BE47 -> 0 | BF48: =$F$48*BF47 -> 0 | BG48: =$F$48*BG47 -> 0 | BH48: =$F$48*BH47 -> 0 | BI48: =$F$48*BI47 -> 0 | BJ48: =$F$48*BJ47 -> 0 | BK48: =$F$48*BK47 -> 0 | BL48: =$F$48*BL47 -> 0 | BM48: =$F$48*BM47 -> 0 | BN48: =$F$48*BN47 -> 0 | BO48: =$F$48*BO47 -> 0 | BP48: =$F$48*BP47 -> 0 | BQ48: =$F$48*BQ47 -> 0 | BR48: =$F$48*BR47 -> 0 | BS48: =$F$48*BS47 -> 0 | BT48: =$F$48*BT47 -> 0 | BU48: =$F$48*BU47 -> 0 | BV48: =$F$48*BV47 -> 0 | BW48: =$F$48*BW47 -> 0 | BX48: =$F$48*BX47 -> 0 | BY48: =$F$48*BY47 -> 0 | BZ48: =$F$48*BZ47 -> 0 | CA48: =$F$48*CA47 -> 0 | CB48: =$F$48*CB47 -> 0 | CC48: =$F$48*CC47 -> 0 | CD48: =$F$48*CD47 -> 0 | CE48: =$F$48*CE47 -> 0 | CF48: =$F$48*CF47 -> 0 | CG48: =$F$48*CG47 -> 0 | CH48: =$F$48*CH47 -> 0 | CI48: =$F$48*CI47 -> 0 | CJ48: =$F$48*CJ47 -> 0 | CK48: =$F$48*CK47 -> 0 | CL48: =$F$48*CL47 -> 0 | CM48: =$F$48*CM47 -> 0 | CN48: =$F$48*CN47 -> 0 | CO48: =$F$48*CO47 -> 0 | CP48: =$F$48*CP47 -> 0 | CQ48: =$F$48*CQ47 -> 0 | CR48: =$F$48*CR47 -> 0 | CS48: =$F$48*CS47 -> 0 | CT48: =$F$48*CT47 -> 0 | CU48: =$F$48*CU47 -> 0 | CV48: =$F$48*CV47 -> 0 | CW48: =$F$48*CW47 -> 0 | CX48: =$F$48*CX47 -> 0 | CY48: =$F$48*CY47 -> 0 | CZ48: =$F$48*CZ47 -> 0 | DA48: =$F$48*DA47 -> 0 | DB48: =$F$48*DB47 -> 0 | DC48: =$F$48*DC47 -> 0 | DD48: =$F$48*DD47 -> 0 | DE48: =$F$48*DE47 -> 0 | DF48: =$F$48*DF47 -> 0 | DG48: =$F$48*DG47 -> 0 | DH48: =$F$48*DH47 -> 0 | DI48: =$F$48*DI47 -> 0 | DJ48: =$F$48*DJ47 -> 0 | DK48: =$F$48*DK47 -> 0 | DL48: =$F$48*DL47 -> 0 | DM48: =$F$48*DM47 -> 0 | DN48: =$F$48*DN47 -> 0 | DO48: =$F$48*DO47 -> 0 | DP48: =$F$48*DP47 -> 0 | DQ48: =$F$48*DQ47 -> 0 | DR48: =$F$48*DR47 -> 0 | DS48: =$F$48*DS47 -> 0 | DT48: =$F$48*DT47 -> 0 | DU48: =$F$48*DU47 -> 0 | DV48: =$F$48*DV47 -> 0 | DW48: =$F$48*DW47 -> 0 | DX48: =$F$48*DX47 -> 0 | DY48: =$F$48*DY47 -> 0
D49: Up-front Fee | F49: =F19 -> 0.01 | G49: =F47 -> 10000 | H49: =G49*F49 -> 100
D50: Other Fees | F50: =F21 -> 0 | H50: =F50 -> 0
D52: Total Cash Flow | H52: =H44+H42-H41+H48+H49+H50 -> -9750 | I52: =I44+I42-I41+I48+I49+I50 -> 1801.111111 | J52: 1724.444444 | K52: 1647.777778 | L52: 1571.111111 | M52: 1494.444444 | N52: 1417.777778 | O52: 1341.111111 | P52: 1264.444444 | Q52: 1187.777778 | R52: 0 | S52: 0 | T52: 0 | U52: 0 | V52: 0 | W52: 0 | X52: 0 | Y52: 0 | Z52: 0 | AA52: 0 | AB52: 0 | AC52: 0 | AD52: 0 | AE52: 0 | AF52: 0 | AG52: 0 | AH52: 0 | AI52: 0 | AJ52: 0 | AK52: 0 | AL52: 0 | AM52: 0 | AN52: 0 | AO52: 0 | AP52: =AP44+AP42-AP41+AP48+AP49+AP50 -> 0 | AQ52: 0 | AR52: 0 | AS52: 0 | AT52: 0 | AU52: 0 | AV52: 0 | AW52: 0 | AX52: 0 | AY52: 0 | AZ52: 0 | BA52: 0 | BB52: 0 | BC52: 0 | BD52: 0 | BE52: 0 | BF52: 0 | BG52: 0 | BH52: 0 | BI52: 0 | BJ52: 0 | BK52: 0 | BL52: 0 | BM52: 0 | BN52: 0 | BO52: 0 | BP52: 0 | BQ52: 0 | BR52: 0 | BS52: 0 | BT52: 0 | BU52: 0 | BV52: 0 | BW52: 0 | BX52: 0 | BY52: 0 | BZ52: 0 | CA52: 0 | CB52: 0 | CC52: 0 | CD52: 0 | CE52: 0 | CF52: 0 | CG52: 0 | CH52: 0 | CI52: 0 | CJ52: 0 | CK52: 0 | CL52: 0 | CM52: 0 | CN52: 0 | CO52: 0 | CP52: 0 | CQ52: 0 | CR52: 0 | CS52: 0 | CT52: 0 | CU52: 0 | CV52: 0 | CW52: 0 | CX52: 0 | CY52: 0 | CZ52: 0 | DA52: 0 | DB52: =DB44+DB42-DB41+DB48+DB49+DB50 -> 0 | DC52: 0 | DD52: 0 | DE52: 0 | DF52: 0 | DG52: 0 | DH52: 0 | DI52: 0 | DJ52: 0 | DK52: 0 | DL52: 0 | DM52: 0 | DN52: 0 | DO52: 0 | DP52: 0 | DQ52: 0 | DR52: 0 | DS52: 0 | DT52: 0 | DU52: 0 | DV52: 0 | DW52: 0 | DX52: 0 | DY52: 0
D53: Periodic IRR from Cash Flow | F53: =IRR(52:52) -> 0.07544702198
D54: Simple IRR | F54: =F53*F8 -> 0.07544702198
D55: Annualised IRR from Cash Flow | F55: =(1+F53)^(F8)-1 -> 0.07544702198
D56: Cost of Funding - Periodic | F56: =(1+F13)^(1/F8)-1 -> 0.03
D58: Effective Periodic CS from Periodic IRR | F58: =(1+F53)/(1+F56)-1 -> 0.04412332231 | G58: 1 | H58: 1 | I58: =H58*(1+$F$58) -> 1.044123322 | J58: =I58*(1+$F$58) -> 1.090193512 | K58: =J58*(1+$F$58) -> 1.138296472 | L58: =K58*(1+$F$58) -> 1.188521894 | M58: =L58*(1+$F$58) -> 1.240963429 | N58: =M58*(1+$F$58) -> 1.295718858 | O58: =N58*(1+$F$58) -> 1.352890279 | P58: =O58*(1+$F$58) -> 1.412584293 | Q58: =P58*(1+$F$58) -> 1.474912205 | R58: =Q58*(1+$F$58) -> 1.539990231 | S58: =R58*(1+$F$58) -> 1.607939716 | T58: =S58*(1+$F$58) -> 1.678887359 | U58: =T58*(1+$F$58) -> 1.752965447 | V58: =U58*(1+$F$58) -> 1.830312106 | W58: =V58*(1+$F$58) -> 1.911071557 | X58: =W58*(1+$F$58) -> 1.995394384 | Y58: =X58*(1+$F$58) -> 2.083437813 | Z58: =Y58*(1+$F$58) -> 2.175366011 | AA58: =Z58*(1+$F$58) -> 2.271350387 | AB58: =AA58*(1+$F$58) -> 2.371569912 | AC58: =AB58*(1+$F$58) -> 2.476211456 | AD58: =AC58*(1+$F$58) -> 2.585470132 | AE58: =AD58*(1+$F$58) -> 2.699549664 | AF58: =AE58*(1+$F$58) -> 2.818662764 | AG58: =AF58*(1+$F$58) -> 2.943031529 | AH58: =AG58*(1+$F$58) -> 3.072887858 | AI58: =AH58*(1+$F$58) -> 3.208473879 | AJ58: =AI58*(1+$F$58) -> 3.350042406 | AK58: =AJ58*(1+$F$58) -> 3.497857407 | AL58: =AK58*(1+$F$58) -> 3.652194497 | AM58: =AL58*(1+$F$58) -> 3.813341452 | AN58: =AM58*(1+$F$58) -> 3.981598746 | AO58: =AN58*(1+$F$58) -> 4.157280111 | AP58: =AO58*(1+$F$58) -> 4.340713121 | AQ58: =AP58*(1+$F$58) -> 4.532239805 | AR58: =AQ58*(1+$F$58) -> 4.732217283 | AS58: =AR58*(1+$F$58) -> 4.941018431 | AT58: =AS58*(1+$F$58) -> 5.15903258 | AU58: =AT58*(1+$F$58) -> 5.386666237 | AV58: =AU58*(1+$F$58) -> 5.624343848 | AW58: =AV58*(1+$F$58) -> 5.872508584 | AX58: =AW58*(1+$F$58) -> 6.131623173 | AY58: =AX58*(1+$F$58) -> 6.402170759 | AZ58: =AY58*(1+$F$58) -> 6.684655802 | BA58: =AZ58*(1+$F$58) -> 6.979605025 | BB58: =BA58*(1+$F$58) -> 7.287568387 | BC58: =BB58*(1+$F$58) -> 7.609120116 | BD58: =BC58*(1+$F$58) -> 7.944859775 | BE58: =BD58*(1+$F$58) -> 8.295413384 | BF58: =BE58*(1+$F$58) -> 8.661434582 | BG58: =BF58*(1+$F$58) -> 9.043605852 | BH58: =BG58*(1+$F$58) -> 9.442639788 | BI58: =BH58*(1+$F$58) -> 9.859280426 | BJ58: =BI58*(1+$F$58) -> 10.29430463 | BK58: =BJ58*(1+$F$58) -> 10.74852356 | BL58: =BK58*(1+$F$58) -> 11.22278412 | BM58: =BL58*(1+$F$58) -> 11.71797065 | BN58: =BM58*(1+$F$58) -> 12.23500644 | BO58: =BN58*(1+$F$58) -> 12.77485557 | BP58: =BO58*(1+$F$58) -> 13.33852464 | BQ58: =BP58*(1+$F$58) -> 13.92706467 | BR58: =BQ58*(1+$F$58) -> 14.54157303 | BS58: =BR58*(1+$F$58) -> 15.18319554 | BT58: =BS58*(1+$F$58) -> 15.85312857 | BU58: =BT58*(1+$F$58) -> 16.55262127 | BV58: =BU58*(1+$F$58) -> 17.28297792 | BW58: =BV58*(1+$F$58) -> 18.04556032 | BX58: =BW58*(1+$F$58) -> 18.8417904 | BY58: =BX58*(1+$F$58) -> 19.67315279 | BZ58: =BY58*(1+$F$58) -> 20.54119765 | CA58: =BZ58*(1+$F$58) -> 21.44754353 | CB58: =CA58*(1+$F$58) -> 22.39388041 | CC58: =CB58*(1+$F$58) -> 23.38197281 | CD58: =CC58*(1+$F$58) -> 24.41366314 | CE58: =CD58*(1+$F$58) -> 25.49087506 | CF58: =CE58*(1+$F$58) -> 26.61561716 | CG58: =CF58*(1+$F$58) -> 27.78998661 | CH58: =CG58*(1+$F$58) -> 29.01617315 | CI58: =CH58*(1+$F$58) -> 30.29646311 | CJ58: =CI58*(1+$F$58) -> 31.63324372 | CK58: =CJ58*(1+$F$58) -> 33.02900753 | CL58: =CK58*(1+$F$58) -> 34.48635707 | CM58: =CL58*(1+$F$58) -> 36.00800972 | CN58: =CM58*(1+$F$58) -> 37.59680274 | CO58: =CN58*(1+$F$58) -> 39.25569858 | CP58: =CO58*(1+$F$58) -> 40.98779042 | CQ58: =CP58*(1+$F$58) -> 42.79630791 | CR58: =CQ58*(1+$F$58) -> 44.6846232 | CS58: =CR58*(1+$F$58) -> 46.65625723 | CT58: =CS58*(1+$F$58) -> 48.7148863 | CU58: =CT58*(1+$F$58) -> 50.86434893 | CV58: =CU58*(1+$F$58) -> 53.108653 | CW58: =CV58*(1+$F$58) -> 55.45198321 | CX58: =CW58*(1+$F$58) -> 57.89870894 | CY58: =CX58*(1+$F$58) -> 60.45339233 | CZ58: =CY58*(1+$F$58) -> 63.12079685 | DA58: =CZ58*(1+$F$58) -> 65.90589611 | DB58: =DA58*(1+$F$58) -> 68.81388321 | DC58: =DB58*(1+$F$58) -> 71.85018035 | DD58: =DC58*(1+$F$58) -> 75.02044902 | DE58: =DD58*(1+$F$58) -> 78.33060047 | DF58: =DE58*(1+$F$58) -> 81.7868068 | DG58: =DF58*(1+$F$58) -> 85.39551244 | DH58: =DG58*(1+$F$58) -> 89.16344616 | DI58: =DH58*(1+$F$58) -> 93.09763363 | DJ58: =DI58*(1+$F$58) -> 97.20541053 | DK58: =DJ58*(1+$F$58) -> 101.4944362 | DL58: =DK58*(1+$F$58) -> 105.9727079 | DM58: =DL58*(1+$F$58) -> 110.6485759 | DN58: =DM58*(1+$F$58) -> 115.5307586 | DO58: =DN58*(1+$F$58) -> 120.6283595 | DP58: =DO58*(1+$F$58) -> 125.9508835 | DQ58: =DP58*(1+$F$58) -> 131.5082549 | DR58: =DQ58*(1+$F$58) -> 137.3108361 | DS58: =DR58*(1+$F$58) -> 143.3694463 | DT58: =DS58*(1+$F$58) -> 149.6953826 | DU58: =DT58*(1+$F$58) -> 156.3004402 | DV58: =DU58*(1+$F$58) -> 163.1969349 | DW58: =DV58*(1+$F$58) -> 170.3977259 | DX58: =DW58*(1+$F$58) -> 177.9162397 | DY58: =DX58*(1+$F$58) -> 185.7664953
D59: Funding Portion of Debt Service | H59: =H45/H58 -> 0 | I59: =I45/I58 -> 1724.998449 | J59: 1581.778304 | K59: 1447.582259 | L59: 1321.903382 | M59: 1204.261471 | N59: 1094.201701 | O59: 991.2933312 | P59: 895.1284898 | Q59: 805.3210043 | R59: 0 | S59: 0 | T59: 0 | U59: 0 | V59: 0 | W59: 0 | X59: 0 | Y59: 0 | Z59: 0 | AA59: 0 | AB59: 0 | AC59: 0 | AD59: 0 | AE59: 0 | AF59: 0 | AG59: 0 | AH59: 0 | AI59: 0 | AJ59: 0 | AK59: 0 | AL59: 0 | AM59: 0 | AN59: 0 | AO59: 0 | AP59: 0 | AQ59: 0 | AR59: 0 | AS59: 0 | AT59: 0 | AU59: 0 | AV59: 0 | AW59: 0 | AX59: 0 | AY59: 0 | AZ59: 0 | BA59: 0 | BB59: 0 | BC59: 0 | BD59: 0 | BE59: 0 | BF59: 0 | BG59: 0 | BH59: 0 | BI59: 0 | BJ59: 0 | BK59: 0 | BL59: 0 | BM59: 0 | BN59: 0 | BO59: 0 | BP59: 0 | BQ59: 0 | BR59: 0 | BS59: 0 | BT59: 0 | BU59: =BU45/BU58 -> 0 | BV59: 0 | BW59: 0 | BX59: 0 | BY59: 0 | BZ59: 0 | CA59: 0 | CB59: 0 | CC59: 0 | CD59: 0 | CE59: 0 | CF59: 0 | CG59: 0 | CH59: 0 | CI59: 0 | CJ59: 0 | CK59: 0 | CL59: 0 | CM59: 0 | CN59: 0 | CO59: 0 | CP59: 0 | CQ59: 0 | CR59: 0 | CS59: 0 | CT59: 0 | CU59: 0 | CV59: 0 | CW59: 0 | CX59: 0 | CY59: 0 | CZ59: 0 | DA59: 0 | DB59: 0 | DC59: 0 | DD59: 0 | DE59: 0 | DF59: 0 | DG59: 0 | DH59: 0 | DI59: 0 | DJ59: 0 | DK59: 0 | DL59: 0 | DM59: 0 | DN59: 0 | DO59: 0 | DP59: 0 | DQ59: 0 | DR59: 0 | DS59: 0 | DT59: 0 | DU59: 0 | DV59: 0 | DW59: 0 | DX59: 0 | DY59: 0
D60: Risk Premium Earned Portion of Debt Service | H60: =(H45-H59) -> 0 | I60: =(I45-I59) -> 76.11266253 | J60: 142.6661407 | K60: 200.1955192 | L60: 249.2077292 | M60: 290.1829731 | N60: 323.5760772 | O60: 349.8177799 | P60: 369.3159547 | Q60: 382.4567735 | R60: 0 | S60: 0 | T60: 0 | U60: 0 | V60: 0 | W60: 0 | X60: 0 | Y60: 0 | Z60: 0 | AA60: 0 | AB60: 0 | AC60: 0 | AD60: 0 | AE60: 0 | AF60: 0 | AG60: 0 | AH60: 0 | AI60: 0 | AJ60: 0 | AK60: 0 | AL60: 0 | AM60: 0 | AN60: 0 | AO60: 0 | AP60: =(AP45-AP59) -> 0 | AQ60: =(AQ45-AQ59) -> 0 | AR60: =(AR45-AR59) -> 0 | AS60: =(AS45-AS59) -> 0 | AT60: =(AT45-AT59) -> 0 | AU60: =(AU45-AU59) -> 0 | AV60: =(AV45-AV59) -> 0 | AW60: =(AW45-AW59) -> 0 | AX60: =(AX45-AX59) -> 0 | AY60: =(AY45-AY59) -> 0 | AZ60: =(AZ45-AZ59) -> 0 | BA60: =(BA45-BA59) -> 0 | BB60: =(BB45-BB59) -> 0 | BC60: =(BC45-BC59) -> 0 | BD60: =(BD45-BD59) -> 0 | BE60: =(BE45-BE59) -> 0 | BF60: =(BF45-BF59) -> 0 | BG60: =(BG45-BG59) -> 0 | BH60: =(BH45-BH59) -> 0 | BI60: =(BI45-BI59) -> 0 | BJ60: =(BJ45-BJ59) -> 0 | BK60: =(BK45-BK59) -> 0 | BL60: =(BL45-BL59) -> 0 | BM60: =(BM45-BM59) -> 0 | BN60: =(BN45-BN59) -> 0 | BO60: =(BO45-BO59) -> 0 | BP60: =(BP45-BP59) -> 0 | BQ60: =(BQ45-BQ59) -> 0 | BR60: =(BR45-BR59) -> 0 | BS60: =(BS45-BS59) -> 0 | BT60: =(BT45-BT59) -> 0 | BU60: =(BU45-BU59) -> 0 | BV60: =(BV45-BV59) -> 0 | BW60: =(BW45-BW59) -> 0 | BX60: =(BX45-BX59) -> 0 | BY60: =(BY45-BY59) -> 0 | BZ60: =(BZ45-BZ59) -> 0 | CA60: =(CA45-CA59) -> 0 | CB60: =(CB45-CB59) -> 0 | CC60: =(CC45-CC59) -> 0 | CD60: =(CD45-CD59) -> 0 | CE60: =(CE45-CE59) -> 0 | CF60: =(CF45-CF59) -> 0 | CG60: =(CG45-CG59) -> 0 | CH60: =(CH45-CH59) -> 0 | CI60: =(CI45-CI59) -> 0 | CJ60: =(CJ45-CJ59) -> 0 | CK60: =(CK45-CK59) -> 0 | CL60: =(CL45-CL59) -> 0 | CM60: =(CM45-CM59) -> 0 | CN60: =(CN45-CN59) -> 0 | CO60: =(CO45-CO59) -> 0 | CP60: =(CP45-CP59) -> 0 | CQ60: =(CQ45-CQ59) -> 0 | CR60: =(CR45-CR59) -> 0 | CS60: =(CS45-CS59) -> 0 | CT60: =(CT45-CT59) -> 0 | CU60: =(CU45-CU59) -> 0 | CV60: =(CV45-CV59) -> 0 | CW60: =(CW45-CW59) -> 0 | CX60: =(CX45-CX59) -> 0 | CY60: =(CY45-CY59) -> 0 | CZ60: =(CZ45-CZ59) -> 0 | DA60: =(DA45-DA59) -> 0 | DB60: =(DB45-DB59) -> 0 | DC60: =(DC45-DC59) -> 0 | DD60: =(DD45-DD59) -> 0 | DE60: =(DE45-DE59) -> 0 | DF60: =(DF45-DF59) -> 0 | DG60: =(DG45-DG59) -> 0 | DH60: =(DH45-DH59) -> 0 | DI60: =(DI45-DI59) -> 0 | DJ60: =(DJ45-DJ59) -> 0 | DK60: =(DK45-DK59) -> 0 | DL60: =(DL45-DL59) -> 0 | DM60: =(DM45-DM59) -> 0 | DN60: =(DN45-DN59) -> 0 | DO60: =(DO45-DO59) -> 0 | DP60: =(DP45-DP59) -> 0 | DQ60: =(DQ45-DQ59) -> 0 | DR60: =(DR45-DR59) -> 0 | DS60: =(DS45-DS59) -> 0 | DT60: =(DT45-DT59) -> 0 | DU60: =(DU45-DU59) -> 0 | DV60: =(DV45-DV59) -> 0 | DW60: =(DW45-DW59) -> 0 | DX60: =(DX45-DX59) -> 0 | DY60: =(DY45-DY59) -> 0
D62: Funding Cost after Time Value Adjustment and Fees | H62: =(H41-H48-H49-H50)/H58 -> 9750 | I62: =(I41-I48-I49-I50)/I58 -> 0 | J62: 0 | K62: 0 | L62: 0 | M62: 0 | N62: 0 | O62: 0 | P62: 0 | Q62: 0 | R62: 0 | S62: 0 | T62: 0 | U62: 0 | V62: 0 | W62: 0 | X62: 0 | Y62: 0 | Z62: 0 | AA62: 0 | AB62: 0 | AC62: 0 | AD62: 0 | AE62: 0 | AF62: 0 | AG62: 0 | AH62: 0 | AI62: 0 | AJ62: 0 | AK62: 0 | AL62: 0 | AM62: 0 | AN62: 0 | AO62: 0 | AP62: 0 | AQ62: 0 | AR62: 0 | AS62: 0 | AT62: 0 | AU62: 0 | AV62: 0 | AW62: 0 | AX62: 0 | AY62: 0 | AZ62: 0 | BA62: 0 | BB62: 0 | BC62: 0 | BD62: 0 | BE62: 0 | BF62: 0 | BG62: 0 | BH62: 0 | BI62: 0 | BJ62: 0 | BK62: 0 | BL62: 0 | BM62: 0 | BN62: 0 | BO62: 0 | BP62: 0 | BQ62: 0 | BR62: 0 | BS62: 0 | BT62: 0 | BU62: =(BU41-BU48-BU49-BU50)/BU58 -> 0 | BV62: 0 | BW62: 0 | BX62: 0 | BY62: 0 | BZ62: 0 | CA62: 0 | CB62: 0 | CC62: 0 | CD62: 0 | CE62: 0 | CF62: 0 | CG62: 0 | CH62: 0 | CI62: 0 | CJ62: 0 | CK62: 0 | CL62: 0 | CM62: 0 | CN62: 0 | CO62: 0 | CP62: 0 | CQ62: 0 | CR62: 0 | CS62: 0 | CT62: 0 | CU62: 0 | CV62: 0 | CW62: 0 | CX62: 0 | CY62: 0 | CZ62: 0 | DA62: 0 | DB62: 0 | DC62: 0 | DD62: 0 | DE62: 0 | DF62: 0 | DG62: 0 | DH62: 0 | DI62: 0 | DJ62: 0 | DK62: 0 | DL62: 0 | DM62: 0 | DN62: 0 | DO62: 0 | DP62: 0 | DQ62: 0 | DR62: 0 | DS62: 0 | DT62: 0 | DU62: 0 | DV62: 0 | DW62: 0 | DX62: 0 | DY62: 0
D63: Final Period Before Repayment | H63: =AND(H3,(I4)) -> TRUE | I63: FALSE | J63: FALSE | K63: FALSE | L63: FALSE | M63: FALSE | N63: FALSE | O63: FALSE | P63: FALSE | Q63: FALSE | R63: FALSE | S63: FALSE | T63: FALSE | U63: FALSE | V63: FALSE | W63: FALSE | X63: FALSE | Y63: FALSE | Z63: FALSE | AA63: FALSE | AB63: FALSE | AC63: FALSE | AD63: FALSE | AE63: FALSE | AF63: FALSE | AG63: FALSE | AH63: FALSE | AI63: FALSE | AJ63: FALSE | AK63: FALSE | AL63: FALSE | AM63: FALSE | AN63: =AND(AN3,(AO4)) -> FALSE | AO63: FALSE | AP63: FALSE | AQ63: FALSE | AR63: FALSE | AS63: FALSE | AT63: FALSE | AU63: FALSE | AV63: FALSE | AW63: FALSE | AX63: FALSE | AY63: FALSE | AZ63: FALSE | BA63: FALSE | BB63: FALSE | BC63: FALSE | BD63: FALSE | BE63: FALSE | BF63: FALSE | BG63: FALSE | BH63: FALSE | BI63: FALSE | BJ63: FALSE | BK63: FALSE | BL63: FALSE | BM63: FALSE | BN63: FALSE | BO63: FALSE | BP63: FALSE | BQ63: FALSE | BR63: FALSE | BS63: FALSE | BT63: =AND(BT3,(BU4)) -> FALSE | BU63: FALSE | BV63: FALSE | BW63: FALSE | BX63: FALSE | BY63: FALSE | BZ63: FALSE | CA63: FALSE | CB63: FALSE | CC63: FALSE | CD63: FALSE | CE63: FALSE | CF63: FALSE | CG63: FALSE | CH63: FALSE | CI63: FALSE | CJ63: FALSE | CK63: FALSE | CL63: FALSE | CM63: FALSE | CN63: FALSE | CO63: FALSE | CP63: FALSE | CQ63: FALSE | CR63: FALSE | CS63: FALSE | CT63: FALSE | CU63: FALSE | CV63: FALSE | CW63: FALSE | CX63: FALSE | CY63: FALSE | CZ63: =AND(CZ3,(DA4)) -> FALSE | DA63: FALSE | DB63: FALSE | DC63: FALSE | DD63: FALSE | DE63: FALSE | DF63: FALSE | DG63: FALSE | DH63: FALSE | DI63: FALSE | DJ63: FALSE | DK63: FALSE | DL63: FALSE | DM63: FALSE | DN63: FALSE | DO63: FALSE | DP63: FALSE | DQ63: FALSE | DR63: FALSE | DS63: FALSE | DT63: FALSE | DU63: FALSE | DV63: FALSE | DW63: FALSE | DX63: FALSE | DY63: FALSE
D64: Cost of Funding Check | F64: =IRR(H64:BA64) -> 0.03 | H64: =H59-H62 -> -9750 | I64: =I59-I62 -> 1724.998449 | J64: 1581.778304 | K64: 1447.582259 | L64: 1321.903382 | M64: 1204.261471 | N64: 1094.201701 | O64: 991.2933312 | P64: 895.1284898 | Q64: 805.3210043 | R64: 0 | S64: 0 | T64: 0 | U64: 0 | V64: 0 | W64: 0 | X64: 0 | Y64: 0 | Z64: 0 | AA64: 0 | AB64: 0 | AC64: 0 | AD64: 0 | AE64: 0 | AF64: 0 | AG64: 0 | AH64: 0 | AI64: 0 | AJ64: 0 | AK64: 0 | AL64: 0 | AM64: 0 | AN64: 0 | AO64: 0 | AP64: 0 | AQ64: 0 | AR64: 0 | AS64: 0 | AT64: 0 | AU64: 0 | AV64: 0 | AW64: 0 | AX64: 0 | AY64: 0 | AZ64: 0 | BA64: 0 | BB64: 0 | BC64: 0 | BD64: 0 | BE64: 0 | BF64: 0 | BG64: 0 | BH64: 0 | BI64: 0 | BJ64: 0 | BK64: 0 | BL64: 0 | BM64: 0 | BN64: 0 | BO64: 0 | BP64: 0 | BQ64: 0 | BR64: 0 | BS64: 0 | BT64: 0 | BU64: =BU59-BU62 -> 0 | BV64: 0 | BW64: 0 | BX64: 0 | BY64: 0 | BZ64: 0 | CA64: 0 | CB64: 0 | CC64: 0 | CD64: 0 | CE64: 0 | CF64: 0 | CG64: 0 | CH64: 0 | CI64: 0 | CJ64: 0 | CK64: 0 | CL64: 0 | CM64: 0 | CN64: 0 | CO64: 0 | CP64: 0 | CQ64: 0 | CR64: 0 | CS64: 0 | CT64: 0 | CU64: 0 | CV64: 0 | CW64: 0 | CX64: 0 | CY64: 0 | CZ64: 0 | DA64: 0 | DB64: 0 | DC64: 0 | DD64: 0 | DE64: 0 | DF64: 0 | DG64: 0 | DH64: 0 | DI64: 0 | DJ64: 0 | DK64: 0 | DL64: 0 | DM64: 0 | DN64: 0 | DO64: 0 | DP64: 0 | DQ64: 0 | DR64: 0 | DS64: 0 | DT64: 0 | DU64: 0 | DV64: 0 | DW64: 0 | DX64: 0 | DY64: 0
D66: NPV of Risk Premium Earned | F66: =F16 -> 0.03 | G66: =XNPV(F66,H60:DY60,H2:DY2) -> 2003.18249
D67: PV of Risk Premium/Loan | F67: =G66/F47 -> 0.200318249
B69: Cummulative Probability Trends
C70: Year | H70: 1 | I70: =H70+1 -> 2 | J70: =I70+1 -> 3 | K70: 4 | L70: 5 | M70: 6 | N70: 7 | O70: 8 | P70: 9 | Q70: 10 | R70: 11 | S70: 12 | T70: 13 | U70: 14 | V70: 15
C71: Increase in Default Rate | I71: ='Rating and PD'!G25 -> 2.092105263 | J71: ='Rating and PD'!H25 -> 0.8 | K71: ='Rating and PD'!I25 -> 0.4326241135 | L71: ='Rating and PD'!J25 -> 0.2722772277 | M71: ='Rating and PD'!K25 -> 0.2036316472 | N71: ='Rating and PD'!L25 -> 0.1411637931 | O71: ='Rating and PD'!M25 -> 0.1095372993 | P71: ='Rating and PD'!N25 -> 0.08936170213 | Q71: ='Rating and PD'!O25 -> 0.0734375 | R71: ='Rating and PD'!P25 -> 0.05676855895 | S71: ='Rating and PD'!Q25 -> 0.04545454545 | T71: ='Rating and PD'!R25 -> 0.03754940711 | U71: ='Rating and PD'!S25 -> 0.03111111111 | V71: ='Rating and PD'!T25 -> 0.03263546798 | W71: ='Rating and PD'!U25 -> 0 | X71: ='Rating and PD'!V25 -> 0 | Y71: ='Rating and PD'!W25 -> 0 | Z71: ='Rating and PD'!X25 -> 0 | AA71: ='Rating and PD'!Y25 -> 0 | AB71: ='Rating and PD'!Z25 -> 0 | AC71: ='Rating and PD'!AA25 -> 0 | AD71: ='Rating and PD'!AB25 -> 0 | AE71: ='Rating and PD'!AC25 -> 0 | AF71: ='Rating and PD'!AD25 -> 0 | AG71: ='Rating and PD'!AE25 -> 0 | AH71: ='Rating and PD'!AF25 -> 0 | AI71: ='Rating and PD'!AG25 -> 0 | AJ71: ='Rating and PD'!AH25 -> 0 | AK71: ='Rating and PD'!AI25 -> 0 | AL71: ='Rating and PD'!AJ25 -> 0 | AM71: ='Rating and PD'!AK25 -> 0 | AN71: ='Rating and PD'!AL25 -> 0 | AO71: ='Rating and PD'!AM25 -> 0 | AP71: ='Rating and PD'!AN25 -> 0 | AQ71: ='Rating and PD'!AO25 -> 0 | AR71: ='Rating and PD'!AP25 -> 0 | AS71: ='Rating and PD'!AQ25 -> 0 | AT71: ='Rating and PD'!AR25 -> 0 | AU71: ='Rating and PD'!AS25 -> 0 | AV71: ='Rating and PD'!AT25 -> 0 | AW71: ='Rating and PD'!AU25 -> 0 | AX71: ='Rating and PD'!AV25 -> 0 | AY71: ='Rating and PD'!AW25 -> 0 | AZ71: ='Rating and PD'!AX25 -> 0 | BA71: ='Rating and PD'!AY25 -> 0 | BB71: ='Rating and PD'!AZ25 -> 0 | BC71: ='Rating and PD'!BA25 -> 0 | BD71: ='Rating and PD'!BB25 -> 0 | BE71: ='Rating and PD'!BC25 -> 0 | BF71: ='Rating and PD'!BD25 -> 0 | BG71: ='Rating and PD'!BE25 -> 0 | BH71: ='Rating and PD'!BF25 -> 0 | BI71: ='Rating and PD'!BG25 -> 0 | BJ71: ='Rating and PD'!BH25 -> 0 | BK71: ='Rating and PD'!BI25 -> 0 | BL71: ='Rating and PD'!BJ25 -> 0 | BM71: ='Rating and PD'!BK25 -> 0 | BN71: ='Rating and PD'!BL25 -> 0 | BO71: ='Rating and PD'!BM25 -> 0 | BP71: ='Rating and PD'!BN25 -> 0 | BQ71: ='Rating and PD'!BO25 -> 0 | BR71: ='Rating and PD'!BP25 -> 0 | BS71: ='Rating and PD'!BQ25 -> 0 | BT71: ='Rating and PD'!BR25 -> 0 | BU71: ='Rating and PD'!BS25 -> 0 | BV71: ='Rating and PD'!BT25 -> 0 | BW71: ='Rating and PD'!BU25 -> 0 | BX71: ='Rating and PD'!BV25 -> 0 | BY71: ='Rating and PD'!BW25 -> 0 | BZ71: ='Rating and PD'!BX25 -> 0 | CA71: ='Rating and PD'!BY25 -> 0 | CB71: ='Rating and PD'!BZ25 -> 0 | CC71: ='Rating and PD'!CA25 -> 0 | CD71: ='Rating and PD'!CB25 -> 0 | CE71: ='Rating and PD'!CC25 -> 0 | CF71: ='Rating and PD'!CD25 -> 0 | CG71: ='Rating and PD'!CE25 -> 0 | CH71: ='Rating and PD'!CF25 -> 0 | CI71: ='Rating and PD'!CG25 -> 0 | CJ71: ='Rating and PD'!CH25 -> 0 | CK71: ='Rating and PD'!CI25 -> 0 | CL71: ='Rating and PD'!CJ25 -> 0 | CM71: ='Rating and PD'!CK25 -> 0 | CN71: ='Rating and PD'!CL25 -> 0 | CO71: ='Rating and PD'!CM25 -> 0 | CP71: ='Rating and PD'!CN25 -> 0 | CQ71: ='Rating and PD'!CO25 -> 0 | CR71: ='Rating and PD'!CP25 -> 0 | CS71: ='Rating and PD'!CQ25 -> 0 | CT71: ='Rating and PD'!CR25 -> 0 | CU71: ='Rating and PD'!CS25 -> 0 | CV71: ='Rating and PD'!CT25 -> 0 | CW71: ='Rating and PD'!CU25 -> 0 | CX71: ='Rating and PD'!CV25 -> 0 | CY71: ='Rating and PD'!CW25 -> 0 | CZ71: ='Rating and PD'!CX25 -> 0 | DA71: ='Rating and PD'!CY25 -> 0 | DB71: ='Rating and PD'!CZ25 -> 0 | DC71: ='Rating and PD'!DA25 -> 0 | DD71: ='Rating and PD'!DB25 -> 0 | DE71: ='Rating and PD'!DC25 -> 0 | DF71: ='Rating and PD'!DD25 -> 0 | DG71: ='Rating and PD'!DE25 -> 0 | DH71: ='Rating and PD'!DF25 -> 0 | DI71: ='Rating and PD'!DG25 -> 0 | DJ71: ='Rating and PD'!DH25 -> 0 | DK71: ='Rating and PD'!DI25 -> 0 | DL71: ='Rating and PD'!DJ25 -> 0 | DM71: ='Rating and PD'!DK25 -> 0 | DN71: ='Rating and PD'!DL25 -> 0 | DO71: ='Rating and PD'!DM25 -> 0 | DP71: ='Rating and PD'!DN25 -> 0 | DQ71: ='Rating and PD'!DO25 -> 0 | DR71: ='Rating and PD'!DP25 -> 0 | DS71: ='Rating and PD'!DQ25 -> 0 | DT71: ='Rating and PD'!DR25 -> 0 | DU71: ='Rating and PD'!DS25 -> 0 | DV71: ='Rating and PD'!DT25 -> 0 | DW71: ='Rating and PD'!DU25 -> 0 | DX71: ='Rating and PD'!DV25 -> 0 | DY71: ='Rating and PD'!DW25 -> 0
C73: Period of Repayment | H73: =IF(NOT(H3),G73+1,0) -> 0 | I73: =IF(NOT(I3),H73+1,0) -> 1 | J73: 2 | K73: 3 | L73: 4 | M73: 5 | N73: 6 | O73: 7 | P73: 8 | Q73: 9 | R73: 10 | S73: 11 | T73: 12 | U73: 13 | V73: 14 | W73: 15 | X73: 16 | Y73: 17 | Z73: 18 | AA73: 19 | AB73: 20 | AC73: 21 | AD73: 22 | AE73: 23 | AF73: 24 | AG73: 25 | AH73: 26 | AI73: 27 | AJ73: 28 | AK73: 29 | AL73: 30 | AM73: 31 | AN73: 32 | AO73: 33 | AP73: 34 | AQ73: 35 | AR73: 36 | AS73: 37 | AT73: 38 | AU73: 39 | AV73: 40 | AW73: 41 | AX73: 42 | AY73: 43 | AZ73: 44 | BA73: 45 | BB73: 46 | BC73: 47 | BD73: 48 | BE73: 49 | BF73: 50 | BG73: 51 | BH73: 52 | BI73: 53 | BJ73: 54 | BK73: 55 | BL73: 56 | BM73: 57 | BN73: 58 | BO73: 59 | BP73: 60 | BQ73: 61 | BR73: 62 | BS73: 63 | BT73: 64 | BU73: =IF(NOT(BU3),BT73+1,0) -> 65 | BV73: 66 | BW73: 67 | BX73: 68 | BY73: 69 | BZ73: 70 | CA73: 71 | CB73: 72 | CC73: 73 | CD73: 74 | CE73: 75 | CF73: 76 | CG73: 77 | CH73: 78 | CI73: 79 | CJ73: 80 | CK73: 81 | CL73: 82 | CM73: 83 | CN73: 84 | CO73: 85 | CP73: 86 | CQ73: 87 | CR73: 88 | CS73: 89 | CT73: 90 | CU73: 91 | CV73: 92 | CW73: 93 | CX73: 94 | CY73: 95 | CZ73: 96 | DA73: 97 | DB73: 98 | DC73: 99 | DD73: 100 | DE73: 101 | DF73: 102 | DG73: 103 | DH73: 104 | DI73: 105 | DJ73: 106 | DK73: 107 | DL73: 108 | DM73: 109 | DN73: 110 | DO73: 111 | DP73: 112 | DQ73: 113 | DR73: 114 | DS73: 115 | DT73: 116 | DU73: 117 | DV73: 118 | DW73: 119 | DX73: 120 | DY73: 121
C74: Year of Repayment | H74: =ROUNDUP(H73/$F$8,0) -> 0 | I74: =ROUNDUP(I73/$F$8,0) -> 1 | J74: =ROUNDUP(J73/$F$8,0) -> 2 | K74: =ROUNDUP(K73/$F$8,0) -> 3 | L74: =ROUNDUP(L73/$F$8,0) -> 4 | M74: =ROUNDUP(M73/$F$8,0) -> 5 | N74: =ROUNDUP(N73/$F$8,0) -> 6 | O74: =ROUNDUP(O73/$F$8,0) -> 7 | P74: =ROUNDUP(P73/$F$8,0) -> 8 | Q74: =ROUNDUP(Q73/$F$8,0) -> 9 | R74: =ROUNDUP(R73/$F$8,0) -> 10 | S74: =ROUNDUP(S73/$F$8,0) -> 11 | T74: =ROUNDUP(T73/$F$8,0) -> 12 | U74: =ROUNDUP(U73/$F$8,0) -> 13 | V74: =ROUNDUP(V73/$F$8,0) -> 14 | W74: =ROUNDUP(W73/$F$8,0) -> 15 | X74: =ROUNDUP(X73/$F$8,0) -> 16 | Y74: =ROUNDUP(Y73/$F$8,0) -> 17 | Z74: =ROUNDUP(Z73/$F$8,0) -> 18 | AA74: =ROUNDUP(AA73/$F$8,0) -> 19 | AB74: =ROUNDUP(AB73/$F$8,0) -> 20 | AC74: =ROUNDUP(AC73/$F$8,0) -> 21 | AD74: =ROUNDUP(AD73/$F$8,0) -> 22 | AE74: =ROUNDUP(AE73/$F$8,0) -> 23 | AF74: =ROUNDUP(AF73/$F$8,0) -> 24 | AG74: =ROUNDUP(AG73/$F$8,0) -> 25 | AH74: =ROUNDUP(AH73/$F$8,0) -> 26 | AI74: =ROUNDUP(AI73/$F$8,0) -> 27 | AJ74: =ROUNDUP(AJ73/$F$8,0) -> 28 | AK74: =ROUNDUP(AK73/$F$8,0) -> 29 | AL74: =ROUNDUP(AL73/$F$8,0) -> 30 | AM74: =ROUNDUP(AM73/$F$8,0) -> 31 | AN74: =ROUNDUP(AN73/$F$8,0) -> 32 | AO74: =ROUNDUP(AO73/$F$8,0) -> 33 | AP74: =ROUNDUP(AP73/$F$8,0) -> 34 | AQ74: =ROUNDUP(AQ73/$F$8,0) -> 35 | AR74: =ROUNDUP(AR73/$F$8,0) -> 36 | AS74: =ROUNDUP(AS73/$F$8,0) -> 37 | AT74: =ROUNDUP(AT73/$F$8,0) -> 38 | AU74: =ROUNDUP(AU73/$F$8,0) -> 39 | AV74: =ROUNDUP(AV73/$F$8,0) -> 40 | AW74: =ROUNDUP(AW73/$F$8,0) -> 41 | AX74: =ROUNDUP(AX73/$F$8,0) -> 42 | AY74: =ROUNDUP(AY73/$F$8,0) -> 43 | AZ74: =ROUNDUP(AZ73/$F$8,0) -> 44 | BA74: =ROUNDUP(BA73/$F$8,0) -> 45 | BB74: =ROUNDUP(BB73/$F$8,0) -> 46 | BC74: =ROUNDUP(BC73/$F$8,0) -> 47 | BD74: =ROUNDUP(BD73/$F$8,0) -> 48 | BE74: =ROUNDUP(BE73/$F$8,0) -> 49 | BF74: =ROUNDUP(BF73/$F$8,0) -> 50 | BG74: =ROUNDUP(BG73/$F$8,0) -> 51 | BH74: =ROUNDUP(BH73/$F$8,0) -> 52 | BI74: =ROUNDUP(BI73/$F$8,0) -> 53 | BJ74: =ROUNDUP(BJ73/$F$8,0) -> 54 | BK74: =ROUNDUP(BK73/$F$8,0) -> 55 | BL74: =ROUNDUP(BL73/$F$8,0) -> 56 | BM74: =ROUNDUP(BM73/$F$8,0) -> 57 | BN74: =ROUNDUP(BN73/$F$8,0) -> 58 | BO74: =ROUNDUP(BO73/$F$8,0) -> 59 | BP74: =ROUNDUP(BP73/$F$8,0) -> 60 | BQ74: =ROUNDUP(BQ73/$F$8,0) -> 61 | BR74: =ROUNDUP(BR73/$F$8,0) -> 62 | BS74: =ROUNDUP(BS73/$F$8,0) -> 63 | BT74: =ROUNDUP(BT73/$F$8,0) -> 64 | BU74: =ROUNDUP(BU73/$F$8,0) -> 65 | BV74: =ROUNDUP(BV73/$F$8,0) -> 66 | BW74: =ROUNDUP(BW73/$F$8,0) -> 67 | BX74: =ROUNDUP(BX73/$F$8,0) -> 68 | BY74: =ROUNDUP(BY73/$F$8,0) -> 69 | BZ74: =ROUNDUP(BZ73/$F$8,0) -> 70 | CA74: =ROUNDUP(CA73/$F$8,0) -> 71 | CB74: =ROUNDUP(CB73/$F$8,0) -> 72 | CC74: =ROUNDUP(CC73/$F$8,0) -> 73 | CD74: =ROUNDUP(CD73/$F$8,0) -> 74 | CE74: =ROUNDUP(CE73/$F$8,0) -> 75 | CF74: =ROUNDUP(CF73/$F$8,0) -> 76 | CG74: =ROUNDUP(CG73/$F$8,0) -> 77 | CH74: =ROUNDUP(CH73/$F$8,0) -> 78 | CI74: =ROUNDUP(CI73/$F$8,0) -> 79 | CJ74: =ROUNDUP(CJ73/$F$8,0) -> 80 | CK74: =ROUNDUP(CK73/$F$8,0) -> 81 | CL74: =ROUNDUP(CL73/$F$8,0) -> 82 | CM74: =ROUNDUP(CM73/$F$8,0) -> 83 | CN74: =ROUNDUP(CN73/$F$8,0) -> 84 | CO74: =ROUNDUP(CO73/$F$8,0) -> 85 | CP74: =ROUNDUP(CP73/$F$8,0) -> 86 | CQ74: =ROUNDUP(CQ73/$F$8,0) -> 87 | CR74: =ROUNDUP(CR73/$F$8,0) -> 88 | CS74: =ROUNDUP(CS73/$F$8,0) -> 89 | CT74: =ROUNDUP(CT73/$F$8,0) -> 90 | CU74: =ROUNDUP(CU73/$F$8,0) -> 91 | CV74: =ROUNDUP(CV73/$F$8,0) -> 92 | CW74: =ROUNDUP(CW73/$F$8,0) -> 93 | CX74: =ROUNDUP(CX73/$F$8,0) -> 94 | CY74: =ROUNDUP(CY73/$F$8,0) -> 95 | CZ74: =ROUNDUP(CZ73/$F$8,0) -> 96 | DA74: =ROUNDUP(DA73/$F$8,0) -> 97 | DB74: =ROUNDUP(DB73/$F$8,0) -> 98 | DC74: =ROUNDUP(DC73/$F$8,0) -> 99 | DD74: =ROUNDUP(DD73/$F$8,0) -> 100 | DE74: =ROUNDUP(DE73/$F$8,0) -> 101 | DF74: =ROUNDUP(DF73/$F$8,0) -> 102 | DG74: =ROUNDUP(DG73/$F$8,0) -> 103 | DH74: =ROUNDUP(DH73/$F$8,0) -> 104 | DI74: =ROUNDUP(DI73/$F$8,0) -> 105 | DJ74: =ROUNDUP(DJ73/$F$8,0) -> 106 | DK74: =ROUNDUP(DK73/$F$8,0) -> 107 | DL74: =ROUNDUP(DL73/$F$8,0) -> 108 | DM74: =ROUNDUP(DM73/$F$8,0) -> 109 | DN74: =ROUNDUP(DN73/$F$8,0) -> 110 | DO74: =ROUNDUP(DO73/$F$8,0) -> 111 | DP74: =ROUNDUP(DP73/$F$8,0) -> 112 | DQ74: =ROUNDUP(DQ73/$F$8,0) -> 113 | DR74: =ROUNDUP(DR73/$F$8,0) -> 114 | DS74: =ROUNDUP(DS73/$F$8,0) -> 115 | DT74: =ROUNDUP(DT73/$F$8,0) -> 116 | DU74: =ROUNDUP(DU73/$F$8,0) -> 117 | DV74: =ROUNDUP(DV73/$F$8,0) -> 118 | DW74: =ROUNDUP(DW73/$F$8,0) -> 119 | DX74: =ROUNDUP(DX73/$F$8,0) -> 120 | DY74: =ROUNDUP(DY73/$F$8,0) -> 121
C75: Period of Model | H75: 1 | I75: =H75+1 -> 2 | J75: =I75+1 -> 3 | K75: 4 | L75: 5 | M75: 6 | N75: 7 | O75: 8 | P75: 9 | Q75: 10 | R75: 11 | S75: 12 | T75: 13 | U75: 14 | V75: 15 | W75: 16 | X75: 17 | Y75: 18 | Z75: 19 | AA75: 20 | AB75: 21 | AC75: 22 | AD75: 23 | AE75: 24 | AF75: 25 | AG75: 26 | AH75: 27 | AI75: 28 | AJ75: 29 | AK75: 30 | AL75: 31 | AM75: 32 | AN75: 33 | AO75: 34 | AP75: 35 | AQ75: 36 | AR75: 37 | AS75: 38 | AT75: 39 | AU75: 40 | AV75: 41 | AW75: 42 | AX75: 43 | AY75: 44 | AZ75: 45 | BA75: 46 | BB75: 47 | BC75: 48 | BD75: 49 | BE75: 50 | BF75: 51 | BG75: 52 | BH75: 53 | BI75: 54 | BJ75: 55 | BK75: 56 | BL75: 57 | BM75: 58 | BN75: 59 | BO75: 60 | BP75: 61 | BQ75: 62 | BR75: 63 | BS75: 64 | BT75: 65 | BU75: 66 | BV75: =BU75+1 -> 67 | BW75: 68 | BX75: 69 | BY75: 70 | BZ75: 71 | CA75: 72 | CB75: 73 | CC75: 74 | CD75: 75 | CE75: 76 | CF75: 77 | CG75: 78 | CH75: 79 | CI75: 80 | CJ75: 81 | CK75: 82 | CL75: 83 | CM75: 84 | CN75: 85 | CO75: 86 | CP75: 87 | CQ75: 88 | CR75: 89 | CS75: 90 | CT75: 91 | CU75: 92 | CV75: 93 | CW75: 94 | CX75: 95 | CY75: 96 | CZ75: 97 | DA75: 98 | DB75: 99 | DC75: 100 | DD75: 101 | DE75: 102 | DF75: 103 | DG75: 104 | DH75: 105 | DI75: 106 | DJ75: 107 | DK75: 108 | DL75: 109 | DM75: 110 | DN75: 111 | DO75: 112 | DP75: 113 | DQ75: 114 | DR75: 115 | DS75: 116 | DT75: 117 | DU75: 118 | DV75: 119 | DW75: 120 | DX75: 121 | DY75: 122
C76: Year of Model | H76: =ROUNDUP(H75/$F$8,0) -> 1 | I76: =ROUNDUP(I75/$F$8,0) -> 2 | J76: =ROUNDUP(J75/$F$8,0) -> 3 | K76: =ROUNDUP(K75/$F$8,0) -> 4 | L76: =ROUNDUP(L75/$F$8,0) -> 5 | M76: =ROUNDUP(M75/$F$8,0) -> 6 | N76: =ROUNDUP(N75/$F$8,0) -> 7 | O76: =ROUNDUP(O75/$F$8,0) -> 8 | P76: =ROUNDUP(P75/$F$8,0) -> 9 | Q76: =ROUNDUP(Q75/$F$8,0) -> 10 | R76: =ROUNDUP(R75/$F$8,0) -> 11 | S76: =ROUNDUP(S75/$F$8,0) -> 12 | T76: =ROUNDUP(T75/$F$8,0) -> 13 | U76: =ROUNDUP(U75/$F$8,0) -> 14 | V76: =ROUNDUP(V75/$F$8,0) -> 15 | W76: =ROUNDUP(W75/$F$8,0) -> 16 | X76: =ROUNDUP(X75/$F$8,0) -> 17 | Y76: =ROUNDUP(Y75/$F$8,0) -> 18 | Z76: =ROUNDUP(Z75/$F$8,0) -> 19 | AA76: =ROUNDUP(AA75/$F$8,0) -> 20 | AB76: =ROUNDUP(AB75/$F$8,0) -> 21 | AC76: =ROUNDUP(AC75/$F$8,0) -> 22 | AD76: =ROUNDUP(AD75/$F$8,0) -> 23 | AE76: =ROUNDUP(AE75/$F$8,0) -> 24 | AF76: =ROUNDUP(AF75/$F$8,0) -> 25 | AG76: =ROUNDUP(AG75/$F$8,0) -> 26 | AH76: =ROUNDUP(AH75/$F$8,0) -> 27 | AI76: =ROUNDUP(AI75/$F$8,0) -> 28 | AJ76: =ROUNDUP(AJ75/$F$8,0) -> 29 | AK76: =ROUNDUP(AK75/$F$8,0) -> 30 | AL76: =ROUNDUP(AL75/$F$8,0) -> 31 | AM76: =ROUNDUP(AM75/$F$8,0) -> 32 | AN76: =ROUNDUP(AN75/$F$8,0) -> 33 | AO76: =ROUNDUP(AO75/$F$8,0) -> 34 | AP76: =ROUNDUP(AP75/$F$8,0) -> 35 | AQ76: =ROUNDUP(AQ75/$F$8,0) -> 36 | AR76: =ROUNDUP(AR75/$F$8,0) -> 37 | AS76: =ROUNDUP(AS75/$F$8,0) -> 38 | AT76: =ROUNDUP(AT75/$F$8,0) -> 39 | AU76: =ROUNDUP(AU75/$F$8,0) -> 40 | AV76: =ROUNDUP(AV75/$F$8,0) -> 41 | AW76: =ROUNDUP(AW75/$F$8,0) -> 42 | AX76: =ROUNDUP(AX75/$F$8,0) -> 43 | AY76: =ROUNDUP(AY75/$F$8,0) -> 44 | AZ76: =ROUNDUP(AZ75/$F$8,0) -> 45 | BA76: =ROUNDUP(BA75/$F$8,0) -> 46 | BB76: =ROUNDUP(BB75/$F$8,0) -> 47 | BC76: =ROUNDUP(BC75/$F$8,0) -> 48 | BD76: =ROUNDUP(BD75/$F$8,0) -> 49 | BE76: =ROUNDUP(BE75/$F$8,0) -> 50 | BF76: =ROUNDUP(BF75/$F$8,0) -> 51 | BG76: =ROUNDUP(BG75/$F$8,0) -> 52 | BH76: =ROUNDUP(BH75/$F$8,0) -> 53 | BI76: =ROUNDUP(BI75/$F$8,0) -> 54 | BJ76: =ROUNDUP(BJ75/$F$8,0) -> 55 | BK76: =ROUNDUP(BK75/$F$8,0) -> 56 | BL76: =ROUNDUP(BL75/$F$8,0) -> 57 | BM76: =ROUNDUP(BM75/$F$8,0) -> 58 | BN76: =ROUNDUP(BN75/$F$8,0) -> 59 | BO76: =ROUNDUP(BO75/$F$8,0) -> 60 | BP76: =ROUNDUP(BP75/$F$8,0) -> 61 | BQ76: =ROUNDUP(BQ75/$F$8,0) -> 62 | BR76: =ROUNDUP(BR75/$F$8,0) -> 63 | BS76: =ROUNDUP(BS75/$F$8,0) -> 64 | BT76: =ROUNDUP(BT75/$F$8,0) -> 65 | BU76: =ROUNDUP(BU75/$F$8,0) -> 66 | BV76: =ROUNDUP(BV75/$F$8,0) -> 67 | BW76: =ROUNDUP(BW75/$F$8,0) -> 68 | BX76: =ROUNDUP(BX75/$F$8,0) -> 69 | BY76: =ROUNDUP(BY75/$F$8,0) -> 70 | BZ76: =ROUNDUP(BZ75/$F$8,0) -> 71 | CA76: =ROUNDUP(CA75/$F$8,0) -> 72 | CB76: =ROUNDUP(CB75/$F$8,0) -> 73 | CC76: =ROUNDUP(CC75/$F$8,0) -> 74 | CD76: =ROUNDUP(CD75/$F$8,0) -> 75 | CE76: =ROUNDUP(CE75/$F$8,0) -> 76 | CF76: =ROUNDUP(CF75/$F$8,0) -> 77 | CG76: =ROUNDUP(CG75/$F$8,0) -> 78 | CH76: =ROUNDUP(CH75/$F$8,0) -> 79 | CI76: =ROUNDUP(CI75/$F$8,0) -> 80 | CJ76: =ROUNDUP(CJ75/$F$8,0) -> 81 | CK76: =ROUNDUP(CK75/$F$8,0) -> 82 | CL76: =ROUNDUP(CL75/$F$8,0) -> 83 | CM76: =ROUNDUP(CM75/$F$8,0) -> 84 | CN76: =ROUNDUP(CN75/$F$8,0) -> 85 | CO76: =ROUNDUP(CO75/$F$8,0) -> 86 | CP76: =ROUNDUP(CP75/$F$8,0) -> 87 | CQ76: =ROUNDUP(CQ75/$F$8,0) -> 88 | CR76: =ROUNDUP(CR75/$F$8,0) -> 89 | CS76: =ROUNDUP(CS75/$F$8,0) -> 90 | CT76: =ROUNDUP(CT75/$F$8,0) -> 91 | CU76: =ROUNDUP(CU75/$F$8,0) -> 92 | CV76: =ROUNDUP(CV75/$F$8,0) -> 93 | CW76: =ROUNDUP(CW75/$F$8,0) -> 94 | CX76: =ROUNDUP(CX75/$F$8,0) -> 95 | CY76: =ROUNDUP(CY75/$F$8,0) -> 96 | CZ76: =ROUNDUP(CZ75/$F$8,0) -> 97 | DA76: =ROUNDUP(DA75/$F$8,0) -> 98 | DB76: =ROUNDUP(DB75/$F$8,0) -> 99 | DC76: =ROUNDUP(DC75/$F$8,0) -> 100 | DD76: =ROUNDUP(DD75/$F$8,0) -> 101 | DE76: =ROUNDUP(DE75/$F$8,0) -> 102 | DF76: =ROUNDUP(DF75/$F$8,0) -> 103 | DG76: =ROUNDUP(DG75/$F$8,0) -> 104 | DH76: =ROUNDUP(DH75/$F$8,0) -> 105 | DI76: =ROUNDUP(DI75/$F$8,0) -> 106 | DJ76: =ROUNDUP(DJ75/$F$8,0) -> 107 | DK76: =ROUNDUP(DK75/$F$8,0) -> 108 | DL76: =ROUNDUP(DL75/$F$8,0) -> 109 | DM76: =ROUNDUP(DM75/$F$8,0) -> 110 | DN76: =ROUNDUP(DN75/$F$8,0) -> 111 | DO76: =ROUNDUP(DO75/$F$8,0) -> 112 | DP76: =ROUNDUP(DP75/$F$8,0) -> 113 | DQ76: =ROUNDUP(DQ75/$F$8,0) -> 114 | DR76: =ROUNDUP(DR75/$F$8,0) -> 115 | DS76: =ROUNDUP(DS75/$F$8,0) -> 116 | DT76: =ROUNDUP(DT75/$F$8,0) -> 117 | DU76: =ROUNDUP(DU75/$F$8,0) -> 118 | DV76: =ROUNDUP(DV75/$F$8,0) -> 119 | DW76: =ROUNDUP(DW75/$F$8,0) -> 120 | DX76: =ROUNDUP(DX75/$F$8,0) -> 121 | DY76: =ROUNDUP(DY75/$F$8,0) -> 122
C78: Annual Default Rate Percent Increase | H78: =LOOKUP(H76,70:70,71:71) -> 0 | I78: =LOOKUP(I76,70:70,71:71) -> 2.092105263 | J78: =LOOKUP(J76,70:70,71:71) -> 0.8 | K78: =LOOKUP(K76,70:70,71:71) -> 0.4326241135 | L78: =LOOKUP(L76,70:70,71:71) -> 0.2722772277 | M78: =LOOKUP(M76,70:70,71:71) -> 0.2036316472 | N78: =LOOKUP(N76,70:70,71:71) -> 0.1411637931 | O78: =LOOKUP(O76,70:70,71:71) -> 0.1095372993 | P78: =LOOKUP(P76,70:70,71:71) -> 0.08936170213 | Q78: =LOOKUP(Q76,70:70,71:71) -> 0.0734375 | R78: =LOOKUP(R76,70:70,71:71) -> 0.05676855895 | S78: =LOOKUP(S76,70:70,71:71) -> 0.04545454545 | T78: =LOOKUP(T76,70:70,71:71) -> 0.03754940711 | U78: =LOOKUP(U76,70:70,71:71) -> 0.03111111111 | V78: =LOOKUP(V76,70:70,71:71) -> 0.03263546798 | W78: =LOOKUP(W76,70:70,71:71) -> 0.03263546798 | X78: =LOOKUP(X76,70:70,71:71) -> 0.03263546798 | Y78: =LOOKUP(Y76,70:70,71:71) -> 0.03263546798 | Z78: =LOOKUP(Z76,70:70,71:71) -> 0.03263546798 | AA78: =LOOKUP(AA76,70:70,71:71) -> 0.03263546798 | AB78: =LOOKUP(AB76,70:70,71:71) -> 0.03263546798 | AC78: =LOOKUP(AC76,70:70,71:71) -> 0.03263546798 | AD78: =LOOKUP(AD76,70:70,71:71) -> 0.03263546798 | AE78: =LOOKUP(AE76,70:70,71:71) -> 0.03263546798 | AF78: =LOOKUP(AF76,70:70,71:71) -> 0.03263546798 | AG78: =LOOKUP(AG76,70:70,71:71) -> 0.03263546798 | AH78: =LOOKUP(AH76,70:70,71:71) -> 0.03263546798 | AI78: =LOOKUP(AI76,70:70,71:71) -> 0.03263546798 | AJ78: =LOOKUP(AJ76,70:70,71:71) -> 0.03263546798 | AK78: =LOOKUP(AK76,70:70,71:71) -> 0.03263546798 | AL78: =LOOKUP(AL76,70:70,71:71) -> 0.03263546798 | AM78: =LOOKUP(AM76,70:70,71:71) -> 0.03263546798 | AN78: =LOOKUP(AN76,70:70,71:71) -> 0.03263546798 | AO78: =LOOKUP(AO76,70:70,71:71) -> 0.03263546798 | AP78: =LOOKUP(AP76,70:70,71:71) -> 0.03263546798 | AQ78: =LOOKUP(AQ76,70:70,71:71) -> 0.03263546798 | AR78: =LOOKUP(AR76,70:70,71:71) -> 0.03263546798 | AS78: =LOOKUP(AS76,70:70,71:71) -> 0.03263546798 | AT78: =LOOKUP(AT76,70:70,71:71) -> 0.03263546798 | AU78: =LOOKUP(AU76,70:70,71:71) -> 0.03263546798 | AV78: =LOOKUP(AV76,70:70,71:71) -> 0.03263546798 | AW78: =LOOKUP(AW76,70:70,71:71) -> 0.03263546798 | AX78: =LOOKUP(AX76,70:70,71:71) -> 0.03263546798 | AY78: =LOOKUP(AY76,70:70,71:71) -> 0.03263546798 | AZ78: =LOOKUP(AZ76,70:70,71:71) -> 0.03263546798 | BA78: =LOOKUP(BA76,70:70,71:71) -> 0.03263546798 | BB78: =LOOKUP(BB76,70:70,71:71) -> 0.03263546798 | BC78: =LOOKUP(BC76,70:70,71:71) -> 0.03263546798 | BD78: =LOOKUP(BD76,70:70,71:71) -> 0.03263546798 | BE78: =LOOKUP(BE76,70:70,71:71) -> 0.03263546798 | BF78: =LOOKUP(BF76,70:70,71:71) -> 0.03263546798 | BG78: =LOOKUP(BG76,70:70,71:71) -> 0.03263546798 | BH78: =LOOKUP(BH76,70:70,71:71) -> 0.03263546798 | BI78: =LOOKUP(BI76,70:70,71:71) -> 0.03263546798 | BJ78: =LOOKUP(BJ76,70:70,71:71) -> 0.03263546798 | BK78: =LOOKUP(BK76,70:70,71:71) -> 0.03263546798 | BL78: =LOOKUP(BL76,70:70,71:71) -> 0.03263546798 | BM78: =LOOKUP(BM76,70:70,71:71) -> 0.03263546798 | BN78: =LOOKUP(BN76,70:70,71:71) -> 0.03263546798 | BO78: =LOOKUP(BO76,70:70,71:71) -> 0.03263546798 | BP78: =LOOKUP(BP76,70:70,71:71) -> 0.03263546798 | BQ78: =LOOKUP(BQ76,70:70,71:71) -> 0.03263546798 | BR78: =LOOKUP(BR76,70:70,71:71) -> 0.03263546798 | BS78: =LOOKUP(BS76,70:70,71:71) -> 0.03263546798 | BT78: =LOOKUP(BT76,70:70,71:71) -> 0.03263546798 | BU78: =LOOKUP(BU76,70:70,71:71) -> 0.03263546798 | BV78: =LOOKUP(BV76,70:70,71:71) -> 0.03263546798 | BW78: =LOOKUP(BW76,70:70,71:71) -> 0.03263546798 | BX78: =LOOKUP(BX76,70:70,71:71) -> 0.03263546798 | BY78: =LOOKUP(BY76,70:70,71:71) -> 0.03263546798 | BZ78: =LOOKUP(BZ76,70:70,71:71) -> 0.03263546798 | CA78: =LOOKUP(CA76,70:70,71:71) -> 0.03263546798 | CB78: =LOOKUP(CB76,70:70,71:71) -> 0.03263546798 | CC78: =LOOKUP(CC76,70:70,71:71) -> 0.03263546798 | CD78: =LOOKUP(CD76,70:70,71:71) -> 0.03263546798 | CE78: =LOOKUP(CE76,70:70,71:71) -> 0.03263546798 | CF78: =LOOKUP(CF76,70:70,71:71) -> 0.03263546798 | CG78: =LOOKUP(CG76,70:70,71:71) -> 0.03263546798 | CH78: =LOOKUP(CH76,70:70,71:71) -> 0.03263546798 | CI78: =LOOKUP(CI76,70:70,71:71) -> 0.03263546798 | CJ78: =LOOKUP(CJ76,70:70,71:71) -> 0.03263546798 | CK78: =LOOKUP(CK76,70:70,71:71) -> 0.03263546798 | CL78: =LOOKUP(CL76,70:70,71:71) -> 0.03263546798 | CM78: =LOOKUP(CM76,70:70,71:71) -> 0.03263546798 | CN78: =LOOKUP(CN76,70:70,71:71) -> 0.03263546798 | CO78: =LOOKUP(CO76,70:70,71:71) -> 0.03263546798 | CP78: =LOOKUP(CP76,70:70,71:71) -> 0.03263546798 | CQ78: =LOOKUP(CQ76,70:70,71:71) -> 0.03263546798 | CR78: =LOOKUP(CR76,70:70,71:71) -> 0.03263546798 | CS78: =LOOKUP(CS76,70:70,71:71) -> 0.03263546798 | CT78: =LOOKUP(CT76,70:70,71:71) -> 0.03263546798 | CU78: =LOOKUP(CU76,70:70,71:71) -> 0.03263546798 | CV78: =LOOKUP(CV76,70:70,71:71) -> 0.03263546798 | CW78: =LOOKUP(CW76,70:70,71:71) -> 0.03263546798 | CX78: =LOOKUP(CX76,70:70,71:71) -> 0.03263546798 | CY78: =LOOKUP(CY76,70:70,71:71) -> 0.03263546798 | CZ78: =LOOKUP(CZ76,70:70,71:71) -> 0.03263546798 | DA78: =LOOKUP(DA76,70:70,71:71) -> 0.03263546798 | DB78: =LOOKUP(DB76,70:70,71:71) -> 0.03263546798 | DC78: =LOOKUP(DC76,70:70,71:71) -> 0.03263546798 | DD78: =LOOKUP(DD76,70:70,71:71) -> 0.03263546798 | DE78: =LOOKUP(DE76,70:70,71:71) -> 0.03263546798 | DF78: =LOOKUP(DF76,70:70,71:71) -> 0.03263546798 | DG78: =LOOKUP(DG76,70:70,71:71) -> 0.03263546798 | DH78: =LOOKUP(DH76,70:70,71:71) -> 0.03263546798 | DI78: =LOOKUP(DI76,70:70,71:71) -> 0.03263546798 | DJ78: =LOOKUP(DJ76,70:70,71:71) -> 0.03263546798 | DK78: =LOOKUP(DK76,70:70,71:71) -> 0.03263546798 | DL78: =LOOKUP(DL76,70:70,71:71) -> 0.03263546798 | DM78: =LOOKUP(DM76,70:70,71:71) -> 0.03263546798 | DN78: =LOOKUP(DN76,70:70,71:71) -> 0.03263546798 | DO78: =LOOKUP(DO76,70:70,71:71) -> 0.03263546798 | DP78: =LOOKUP(DP76,70:70,71:71) -> 0.03263546798 | DQ78: =LOOKUP(DQ76,70:70,71:71) -> 0.03263546798 | DR78: =LOOKUP(DR76,70:70,71:71) -> 0.03263546798 | DS78: =LOOKUP(DS76,70:70,71:71) -> 0.03263546798 | DT78: =LOOKUP(DT76,70:70,71:71) -> 0.03263546798 | DU78: =LOOKUP(DU76,70:70,71:71) -> 0.03263546798 | DV78: =LOOKUP(DV76,70:70,71:71) -> 0.03263546798 | DW78: =LOOKUP(DW76,70:70,71:71) -> 0.03263546798 | DX78: =LOOKUP(DX76,70:70,71:71) -> 0.03263546798 | DY78: =LOOKUP(DY76,70:70,71:71) -> 0.03263546798
C79: Periodic Default Rate Percent Increase | H79: =IF(AND(H76>0,MONTH($H$2)=MONTH(H2)),H78/$F$8,0) -> 0 | I79: =IF(AND(I76>0,MONTH($H$2)=MONTH(I2)),I78/$F$8,0) -> 2.092105263 | J79: =IF(AND(J76>0,MONTH($H$2)=MONTH(J2)),J78/$F$8,0) -> 0.8 | K79: =IF(AND(K76>0,MONTH($H$2)=MONTH(K2)),K78/$F$8,0) -> 0.4326241135 | L79: =IF(AND(L76>0,MONTH($H$2)=MONTH(L2)),L78/$F$8,0) -> 0.2722772277 | M79: =IF(AND(M76>0,MONTH($H$2)=MONTH(M2)),M78/$F$8,0) -> 0.2036316472 | N79: =IF(AND(N76>0,MONTH($H$2)=MONTH(N2)),N78/$F$8,0) -> 0.1411637931 | O79: =IF(AND(O76>0,MONTH($H$2)=MONTH(O2)),O78/$F$8,0) -> 0.1095372993 | P79: =IF(AND(P76>0,MONTH($H$2)=MONTH(P2)),P78/$F$8,0) -> 0.08936170213 | Q79: =IF(AND(Q76>0,MONTH($H$2)=MONTH(Q2)),Q78/$F$8,0) -> 0.0734375 | R79: =IF(AND(R76>0,MONTH($H$2)=MONTH(R2)),R78/$F$8,0) -> 0.05676855895 | S79: =IF(AND(S76>0,MONTH($H$2)=MONTH(S2)),S78/$F$8,0) -> 0.04545454545 | T79: =IF(AND(T76>0,MONTH($H$2)=MONTH(T2)),T78/$F$8,0) -> 0.03754940711 | U79: =IF(AND(U76>0,MONTH($H$2)=MONTH(U2)),U78/$F$8,0) -> 0.03111111111 | V79: =IF(AND(V76>0,MONTH($H$2)=MONTH(V2)),V78/$F$8,0) -> 0.03263546798 | W79: =IF(AND(W76>0,MONTH($H$2)=MONTH(W2)),W78/$F$8,0) -> 0.03263546798 | X79: =IF(AND(X76>0,MONTH($H$2)=MONTH(X2)),X78/$F$8,0) -> 0.03263546798 | Y79: =IF(AND(Y76>0,MONTH($H$2)=MONTH(Y2)),Y78/$F$8,0) -> 0.03263546798 | Z79: =IF(AND(Z76>0,MONTH($H$2)=MONTH(Z2)),Z78/$F$8,0) -> 0.03263546798 | AA79: =IF(AND(AA76>0,MONTH($H$2)=MONTH(AA2)),AA78/$F$8,0) -> 0.03263546798 | AB79: =IF(AND(AB76>0,MONTH($H$2)=MONTH(AB2)),AB78/$F$8,0) -> 0.03263546798 | AC79: =IF(AND(AC76>0,MONTH($H$2)=MONTH(AC2)),AC78/$F$8,0) -> 0.03263546798 | AD79: =IF(AND(AD76>0,MONTH($H$2)=MONTH(AD2)),AD78/$F$8,0) -> 0.03263546798 | AE79: =IF(AND(AE76>0,MONTH($H$2)=MONTH(AE2)),AE78/$F$8,0) -> 0.03263546798 | AF79: =IF(AND(AF76>0,MONTH($H$2)=MONTH(AF2)),AF78/$F$8,0) -> 0.03263546798 | AG79: =IF(AND(AG76>0,MONTH($H$2)=MONTH(AG2)),AG78/$F$8,0) -> 0.03263546798 | AH79: =IF(AND(AH76>0,MONTH($H$2)=MONTH(AH2)),AH78/$F$8,0) -> 0.03263546798 | AI79: =IF(AND(AI76>0,MONTH($H$2)=MONTH(AI2)),AI78/$F$8,0) -> 0.03263546798 | AJ79: =IF(AND(AJ76>0,MONTH($H$2)=MONTH(AJ2)),AJ78/$F$8,0) -> 0.03263546798 | AK79: =IF(AND(AK76>0,MONTH($H$2)=MONTH(AK2)),AK78/$F$8,0) -> 0.03263546798 | AL79: =IF(AND(AL76>0,MONTH($H$2)=MONTH(AL2)),AL78/$F$8,0) -> 0.03263546798 | AM79: =IF(AND(AM76>0,MONTH($H$2)=MONTH(AM2)),AM78/$F$8,0) -> 0.03263546798 | AN79: =IF(AND(AN76>0,MONTH($H$2)=MONTH(AN2)),AN78/$F$8,0) -> 0.03263546798 | AO79: =IF(AND(AO76>0,MONTH($H$2)=MONTH(AO2)),AO78/$F$8,0) -> 0.03263546798 | AP79: =IF(AND(AP76>0,MONTH($H$2)=MONTH(AP2)),AP78/$F$8,0) -> 0.03263546798 | AQ79: =IF(AND(AQ76>0,MONTH($H$2)=MONTH(AQ2)),AQ78/$F$8,0) -> 0.03263546798 | AR79: =IF(AND(AR76>0,MONTH($H$2)=MONTH(AR2)),AR78/$F$8,0) -> 0.03263546798 | AS79: =IF(AND(AS76>0,MONTH($H$2)=MONTH(AS2)),AS78/$F$8,0) -> 0.03263546798 | AT79: =IF(AND(AT76>0,MONTH($H$2)=MONTH(AT2)),AT78/$F$8,0) -> 0.03263546798 | AU79: =IF(AND(AU76>0,MONTH($H$2)=MONTH(AU2)),AU78/$F$8,0) -> 0.03263546798 | AV79: =IF(AND(AV76>0,MONTH($H$2)=MONTH(AV2)),AV78/$F$8,0) -> 0.03263546798 | AW79: =IF(AND(AW76>0,MONTH($H$2)=MONTH(AW2)),AW78/$F$8,0) -> 0.03263546798 | AX79: =IF(AND(AX76>0,MONTH($H$2)=MONTH(AX2)),AX78/$F$8,0) -> 0.03263546798 | AY79: =IF(AND(AY76>0,MONTH($H$2)=MONTH(AY2)),AY78/$F$8,0) -> 0.03263546798 | AZ79: =IF(AND(AZ76>0,MONTH($H$2)=MONTH(AZ2)),AZ78/$F$8,0) -> 0.03263546798 | BA79: =IF(AND(BA76>0,MONTH($H$2)=MONTH(BA2)),BA78/$F$8,0) -> 0.03263546798 | BB79: =IF(AND(BB76>0,MONTH($H$2)=MONTH(BB2)),BB78/$F$8,0) -> 0.03263546798 | BC79: =IF(AND(BC76>0,MONTH($H$2)=MONTH(BC2)),BC78/$F$8,0) -> 0.03263546798 | BD79: =IF(AND(BD76>0,MONTH($H$2)=MONTH(BD2)),BD78/$F$8,0) -> 0.03263546798 | BE79: =IF(AND(BE76>0,MONTH($H$2)=MONTH(BE2)),BE78/$F$8,0) -> 0.03263546798 | BF79: =IF(AND(BF76>0,MONTH($H$2)=MONTH(BF2)),BF78/$F$8,0) -> 0.03263546798 | BG79: =IF(AND(BG76>0,MONTH($H$2)=MONTH(BG2)),BG78/$F$8,0) -> 0.03263546798 | BH79: =IF(AND(BH76>0,MONTH($H$2)=MONTH(BH2)),BH78/$F$8,0) -> 0.03263546798 | BI79: =IF(AND(BI76>0,MONTH($H$2)=MONTH(BI2)),BI78/$F$8,0) -> 0.03263546798 | BJ79: =IF(AND(BJ76>0,MONTH($H$2)=MONTH(BJ2)),BJ78/$F$8,0) -> 0.03263546798 | BK79: =IF(AND(BK76>0,MONTH($H$2)=MONTH(BK2)),BK78/$F$8,0) -> 0.03263546798 | BL79: =IF(AND(BL76>0,MONTH($H$2)=MONTH(BL2)),BL78/$F$8,0) -> 0.03263546798 | BM79: =IF(AND(BM76>0,MONTH($H$2)=MONTH(BM2)),BM78/$F$8,0) -> 0.03263546798 | BN79: =IF(AND(BN76>0,MONTH($H$2)=MONTH(BN2)),BN78/$F$8,0) -> 0.03263546798 | BO79: =IF(AND(BO76>0,MONTH($H$2)=MONTH(BO2)),BO78/$F$8,0) -> 0.03263546798 | BP79: =IF(AND(BP76>0,MONTH($H$2)=MONTH(BP2)),BP78/$F$8,0) -> 0.03263546798 | BQ79: =IF(AND(BQ76>0,MONTH($H$2)=MONTH(BQ2)),BQ78/$F$8,0) -> 0.03263546798 | BR79: =IF(AND(BR76>0,MONTH($H$2)=MONTH(BR2)),BR78/$F$8,0) -> 0.03263546798 | BS79: =IF(AND(BS76>0,MONTH($H$2)=MONTH(BS2)),BS78/$F$8,0) -> 0.03263546798 | BT79: =IF(AND(BT76>0,MONTH($H$2)=MONTH(BT2)),BT78/$F$8,0) -> 0.03263546798 | BU79: =IF(AND(BU76>0,MONTH($H$2)=MONTH(BU2)),BU78/$F$8,0) -> 0.03263546798 | BV79: =IF(AND(BV76>0,MONTH($H$2)=MONTH(BV2)),BV78/$F$8,0) -> 0.03263546798 | BW79: =IF(AND(BW76>0,MONTH($H$2)=MONTH(BW2)),BW78/$F$8,0) -> 0.03263546798 | BX79: =IF(AND(BX76>0,MONTH($H$2)=MONTH(BX2)),BX78/$F$8,0) -> 0.03263546798 | BY79: =IF(AND(BY76>0,MONTH($H$2)=MONTH(BY2)),BY78/$F$8,0) -> 0.03263546798 | BZ79: =IF(AND(BZ76>0,MONTH($H$2)=MONTH(BZ2)),BZ78/$F$8,0) -> 0.03263546798 | CA79: =IF(AND(CA76>0,MONTH($H$2)=MONTH(CA2)),CA78/$F$8,0) -> 0.03263546798 | CB79: =IF(AND(CB76>0,MONTH($H$2)=MONTH(CB2)),CB78/$F$8,0) -> 0.03263546798 | CC79: =IF(AND(CC76>0,MONTH($H$2)=MONTH(CC2)),CC78/$F$8,0) -> 0.03263546798 | CD79: =IF(AND(CD76>0,MONTH($H$2)=MONTH(CD2)),CD78/$F$8,0) -> 0.03263546798 | CE79: =IF(AND(CE76>0,MONTH($H$2)=MONTH(CE2)),CE78/$F$8,0) -> 0.03263546798 | CF79: =IF(AND(CF76>0,MONTH($H$2)=MONTH(CF2)),CF78/$F$8,0) -> 0.03263546798 | CG79: =IF(AND(CG76>0,MONTH($H$2)=MONTH(CG2)),CG78/$F$8,0) -> 0.03263546798 | CH79: =IF(AND(CH76>0,MONTH($H$2)=MONTH(CH2)),CH78/$F$8,0) -> 0.03263546798 | CI79: =IF(AND(CI76>0,MONTH($H$2)=MONTH(CI2)),CI78/$F$8,0) -> 0.03263546798 | CJ79: =IF(AND(CJ76>0,MONTH($H$2)=MONTH(CJ2)),CJ78/$F$8,0) -> 0.03263546798 | CK79: =IF(AND(CK76>0,MONTH($H$2)=MONTH(CK2)),CK78/$F$8,0) -> 0.03263546798 | CL79: =IF(AND(CL76>0,MONTH($H$2)=MONTH(CL2)),CL78/$F$8,0) -> 0.03263546798 | CM79: =IF(AND(CM76>0,MONTH($H$2)=MONTH(CM2)),CM78/$F$8,0) -> 0.03263546798 | CN79: =IF(AND(CN76>0,MONTH($H$2)=MONTH(CN2)),CN78/$F$8,0) -> 0.03263546798 | CO79: =IF(AND(CO76>0,MONTH($H$2)=MONTH(CO2)),CO78/$F$8,0) -> 0.03263546798 | CP79: =IF(AND(CP76>0,MONTH($H$2)=MONTH(CP2)),CP78/$F$8,0) -> 0.03263546798 | CQ79: =IF(AND(CQ76>0,MONTH($H$2)=MONTH(CQ2)),CQ78/$F$8,0) -> 0.03263546798 | CR79: =IF(AND(CR76>0,MONTH($H$2)=MONTH(CR2)),CR78/$F$8,0) -> 0.03263546798 | CS79: =IF(AND(CS76>0,MONTH($H$2)=MONTH(CS2)),CS78/$F$8,0) -> 0.03263546798 | CT79: =IF(AND(CT76>0,MONTH($H$2)=MONTH(CT2)),CT78/$F$8,0) -> 0.03263546798 | CU79: =IF(AND(CU76>0,MONTH($H$2)=MONTH(CU2)),CU78/$F$8,0) -> 0.03263546798 | CV79: =IF(AND(CV76>0,MONTH($H$2)=MONTH(CV2)),CV78/$F$8,0) -> 0.03263546798 | CW79: =IF(AND(CW76>0,MONTH($H$2)=MONTH(CW2)),CW78/$F$8,0) -> 0.03263546798 | CX79: =IF(AND(CX76>0,MONTH($H$2)=MONTH(CX2)),CX78/$F$8,0) -> 0.03263546798 | CY79: =IF(AND(CY76>0,MONTH($H$2)=MONTH(CY2)),CY78/$F$8,0) -> 0.03263546798 | CZ79: =IF(AND(CZ76>0,MONTH($H$2)=MONTH(CZ2)),CZ78/$F$8,0) -> 0.03263546798 | DA79: =IF(AND(DA76>0,MONTH($H$2)=MONTH(DA2)),DA78/$F$8,0) -> 0.03263546798 | DB79: =IF(AND(DB76>0,MONTH($H$2)=MONTH(DB2)),DB78/$F$8,0) -> 0.03263546798 | DC79: =IF(AND(DC76>0,MONTH($H$2)=MONTH(DC2)),DC78/$F$8,0) -> 0.03263546798 | DD79: =IF(AND(DD76>0,MONTH($H$2)=MONTH(DD2)),DD78/$F$8,0) -> 0.03263546798 | DE79: =IF(AND(DE76>0,MONTH($H$2)=MONTH(DE2)),DE78/$F$8,0) -> 0.03263546798 | DF79: =IF(AND(DF76>0,MONTH($H$2)=MONTH(DF2)),DF78/$F$8,0) -> 0.03263546798 | DG79: =IF(AND(DG76>0,MONTH($H$2)=MONTH(DG2)),DG78/$F$8,0) -> 0.03263546798 | DH79: =IF(AND(DH76>0,MONTH($H$2)=MONTH(DH2)),DH78/$F$8,0) -> 0.03263546798 | DI79: =IF(AND(DI76>0,MONTH($H$2)=MONTH(DI2)),DI78/$F$8,0) -> 0.03263546798 | DJ79: =IF(AND(DJ76>0,MONTH($H$2)=MONTH(DJ2)),DJ78/$F$8,0) -> 0.03263546798 | DK79: =IF(AND(DK76>0,MONTH($H$2)=MONTH(DK2)),DK78/$F$8,0) -> 0.03263546798 | DL79: =IF(AND(DL76>0,MONTH($H$2)=MONTH(DL2)),DL78/$F$8,0) -> 0.03263546798 | DM79: =IF(AND(DM76>0,MONTH($H$2)=MONTH(DM2)),DM78/$F$8,0) -> 0.03263546798 | DN79: =IF(AND(DN76>0,MONTH($H$2)=MONTH(DN2)),DN78/$F$8,0) -> 0.03263546798 | DO79: =IF(AND(DO76>0,MONTH($H$2)=MONTH(DO2)),DO78/$F$8,0) -> 0.03263546798 | DP79: =IF(AND(DP76>0,MONTH($H$2)=MONTH(DP2)),DP78/$F$8,0) -> 0.03263546798 | DQ79: =IF(AND(DQ76>0,MONTH($H$2)=MONTH(DQ2)),DQ78/$F$8,0) -> 0.03263546798 | DR79: =IF(AND(DR76>0,MONTH($H$2)=MONTH(DR2)),DR78/$F$8,0) -> 0.03263546798 | DS79: =IF(AND(DS76>0,MONTH($H$2)=MONTH(DS2)),DS78/$F$8,0) -> 0.03263546798 | DT79: =IF(AND(DT76>0,MONTH($H$2)=MONTH(DT2)),DT78/$F$8,0) -> 0.03263546798 | DU79: =IF(AND(DU76>0,MONTH($H$2)=MONTH(DU2)),DU78/$F$8,0) -> 0.03263546798 | DV79: =IF(AND(DV76>0,MONTH($H$2)=MONTH(DV2)),DV78/$F$8,0) -> 0.03263546798 | DW79: =IF(AND(DW76>0,MONTH($H$2)=MONTH(DW2)),DW78/$F$8,0) -> 0.03263546798 | DX79: =IF(AND(DX76>0,MONTH($H$2)=MONTH(DX2)),DX78/$F$8,0) -> 0.03263546798 | DY79: =IF(AND(DY76>0,MONTH($H$2)=MONTH(DY2)),DY78/$F$8,0) -> 0.03263546798
B81: Calculation of Equivalent Cumulative PD with Loan Balance
C82: Maturity | F82: =F23-F24 -> 9 | G82: =F82*F8 -> 9
C83: Interest Rate | F83: =F44 -> 0.069
C84: Loan Balance | F84: =F11 -> 10000
C86: Period of Repayment | H86: =H73 -> 0 | I86: 1 | J86: 2 | K86: 3 | L86: 4 | M86: 5 | N86: 6 | O86: 7 | P86: 8 | Q86: 9 | R86: 10 | S86: 11 | T86: 12 | U86: 13 | V86: 14 | W86: 15 | X86: 16 | Y86: 17 | Z86: 18 | AA86: 19 | AB86: 20 | AC86: 21 | AD86: 22 | AE86: 23 | AF86: 24 | AG86: 25 | AH86: 26 | AI86: 27 | AJ86: 28 | AK86: 29 | AL86: 30 | AM86: 31 | AN86: =AN73 -> 32 | AO86: 33 | AP86: 34 | AQ86: 35 | AR86: 36 | AS86: 37 | AT86: 38 | AU86: 39 | AV86: 40 | AW86: 41 | AX86: 42 | AY86: 43 | AZ86: 44 | BA86: 45 | BB86: 46 | BC86: 47 | BD86: 48 | BE86: 49 | BF86: 50 | BG86: 51 | BH86: 52 | BI86: 53 | BJ86: 54 | BK86: 55 | BL86: 56 | BM86: 57 | BN86: 58 | BO86: 59 | BP86: 60 | BQ86: 61 | BR86: 62 | BS86: 63 | BT86: =BT73 -> 64 | BU86: 65 | BV86: 66 | BW86: 67 | BX86: 68 | BY86: 69 | BZ86: 70 | CA86: 71 | CB86: 72 | CC86: 73 | CD86: 74 | CE86: 75 | CF86: 76 | CG86: 77 | CH86: 78 | CI86: 79 | CJ86: 80 | CK86: 81 | CL86: 82 | CM86: 83 | CN86: 84 | CO86: 85 | CP86: 86 | CQ86: 87 | CR86: 88 | CS86: 89 | CT86: 90 | CU86: 91 | CV86: 92 | CW86: 93 | CX86: 94 | CY86: 95 | CZ86: =CZ73 -> 96 | DA86: 97 | DB86: 98 | DC86: 99 | DD86: 100 | DE86: 101 | DF86: 102 | DG86: 103 | DH86: 104 | DI86: 105 | DJ86: 106 | DK86: 107 | DL86: 108 | DM86: 109 | DN86: 110 | DO86: 111 | DP86: 112 | DQ86: 113 | DR86: 114 | DS86: 115 | DT86: 116 | DU86: 117 | DV86: 118 | DW86: 119 | DX86: 120 | DY86: 121
C87: Switch | H87: =AND(H86>0,H86<=$G$82) -> FALSE | I87: =AND(I86>0,I86<=$G$82) -> TRUE | J87: =AND(J86>0,J86<=$G$82) -> TRUE | K87: =AND(K86>0,K86<=$G$82) -> TRUE | L87: =AND(L86>0,L86<=$G$82) -> TRUE | M87: =AND(M86>0,M86<=$G$82) -> TRUE | N87: =AND(N86>0,N86<=$G$82) -> TRUE | O87: =AND(O86>0,O86<=$G$82) -> TRUE | P87: =AND(P86>0,P86<=$G$82) -> TRUE | Q87: =AND(Q86>0,Q86<=$G$82) -> TRUE | R87: =AND(R86>0,R86<=$G$82) -> FALSE | S87: =AND(S86>0,S86<=$G$82) -> FALSE | T87: =AND(T86>0,T86<=$G$82) -> FALSE | U87: =AND(U86>0,U86<=$G$82) -> FALSE | V87: =AND(V86>0,V86<=$G$82) -> FALSE | W87: =AND(W86>0,W86<=$G$82) -> FALSE | X87: =AND(X86>0,X86<=$G$82) -> FALSE | Y87: =AND(Y86>0,Y86<=$G$82) -> FALSE | Z87: =AND(Z86>0,Z86<=$G$82) -> FALSE | AA87: =AND(AA86>0,AA86<=$G$82) -> FALSE | AB87: =AND(AB86>0,AB86<=$G$82) -> FALSE | AC87: =AND(AC86>0,AC86<=$G$82) -> FALSE | AD87: =AND(AD86>0,AD86<=$G$82) -> FALSE | AE87: =AND(AE86>0,AE86<=$G$82) -> FALSE | AF87: =AND(AF86>0,AF86<=$G$82) -> FALSE | AG87: =AND(AG86>0,AG86<=$G$82) -> FALSE | AH87: =AND(AH86>0,AH86<=$G$82) -> FALSE | AI87: =AND(AI86>0,AI86<=$G$82) -> FALSE | AJ87: =AND(AJ86>0,AJ86<=$G$82) -> FALSE | AK87: =AND(AK86>0,AK86<=$G$82) -> FALSE | AL87: =AND(AL86>0,AL86<=$G$82) -> FALSE | AM87: =AND(AM86>0,AM86<=$G$82) -> FALSE | AN87: =AND(AN86>0,AN86<=$G$82) -> FALSE | AO87: =AND(AO86>0,AO86<=$G$82) -> FALSE | AP87: =AND(AP86>0,AP86<=$G$82) -> FALSE | AQ87: =AND(AQ86>0,AQ86<=$G$82) -> FALSE | AR87: =AND(AR86>0,AR86<=$G$82) -> FALSE | AS87: =AND(AS86>0,AS86<=$G$82) -> FALSE | AT87: =AND(AT86>0,AT86<=$G$82) -> FALSE | AU87: =AND(AU86>0,AU86<=$G$82) -> FALSE | AV87: =AND(AV86>0,AV86<=$G$82) -> FALSE | AW87: =AND(AW86>0,AW86<=$G$82) -> FALSE | AX87: =AND(AX86>0,AX86<=$G$82) -> FALSE | AY87: =AND(AY86>0,AY86<=$G$82) -> FALSE | AZ87: =AND(AZ86>0,AZ86<=$G$82) -> FALSE | BA87: =AND(BA86>0,BA86<=$G$82) -> FALSE | BB87: =AND(BB86>0,BB86<=$G$82) -> FALSE | BC87: =AND(BC86>0,BC86<=$G$82) -> FALSE | BD87: =AND(BD86>0,BD86<=$G$82) -> FALSE | BE87: =AND(BE86>0,BE86<=$G$82) -> FALSE | BF87: =AND(BF86>0,BF86<=$G$82) -> FALSE | BG87: =AND(BG86>0,BG86<=$G$82) -> FALSE | BH87: =AND(BH86>0,BH86<=$G$82) -> FALSE | BI87: =AND(BI86>0,BI86<=$G$82) -> FALSE | BJ87: =AND(BJ86>0,BJ86<=$G$82) -> FALSE | BK87: =AND(BK86>0,BK86<=$G$82) -> FALSE | BL87: =AND(BL86>0,BL86<=$G$82) -> FALSE | BM87: =AND(BM86>0,BM86<=$G$82) -> FALSE | BN87: =AND(BN86>0,BN86<=$G$82) -> FALSE | BO87: =AND(BO86>0,BO86<=$G$82) -> FALSE | BP87: =AND(BP86>0,BP86<=$G$82) -> FALSE | BQ87: =AND(BQ86>0,BQ86<=$G$82) -> FALSE | BR87: =AND(BR86>0,BR86<=$G$82) -> FALSE | BS87: =AND(BS86>0,BS86<=$G$82) -> FALSE | BT87: =AND(BT86>0,BT86<=$G$82) -> FALSE | BU87: =AND(BU86>0,BU86<=$G$82) -> FALSE | BV87: =AND(BV86>0,BV86<=$G$82) -> FALSE | BW87: =AND(BW86>0,BW86<=$G$82) -> FALSE | BX87: =AND(BX86>0,BX86<=$G$82) -> FALSE | BY87: =AND(BY86>0,BY86<=$G$82) -> FALSE | BZ87: =AND(BZ86>0,BZ86<=$G$82) -> FALSE | CA87: =AND(CA86>0,CA86<=$G$82) -> FALSE | CB87: =AND(CB86>0,CB86<=$G$82) -> FALSE | CC87: =AND(CC86>0,CC86<=$G$82) -> FALSE | CD87: =AND(CD86>0,CD86<=$G$82) -> FALSE | CE87: =AND(CE86>0,CE86<=$G$82) -> FALSE | CF87: =AND(CF86>0,CF86<=$G$82) -> FALSE | CG87: =AND(CG86>0,CG86<=$G$82) -> FALSE | CH87: =AND(CH86>0,CH86<=$G$82) -> FALSE | CI87: =AND(CI86>0,CI86<=$G$82) -> FALSE | CJ87: =AND(CJ86>0,CJ86<=$G$82) -> FALSE | CK87: =AND(CK86>0,CK86<=$G$82) -> FALSE | CL87: =AND(CL86>0,CL86<=$G$82) -> FALSE | CM87: =AND(CM86>0,CM86<=$G$82) -> FALSE | CN87: =AND(CN86>0,CN86<=$G$82) -> FALSE | CO87: =AND(CO86>0,CO86<=$G$82) -> FALSE | CP87: =AND(CP86>0,CP86<=$G$82) -> FALSE | CQ87: =AND(CQ86>0,CQ86<=$G$82) -> FALSE | CR87: =AND(CR86>0,CR86<=$G$82) -> FALSE | CS87: =AND(CS86>0,CS86<=$G$82) -> FALSE | CT87: =AND(CT86>0,CT86<=$G$82) -> FALSE | CU87: =AND(CU86>0,CU86<=$G$82) -> FALSE | CV87: =AND(CV86>0,CV86<=$G$82) -> FALSE | CW87: =AND(CW86>0,CW86<=$G$82) -> FALSE | CX87: =AND(CX86>0,CX86<=$G$82) -> FALSE | CY87: =AND(CY86>0,CY86<=$G$82) -> FALSE | CZ87: =AND(CZ86>0,CZ86<=$G$82) -> FALSE | DA87: =AND(DA86>0,DA86<=$G$82) -> FALSE | DB87: =AND(DB86>0,DB86<=$G$82) -> FALSE | DC87: =AND(DC86>0,DC86<=$G$82) -> FALSE | DD87: =AND(DD86>0,DD86<=$G$82) -> FALSE | DE87: =AND(DE86>0,DE86<=$G$82) -> FALSE | DF87: =AND(DF86>0,DF86<=$G$82) -> FALSE | DG87: =AND(DG86>0,DG86<=$G$82) -> FALSE | DH87: =AND(DH86>0,DH86<=$G$82) -> FALSE | DI87: =AND(DI86>0,DI86<=$G$82) -> FALSE | DJ87: =AND(DJ86>0,DJ86<=$G$82) -> FALSE | DK87: =AND(DK86>0,DK86<=$G$82) -> FALSE | DL87: =AND(DL86>0,DL86<=$G$82) -> FALSE | DM87: =AND(DM86>0,DM86<=$G$82) -> FALSE | DN87: =AND(DN86>0,DN86<=$G$82) -> FALSE | DO87: =AND(DO86>0,DO86<=$G$82) -> FALSE | DP87: =AND(DP86>0,DP86<=$G$82) -> FALSE | DQ87: =AND(DQ86>0,DQ86<=$G$82) -> FALSE | DR87: =AND(DR86>0,DR86<=$G$82) -> FALSE | DS87: =AND(DS86>0,DS86<=$G$82) -> FALSE | DT87: =AND(DT86>0,DT86<=$G$82) -> FALSE | DU87: =AND(DU86>0,DU86<=$G$82) -> FALSE | DV87: =AND(DV86>0,DV86<=$G$82) -> FALSE | DW87: =AND(DW86>0,DW86<=$G$82) -> FALSE | DX87: =AND(DX86>0,DX86<=$G$82) -> FALSE | DY87: =AND(DY86>0,DY86<=$G$82) -> FALSE
C88: Terminal Switch | H88: =H86=$G$82 -> FALSE | I88: =I86=$G$82 -> FALSE | J88: =J86=$G$82 -> FALSE | K88: =K86=$G$82 -> FALSE | L88: =L86=$G$82 -> FALSE | M88: =M86=$G$82 -> FALSE | N88: =N86=$G$82 -> FALSE | O88: =O86=$G$82 -> FALSE | P88: =P86=$G$82 -> FALSE | Q88: =Q86=$G$82 -> TRUE | R88: =R86=$G$82 -> FALSE | S88: =S86=$G$82 -> FALSE | T88: =T86=$G$82 -> FALSE | U88: =U86=$G$82 -> FALSE | V88: =V86=$G$82 -> FALSE | W88: =W86=$G$82 -> FALSE | X88: =X86=$G$82 -> FALSE | Y88: =Y86=$G$82 -> FALSE | Z88: =Z86=$G$82 -> FALSE | AA88: =AA86=$G$82 -> FALSE | AB88: =AB86=$G$82 -> FALSE | AC88: =AC86=$G$82 -> FALSE | AD88: =AD86=$G$82 -> FALSE | AE88: =AE86=$G$82 -> FALSE | AF88: =AF86=$G$82 -> FALSE | AG88: =AG86=$G$82 -> FALSE | AH88: =AH86=$G$82 -> FALSE | AI88: =AI86=$G$82 -> FALSE | AJ88: =AJ86=$G$82 -> FALSE | AK88: =AK86=$G$82 -> FALSE | AL88: =AL86=$G$82 -> FALSE | AM88: =AM86=$G$82 -> FALSE | AN88: =AN86=$G$82 -> FALSE | AO88: =AO86=$G$82 -> FALSE | AP88: =AP86=$G$82 -> FALSE | AQ88: =AQ86=$G$82 -> FALSE | AR88: =AR86=$G$82 -> FALSE | AS88: =AS86=$G$82 -> FALSE | AT88: =AT86=$G$82 -> FALSE | AU88: =AU86=$G$82 -> FALSE | AV88: =AV86=$G$82 -> FALSE | AW88: =AW86=$G$82 -> FALSE | AX88: =AX86=$G$82 -> FALSE | AY88: =AY86=$G$82 -> FALSE | AZ88: =AZ86=$G$82 -> FALSE | BA88: =BA86=$G$82 -> FALSE | BB88: =BB86=$G$82 -> FALSE | BC88: =BC86=$G$82 -> FALSE | BD88: =BD86=$G$82 -> FALSE | BE88: =BE86=$G$82 -> FALSE | BF88: =BF86=$G$82 -> FALSE | BG88: =BG86=$G$82 -> FALSE | BH88: =BH86=$G$82 -> FALSE | BI88: =BI86=$G$82 -> FALSE | BJ88: =BJ86=$G$82 -> FALSE | BK88: =BK86=$G$82 -> FALSE | BL88: =BL86=$G$82 -> FALSE | BM88: =BM86=$G$82 -> FALSE | BN88: =BN86=$G$82 -> FALSE | BO88: =BO86=$G$82 -> FALSE | BP88: =BP86=$G$82 -> FALSE | BQ88: =BQ86=$G$82 -> FALSE | BR88: =BR86=$G$82 -> FALSE | BS88: =BS86=$G$82 -> FALSE | BT88: =BT86=$G$82 -> FALSE | BU88: =BU86=$G$82 -> FALSE | BV88: =BV86=$G$82 -> FALSE | BW88: =BW86=$G$82 -> FALSE | BX88: =BX86=$G$82 -> FALSE | BY88: =BY86=$G$82 -> FALSE | BZ88: =BZ86=$G$82 -> FALSE | CA88: =CA86=$G$82 -> FALSE | CB88: =CB86=$G$82 -> FALSE | CC88: =CC86=$G$82 -> FALSE | CD88: =CD86=$G$82 -> FALSE | CE88: =CE86=$G$82 -> FALSE | CF88: =CF86=$G$82 -> FALSE | CG88: =CG86=$G$82 -> FALSE | CH88: =CH86=$G$82 -> FALSE | CI88: =CI86=$G$82 -> FALSE | CJ88: =CJ86=$G$82 -> FALSE | CK88: =CK86=$G$82 -> FALSE | CL88: =CL86=$G$82 -> FALSE | CM88: =CM86=$G$82 -> FALSE | CN88: =CN86=$G$82 -> FALSE | CO88: =CO86=$G$82 -> FALSE | CP88: =CP86=$G$82 -> FALSE | CQ88: =CQ86=$G$82 -> FALSE | CR88: =CR86=$G$82 -> FALSE | CS88: =CS86=$G$82 -> FALSE | CT88: =CT86=$G$82 -> FALSE | CU88: =CU86=$G$82 -> FALSE | CV88: =CV86=$G$82 -> FALSE | CW88: =CW86=$G$82 -> FALSE | CX88: =CX86=$G$82 -> FALSE | CY88: =CY86=$G$82 -> FALSE | CZ88: =CZ86=$G$82 -> FALSE | DA88: =DA86=$G$82 -> FALSE | DB88: =DB86=$G$82 -> FALSE | DC88: =DC86=$G$82 -> FALSE | DD88: =DD86=$G$82 -> FALSE | DE88: =DE86=$G$82 -> FALSE | DF88: =DF86=$G$82 -> FALSE | DG88: =DG86=$G$82 -> FALSE | DH88: =DH86=$G$82 -> FALSE | DI88: =DI86=$G$82 -> FALSE | DJ88: =DJ86=$G$82 -> FALSE | DK88: =DK86=$G$82 -> FALSE | DL88: =DL86=$G$82 -> FALSE | DM88: =DM86=$G$82 -> FALSE | DN88: =DN86=$G$82 -> FALSE | DO88: =DO86=$G$82 -> FALSE | DP88: =DP86=$G$82 -> FALSE | DQ88: =DQ86=$G$82 -> FALSE | DR88: =DR86=$G$82 -> FALSE | DS88: =DS86=$G$82 -> FALSE | DT88: =DT86=$G$82 -> FALSE | DU88: =DU86=$G$82 -> FALSE | DV88: =DV86=$G$82 -> FALSE | DW88: =DW86=$G$82 -> FALSE | DX88: =DX86=$G$82 -> FALSE | DY88: =DY86=$G$82 -> FALSE
C90: For Computing Function | H90: =H75 -> 1 | I90: =I75 -> 2 | J90: 3 | K90: 4 | L90: 5 | M90: 6 | N90: 7 | O90: 8 | P90: 9 | Q90: 10 | R90: 11 | S90: 12 | T90: 13 | U90: 14 | V90: 15 | W90: 16 | X90: 17 | Y90: 18 | Z90: 19 | AA90: 20 | AB90: 21 | AC90: 22 | AD90: 23 | AE90: 24 | AF90: 25 | AG90: 26 | AH90: 27 | AI90: 28 | AJ90: 29 | AK90: 30 | AL90: 31 | AM90: 32 | AN90: 33 | AO90: 34 | AP90: 35 | AQ90: 36 | AR90: 37 | AS90: 38 | AT90: 39 | AU90: 40 | AV90: 41 | AW90: 42 | AX90: 43 | AY90: 44 | AZ90: 45 | BA90: 46 | BB90: 47 | BC90: 48 | BD90: 49 | BE90: 50 | BF90: 51 | BG90: 52 | BH90: 53 | BI90: 54 | BJ90: 55 | BK90: 56 | BL90: 57 | BM90: 58 | BN90: 59 | BO90: 60 | BP90: 61 | BQ90: 62 | BR90: 63 | BS90: 64 | BT90: 65 | BU90: =BU75 -> 66 | BV90: 67 | BW90: 68 | BX90: 69 | BY90: 70 | BZ90: 71 | CA90: 72 | CB90: 73 | CC90: 74 | CD90: 75 | CE90: 76 | CF90: 77 | CG90: 78 | CH90: 79 | CI90: 80 | CJ90: 81 | CK90: 82 | CL90: 83 | CM90: 84 | CN90: 85 | CO90: 86 | CP90: 87 | CQ90: 88 | CR90: 89 | CS90: 90 | CT90: 91 | CU90: 92 | CV90: 93 | CW90: 94 | CX90: 95 | CY90: 96 | CZ90: 97 | DA90: 98 | DB90: 99 | DC90: 100 | DD90: 101 | DE90: 102 | DF90: 103 | DG90: 104 | DH90: 105 | DI90: 106 | DJ90: 107 | DK90: 108 | DL90: 109 | DM90: 110 | DN90: 111 | DO90: 112 | DP90: 113 | DQ90: 114 | DR90: 115 | DS90: 116 | DT90: 117 | DU90: 118 | DV90: 119 | DW90: 120 | DX90: 121 | DY90: 122
D91: Cash Flow without Default | F91: =XIRR(H91:DY91,H2:DY2) -> 0.07540135682 | H91: =H179 -> -9750 | I91: 1801.111111 | J91: 1724.444444 | K91: 1647.777778 | L91: 1571.111111 | M91: 1494.444444 | N91: 1417.777778 | O91: 1341.111111 | P91: 1264.444444 | Q91: 1187.777778 | R91: 0 | S91: 0 | T91: 0 | U91: 0 | V91: 0 | W91: 0 | X91: 0 | Y91: 0 | Z91: 0 | AA91: 0 | AB91: 0 | AC91: 0 | AD91: 0 | AE91: 0 | AF91: 0 | AG91: 0 | AH91: 0 | AI91: 0 | AJ91: 0 | AK91: 0 | AL91: 0 | AM91: 0 | AN91: =AN179 -> 0 | AO91: 0 | AP91: 0 | AQ91: 0 | AR91: 0 | AS91: 0 | AT91: 0 | AU91: 0 | AV91: 0 | AW91: 0 | AX91: 0 | AY91: 0 | AZ91: 0 | BA91: 0 | BB91: 0 | BC91: 0 | BD91: 0 | BE91: 0 | BF91: 0 | BG91: 0 | BH91: 0 | BI91: 0 | BJ91: 0 | BK91: 0 | BL91: 0 | BM91: 0 | BN91: 0 | BO91: 0 | BP91: 0 | BQ91: 0 | BR91: 0 | BS91: 0 | BT91: =BT179 -> 0 | BU91: 0 | BV91: 0 | BW91: 0 | BX91: 0 | BY91: 0 | BZ91: 0 | CA91: 0 | CB91: 0 | CC91: 0 | CD91: 0 | CE91: 0 | CF91: 0 | CG91: 0 | CH91: 0 | CI91: 0 | CJ91: 0 | CK91: 0 | CL91: 0 | CM91: 0 | CN91: 0 | CO91: 0 | CP91: 0 | CQ91: 0 | CR91: 0 | CS91: 0 | CT91: 0 | CU91: 0 | CV91: 0 | CW91: 0 | CX91: 0 | CY91: 0 | CZ91: =CZ179 -> 0 | DA91: 0 | DB91: 0 | DC91: 0 | DD91: 0 | DE91: 0 | DF91: 0 | DG91: 0 | DH91: 0 | DI91: 0 | DJ91: 0 | DK91: 0 | DL91: 0 | DM91: 0 | DN91: 0 | DO91: 0 | DP91: 0 | DQ91: 0 | DR91: 0 | DS91: 0 | DT91: 0 | DU91: 0 | DV91: 0 | DW91: 0 | DX91: 0 | DY91: 0
D92: PD Growth | H92: =H79 -> 0 | I92: 2.092105263 | J92: 0.8 | K92: 0.4326241135 | L92: 0.2722772277 | M92: 0.2036316472 | N92: 0.1411637931 | O92: 0.1095372993 | P92: 0.08936170213 | Q92: 0.0734375 | R92: 0.05676855895 | S92: 0.04545454545 | T92: 0.03754940711 | U92: 0.03111111111 | V92: 0.03263546798 | W92: 0.03263546798 | X92: 0.03263546798 | Y92: 0.03263546798 | Z92: 0.03263546798 | AA92: 0.03263546798 | AB92: 0.03263546798 | AC92: 0.03263546798 | AD92: 0.03263546798 | AE92: 0.03263546798 | AF92: 0.03263546798 | AG92: 0.03263546798 | AH92: 0.03263546798 | AI92: 0.03263546798 | AJ92: 0.03263546798 | AK92: 0.03263546798 | AL92: 0.03263546798 | AM92: 0.03263546798 | AN92: =AN79 -> 0.03263546798 | AO92: 0.03263546798 | AP92: 0.03263546798 | AQ92: 0.03263546798 | AR92: 0.03263546798 | AS92: 0.03263546798 | AT92: 0.03263546798 | AU92: 0.03263546798 | AV92: 0.03263546798 | AW92: 0.03263546798 | AX92: 0.03263546798 | AY92: 0.03263546798 | AZ92: 0.03263546798 | BA92: 0.03263546798 | BB92: 0.03263546798 | BC92: 0.03263546798 | BD92: 0.03263546798 | BE92: 0.03263546798 | BF92: 0.03263546798 | BG92: 0.03263546798 | BH92: 0.03263546798 | BI92: 0.03263546798 | BJ92: 0.03263546798 | BK92: 0.03263546798 | BL92: 0.03263546798 | BM92: 0.03263546798 | BN92: 0.03263546798 | BO92: 0.03263546798 | BP92: 0.03263546798 | BQ92: 0.03263546798 | BR92: 0.03263546798 | BS92: 0.03263546798 | BT92: =BT79 -> 0.03263546798 | BU92: 0.03263546798 | BV92: 0.03263546798 | BW92: 0.03263546798 | BX92: 0.03263546798 | BY92: 0.03263546798 | BZ92: 0.03263546798 | CA92: 0.03263546798 | CB92: 0.03263546798 | CC92: 0.03263546798 | CD92: 0.03263546798 | CE92: 0.03263546798 | CF92: 0.03263546798 | CG92: 0.03263546798 | CH92: 0.03263546798 | CI92: 0.03263546798 | CJ92: 0.03263546798 | CK92: 0.03263546798 | CL92: 0.03263546798 | CM92: 0.03263546798 | CN92: 0.03263546798 | CO92: 0.03263546798 | CP92: 0.03263546798 | CQ92: 0.03263546798 | CR92: 0.03263546798 | CS92: 0.03263546798 | CT92: 0.03263546798 | CU92: 0.03263546798 | CV92: 0.03263546798 | CW92: 0.03263546798 | CX92: 0.03263546798 | CY92: 0.03263546798 | CZ92: =CZ79 -> 0.03263546798 | DA92: 0.03263546798 | DB92: 0.03263546798 | DC92: 0.03263546798 | DD92: 0.03263546798 | DE92: 0.03263546798 | DF92: 0.03263546798 | DG92: 0.03263546798 | DH92: 0.03263546798 | DI92: 0.03263546798 | DJ92: 0.03263546798 | DK92: 0.03263546798 | DL92: 0.03263546798 | DM92: 0.03263546798 | DN92: 0.03263546798 | DO92: 0.03263546798 | DP92: 0.03263546798 | DQ92: 0.03263546798 | DR92: 0.03263546798 | DS92: 0.03263546798 | DT92: 0.03263546798 | DU92: 0.03263546798 | DV92: 0.03263546798 | DW92: 0.03263546798 | DX92: 0.03263546798 | DY92: 0.03263546798
D93: PD Amount | G93: =F110 -> 0.0177716736 | H93: =G93 -> 0.0177716736 | I93: =H93*(1+I92) -> 0.05495188547 | J93: =I93*(1+J92) -> 0.09891339385 | K93: 0.1417057132 | L93: 0.1802889519 | M93: 0.2170014882 | N93: 0.2476342413 | O93: 0.2747594274 | P93: 0.2993123975 | Q93: 0.3212931517 | R93: 0.3395325009 | S93: 0.3549657964 | T93: 0.3682945516 | U93: 0.3797526043 | V93: 0.3921460083 | W93: 0.4049438767 | X93: 0.4181594097 | Y93: 0.4318062377 | Z93: 0.4458984363 | AA93: 0.4604505405 | AB93: 0.4754775594 | AC93: 0.490994992 | AD93: 0.5070188434 | AE93: 0.5235656406 | AF93: 0.5406524503 | AG93: 0.558296896 | AH93: 0.5765171765 | AI93: 0.5953320843 | AJ93: 0.6147610255 | AK93: 0.6348240393 | AL93: 0.6555418189 | AM93: 0.6769357329 | AN93: 0.6990278474 | AO93: 0.7218409483 | AP93: 0.7453985654 | AQ93: 0.7697249965 | AR93: 0.7948453319 | AS93: 0.8207854813 | AT93: 0.8475721996 | AU93: 0.875233115 | AV93: 0.9037967573 | AW93: 0.9332925874 | AX93: 0.9637510278 | AY93: 0.9952034936 | AZ93: 1.027682425 | BA93: 1.061221322 | BB93: 1.095854777 | BC93: 1.13161851 | BD93: 1.16854941 | BE93: 1.206685567 | BF93: 1.246066315 | BG93: 1.286732272 | BH93: 1.328725382 | BI93: 1.372088957 | BJ93: 1.416867722 | BK93: 1.463107863 | BL93: 1.510857073 | BM93: 1.560164601 | BN93: 1.611081302 | BO93: 1.663659695 | BP93: 1.717954007 | BQ93: 1.77402024 | BR93: 1.831916221 | BS93: 1.891701664 | BT93: 1.953438233 | BU93: 2.017189604 | BV93: =BU93*(1+BV92) -> 2.083021531 | BW93: 2.151001914 | BX93: 2.221200868 | BY93: 2.293690797 | BZ93: 2.36854647 | CA93: 2.445845092 | CB93: 2.525666392 | CC93: 2.608092696 | CD93: 2.693209022 | CE93: 2.781103159 | CF93: 2.871865762 | CG93: 2.965590445 | CH93: 3.062373877 | CI93: 3.162315882 | CJ93: 3.26551954 | CK93: 3.372091299 | CL93: 3.482141076 | CM93: 3.59578238 | CN93: 3.713132421 | CO93: 3.834312235 | CP93: 3.959446809 | CQ93: 4.088665209 | CR93: 4.222100711 | CS93: 4.359890944 | CT93: 4.502178025 | CU93: 4.649108712 | CV93: 4.80083455 | CW93: 4.957512032 | CX93: 5.119302758 | CY93: 5.286373599 | CZ93: 5.458896875 | DA93: 5.637050529 | DB93: 5.821018311 | DC93: 6.010989968 | DD93: 6.207161439 | DE93: 6.409735057 | DF93: 6.61891976 | DG93: 6.834931304 | DH93: 7.057992486 | DI93: 7.288333374 | DJ93: 7.526191544 | DK93: 7.771812327 | DL93: 8.02544906 | DM93: 8.287363345 | DN93: 8.557825327 | DO93: 8.837113961 | DP93: 9.125517311 | DQ93: 9.423332839 | DR93: 9.730867716 | DS93: 10.04843914 | DT93: 10.37637465 | DU93: 10.71501249 | DV93: 11.06470194 | DW93: 11.42580367 | DX93: 11.79869012 | DY93: 12.18374589
D94: Incremental PD | H94: =H93 -> 0.0177716736 | I94: =I93-H93 -> 0.03718021187 | J94: =J93-I93 -> 0.04396150838 | K94: =K93-J93 -> 0.04279231933 | L94: 0.03858323874 | M94: 0.03671253625 | N94: 0.03063275318 | O94: 0.02712518602 | P94: 0.02455297011 | Q94: 0.02198075419 | R94: 0.01823934922 | S94: 0.01543329549 | T94: 0.0133287552 | U94: 0.01145805272 | V94: 0.01239340396 | W94: 0.0127978685 | X94: 0.01321553292 | Y94: 0.01364682803 | Z94: 0.01409219864 | AA94: 0.01455210414 | AB94: 0.01502701887 | AC94: 0.01551743266 | AD94: 0.01602385134 | AE94: 0.01654679723 | AF94: 0.0170868097 | AG94: 0.01764444573 | AH94: 0.01822028047 | AI94: 0.01881490785 | AJ94: 0.01942894118 | AK94: 0.02006301376 | AL94: 0.02071777961 | AM94: 0.02139391404 | AN94: 0.02209211444 | AO94: 0.02281310093 | AP94: 0.02355761715 | AQ94: 0.02432643102 | AR94: 0.02512033548 | AS94: 0.02594014938 | AT94: 0.02678671829 | AU94: 0.02766091538 | AV94: 0.0285636423 | AW94: 0.02949583013 | AX94: 0.03045844035 | AY94: 0.03145246581 | AZ94: 0.03247893175 | BA94: 0.03353889689 | BB94: 0.03463345448 | BC94: 0.03576373348 | BD94: 0.03693089965 | BE94: 0.03813615685 | BF94: 0.03938074817 | BG94: 0.04066595732 | BH94: 0.04199310987 | BI94: 0.04336357466 | BJ94: 0.04477876521 | BK94: 0.04624014117 | BL94: 0.04774920982 | BM94: 0.04930752763 | BN94: 0.05091670186 | BO94: 0.05257839226 | BP94: 0.0542943127 | BQ94: 0.056066233 | BR94: 0.05789598075 | BS94: 0.05978544318 | BT94: 0.06173656909 | BU94: 0.06375137092 | BV94: =BV93-BU93 -> 0.06583192674 | BW94: 0.06798038248 | BX94: 0.07019895407 | BY94: 0.07248992979 | BZ94: 0.07485567257 | CA94: 0.07729862248 | CB94: 0.0798212992 | CC94: 0.08242630465 | CD94: 0.08511632568 | CE94: 0.0878941368 | CF94: 0.09076260309 | CG94: 0.09372468311 | CH94: 0.09678343201 | CI94: 0.09994200461 | CJ94: 0.1032036587 | CK94: 0.1065717584 | CL94: 0.1100497776 | CM94: 0.1136413036 | CN94: 0.1173500407 | CO94: 0.1211798142 | CP94: 0.1251345742 | CQ94: 0.1292183996 | CR94: 0.1334355025 | CS94: 0.1377902326 | CT94: 0.1422870813 | CU94: 0.1469306868 | CV94: 0.1517258385 | CW94: 0.1566774822 | CX94: 0.1617907252 | CY94: 0.1670708412 | CZ94: 0.1725232763 | DA94: 0.1781536542 | DB94: 0.1839677821 | DC94: 0.1899716567 | DD94: 0.1961714706 | DE94: 0.2025736184 | DF94: 0.2091847032 | DG94: 0.2160115439 | DH94: 0.2230611817 | DI94: 0.2303408878 | DJ94: 0.2378581704 | DK94: 0.2456207832 | DL94: 0.2536367324 | DM94: 0.2619142858 | DN94: 0.2704619811 | DO94: 0.2792886344 | DP94: 0.2884033497 | DQ94: 0.297815528 | DR94: 0.3075348771 | DS94: 0.3175714218 | DT94: 0.3279355137 | DU94: 0.3386378427 | DV94: 0.3496894472 | DW94: 0.3611017259 | DX94: 0.3728864497 | DY94: 0.3850557735
D95: LGD | F95: =F201 -> 0.6 | H95: =$F$95 -> 0.6 | I95: =$F$95 -> 0.6 | J95: =$F$95 -> 0.6 | K95: =$F$95 -> 0.6 | L95: =$F$95 -> 0.6 | M95: =$F$95 -> 0.6 | N95: =$F$95 -> 0.6 | O95: =$F$95 -> 0.6 | P95: =$F$95 -> 0.6 | Q95: =$F$95 -> 0.6 | R95: =$F$95 -> 0.6 | S95: =$F$95 -> 0.6 | T95: =$F$95 -> 0.6 | U95: =$F$95 -> 0.6 | V95: =$F$95 -> 0.6 | W95: =$F$95 -> 0.6 | X95: =$F$95 -> 0.6 | Y95: =$F$95 -> 0.6 | Z95: =$F$95 -> 0.6 | AA95: =$F$95 -> 0.6 | AB95: =$F$95 -> 0.6 | AC95: =$F$95 -> 0.6 | AD95: =$F$95 -> 0.6 | AE95: =$F$95 -> 0.6 | AF95: =$F$95 -> 0.6 | AG95: =$F$95 -> 0.6 | AH95: =$F$95 -> 0.6 | AI95: =$F$95 -> 0.6 | AJ95: =$F$95 -> 0.6 | AK95: =$F$95 -> 0.6 | AL95: =$F$95 -> 0.6 | AM95: =$F$95 -> 0.6 | AN95: =$F$95 -> 0.6 | AO95: =$F$95 -> 0.6 | AP95: =$F$95 -> 0.6 | AQ95: =$F$95 -> 0.6 | AR95: =$F$95 -> 0.6 | AS95: =$F$95 -> 0.6 | AT95: =$F$95 -> 0.6 | AU95: =$F$95 -> 0.6 | AV95: =$F$95 -> 0.6 | AW95: =$F$95 -> 0.6 | AX95: =$F$95 -> 0.6 | AY95: =$F$95 -> 0.6 | AZ95: =$F$95 -> 0.6 | BA95: =$F$95 -> 0.6 | BB95: =$F$95 -> 0.6 | BC95: =$F$95 -> 0.6 | BD95: =$F$95 -> 0.6 | BE95: =$F$95 -> 0.6 | BF95: =$F$95 -> 0.6 | BG95: =$F$95 -> 0.6 | BH95: =$F$95 -> 0.6 | BI95: =$F$95 -> 0.6 | BJ95: =$F$95 -> 0.6 | BK95: =$F$95 -> 0.6 | BL95: =$F$95 -> 0.6 | BM95: =$F$95 -> 0.6 | BN95: =$F$95 -> 0.6 | BO95: =$F$95 -> 0.6 | BP95: =$F$95 -> 0.6 | BQ95: =$F$95 -> 0.6 | BR95: =$F$95 -> 0.6 | BS95: =$F$95 -> 0.6 | BT95: =$F$95 -> 0.6 | BU95: =$F$95 -> 0.6 | BV95: =$F$95 -> 0.6 | BW95: =$F$95 -> 0.6 | BX95: =$F$95 -> 0.6 | BY95: =$F$95 -> 0.6 | BZ95: =$F$95 -> 0.6 | CA95: =$F$95 -> 0.6 | CB95: =$F$95 -> 0.6 | CC95: =$F$95 -> 0.6 | CD95: =$F$95 -> 0.6 | CE95: =$F$95 -> 0.6 | CF95: =$F$95 -> 0.6 | CG95: =$F$95 -> 0.6 | CH95: =$F$95 -> 0.6 | CI95: =$F$95 -> 0.6 | CJ95: =$F$95 -> 0.6 | CK95: =$F$95 -> 0.6 | CL95: =$F$95 -> 0.6 | CM95: =$F$95 -> 0.6 | CN95: =$F$95 -> 0.6 | CO95: =$F$95 -> 0.6 | CP95: =$F$95 -> 0.6 | CQ95: =$F$95 -> 0.6 | CR95: =$F$95 -> 0.6 | CS95: =$F$95 -> 0.6 | CT95: =$F$95 -> 0.6 | CU95: =$F$95 -> 0.6 | CV95: =$F$95 -> 0.6 | CW95: =$F$95 -> 0.6 | CX95: =$F$95 -> 0.6 | CY95: =$F$95 -> 0.6 | CZ95: =$F$95 -> 0.6 | DA95: =$F$95 -> 0.6 | DB95: =$F$95 -> 0.6 | DC95: =$F$95 -> 0.6 | DD95: =$F$95 -> 0.6 | DE95: =$F$95 -> 0.6 | DF95: =$F$95 -> 0.6 | DG95: =$F$95 -> 0.6 | DH95: =$F$95 -> 0.6 | DI95: =$F$95 -> 0.6 | DJ95: =$F$95 -> 0.6 | DK95: =$F$95 -> 0.6 | DL95: =$F$95 -> 0.6 | DM95: =$F$95 -> 0.6 | DN95: =$F$95 -> 0.6 | DO95: =$F$95 -> 0.6 | DP95: =$F$95 -> 0.6 | DQ95: =$F$95 -> 0.6 | DR95: =$F$95 -> 0.6 | DS95: =$F$95 -> 0.6 | DT95: =$F$95 -> 0.6 | DU95: =$F$95 -> 0.6 | DV95: =$F$95 -> 0.6 | DW95: =$F$95 -> 0.6 | DX95: =$F$95 -> 0.6 | DY95: =$F$95 -> 0.6
D96: Loss Percent | H96: =H94*H95 -> 0.01066300416 | I96: =I94*I95 -> 0.02230812712 | J96: 0.02637690503 | K96: 0.0256753916 | L96: 0.02314994324 | M96: 0.02202752175 | N96: 0.01837965191 | O96: 0.01627511161 | P96: 0.01473178206 | Q96: 0.01318845251 | R96: 0.01094360953 | S96: 0.009259977297 | T96: 0.00799725312 | U96: 0.006874831629 | V96: 0.007436042375 | W96: 0.007678721098 | X96: 0.007929319754 | Y96: 0.008188096815 | Z96: 0.008455319186 | AA96: 0.008731262485 | AB96: 0.009016211322 | AC96: 0.009310459598 | AD96: 0.009614310804 | AE96: 0.009928078337 | AF96: 0.01025208582 | AG96: 0.01058666744 | AH96: 0.01093216828 | AI96: 0.01128894471 | AJ96: 0.01165736471 | AK96: 0.01203780826 | AL96: 0.01243066776 | AM96: 0.01283634842 | AN96: 0.01325526866 | AO96: 0.01368786056 | AP96: 0.01413457029 | AQ96: 0.01459585861 | AR96: 0.01507220129 | AS96: 0.01556408963 | AT96: 0.01607203098 | AU96: 0.01659654923 | AV96: 0.01713818538 | AW96: 0.01769749808 | AX96: 0.01827506421 | AY96: 0.01887147948 | AZ96: 0.01948735905 | BA96: 0.02012333813 | BB96: 0.02078007269 | BC96: 0.02145824009 | BD96: 0.02215853979 | BE96: 0.02288169411 | BF96: 0.0236284489 | BG96: 0.02439957439 | BH96: 0.02519586592 | BI96: 0.0260181448 | BJ96: 0.02686725913 | BK96: 0.0277440847 | BL96: 0.02864952589 | BM96: 0.02958451658 | BN96: 0.03055002112 | BO96: 0.03154703535 | BP96: 0.03257658762 | BQ96: 0.0336397398 | BR96: 0.03473758845 | BS96: 0.03587126591 | BT96: 0.03704194146 | BU96: =BU94*BU95 -> 0.03825082255 | BV96: 0.03949915604 | BW96: 0.04078822949 | BX96: 0.04211937244 | BY96: 0.04349395788 | BZ96: 0.04491340354 | CA96: 0.04637917349 | CB96: 0.04789277952 | CC96: 0.04945578279 | CD96: 0.05106979541 | CE96: 0.05273648208 | CF96: 0.05445756185 | CG96: 0.05623480987 | CH96: 0.05807005921 | CI96: 0.05996520276 | CJ96: 0.06192219522 | CK96: 0.06394305504 | CL96: 0.06602986656 | CM96: 0.06818478216 | CN96: 0.07041002443 | CO96: 0.07270788853 | CP96: 0.0750807445 | CQ96: 0.07753103973 | CR96: 0.0800613015 | CS96: 0.08267413954 | CT96: 0.08537224877 | CU96: 0.08815841206 | CV96: 0.0910355031 | CW96: 0.09400648934 | CX96: 0.09707443512 | CY96: 0.1002425047 | CZ96: 0.1035139658 | DA96: 0.1068921925 | DB96: 0.1103806692 | DC96: 0.113982994 | DD96: 0.1177028824 | DE96: 0.121544171 | DF96: 0.1255108219 | DG96: 0.1296069263 | DH96: 0.133836709 | DI96: 0.1382045327 | DJ96: 0.1427149023 | DK96: 0.1473724699 | DL96: 0.1521820394 | DM96: 0.1571485715 | DN96: 0.1622771887 | DO96: 0.1675731807 | DP96: 0.1730420098 | DQ96: 0.1786893168 | DR96: 0.1845209263 | DS96: 0.1905428531 | DT96: 0.1967613082 | DU96: 0.2031827056 | DV96: 0.2098136683 | DW96: 0.2166610355 | DX96: 0.2237318698 | DY96: 0.2310334641
D97: Loan Balance | F97: =F193 -> 10000 | H97: =$F$97 -> 10000 | I97: =$F$97 -> 10000 | J97: =$F$97 -> 10000 | K97: =$F$97 -> 10000 | L97: =$F$97 -> 10000 | M97: =$F$97 -> 10000 | N97: =$F$97 -> 10000 | O97: =$F$97 -> 10000 | P97: =$F$97 -> 10000 | Q97: =$F$97 -> 10000 | R97: =$F$97 -> 10000 | S97: =$F$97 -> 10000 | T97: =$F$97 -> 10000 | U97: =$F$97 -> 10000 | V97: =$F$97 -> 10000 | W97: =$F$97 -> 10000 | X97: =$F$97 -> 10000 | Y97: =$F$97 -> 10000 | Z97: =$F$97 -> 10000 | AA97: =$F$97 -> 10000 | AB97: =$F$97 -> 10000 | AC97: =$F$97 -> 10000 | AD97: =$F$97 -> 10000 | AE97: =$F$97 -> 10000 | AF97: =$F$97 -> 10000 | AG97: =$F$97 -> 10000 | AH97: =$F$97 -> 10000 | AI97: =$F$97 -> 10000 | AJ97: =$F$97 -> 10000 | AK97: =$F$97 -> 10000 | AL97: =$F$97 -> 10000 | AM97: =$F$97 -> 10000 | AN97: =$F$97 -> 10000 | AO97: =$F$97 -> 10000 | AP97: =$F$97 -> 10000 | AQ97: =$F$97 -> 10000 | AR97: =$F$97 -> 10000 | AS97: =$F$97 -> 10000 | AT97: =$F$97 -> 10000 | AU97: =$F$97 -> 10000 | AV97: =$F$97 -> 10000 | AW97: =$F$97 -> 10000 | AX97: =$F$97 -> 10000 | AY97: =$F$97 -> 10000 | AZ97: =$F$97 -> 10000 | BA97: =$F$97 -> 10000 | BB97: =$F$97 -> 10000 | BC97: =$F$97 -> 10000 | BD97: =$F$97 -> 10000 | BE97: =$F$97 -> 10000 | BF97: =$F$97 -> 10000 | BG97: =$F$97 -> 10000 | BH97: =$F$97 -> 10000 | BI97: =$F$97 -> 10000 | BJ97: =$F$97 -> 10000 | BK97: =$F$97 -> 10000 | BL97: =$F$97 -> 10000 | BM97: =$F$97 -> 10000 | BN97: =$F$97 -> 10000 | BO97: =$F$97 -> 10000 | BP97: =$F$97 -> 10000 | BQ97: =$F$97 -> 10000 | BR97: =$F$97 -> 10000 | BS97: =$F$97 -> 10000 | BT97: =$F$97 -> 10000 | BU97: =$F$97 -> 10000 | BV97: =$F$97 -> 10000 | BW97: =$F$97 -> 10000 | BX97: =$F$97 -> 10000 | BY97: =$F$97 -> 10000 | BZ97: =$F$97 -> 10000 | CA97: =$F$97 -> 10000 | CB97: =$F$97 -> 10000 | CC97: =$F$97 -> 10000 | CD97: =$F$97 -> 10000 | CE97: =$F$97 -> 10000 | CF97: =$F$97 -> 10000 | CG97: =$F$97 -> 10000 | CH97: =$F$97 -> 10000 | CI97: =$F$97 -> 10000 | CJ97: =$F$97 -> 10000 | CK97: =$F$97 -> 10000 | CL97: =$F$97 -> 10000 | CM97: =$F$97 -> 10000 | CN97: =$F$97 -> 10000 | CO97: =$F$97 -> 10000 | CP97: =$F$97 -> 10000 | CQ97: =$F$97 -> 10000 | CR97: =$F$97 -> 10000 | CS97: =$F$97 -> 10000 | CT97: =$F$97 -> 10000 | CU97: =$F$97 -> 10000 | CV97: =$F$97 -> 10000 | CW97: =$F$97 -> 10000 | CX97: =$F$97 -> 10000 | CY97: =$F$97 -> 10000 | CZ97: =$F$97 -> 10000 | DA97: =$F$97 -> 10000 | DB97: =$F$97 -> 10000 | DC97: =$F$97 -> 10000 | DD97: =$F$97 -> 10000 | DE97: =$F$97 -> 10000 | DF97: =$F$97 -> 10000 | DG97: =$F$97 -> 10000 | DH97: =$F$97 -> 10000 | DI97: =$F$97 -> 10000 | DJ97: =$F$97 -> 10000 | DK97: =$F$97 -> 10000 | DL97: =$F$97 -> 10000 | DM97: =$F$97 -> 10000 | DN97: =$F$97 -> 10000 | DO97: =$F$97 -> 10000 | DP97: =$F$97 -> 10000 | DQ97: =$F$97 -> 10000 | DR97: =$F$97 -> 10000 | DS97: =$F$97 -> 10000 | DT97: =$F$97 -> 10000 | DU97: =$F$97 -> 10000 | DV97: =$F$97 -> 10000 | DW97: =$F$97 -> 10000 | DX97: =$F$97 -> 10000 | DY97: =$F$97 -> 10000
D98: Default | H98: =H96*H97*(H3+H4) -> 106.6300416 | I98: 223.0812712 | J98: 263.7690503 | K98: 256.753916 | L98: 231.4994324 | M98: 220.2752175 | N98: 183.7965191 | O98: 162.7511161 | P98: 147.3178206 | Q98: 131.8845251 | R98: 0 | S98: 0 | T98: 0 | U98: 0 | V98: 0 | W98: 0 | X98: 0 | Y98: 0 | Z98: 0 | AA98: 0 | AB98: 0 | AC98: 0 | AD98: 0 | AE98: 0 | AF98: 0 | AG98: 0 | AH98: 0 | AI98: 0 | AJ98: 0 | AK98: 0 | AL98: 0 | AM98: 0 | AN98: =AN96*AN97*(AN3+AN4) -> 0 | AO98: 0 | AP98: 0 | AQ98: 0 | AR98: 0 | AS98: 0 | AT98: 0 | AU98: 0 | AV98: 0 | AW98: 0 | AX98: 0 | AY98: 0 | AZ98: 0 | BA98: 0 | BB98: 0 | BC98: 0 | BD98: 0 | BE98: 0 | BF98: 0 | BG98: 0 | BH98: 0 | BI98: 0 | BJ98: 0 | BK98: 0 | BL98: 0 | BM98: 0 | BN98: 0 | BO98: 0 | BP98: 0 | BQ98: 0 | BR98: 0 | BS98: 0 | BT98: =BT96*BT97*(BT3+BT4) -> 0 | BU98: 0 | BV98: 0 | BW98: 0 | BX98: 0 | BY98: 0 | BZ98: 0 | CA98: 0 | CB98: 0 | CC98: 0 | CD98: 0 | CE98: 0 | CF98: 0 | CG98: 0 | CH98: 0 | CI98: 0 | CJ98: 0 | CK98: 0 | CL98: 0 | CM98: 0 | CN98: 0 | CO98: 0 | CP98: 0 | CQ98: 0 | CR98: 0 | CS98: 0 | CT98: 0 | CU98: 0 | CV98: 0 | CW98: 0 | CX98: 0 | CY98: 0 | CZ98: =CZ96*CZ97*(CZ3+CZ4) -> 0 | DA98: 0 | DB98: 0 | DC98: 0 | DD98: 0 | DE98: 0 | DF98: 0 | DG98: 0 | DH98: 0 | DI98: 0 | DJ98: 0 | DK98: 0 | DL98: 0 | DM98: 0 | DN98: 0 | DO98: 0 | DP98: 0 | DQ98: 0 | DR98: 0 | DS98: 0 | DT98: 0 | DU98: 0 | DV98: 0 | DW98: 0 | DX98: 0 | DY98: 0
D99: Accumulated | H99: =G99+H98 -> 106.6300416 | I99: =H99+I98 -> 329.7113128 | J99: 593.4803631 | K99: 850.2342791 | L99: 1081.733711 | M99: 1302.008929 | N99: 1485.805448 | O99: 1648.556564 | P99: 1795.874385 | Q99: 1927.75891 | R99: 1927.75891 | S99: 1927.75891 | T99: 1927.75891 | U99: 1927.75891 | V99: 1927.75891 | W99: 1927.75891 | X99: 1927.75891 | Y99: 1927.75891 | Z99: 1927.75891 | AA99: 1927.75891 | AB99: 1927.75891 | AC99: 1927.75891 | AD99: 1927.75891 | AE99: 1927.75891 | AF99: 1927.75891 | AG99: 1927.75891 | AH99: 1927.75891 | AI99: 1927.75891 | AJ99: 1927.75891 | AK99: 1927.75891 | AL99: 1927.75891 | AM99: 1927.75891 | AN99: 1927.75891 | AO99: 1927.75891 | AP99: 1927.75891 | AQ99: 1927.75891 | AR99: 1927.75891 | AS99: 1927.75891 | AT99: 1927.75891 | AU99: 1927.75891 | AV99: 1927.75891 | AW99: 1927.75891 | AX99: 1927.75891 | AY99: 1927.75891 | AZ99: 1927.75891 | BA99: 1927.75891 | BB99: 1927.75891 | BC99: 1927.75891 | BD99: 1927.75891 | BE99: 1927.75891 | BF99: 1927.75891 | BG99: 1927.75891 | BH99: 1927.75891 | BI99: 1927.75891 | BJ99: 1927.75891 | BK99: 1927.75891 | BL99: 1927.75891 | BM99: 1927.75891 | BN99: 1927.75891 | BO99: 1927.75891 | BP99: 1927.75891 | BQ99: 1927.75891 | BR99: 1927.75891 | BS99: 1927.75891 | BT99: 1927.75891 | BU99: =BT99+BU98 -> 1927.75891 | BV99: 1927.75891 | BW99: 1927.75891 | BX99: 1927.75891 | BY99: 1927.75891 | BZ99: 1927.75891 | CA99: 1927.75891 | CB99: 1927.75891 | CC99: 1927.75891 | CD99: 1927.75891 | CE99: 1927.75891 | CF99: 1927.75891 | CG99: 1927.75891 | CH99: 1927.75891 | CI99: 1927.75891 | CJ99: 1927.75891 | CK99: 1927.75891 | CL99: 1927.75891 | CM99: 1927.75891 | CN99: 1927.75891 | CO99: 1927.75891 | CP99: 1927.75891 | CQ99: 1927.75891 | CR99: 1927.75891 | CS99: 1927.75891 | CT99: 1927.75891 | CU99: 1927.75891 | CV99: 1927.75891 | CW99: 1927.75891 | CX99: 1927.75891 | CY99: 1927.75891 | CZ99: 1927.75891 | DA99: 1927.75891 | DB99: 1927.75891 | DC99: 1927.75891 | DD99: 1927.75891 | DE99: 1927.75891 | DF99: 1927.75891 | DG99: 1927.75891 | DH99: 1927.75891 | DI99: 1927.75891 | DJ99: 1927.75891 | DK99: 1927.75891 | DL99: 1927.75891 | DM99: 1927.75891 | DN99: 1927.75891 | DO99: 1927.75891 | DP99: 1927.75891 | DQ99: 1927.75891 | DR99: 1927.75891 | DS99: 1927.75891 | DT99: 1927.75891 | DU99: 1927.75891 | DV99: 1927.75891 | DW99: 1927.75891 | DX99: 1927.75891 | DY99: 1927.75891
D100: Interest Loss | F100: =F83 -> 0.069 | H100: =$F$100*G99*(H3+H4) -> 0 | I100: =$F$100*H99*(I3+I4) -> 7.35747287 | J100: =$F$100*I99*(J3+J4) -> 22.75008059 | K100: =$F$100*J99*(K3+K4) -> 40.95014505 | L100: =$F$100*K99*(L3+L4) -> 58.66616526 | M100: =$F$100*L99*(M3+M4) -> 74.63962609 | N100: =$F$100*M99*(N3+N4) -> 89.8386161 | O100: =$F$100*N99*(O3+O4) -> 102.5205759 | P100: =$F$100*O99*(P3+P4) -> 113.7504029 | Q100: =$F$100*P99*(Q3+Q4) -> 123.9153326 | R100: =$F$100*Q99*(R3+R4) -> 0 | S100: =$F$100*R99*(S3+S4) -> 0 | T100: =$F$100*S99*(T3+T4) -> 0 | U100: =$F$100*T99*(U3+U4) -> 0 | V100: =$F$100*U99*(V3+V4) -> 0 | W100: =$F$100*V99*(W3+W4) -> 0 | X100: =$F$100*W99*(X3+X4) -> 0 | Y100: =$F$100*X99*(Y3+Y4) -> 0 | Z100: =$F$100*Y99*(Z3+Z4) -> 0 | AA100: =$F$100*Z99*(AA3+AA4) -> 0 | AB100: =$F$100*AA99*(AB3+AB4) -> 0 | AC100: =$F$100*AB99*(AC3+AC4) -> 0 | AD100: =$F$100*AC99*(AD3+AD4) -> 0 | AE100: =$F$100*AD99*(AE3+AE4) -> 0 | AF100: =$F$100*AE99*(AF3+AF4) -> 0 | AG100: =$F$100*AF99*(AG3+AG4) -> 0 | AH100: =$F$100*AG99*(AH3+AH4) -> 0 | AI100: =$F$100*AH99*(AI3+AI4) -> 0 | AJ100: =$F$100*AI99*(AJ3+AJ4) -> 0 | AK100: =$F$100*AJ99*(AK3+AK4) -> 0 | AL100: =$F$100*AK99*(AL3+AL4) -> 0 | AM100: =$F$100*AL99*(AM3+AM4) -> 0 | AN100: =$F$100*AM99*(AN3+AN4) -> 0 | AO100: =$F$100*AN99*(AO3+AO4) -> 0 | AP100: =$F$100*AO99*(AP3+AP4) -> 0 | AQ100: =$F$100*AP99*(AQ3+AQ4) -> 0 | AR100: =$F$100*AQ99*(AR3+AR4) -> 0 | AS100: =$F$100*AR99*(AS3+AS4) -> 0 | AT100: =$F$100*AS99*(AT3+AT4) -> 0 | AU100: =$F$100*AT99*(AU3+AU4) -> 0 | AV100: =$F$100*AU99*(AV3+AV4) -> 0 | AW100: =$F$100*AV99*(AW3+AW4) -> 0 | AX100: =$F$100*AW99*(AX3+AX4) -> 0 | AY100: =$F$100*AX99*(AY3+AY4) -> 0 | AZ100: =$F$100*AY99*(AZ3+AZ4) -> 0 | BA100: =$F$100*AZ99*(BA3+BA4) -> 0 | BB100: =$F$100*BA99*(BB3+BB4) -> 0 | BC100: =$F$100*BB99*(BC3+BC4) -> 0 | BD100: =$F$100*BC99*(BD3+BD4) -> 0 | BE100: =$F$100*BD99*(BE3+BE4) -> 0 | BF100: =$F$100*BE99*(BF3+BF4) -> 0 | BG100: =$F$100*BF99*(BG3+BG4) -> 0 | BH100: =$F$100*BG99*(BH3+BH4) -> 0 | BI100: =$F$100*BH99*(BI3+BI4) -> 0 | BJ100: =$F$100*BI99*(BJ3+BJ4) -> 0 | BK100: =$F$100*BJ99*(BK3+BK4) -> 0 | BL100: =$F$100*BK99*(BL3+BL4) -> 0 | BM100: =$F$100*BL99*(BM3+BM4) -> 0 | BN100: =$F$100*BM99*(BN3+BN4) -> 0 | BO100: =$F$100*BN99*(BO3+BO4) -> 0 | BP100: =$F$100*BO99*(BP3+BP4) -> 0 | BQ100: =$F$100*BP99*(BQ3+BQ4) -> 0 | BR100: =$F$100*BQ99*(BR3+BR4) -> 0 | BS100: =$F$100*BR99*(BS3+BS4) -> 0 | BT100: =$F$100*BS99*(BT3+BT4) -> 0 | BU100: =$F$100*BT99*(BU3+BU4) -> 0 | BV100: =$F$100*BU99*(BV3+BV4) -> 0 | BW100: =$F$100*BV99*(BW3+BW4) -> 0 | BX100: =$F$100*BW99*(BX3+BX4) -> 0 | BY100: =$F$100*BX99*(BY3+BY4) -> 0 | BZ100: =$F$100*BY99*(BZ3+BZ4) -> 0 | CA100: =$F$100*BZ99*(CA3+CA4) -> 0 | CB100: =$F$100*CA99*(CB3+CB4) -> 0 | CC100: =$F$100*CB99*(CC3+CC4) -> 0 | CD100: =$F$100*CC99*(CD3+CD4) -> 0 | CE100: =$F$100*CD99*(CE3+CE4) -> 0 | CF100: =$F$100*CE99*(CF3+CF4) -> 0 | CG100: =$F$100*CF99*(CG3+CG4) -> 0 | CH100: =$F$100*CG99*(CH3+CH4) -> 0 | CI100: =$F$100*CH99*(CI3+CI4) -> 0 | CJ100: =$F$100*CI99*(CJ3+CJ4) -> 0 | CK100: =$F$100*CJ99*(CK3+CK4) -> 0 | CL100: =$F$100*CK99*(CL3+CL4) -> 0 | CM100: =$F$100*CL99*(CM3+CM4) -> 0 | CN100: =$F$100*CM99*(CN3+CN4) -> 0 | CO100: =$F$100*CN99*(CO3+CO4) -> 0 | CP100: =$F$100*CO99*(CP3+CP4) -> 0 | CQ100: =$F$100*CP99*(CQ3+CQ4) -> 0 | CR100: =$F$100*CQ99*(CR3+CR4) -> 0 | CS100: =$F$100*CR99*(CS3+CS4) -> 0 | CT100: =$F$100*CS99*(CT3+CT4) -> 0 | CU100: =$F$100*CT99*(CU3+CU4) -> 0 | CV100: =$F$100*CU99*(CV3+CV4) -> 0 | CW100: =$F$100*CV99*(CW3+CW4) -> 0 | CX100: =$F$100*CW99*(CX3+CX4) -> 0 | CY100: =$F$100*CX99*(CY3+CY4) -> 0 | CZ100: =$F$100*CY99*(CZ3+CZ4) -> 0 | DA100: =$F$100*CZ99*(DA3+DA4) -> 0 | DB100: =$F$100*DA99*(DB3+DB4) -> 0 | DC100: =$F$100*DB99*(DC3+DC4) -> 0 | DD100: =$F$100*DC99*(DD3+DD4) -> 0 | DE100: =$F$100*DD99*(DE3+DE4) -> 0 | DF100: =$F$100*DE99*(DF3+DF4) -> 0 | DG100: =$F$100*DF99*(DG3+DG4) -> 0 | DH100: =$F$100*DG99*(DH3+DH4) -> 0 | DI100: =$F$100*DH99*(DI3+DI4) -> 0 | DJ100: =$F$100*DI99*(DJ3+DJ4) -> 0 | DK100: =$F$100*DJ99*(DK3+DK4) -> 0 | DL100: =$F$100*DK99*(DL3+DL4) -> 0 | DM100: =$F$100*DL99*(DM3+DM4) -> 0 | DN100: =$F$100*DM99*(DN3+DN4) -> 0 | DO100: =$F$100*DN99*(DO3+DO4) -> 0 | DP100: =$F$100*DO99*(DP3+DP4) -> 0 | DQ100: =$F$100*DP99*(DQ3+DQ4) -> 0 | DR100: =$F$100*DQ99*(DR3+DR4) -> 0 | DS100: =$F$100*DR99*(DS3+DS4) -> 0 | DT100: =$F$100*DS99*(DT3+DT4) -> 0 | DU100: =$F$100*DT99*(DU3+DU4) -> 0 | DV100: =$F$100*DU99*(DV3+DV4) -> 0 | DW100: =$F$100*DV99*(DW3+DW4) -> 0 | DX100: =$F$100*DW99*(DX3+DX4) -> 0 | DY100: =$F$100*DX99*(DY3+DY4) -> 0
D101: Repayment Date | F101: =G3+G4 -> 10 | H101: =H88 -> FALSE | I101: FALSE | J101: FALSE | K101: FALSE | L101: FALSE | M101: FALSE | N101: FALSE | O101: FALSE | P101: FALSE | Q101: TRUE | R101: FALSE | S101: FALSE | T101: FALSE | U101: FALSE | V101: FALSE | W101: FALSE | X101: FALSE | Y101: FALSE | Z101: FALSE | AA101: FALSE | AB101: FALSE | AC101: FALSE | AD101: FALSE | AE101: FALSE | AF101: FALSE | AG101: FALSE | AH101: FALSE | AI101: FALSE | AJ101: FALSE | AK101: FALSE | AL101: FALSE | AM101: FALSE | AN101: =AN88 -> FALSE | AO101: FALSE | AP101: FALSE | AQ101: FALSE | AR101: FALSE | AS101: FALSE | AT101: FALSE | AU101: FALSE | AV101: FALSE | AW101: FALSE | AX101: FALSE | AY101: FALSE | AZ101: FALSE | BA101: FALSE | BB101: FALSE | BC101: FALSE | BD101: FALSE | BE101: FALSE | BF101: FALSE | BG101: FALSE | BH101: FALSE | BI101: FALSE | BJ101: FALSE | BK101: FALSE | BL101: FALSE | BM101: FALSE | BN101: FALSE | BO101: FALSE | BP101: FALSE | BQ101: FALSE | BR101: FALSE | BS101: FALSE | BT101: =BT88 -> FALSE | BU101: FALSE | BV101: FALSE | BW101: FALSE | BX101: FALSE | BY101: FALSE | BZ101: FALSE | CA101: FALSE | CB101: FALSE | CC101: FALSE | CD101: FALSE | CE101: FALSE | CF101: FALSE | CG101: FALSE | CH101: FALSE | CI101: FALSE | CJ101: FALSE | CK101: FALSE | CL101: FALSE | CM101: FALSE | CN101: FALSE | CO101: FALSE | CP101: FALSE | CQ101: FALSE | CR101: FALSE | CS101: FALSE | CT101: FALSE | CU101: FALSE | CV101: FALSE | CW101: FALSE | CX101: FALSE | CY101: FALSE | CZ101: =CZ88 -> FALSE | DA101: FALSE | DB101: FALSE | DC101: FALSE | DD101: FALSE | DE101: FALSE | DF101: FALSE | DG101: FALSE | DH101: FALSE | DI101: FALSE | DJ101: FALSE | DK101: FALSE | DL101: FALSE | DM101: FALSE | DN101: FALSE | DO101: FALSE | DP101: FALSE | DQ101: FALSE | DR101: FALSE | DS101: FALSE | DT101: FALSE | DU101: FALSE | DV101: FALSE | DW101: FALSE | DX101: FALSE | DY101: FALSE
D102: Repayment Loss | H102: =H101*H99 -> 0 | I102: =I101*I99 -> 0 | J102: 0 | K102: 0 | L102: 0 | M102: 0 | N102: 0 | O102: 0 | P102: 0 | Q102: 1927.75891 | R102: 0 | S102: 0 | T102: 0 | U102: 0 | V102: 0 | W102: 0 | X102: 0 | Y102: 0 | Z102: 0 | AA102: 0 | AB102: 0 | AC102: 0 | AD102: 0 | AE102: 0 | AF102: 0 | AG102: 0 | AH102: 0 | AI102: 0 | AJ102: 0 | AK102: 0 | AL102: 0 | AM102: 0 | AN102: 0 | AO102: 0 | AP102: 0 | AQ102: 0 | AR102: 0 | AS102: 0 | AT102: 0 | AU102: 0 | AV102: 0 | AW102: 0 | AX102: 0 | AY102: 0 | AZ102: 0 | BA102: 0 | BB102: 0 | BC102: 0 | BD102: 0 | BE102: 0 | BF102: 0 | BG102: 0 | BH102: 0 | BI102: 0 | BJ102: 0 | BK102: 0 | BL102: 0 | BM102: 0 | BN102: 0 | BO102: 0 | BP102: 0 | BQ102: 0 | BR102: 0 | BS102: 0 | BT102: 0 | BU102: =BU101*BU99 -> 0 | BV102: 0 | BW102: 0 | BX102: 0 | BY102: 0 | BZ102: 0 | CA102: 0 | CB102: 0 | CC102: 0 | CD102: 0 | CE102: 0 | CF102: 0 | CG102: 0 | CH102: 0 | CI102: 0 | CJ102: 0 | CK102: 0 | CL102: 0 | CM102: 0 | CN102: 0 | CO102: 0 | CP102: 0 | CQ102: 0 | CR102: 0 | CS102: 0 | CT102: 0 | CU102: 0 | CV102: 0 | CW102: 0 | CX102: 0 | CY102: 0 | CZ102: 0 | DA102: 0 | DB102: 0 | DC102: 0 | DD102: 0 | DE102: 0 | DF102: 0 | DG102: 0 | DH102: 0 | DI102: 0 | DJ102: 0 | DK102: 0 | DL102: 0 | DM102: 0 | DN102: 0 | DO102: 0 | DP102: 0 | DQ102: 0 | DR102: 0 | DS102: 0 | DT102: 0 | DU102: 0 | DV102: 0 | DW102: 0 | DX102: 0 | DY102: 0
D103: Total Loss from Default | H103: =H100+H102 -> 0 | I103: =I100+I102 -> 7.35747287 | J103: 22.75008059 | K103: 40.95014505 | L103: 58.66616526 | M103: 74.63962609 | N103: 89.8386161 | O103: 102.5205759 | P103: 113.7504029 | Q103: 2051.674243 | R103: 0 | S103: 0 | T103: 0 | U103: 0 | V103: 0 | W103: 0 | X103: 0 | Y103: 0 | Z103: 0 | AA103: 0 | AB103: 0 | AC103: 0 | AD103: 0 | AE103: 0 | AF103: 0 | AG103: 0 | AH103: 0 | AI103: 0 | AJ103: 0 | AK103: 0 | AL103: 0 | AM103: 0 | AN103: 0 | AO103: 0 | AP103: 0 | AQ103: 0 | AR103: 0 | AS103: 0 | AT103: 0 | AU103: 0 | AV103: 0 | AW103: 0 | AX103: 0 | AY103: 0 | AZ103: 0 | BA103: 0 | BB103: 0 | BC103: 0 | BD103: 0 | BE103: 0 | BF103: 0 | BG103: 0 | BH103: 0 | BI103: 0 | BJ103: 0 | BK103: 0 | BL103: 0 | BM103: 0 | BN103: 0 | BO103: 0 | BP103: 0 | BQ103: 0 | BR103: 0 | BS103: 0 | BT103: 0 | BU103: =BU100+BU102 -> 0 | BV103: 0 | BW103: 0 | BX103: 0 | BY103: 0 | BZ103: 0 | CA103: 0 | CB103: 0 | CC103: 0 | CD103: 0 | CE103: 0 | CF103: 0 | CG103: 0 | CH103: 0 | CI103: 0 | CJ103: 0 | CK103: 0 | CL103: 0 | CM103: 0 | CN103: 0 | CO103: 0 | CP103: 0 | CQ103: 0 | CR103: 0 | CS103: 0 | CT103: 0 | CU103: 0 | CV103: 0 | CW103: 0 | CX103: 0 | CY103: 0 | CZ103: 0 | DA103: 0 | DB103: 0 | DC103: 0 | DD103: 0 | DE103: 0 | DF103: 0 | DG103: 0 | DH103: 0 | DI103: 0 | DJ103: 0 | DK103: 0 | DL103: 0 | DM103: 0 | DN103: 0 | DO103: 0 | DP103: 0 | DQ103: 0 | DR103: 0 | DS103: 0 | DT103: 0 | DU103: 0 | DV103: 0 | DW103: 0 | DX103: 0 | DY103: 0
D104: Cash Flow with Default | F104: =SUM(H104:DY104) -> 1137.852673 | H104: =H91-H103 -> -9750 | I104: =I91-I103 -> 1793.753638 | J104: 1701.694364 | K104: 1606.827633 | L104: 1512.444946 | M104: 1419.804818 | N104: 1327.939162 | O104: 1238.590535 | P104: 1150.694042 | Q104: -863.8964648 | R104: 0 | S104: 0 | T104: 0 | U104: 0 | V104: 0 | W104: 0 | X104: 0 | Y104: 0 | Z104: 0 | AA104: 0 | AB104: 0 | AC104: 0 | AD104: 0 | AE104: 0 | AF104: 0 | AG104: 0 | AH104: 0 | AI104: 0 | AJ104: 0 | AK104: 0 | AL104: 0 | AM104: 0 | AN104: 0 | AO104: 0 | AP104: 0 | AQ104: 0 | AR104: 0 | AS104: 0 | AT104: 0 | AU104: 0 | AV104: 0 | AW104: 0 | AX104: 0 | AY104: 0 | AZ104: 0 | BA104: 0 | BB104: 0 | BC104: 0 | BD104: 0 | BE104: 0 | BF104: 0 | BG104: 0 | BH104: 0 | BI104: 0 | BJ104: 0 | BK104: 0 | BL104: 0 | BM104: 0 | BN104: 0 | BO104: 0 | BP104: 0 | BQ104: 0 | BR104: 0 | BS104: 0 | BT104: 0 | BU104: =BU91-BU103 -> 0 | BV104: 0 | BW104: 0 | BX104: 0 | BY104: 0 | BZ104: 0 | CA104: 0 | CB104: 0 | CC104: 0 | CD104: 0 | CE104: 0 | CF104: 0 | CG104: 0 | CH104: 0 | CI104: 0 | CJ104: 0 | CK104: 0 | CL104: 0 | CM104: 0 | CN104: 0 | CO104: 0 | CP104: 0 | CQ104: 0 | CR104: 0 | CS104: 0 | CT104: 0 | CU104: 0 | CV104: 0 | CW104: 0 | CX104: 0 | CY104: 0 | CZ104: 0 | DA104: 0 | DB104: 0 | DC104: 0 | DD104: 0 | DE104: 0 | DF104: 0 | DG104: 0 | DH104: 0 | DI104: 0 | DJ104: 0 | DK104: 0 | DL104: 0 | DM104: 0 | DN104: 0 | DO104: 0 | DP104: 0 | DQ104: 0 | DR104: 0 | DS104: 0 | DT104: 0 | DU104: 0 | DV104: 0 | DW104: 0 | DX104: 0 | DY104: 0
C106: Cost of Funding | F106: =F64 -> 0.03 | G106: =NPV(F106,H104:DY104) -> -0.003222537164
C107: IRR Realised | F107: =IRR(H104:DY104) -> 0.02999990474
C108: Difference | F108: =F106-F107 -> 9.525611921e-08
C109: Target
C110: Function | F110: =p_def(F97,F106,H91:DY91,H92:DY92,F95,F100,G3+G4) -> 0.0177716736
C111: Cumulative Default | F111: =LOOKUP(F101,90:90,93:93) -> 0.3212931517
C113: Total Defaults | F113: =SUM(98:98) -> 1927.75891
C114: Percent of Original Loan | F114: =F113/F97 -> 0.192775891
B117: Loss on Loan from Risk Rating
C118: Year | H118: 1 | I118: 2 | J118: 3 | K118: 4 | L118: 5 | M118: 6 | N118: 7 | O118: 8 | P118: 9 | Q118: 10 | R118: 11 | S118: 12 | T118: 13 | U118: 14 | V118: 15
C119: Incremental Default Rate | H119: ='Rating and PD'!F97 -> 0.0001734000055 | I119: ='Rating and PD'!G97 -> 0.0004734000055 | J119: ='Rating and PD'!H97 -> 0.0006664999862 | K119: ='Rating and PD'!I97 -> 0.001086700003 | L119: ='Rating and PD'!J97 -> 0.001113299997 | M119: ='Rating and PD'!K97 -> 0.0011 | N119: ='Rating and PD'!L97 -> 0.0009468000111 | O119: ='Rating and PD'!M97 -> 0.0008867000028 | P119: ='Rating and PD'!N97 -> 0.0007734000055 | Q119: ='Rating and PD'!O97 -> 0.0008734000055 | R119: ='Rating and PD'!P97 -> 0.0007335000138 | S119: ='Rating and PD'!Q97 -> 0.0006468000111 | T119: ='Rating and PD'!R97 -> 0.0007468000111 | U119: ='Rating and PD'!S97 -> 0.0007 | V119: ='Rating and PD'!T97 -> 0.0007 | W119: ='Rating and PD'!U97 -> 0 | X119: ='Rating and PD'!V97 -> 0 | Y119: ='Rating and PD'!W97 -> 0 | Z119: ='Rating and PD'!X97 -> 0 | AA119: ='Rating and PD'!Y97 -> 0 | AB119: ='Rating and PD'!Z97 -> 0 | AC119: ='Rating and PD'!AA97 -> 0 | AD119: ='Rating and PD'!AB97 -> 0 | AE119: ='Rating and PD'!AC97 -> 0 | AF119: ='Rating and PD'!AD97 -> 0 | AG119: ='Rating and PD'!AE97 -> 0 | AH119: ='Rating and PD'!AF97 -> 0 | AI119: ='Rating and PD'!AG97 -> 0 | AJ119: ='Rating and PD'!AH97 -> 0 | AK119: ='Rating and PD'!AI97 -> 0 | AL119: ='Rating and PD'!AJ97 -> 0 | AM119: ='Rating and PD'!AK97 -> 0 | AN119: ='Rating and PD'!AL97 -> 0 | AO119: ='Rating and PD'!AM97 -> 0 | AP119: ='Rating and PD'!AN97 -> 0 | AQ119: ='Rating and PD'!AO97 -> 0 | AR119: ='Rating and PD'!AP97 -> 0 | AS119: ='Rating and PD'!AQ97 -> 0 | AT119: ='Rating and PD'!AR97 -> 0 | AU119: ='Rating and PD'!AS97 -> 0 | AV119: ='Rating and PD'!AT97 -> 0 | AW119: ='Rating and PD'!AU97 -> 0 | AX119: ='Rating and PD'!AV97 -> 0 | AY119: ='Rating and PD'!AW97 -> 0 | AZ119: ='Rating and PD'!AX97 -> 0 | BA119: ='Rating and PD'!AY97 -> 0 | BB119: ='Rating and PD'!AZ97 -> 0 | BC119: ='Rating and PD'!BA97 -> 0 | BD119: ='Rating and PD'!BB97 -> 0 | BE119: ='Rating and PD'!BC97 -> 0 | BF119: ='Rating and PD'!BD97 -> 0 | BG119: ='Rating and PD'!BE97 -> 0 | BH119: ='Rating and PD'!BF97 -> 0 | BI119: ='Rating and PD'!BG97 -> 0 | BJ119: ='Rating and PD'!BH97 -> 0 | BK119: ='Rating and PD'!BI97 -> 0 | BL119: ='Rating and PD'!BJ97 -> 0 | BM119: ='Rating and PD'!BK97 -> 0 | BN119: ='Rating and PD'!BL97 -> 0 | BO119: ='Rating and PD'!BM97 -> 0 | BP119: ='Rating and PD'!BN97 -> 0 | BQ119: ='Rating and PD'!BO97 -> 0 | BR119: ='Rating and PD'!BP97 -> 0 | BS119: ='Rating and PD'!BQ97 -> 0 | BT119: ='Rating and PD'!BR97 -> 0 | BU119: ='Rating and PD'!BS97 -> 0 | BV119: ='Rating and PD'!BT97 -> 0 | BW119: ='Rating and PD'!BU97 -> 0 | BX119: ='Rating and PD'!BV97 -> 0 | BY119: ='Rating and PD'!BW97 -> 0 | BZ119: ='Rating and PD'!BX97 -> 0 | CA119: ='Rating and PD'!BY97 -> 0 | CB119: ='Rating and PD'!BZ97 -> 0 | CC119: ='Rating and PD'!CA97 -> 0 | CD119: ='Rating and PD'!CB97 -> 0 | CE119: ='Rating and PD'!CC97 -> 0 | CF119: ='Rating and PD'!CD97 -> 0 | CG119: ='Rating and PD'!CE97 -> 0 | CH119: ='Rating and PD'!CF97 -> 0 | CI119: ='Rating and PD'!CG97 -> 0 | CJ119: ='Rating and PD'!CH97 -> 0 | CK119: ='Rating and PD'!CI97 -> 0 | CL119: ='Rating and PD'!CJ97 -> 0 | CM119: ='Rating and PD'!CK97 -> 0 | CN119: ='Rating and PD'!CL97 -> 0 | CO119: ='Rating and PD'!CM97 -> 0 | CP119: ='Rating and PD'!CN97 -> 0 | CQ119: ='Rating and PD'!CO97 -> 0 | CR119: ='Rating and PD'!CP97 -> 0 | CS119: ='Rating and PD'!CQ97 -> 0 | CT119: ='Rating and PD'!CR97 -> 0 | CU119: ='Rating and PD'!CS97 -> 0 | CV119: ='Rating and PD'!CT97 -> 0 | CW119: ='Rating and PD'!CU97 -> 0 | CX119: ='Rating and PD'!CV97 -> 0 | CY119: ='Rating and PD'!CW97 -> 0 | CZ119: ='Rating and PD'!CX97 -> 0 | DA119: ='Rating and PD'!CY97 -> 0 | DB119: ='Rating and PD'!CZ97 -> 0 | DC119: ='Rating and PD'!DA97 -> 0 | DD119: ='Rating and PD'!DB97 -> 0 | DE119: ='Rating and PD'!DC97 -> 0 | DF119: ='Rating and PD'!DD97 -> 0 | DG119: ='Rating and PD'!DE97 -> 0 | DH119: ='Rating and PD'!DF97 -> 0 | DI119: ='Rating and PD'!DG97 -> 0 | DJ119: ='Rating and PD'!DH97 -> 0 | DK119: ='Rating and PD'!DI97 -> 0 | DL119: ='Rating and PD'!DJ97 -> 0 | DM119: ='Rating and PD'!DK97 -> 0 | DN119: ='Rating and PD'!DL97 -> 0 | DO119: ='Rating and PD'!DM97 -> 0 | DP119: ='Rating and PD'!DN97 -> 0 | DQ119: ='Rating and PD'!DO97 -> 0 | DR119: ='Rating and PD'!DP97 -> 0 | DS119: ='Rating and PD'!DQ97 -> 0 | DT119: ='Rating and PD'!DR97 -> 0 | DU119: ='Rating and PD'!DS97 -> 0 | DV119: ='Rating and PD'!DT97 -> 0 | DW119: ='Rating and PD'!DU97 -> 0 | DX119: ='Rating and PD'!DV97 -> 0 | DY119: ='Rating and PD'!DW97 -> 0
C121: Year of Repayment | H121: =H76 -> 1 | I121: 2 | J121: 3 | K121: 4 | L121: 5 | M121: 6 | N121: 7 | O121: 8 | P121: 9 | Q121: 10 | R121: 11 | S121: 12 | T121: 13 | U121: 14 | V121: 15 | W121: 16 | X121: 17 | Y121: 18 | Z121: 19 | AA121: 20 | AB121: 21 | AC121: 22 | AD121: 23 | AE121: 24 | AF121: 25 | AG121: 26 | AH121: 27 | AI121: 28 | AJ121: 29 | AK121: 30 | AL121: 31 | AM121: 32 | AN121: =AN76 -> 33 | AO121: 34 | AP121: 35 | AQ121: 36 | AR121: 37 | AS121: 38 | AT121: 39 | AU121: 40 | AV121: 41 | AW121: 42 | AX121: 43 | AY121: 44 | AZ121: 45 | BA121: 46 | BB121: 47 | BC121: 48 | BD121: 49 | BE121: 50 | BF121: 51 | BG121: 52 | BH121: 53 | BI121: 54 | BJ121: 55 | BK121: 56 | BL121: 57 | BM121: 58 | BN121: 59 | BO121: 60 | BP121: 61 | BQ121: 62 | BR121: 63 | BS121: 64 | BT121: =BT76 -> 65 | BU121: 66 | BV121: 67 | BW121: 68 | BX121: 69 | BY121: 70 | BZ121: 71 | CA121: 72 | CB121: 73 | CC121: 74 | CD121: 75 | CE121: 76 | CF121: 77 | CG121: 78 | CH121: 79 | CI121: 80 | CJ121: 81 | CK121: 82 | CL121: 83 | CM121: 84 | CN121: 85 | CO121: 86 | CP121: 87 | CQ121: 88 | CR121: 89 | CS121: 90 | CT121: 91 | CU121: 92 | CV121: 93 | CW121: 94 | CX121: 95 | CY121: 96 | CZ121: =CZ76 -> 97 | DA121: 98 | DB121: 99 | DC121: 100 | DD121: 101 | DE121: 102 | DF121: 103 | DG121: 104 | DH121: 105 | DI121: 106 | DJ121: 107 | DK121: 108 | DL121: 109 | DM121: 110 | DN121: 111 | DO121: 112 | DP121: 113 | DQ121: 114 | DR121: 115 | DS121: 116 | DT121: 117 | DU121: 118 | DV121: 119 | DW121: 120 | DX121: 121 | DY121: 122
C122: Probability of Default | H122: =LOOKUP(H121,118:118,119:119)/$F$8 -> 0.0001734000055 | I122: =LOOKUP(I121,118:118,119:119)/$F$8 -> 0.0004734000055 | J122: =LOOKUP(J121,118:118,119:119)/$F$8 -> 0.0006664999862 | K122: =LOOKUP(K121,118:118,119:119)/$F$8 -> 0.001086700003 | L122: =LOOKUP(L121,118:118,119:119)/$F$8 -> 0.001113299997 | M122: =LOOKUP(M121,118:118,119:119)/$F$8 -> 0.0011 | N122: =LOOKUP(N121,118:118,119:119)/$F$8 -> 0.0009468000111 | O122: =LOOKUP(O121,118:118,119:119)/$F$8 -> 0.0008867000028 | P122: =LOOKUP(P121,118:118,119:119)/$F$8 -> 0.0007734000055 | Q122: =LOOKUP(Q121,118:118,119:119)/$F$8 -> 0.0008734000055 | R122: =LOOKUP(R121,118:118,119:119)/$F$8 -> 0.0007335000138 | S122: =LOOKUP(S121,118:118,119:119)/$F$8 -> 0.0006468000111 | T122: =LOOKUP(T121,118:118,119:119)/$F$8 -> 0.0007468000111 | U122: =LOOKUP(U121,118:118,119:119)/$F$8 -> 0.0007 | V122: =LOOKUP(V121,118:118,119:119)/$F$8 -> 0.0007 | W122: =LOOKUP(W121,118:118,119:119)/$F$8 -> 0.0007 | X122: =LOOKUP(X121,118:118,119:119)/$F$8 -> 0.0007 | Y122: =LOOKUP(Y121,118:118,119:119)/$F$8 -> 0.0007 | Z122: =LOOKUP(Z121,118:118,119:119)/$F$8 -> 0.0007 | AA122: =LOOKUP(AA121,118:118,119:119)/$F$8 -> 0.0007 | AB122: =LOOKUP(AB121,118:118,119:119)/$F$8 -> 0.0007 | AC122: =LOOKUP(AC121,118:118,119:119)/$F$8 -> 0.0007 | AD122: =LOOKUP(AD121,118:118,119:119)/$F$8 -> 0.0007 | AE122: =LOOKUP(AE121,118:118,119:119)/$F$8 -> 0.0007 | AF122: =LOOKUP(AF121,118:118,119:119)/$F$8 -> 0.0007 | AG122: =LOOKUP(AG121,118:118,119:119)/$F$8 -> 0.0007 | AH122: =LOOKUP(AH121,118:118,119:119)/$F$8 -> 0.0007 | AI122: =LOOKUP(AI121,118:118,119:119)/$F$8 -> 0.0007 | AJ122: =LOOKUP(AJ121,118:118,119:119)/$F$8 -> 0.0007 | AK122: =LOOKUP(AK121,118:118,119:119)/$F$8 -> 0.0007 | AL122: =LOOKUP(AL121,118:118,119:119)/$F$8 -> 0.0007 | AM122: =LOOKUP(AM121,118:118,119:119)/$F$8 -> 0.0007 | AN122: =LOOKUP(AN121,118:118,119:119)/$F$8 -> 0.0007 | AO122: =LOOKUP(AO121,118:118,119:119)/$F$8 -> 0.0007 | AP122: =LOOKUP(AP121,118:118,119:119)/$F$8 -> 0.0007 | AQ122: =LOOKUP(AQ121,118:118,119:119)/$F$8 -> 0.0007 | AR122: =LOOKUP(AR121,118:118,119:119)/$F$8 -> 0.0007 | AS122: =LOOKUP(AS121,118:118,119:119)/$F$8 -> 0.0007 | AT122: =LOOKUP(AT121,118:118,119:119)/$F$8 -> 0.0007 | AU122: =LOOKUP(AU121,118:118,119:119)/$F$8 -> 0.0007 | AV122: =LOOKUP(AV121,118:118,119:119)/$F$8 -> 0.0007 | AW122: =LOOKUP(AW121,118:118,119:119)/$F$8 -> 0.0007 | AX122: =LOOKUP(AX121,118:118,119:119)/$F$8 -> 0.0007 | AY122: =LOOKUP(AY121,118:118,119:119)/$F$8 -> 0.0007 | AZ122: =LOOKUP(AZ121,118:118,119:119)/$F$8 -> 0.0007 | BA122: =LOOKUP(BA121,118:118,119:119)/$F$8 -> 0.0007 | BB122: =LOOKUP(BB121,118:118,119:119)/$F$8 -> 0.0007 | BC122: =LOOKUP(BC121,118:118,119:119)/$F$8 -> 0.0007 | BD122: =LOOKUP(BD121,118:118,119:119)/$F$8 -> 0.0007 | BE122: =LOOKUP(BE121,118:118,119:119)/$F$8 -> 0.0007 | BF122: =LOOKUP(BF121,118:118,119:119)/$F$8 -> 0.0007 | BG122: =LOOKUP(BG121,118:118,119:119)/$F$8 -> 0.0007 | BH122: =LOOKUP(BH121,118:118,119:119)/$F$8 -> 0.0007 | BI122: =LOOKUP(BI121,118:118,119:119)/$F$8 -> 0.0007 | BJ122: =LOOKUP(BJ121,118:118,119:119)/$F$8 -> 0.0007 | BK122: =LOOKUP(BK121,118:118,119:119)/$F$8 -> 0.0007 | BL122: =LOOKUP(BL121,118:118,119:119)/$F$8 -> 0.0007 | BM122: =LOOKUP(BM121,118:118,119:119)/$F$8 -> 0.0007 | BN122: =LOOKUP(BN121,118:118,119:119)/$F$8 -> 0.0007 | BO122: =LOOKUP(BO121,118:118,119:119)/$F$8 -> 0.0007 | BP122: =LOOKUP(BP121,118:118,119:119)/$F$8 -> 0.0007 | BQ122: =LOOKUP(BQ121,118:118,119:119)/$F$8 -> 0.0007 | BR122: =LOOKUP(BR121,118:118,119:119)/$F$8 -> 0.0007 | BS122: =LOOKUP(BS121,118:118,119:119)/$F$8 -> 0.0007 | BT122: =LOOKUP(BT121,118:118,119:119)/$F$8 -> 0.0007 | BU122: =LOOKUP(BU121,118:118,119:119)/$F$8 -> 0.0007 | BV122: =LOOKUP(BV121,118:118,119:119)/$F$8 -> 0.0007 | BW122: =LOOKUP(BW121,118:118,119:119)/$F$8 -> 0.0007 | BX122: =LOOKUP(BX121,118:118,119:119)/$F$8 -> 0.0007 | BY122: =LOOKUP(BY121,118:118,119:119)/$F$8 -> 0.0007 | BZ122: =LOOKUP(BZ121,118:118,119:119)/$F$8 -> 0.0007 | CA122: =LOOKUP(CA121,118:118,119:119)/$F$8 -> 0.0007 | CB122: =LOOKUP(CB121,118:118,119:119)/$F$8 -> 0.0007 | CC122: =LOOKUP(CC121,118:118,119:119)/$F$8 -> 0.0007 | CD122: =LOOKUP(CD121,118:118,119:119)/$F$8 -> 0.0007 | CE122: =LOOKUP(CE121,118:118,119:119)/$F$8 -> 0.0007 | CF122: =LOOKUP(CF121,118:118,119:119)/$F$8 -> 0.0007 | CG122: =LOOKUP(CG121,118:118,119:119)/$F$8 -> 0.0007 | CH122: =LOOKUP(CH121,118:118,119:119)/$F$8 -> 0.0007 | CI122: =LOOKUP(CI121,118:118,119:119)/$F$8 -> 0.0007 | CJ122: =LOOKUP(CJ121,118:118,119:119)/$F$8 -> 0.0007 | CK122: =LOOKUP(CK121,118:118,119:119)/$F$8 -> 0.0007 | CL122: =LOOKUP(CL121,118:118,119:119)/$F$8 -> 0.0007 | CM122: =LOOKUP(CM121,118:118,119:119)/$F$8 -> 0.0007 | CN122: =LOOKUP(CN121,118:118,119:119)/$F$8 -> 0.0007 | CO122: =LOOKUP(CO121,118:118,119:119)/$F$8 -> 0.0007 | CP122: =LOOKUP(CP121,118:118,119:119)/$F$8 -> 0.0007 | CQ122: =LOOKUP(CQ121,118:118,119:119)/$F$8 -> 0.0007 | CR122: =LOOKUP(CR121,118:118,119:119)/$F$8 -> 0.0007 | CS122: =LOOKUP(CS121,118:118,119:119)/$F$8 -> 0.0007 | CT122: =LOOKUP(CT121,118:118,119:119)/$F$8 -> 0.0007 | CU122: =LOOKUP(CU121,118:118,119:119)/$F$8 -> 0.0007 | CV122: =LOOKUP(CV121,118:118,119:119)/$F$8 -> 0.0007 | CW122: =LOOKUP(CW121,118:118,119:119)/$F$8 -> 0.0007 | CX122: =LOOKUP(CX121,118:118,119:119)/$F$8 -> 0.0007 | CY122: =LOOKUP(CY121,118:118,119:119)/$F$8 -> 0.0007 | CZ122: =LOOKUP(CZ121,118:118,119:119)/$F$8 -> 0.0007 | DA122: =LOOKUP(DA121,118:118,119:119)/$F$8 -> 0.0007 | DB122: =LOOKUP(DB121,118:118,119:119)/$F$8 -> 0.0007 | DC122: =LOOKUP(DC121,118:118,119:119)/$F$8 -> 0.0007 | DD122: =LOOKUP(DD121,118:118,119:119)/$F$8 -> 0.0007 | DE122: =LOOKUP(DE121,118:118,119:119)/$F$8 -> 0.0007 | DF122: =LOOKUP(DF121,118:118,119:119)/$F$8 -> 0.0007 | DG122: =LOOKUP(DG121,118:118,119:119)/$F$8 -> 0.0007 | DH122: =LOOKUP(DH121,118:118,119:119)/$F$8 -> 0.0007 | DI122: =LOOKUP(DI121,118:118,119:119)/$F$8 -> 0.0007 | DJ122: =LOOKUP(DJ121,118:118,119:119)/$F$8 -> 0.0007 | DK122: =LOOKUP(DK121,118:118,119:119)/$F$8 -> 0.0007 | DL122: =LOOKUP(DL121,118:118,119:119)/$F$8 -> 0.0007 | DM122: =LOOKUP(DM121,118:118,119:119)/$F$8 -> 0.0007 | DN122: =LOOKUP(DN121,118:118,119:119)/$F$8 -> 0.0007 | DO122: =LOOKUP(DO121,118:118,119:119)/$F$8 -> 0.0007 | DP122: =LOOKUP(DP121,118:118,119:119)/$F$8 -> 0.0007 | DQ122: =LOOKUP(DQ121,118:118,119:119)/$F$8 -> 0.0007 | DR122: =LOOKUP(DR121,118:118,119:119)/$F$8 -> 0.0007 | DS122: =LOOKUP(DS121,118:118,119:119)/$F$8 -> 0.0007 | DT122: =LOOKUP(DT121,118:118,119:119)/$F$8 -> 0.0007 | DU122: =LOOKUP(DU121,118:118,119:119)/$F$8 -> 0.0007 | DV122: =LOOKUP(DV121,118:118,119:119)/$F$8 -> 0.0007 | DW122: =LOOKUP(DW121,118:118,119:119)/$F$8 -> 0.0007 | DX122: =LOOKUP(DX121,118:118,119:119)/$F$8 -> 0.0007 | DY122: =LOOKUP(DY121,118:118,119:119)/$F$8 -> 0.0007
C123: Loss Given Default | F123: ='RAROC Analysis'!H28 -> 0.6 | H123: =$F$123 -> 0.6 | I123: =$F$123 -> 0.6 | J123: 0.6 | K123: 0.6 | L123: 0.6 | M123: 0.6 | N123: 0.6 | O123: 0.6 | P123: 0.6 | Q123: 0.6 | R123: 0.6 | S123: 0.6 | T123: 0.6 | U123: 0.6 | V123: 0.6 | W123: 0.6 | X123: 0.6 | Y123: 0.6 | Z123: 0.6 | AA123: 0.6 | AB123: 0.6 | AC123: 0.6 | AD123: 0.6 | AE123: 0.6 | AF123: 0.6 | AG123: 0.6 | AH123: 0.6 | AI123: 0.6 | AJ123: 0.6 | AK123: 0.6 | AL123: 0.6 | AM123: 0.6 | AN123: 0.6 | AO123: 0.6 | AP123: 0.6 | AQ123: 0.6 | AR123: 0.6 | AS123: 0.6 | AT123: 0.6 | AU123: 0.6 | AV123: 0.6 | AW123: 0.6 | AX123: 0.6 | AY123: 0.6 | AZ123: 0.6 | BA123: 0.6 | BB123: 0.6 | BC123: 0.6 | BD123: 0.6 | BE123: 0.6 | BF123: 0.6 | BG123: 0.6 | BH123: 0.6 | BI123: 0.6 | BJ123: 0.6 | BK123: 0.6 | BL123: 0.6 | BM123: 0.6 | BN123: 0.6 | BO123: 0.6 | BP123: 0.6 | BQ123: 0.6 | BR123: 0.6 | BS123: 0.6 | BT123: 0.6 | BU123: =$F$123 -> 0.6 | BV123: 0.6 | BW123: 0.6 | BX123: 0.6 | BY123: 0.6 | BZ123: 0.6 | CA123: 0.6 | CB123: 0.6 | CC123: 0.6 | CD123: 0.6 | CE123: 0.6 | CF123: 0.6 | CG123: 0.6 | CH123: 0.6 | CI123: 0.6 | CJ123: 0.6 | CK123: 0.6 | CL123: 0.6 | CM123: 0.6 | CN123: 0.6 | CO123: 0.6 | CP123: 0.6 | CQ123: 0.6 | CR123: 0.6 | CS123: 0.6 | CT123: 0.6 | CU123: 0.6 | CV123: 0.6 | CW123: 0.6 | CX123: 0.6 | CY123: 0.6 | CZ123: 0.6 | DA123: 0.6 | DB123: 0.6 | DC123: 0.6 | DD123: 0.6 | DE123: 0.6 | DF123: 0.6 | DG123: 0.6 | DH123: 0.6 | DI123: 0.6 | DJ123: 0.6 | DK123: 0.6 | DL123: 0.6 | DM123: 0.6 | DN123: 0.6 | DO123: 0.6 | DP123: 0.6 | DQ123: 0.6 | DR123: 0.6 | DS123: 0.6 | DT123: 0.6 | DU123: 0.6 | DV123: 0.6 | DW123: 0.6 | DX123: 0.6 | DY123: 0.6
C124: Net Loss Percent | H124: =H122*H123 -> 0.0001040400033 | I124: =I122*I123 -> 0.0002840400033 | J124: 0.0003998999917 | K124: 0.0006520200017 | L124: 0.0006679799983 | M124: 0.00066 | N124: 0.0005680800066 | O124: 0.0005320200017 | P124: 0.0004640400033 | Q124: 0.0005240400033 | R124: 0.0004401000083 | S124: 0.0003880800066 | T124: 0.0004480800066 | U124: 0.00042 | V124: 0.00042 | W124: 0.00042 | X124: 0.00042 | Y124: 0.00042 | Z124: 0.00042 | AA124: 0.00042 | AB124: 0.00042 | AC124: 0.00042 | AD124: 0.00042 | AE124: 0.00042 | AF124: 0.00042 | AG124: 0.00042 | AH124: 0.00042 | AI124: 0.00042 | AJ124: 0.00042 | AK124: 0.00042 | AL124: 0.00042 | AM124: 0.00042 | AN124: 0.00042 | AO124: 0.00042 | AP124: 0.00042 | AQ124: 0.00042 | AR124: 0.00042 | AS124: 0.00042 | AT124: 0.00042 | AU124: 0.00042 | AV124: 0.00042 | AW124: 0.00042 | AX124: 0.00042 | AY124: 0.00042 | AZ124: 0.00042 | BA124: 0.00042 | BB124: 0.00042 | BC124: 0.00042 | BD124: 0.00042 | BE124: 0.00042 | BF124: 0.00042 | BG124: 0.00042 | BH124: 0.00042 | BI124: 0.00042 | BJ124: 0.00042 | BK124: 0.00042 | BL124: 0.00042 | BM124: 0.00042 | BN124: 0.00042 | BO124: 0.00042 | BP124: 0.00042 | BQ124: 0.00042 | BR124: 0.00042 | BS124: 0.00042 | BT124: 0.00042 | BU124: =BU122*BU123 -> 0.00042 | BV124: 0.00042 | BW124: 0.00042 | BX124: 0.00042 | BY124: 0.00042 | BZ124: 0.00042 | CA124: 0.00042 | CB124: 0.00042 | CC124: 0.00042 | CD124: 0.00042 | CE124: 0.00042 | CF124: 0.00042 | CG124: 0.00042 | CH124: 0.00042 | CI124: 0.00042 | CJ124: 0.00042 | CK124: 0.00042 | CL124: 0.00042 | CM124: 0.00042 | CN124: 0.00042 | CO124: 0.00042 | CP124: 0.00042 | CQ124: 0.00042 | CR124: 0.00042 | CS124: 0.00042 | CT124: 0.00042 | CU124: 0.00042 | CV124: 0.00042 | CW124: 0.00042 | CX124: 0.00042 | CY124: 0.00042 | CZ124: 0.00042 | DA124: 0.00042 | DB124: 0.00042 | DC124: 0.00042 | DD124: 0.00042 | DE124: 0.00042 | DF124: 0.00042 | DG124: 0.00042 | DH124: 0.00042 | DI124: 0.00042 | DJ124: 0.00042 | DK124: 0.00042 | DL124: 0.00042 | DM124: 0.00042 | DN124: 0.00042 | DO124: 0.00042 | DP124: 0.00042 | DQ124: 0.00042 | DR124: 0.00042 | DS124: 0.00042 | DT124: 0.00042 | DU124: 0.00042 | DV124: 0.00042 | DW124: 0.00042 | DX124: 0.00042 | DY124: 0.00042
C125: Loan Balance for Loss Measurement | F125: =F32 -> 10000 | H125: =$F$125 -> 10000 | I125: =$F$125 -> 10000 | J125: 10000 | K125: 10000 | L125: 10000 | M125: 10000 | N125: 10000 | O125: 10000 | P125: 10000 | Q125: 10000 | R125: 10000 | S125: 10000 | T125: 10000 | U125: 10000 | V125: 10000 | W125: 10000 | X125: 10000 | Y125: 10000 | Z125: 10000 | AA125: 10000 | AB125: 10000 | AC125: 10000 | AD125: 10000 | AE125: 10000 | AF125: 10000 | AG125: 10000 | AH125: 10000 | AI125: 10000 | AJ125: 10000 | AK125: 10000 | AL125: 10000 | AM125: 10000 | AN125: 10000 | AO125: 10000 | AP125: 10000 | AQ125: 10000 | AR125: 10000 | AS125: 10000 | AT125: 10000 | AU125: 10000 | AV125: 10000 | AW125: 10000 | AX125: 10000 | AY125: 10000 | AZ125: 10000 | BA125: 10000 | BB125: 10000 | BC125: 10000 | BD125: 10000 | BE125: 10000 | BF125: 10000 | BG125: 10000 | BH125: 10000 | BI125: 10000 | BJ125: 10000 | BK125: 10000 | BL125: 10000 | BM125: 10000 | BN125: 10000 | BO125: 10000 | BP125: 10000 | BQ125: 10000 | BR125: 10000 | BS125: 10000 | BT125: 10000 | BU125: =$F$125 -> 10000 | BV125: 10000 | BW125: 10000 | BX125: 10000 | BY125: 10000 | BZ125: 10000 | CA125: 10000 | CB125: 10000 | CC125: 10000 | CD125: 10000 | CE125: 10000 | CF125: 10000 | CG125: 10000 | CH125: 10000 | CI125: 10000 | CJ125: 10000 | CK125: 10000 | CL125: 10000 | CM125: 10000 | CN125: 10000 | CO125: 10000 | CP125: 10000 | CQ125: 10000 | CR125: 10000 | CS125: 10000 | CT125: 10000 | CU125: 10000 | CV125: 10000 | CW125: 10000 | CX125: 10000 | CY125: 10000 | CZ125: 10000 | DA125: 10000 | DB125: 10000 | DC125: 10000 | DD125: 10000 | DE125: 10000 | DF125: 10000 | DG125: 10000 | DH125: 10000 | DI125: 10000 | DJ125: 10000 | DK125: 10000 | DL125: 10000 | DM125: 10000 | DN125: 10000 | DO125: 10000 | DP125: 10000 | DQ125: 10000 | DR125: 10000 | DS125: 10000 | DT125: 10000 | DU125: 10000 | DV125: 10000 | DW125: 10000 | DX125: 10000 | DY125: 10000
C126: Losses | H126: =H124*H125*(H3+H4) -> 1.040400033 | I126: 2.840400033 | J126: 3.998999917 | K126: 6.520200017 | L126: 6.679799983 | M126: 6.6 | N126: 5.680800066 | O126: 5.320200017 | P126: 4.640400033 | Q126: 5.240400033 | R126: 0 | S126: 0 | T126: 0 | U126: 0 | V126: 0 | W126: 0 | X126: 0 | Y126: 0 | Z126: 0 | AA126: 0 | AB126: 0 | AC126: 0 | AD126: 0 | AE126: 0 | AF126: 0 | AG126: 0 | AH126: 0 | AI126: 0 | AJ126: 0 | AK126: 0 | AL126: 0 | AM126: 0 | AN126: =AN124*AN125*(AN3+AN4) -> 0 | AO126: 0 | AP126: 0 | AQ126: 0 | AR126: 0 | AS126: 0 | AT126: 0 | AU126: 0 | AV126: 0 | AW126: 0 | AX126: 0 | AY126: 0 | AZ126: 0 | BA126: 0 | BB126: 0 | BC126: 0 | BD126: 0 | BE126: 0 | BF126: 0 | BG126: 0 | BH126: 0 | BI126: 0 | BJ126: 0 | BK126: 0 | BL126: 0 | BM126: 0 | BN126: 0 | BO126: 0 | BP126: 0 | BQ126: 0 | BR126: 0 | BS126: 0 | BT126: =BT124*BT125*(BT3+BT4) -> 0 | BU126: 0 | BV126: 0 | BW126: 0 | BX126: 0 | BY126: 0 | BZ126: 0 | CA126: 0 | CB126: 0 | CC126: 0 | CD126: 0 | CE126: 0 | CF126: 0 | CG126: 0 | CH126: 0 | CI126: 0 | CJ126: 0 | CK126: 0 | CL126: 0 | CM126: 0 | CN126: 0 | CO126: 0 | CP126: 0 | CQ126: 0 | CR126: 0 | CS126: 0 | CT126: 0 | CU126: 0 | CV126: 0 | CW126: 0 | CX126: 0 | CY126: 0 | CZ126: =CZ124*CZ125*(CZ3+CZ4) -> 0 | DA126: 0 | DB126: 0 | DC126: 0 | DD126: 0 | DE126: 0 | DF126: 0 | DG126: 0 | DH126: 0 | DI126: 0 | DJ126: 0 | DK126: 0 | DL126: 0 | DM126: 0 | DN126: 0 | DO126: 0 | DP126: 0 | DQ126: 0 | DR126: 0 | DS126: 0 | DT126: 0 | DU126: 0 | DV126: 0 | DW126: 0 | DX126: 0 | DY126: 0
C128: Loan Balance
D129: Opening Balance | H129: =G133 -> 0 | I129: =H133 -> 9750 | J129: 8666.666667 | K129: 7583.333333 | L129: 6500 | M129: 5416.666667 | N129: 4333.333333 | O129: 3250 | P129: 2166.666667 | Q129: 1083.333333 | R129: 0 | S129: 0 | T129: 0 | U129: 0 | V129: 0 | W129: 0 | X129: 0 | Y129: 0 | Z129: 0 | AA129: 0 | AB129: 0 | AC129: 0 | AD129: 0 | AE129: 0 | AF129: 0 | AG129: 0 | AH129: 0 | AI129: 0 | AJ129: 0 | AK129: 0 | AL129: 0 | AM129: 0 | AN129: 0 | AO129: 0 | AP129: 0 | AQ129: 0 | AR129: 0 | AS129: 0 | AT129: 0 | AU129: 0 | AV129: 0 | AW129: 0 | AX129: 0 | AY129: 0 | AZ129: 0 | BA129: 0 | BB129: 0 | BC129: 0 | BD129: 0 | BE129: 0 | BF129: 0 | BG129: 0 | BH129: 0 | BI129: 0 | BJ129: 0 | BK129: 0 | BL129: 0 | BM129: 0 | BN129: 0 | BO129: 0 | BP129: 0 | BQ129: 0 | BR129: 0 | BS129: 0 | BT129: 0 | BU129: =BT133 -> 0 | BV129: 0 | BW129: 0 | BX129: 0 | BY129: 0 | BZ129: 0 | CA129: 0 | CB129: 0 | CC129: 0 | CD129: 0 | CE129: 0 | CF129: 0 | CG129: 0 | CH129: 0 | CI129: 0 | CJ129: 0 | CK129: 0 | CL129: 0 | CM129: 0 | CN129: 0 | CO129: 0 | CP129: 0 | CQ129: 0 | CR129: 0 | CS129: 0 | CT129: 0 | CU129: 0 | CV129: 0 | CW129: 0 | CX129: 0 | CY129: 0 | CZ129: 0 | DA129: 0 | DB129: 0 | DC129: 0 | DD129: 0 | DE129: 0 | DF129: 0 | DG129: 0 | DH129: 0 | DI129: 0 | DJ129: 0 | DK129: 0 | DL129: 0 | DM129: 0 | DN129: 0 | DO129: 0 | DP129: 0 | DQ129: 0 | DR129: 0 | DS129: 0 | DT129: 0 | DU129: 0 | DV129: 0 | DW129: 0 | DX129: 0 | DY129: 0
D130: Add: Draws | H130: =H41 -> 10000 | I130: 0 | J130: 0 | K130: 0 | L130: 0 | M130: 0 | N130: 0 | O130: 0 | P130: 0 | Q130: 0 | R130: 0 | S130: 0 | T130: 0 | U130: 0 | V130: 0 | W130: 0 | X130: 0 | Y130: 0 | Z130: 0 | AA130: 0 | AB130: 0 | AC130: 0 | AD130: 0 | AE130: 0 | AF130: 0 | AG130: 0 | AH130: 0 | AI130: 0 | AJ130: 0 | AK130: 0 | AL130: 0 | AM130: 0 | AN130: =AN41 -> 0 | AO130: 0 | AP130: 0 | AQ130: 0 | AR130: 0 | AS130: 0 | AT130: 0 | AU130: 0 | AV130: 0 | AW130: 0 | AX130: 0 | AY130: 0 | AZ130: 0 | BA130: 0 | BB130: 0 | BC130: 0 | BD130: 0 | BE130: 0 | BF130: 0 | BG130: 0 | BH130: 0 | BI130: 0 | BJ130: 0 | BK130: 0 | BL130: 0 | BM130: 0 | BN130: 0 | BO130: 0 | BP130: 0 | BQ130: 0 | BR130: 0 | BS130: 0 | BT130: =BT41 -> 0 | BU130: 0 | BV130: 0 | BW130: 0 | BX130: 0 | BY130: 0 | BZ130: 0 | CA130: 0 | CB130: 0 | CC130: 0 | CD130: 0 | CE130: 0 | CF130: 0 | CG130: 0 | CH130: 0 | CI130: 0 | CJ130: 0 | CK130: 0 | CL130: 0 | CM130: 0 | CN130: 0 | CO130: 0 | CP130: 0 | CQ130: 0 | CR130: 0 | CS130: 0 | CT130: 0 | CU130: 0 | CV130: 0 | CW130: 0 | CX130: 0 | CY130: 0 | CZ130: =CZ41 -> 0 | DA130: 0 | DB130: 0 | DC130: 0 | DD130: 0 | DE130: 0 | DF130: 0 | DG130: 0 | DH130: 0 | DI130: 0 | DJ130: 0 | DK130: 0 | DL130: 0 | DM130: 0 | DN130: 0 | DO130: 0 | DP130: 0 | DQ130: 0 | DR130: 0 | DS130: 0 | DT130: 0 | DU130: 0 | DV130: 0 | DW130: 0 | DX130: 0 | DY130: 0
D131: Less: Fees | H131: =H48+H49+H50 -> 250 | I131: 0 | J131: 0 | K131: 0 | L131: 0 | M131: 0 | N131: 0 | O131: 0 | P131: 0 | Q131: 0 | R131: 0 | S131: 0 | T131: 0 | U131: 0 | V131: 0 | W131: 0 | X131: 0 | Y131: 0 | Z131: 0 | AA131: 0 | AB131: 0 | AC131: 0 | AD131: 0 | AE131: 0 | AF131: 0 | AG131: 0 | AH131: 0 | AI131: 0 | AJ131: 0 | AK131: 0 | AL131: 0 | AM131: 0 | AN131: =AN48+AN49+AN50 -> 0 | AO131: 0 | AP131: 0 | AQ131: 0 | AR131: 0 | AS131: 0 | AT131: 0 | AU131: 0 | AV131: 0 | AW131: 0 | AX131: 0 | AY131: 0 | AZ131: 0 | BA131: 0 | BB131: 0 | BC131: 0 | BD131: 0 | BE131: 0 | BF131: 0 | BG131: 0 | BH131: 0 | BI131: 0 | BJ131: 0 | BK131: 0 | BL131: 0 | BM131: 0 | BN131: 0 | BO131: 0 | BP131: 0 | BQ131: 0 | BR131: 0 | BS131: 0 | BT131: =BT48+BT49+BT50 -> 0 | BU131: 0 | BV131: 0 | BW131: 0 | BX131: 0 | BY131: 0 | BZ131: 0 | CA131: 0 | CB131: 0 | CC131: 0 | CD131: 0 | CE131: 0 | CF131: 0 | CG131: 0 | CH131: 0 | CI131: 0 | CJ131: 0 | CK131: 0 | CL131: 0 | CM131: 0 | CN131: 0 | CO131: 0 | CP131: 0 | CQ131: 0 | CR131: 0 | CS131: 0 | CT131: 0 | CU131: 0 | CV131: 0 | CW131: 0 | CX131: 0 | CY131: 0 | CZ131: =CZ48+CZ49+CZ50 -> 0 | DA131: 0 | DB131: 0 | DC131: 0 | DD131: 0 | DE131: 0 | DF131: 0 | DG131: 0 | DH131: 0 | DI131: 0 | DJ131: 0 | DK131: 0 | DL131: 0 | DM131: 0 | DN131: 0 | DO131: 0 | DP131: 0 | DQ131: 0 | DR131: 0 | DS131: 0 | DT131: 0 | DU131: 0 | DV131: 0 | DW131: 0 | DX131: 0 | DY131: 0
D132: Less: Repayment | H132: =$F$135*H36 -> 0 | I132: 1083.333333 | J132: 1083.333333 | K132: 1083.333333 | L132: 1083.333333 | M132: 1083.333333 | N132: 1083.333333 | O132: 1083.333333 | P132: 1083.333333 | Q132: 1083.333333 | R132: 0 | S132: 0 | T132: 0 | U132: 0 | V132: 0 | W132: 0 | X132: 0 | Y132: 0 | Z132: 0 | AA132: 0 | AB132: 0 | AC132: 0 | AD132: 0 | AE132: 0 | AF132: 0 | AG132: 0 | AH132: 0 | AI132: 0 | AJ132: 0 | AK132: 0 | AL132: 0 | AM132: 0 | AN132: =$F$135*AN36 -> 0 | AO132: 0 | AP132: 0 | AQ132: 0 | AR132: 0 | AS132: 0 | AT132: 0 | AU132: 0 | AV132: 0 | AW132: 0 | AX132: 0 | AY132: 0 | AZ132: 0 | BA132: 0 | BB132: 0 | BC132: 0 | BD132: 0 | BE132: 0 | BF132: 0 | BG132: 0 | BH132: 0 | BI132: 0 | BJ132: 0 | BK132: 0 | BL132: 0 | BM132: 0 | BN132: 0 | BO132: 0 | BP132: 0 | BQ132: 0 | BR132: 0 | BS132: 0 | BT132: =$F$135*BT36 -> 0 | BU132: 0 | BV132: 0 | BW132: 0 | BX132: 0 | BY132: 0 | BZ132: 0 | CA132: 0 | CB132: 0 | CC132: 0 | CD132: 0 | CE132: 0 | CF132: 0 | CG132: 0 | CH132: 0 | CI132: 0 | CJ132: 0 | CK132: 0 | CL132: 0 | CM132: 0 | CN132: 0 | CO132: 0 | CP132: 0 | CQ132: 0 | CR132: 0 | CS132: 0 | CT132: 0 | CU132: 0 | CV132: 0 | CW132: 0 | CX132: 0 | CY132: 0 | CZ132: =$F$135*CZ36 -> 0 | DA132: 0 | DB132: 0 | DC132: 0 | DD132: 0 | DE132: 0 | DF132: 0 | DG132: 0 | DH132: 0 | DI132: 0 | DJ132: 0 | DK132: 0 | DL132: 0 | DM132: 0 | DN132: 0 | DO132: 0 | DP132: 0 | DQ132: 0 | DR132: 0 | DS132: 0 | DT132: 0 | DU132: 0 | DV132: 0 | DW132: 0 | DX132: 0 | DY132: 0
D133: Closing Balance | H133: =H129+H130-H131-H132 -> 9750 | I133: =I129+I130-I131-I132 -> 8666.666667 | J133: 7583.333333 | K133: 6500 | L133: 5416.666667 | M133: 4333.333333 | N133: 3250 | O133: 2166.666667 | P133: 1083.333333 | Q133: 0 | R133: 0 | S133: 0 | T133: 0 | U133: 0 | V133: 0 | W133: 0 | X133: 0 | Y133: 0 | Z133: 0 | AA133: 0 | AB133: 0 | AC133: 0 | AD133: 0 | AE133: 0 | AF133: 0 | AG133: 0 | AH133: 0 | AI133: 0 | AJ133: 0 | AK133: 0 | AL133: 0 | AM133: 0 | AN133: 0 | AO133: 0 | AP133: 0 | AQ133: 0 | AR133: 0 | AS133: 0 | AT133: 0 | AU133: 0 | AV133: 0 | AW133: 0 | AX133: 0 | AY133: 0 | AZ133: 0 | BA133: 0 | BB133: 0 | BC133: 0 | BD133: 0 | BE133: 0 | BF133: 0 | BG133: 0 | BH133: 0 | BI133: 0 | BJ133: 0 | BK133: 0 | BL133: 0 | BM133: 0 | BN133: 0 | BO133: 0 | BP133: 0 | BQ133: 0 | BR133: 0 | BS133: 0 | BT133: 0 | BU133: =BU129+BU130-BU131-BU132 -> 0 | BV133: 0 | BW133: 0 | BX133: 0 | BY133: 0 | BZ133: 0 | CA133: 0 | CB133: 0 | CC133: 0 | CD133: 0 | CE133: 0 | CF133: 0 | CG133: 0 | CH133: 0 | CI133: 0 | CJ133: 0 | CK133: 0 | CL133: 0 | CM133: 0 | CN133: 0 | CO133: 0 | CP133: 0 | CQ133: 0 | CR133: 0 | CS133: 0 | CT133: 0 | CU133: 0 | CV133: 0 | CW133: 0 | CX133: 0 | CY133: 0 | CZ133: 0 | DA133: 0 | DB133: 0 | DC133: 0 | DD133: 0 | DE133: 0 | DF133: 0 | DG133: 0 | DH133: 0 | DI133: 0 | DJ133: 0 | DK133: 0 | DL133: 0 | DM133: 0 | DN133: 0 | DO133: 0 | DP133: 0 | DQ133: 0 | DR133: 0 | DS133: 0 | DT133: 0 | DU133: 0 | DV133: 0 | DW133: 0 | DX133: 0 | DY133: 0
D135: Accumulated Debt | F135: =SUM(130:130)-SUM(131:131) -> 9750
B137: Balance Sheet
C138: Assets
D139: Investments in Liquid Assets | G139: ='RAROC Analysis'!H9 -> 0.016 | H139: =$G$139*H140 -> 156 | I139: =$G$139*I140 -> 138.6666667 | J139: 121.3333333 | K139: 104 | L139: 86.66666667 | M139: 69.33333333 | N139: 52 | O139: 34.66666667 | P139: 17.33333333 | Q139: 0 | R139: 0 | S139: 0 | T139: 0 | U139: 0 | V139: 0 | W139: 0 | X139: 0 | Y139: 0 | Z139: 0 | AA139: 0 | AB139: 0 | AC139: 0 | AD139: 0 | AE139: 0 | AF139: 0 | AG139: 0 | AH139: 0 | AI139: 0 | AJ139: 0 | AK139: 0 | AL139: 0 | AM139: 0 | AN139: 0 | AO139: 0 | AP139: 0 | AQ139: 0 | AR139: 0 | AS139: 0 | AT139: 0 | AU139: 0 | AV139: 0 | AW139: 0 | AX139: 0 | AY139: 0 | AZ139: 0 | BA139: 0 | BB139: 0 | BC139: 0 | BD139: 0 | BE139: 0 | BF139: 0 | BG139: 0 | BH139: 0 | BI139: 0 | BJ139: 0 | BK139: 0 | BL139: 0 | BM139: 0 | BN139: 0 | BO139: 0 | BP139: 0 | BQ139: 0 | BR139: 0 | BS139: 0 | BT139: 0 | BU139: =$G$139*BU140 -> 0 | BV139: 0 | BW139: 0 | BX139: 0 | BY139: 0 | BZ139: 0 | CA139: 0 | CB139: 0 | CC139: 0 | CD139: 0 | CE139: 0 | CF139: 0 | CG139: 0 | CH139: 0 | CI139: 0 | CJ139: 0 | CK139: 0 | CL139: 0 | CM139: 0 | CN139: 0 | CO139: 0 | CP139: 0 | CQ139: 0 | CR139: 0 | CS139: 0 | CT139: 0 | CU139: 0 | CV139: 0 | CW139: 0 | CX139: 0 | CY139: 0 | CZ139: 0 | DA139: 0 | DB139: 0 | DC139: 0 | DD139: 0 | DE139: 0 | DF139: 0 | DG139: 0 | DH139: 0 | DI139: 0 | DJ139: 0 | DK139: 0 | DL139: 0 | DM139: 0 | DN139: 0 | DO139: 0 | DP139: 0 | DQ139: 0 | DR139: 0 | DS139: 0 | DT139: 0 | DU139: 0 | DV139: 0 | DW139: 0 | DX139: 0 | DY139: 0
D140: Loan Balance | H140: =H133 -> 9750 | I140: =I133 -> 8666.666667 | J140: 7583.333333 | K140: 6500 | L140: 5416.666667 | M140: 4333.333333 | N140: 3250 | O140: 2166.666667 | P140: 1083.333333 | Q140: 0 | R140: 0 | S140: 0 | T140: 0 | U140: 0 | V140: 0 | W140: 0 | X140: 0 | Y140: 0 | Z140: 0 | AA140: 0 | AB140: 0 | AC140: 0 | AD140: 0 | AE140: 0 | AF140: 0 | AG140: 0 | AH140: 0 | AI140: 0 | AJ140: 0 | AK140: 0 | AL140: 0 | AM140: 0 | AN140: 0 | AO140: 0 | AP140: 0 | AQ140: 0 | AR140: 0 | AS140: 0 | AT140: 0 | AU140: 0 | AV140: 0 | AW140: 0 | AX140: 0 | AY140: 0 | AZ140: 0 | BA140: 0 | BB140: 0 | BC140: 0 | BD140: 0 | BE140: 0 | BF140: 0 | BG140: 0 | BH140: 0 | BI140: 0 | BJ140: 0 | BK140: 0 | BL140: 0 | BM140: 0 | BN140: 0 | BO140: 0 | BP140: 0 | BQ140: 0 | BR140: 0 | BS140: 0 | BT140: 0 | BU140: =BU133 -> 0 | BV140: 0 | BW140: 0 | BX140: 0 | BY140: 0 | BZ140: 0 | CA140: 0 | CB140: 0 | CC140: 0 | CD140: 0 | CE140: 0 | CF140: 0 | CG140: 0 | CH140: 0 | CI140: 0 | CJ140: 0 | CK140: 0 | CL140: 0 | CM140: 0 | CN140: 0 | CO140: 0 | CP140: 0 | CQ140: 0 | CR140: 0 | CS140: 0 | CT140: 0 | CU140: 0 | CV140: 0 | CW140: 0 | CX140: 0 | CY140: 0 | CZ140: 0 | DA140: 0 | DB140: 0 | DC140: 0 | DD140: 0 | DE140: 0 | DF140: 0 | DG140: 0 | DH140: 0 | DI140: 0 | DJ140: 0 | DK140: 0 | DL140: 0 | DM140: 0 | DN140: 0 | DO140: 0 | DP140: 0 | DQ140: 0 | DR140: 0 | DS140: 0 | DT140: 0 | DU140: 0 | DV140: 0 | DW140: 0 | DX140: 0 | DY140: 0
E141: Total Assets | H141: =SUM(H139:H140) -> 9906 | I141: =SUM(I139:I140) -> 8805.333333 | J141: 7704.666667 | K141: 6604 | L141: 5503.333333 | M141: 4402.666667 | N141: 3302 | O141: 2201.333333 | P141: 1100.666667 | Q141: 0 | R141: 0 | S141: 0 | T141: 0 | U141: 0 | V141: 0 | W141: 0 | X141: 0 | Y141: 0 | Z141: 0 | AA141: 0 | AB141: 0 | AC141: 0 | AD141: 0 | AE141: 0 | AF141: 0 | AG141: 0 | AH141: 0 | AI141: 0 | AJ141: 0 | AK141: 0 | AL141: 0 | AM141: 0 | AN141: 0 | AO141: 0 | AP141: 0 | AQ141: 0 | AR141: 0 | AS141: 0 | AT141: 0 | AU141: 0 | AV141: 0 | AW141: 0 | AX141: 0 | AY141: 0 | AZ141: 0 | BA141: 0 | BB141: 0 | BC141: 0 | BD141: 0 | BE141: 0 | BF141: 0 | BG141: 0 | BH141: 0 | BI141: 0 | BJ141: 0 | BK141: 0 | BL141: 0 | BM141: 0 | BN141: 0 | BO141: 0 | BP141: 0 | BQ141: 0 | BR141: 0 | BS141: 0 | BT141: 0 | BU141: =SUM(BU139:BU140) -> 0 | BV141: 0 | BW141: 0 | BX141: 0 | BY141: 0 | BZ141: 0 | CA141: 0 | CB141: 0 | CC141: 0 | CD141: 0 | CE141: 0 | CF141: 0 | CG141: 0 | CH141: 0 | CI141: 0 | CJ141: 0 | CK141: 0 | CL141: 0 | CM141: 0 | CN141: 0 | CO141: 0 | CP141: 0 | CQ141: 0 | CR141: 0 | CS141: 0 | CT141: 0 | CU141: 0 | CV141: 0 | CW141: 0 | CX141: 0 | CY141: 0 | CZ141: 0 | DA141: 0 | DB141: 0 | DC141: 0 | DD141: 0 | DE141: 0 | DF141: 0 | DG141: 0 | DH141: 0 | DI141: 0 | DJ141: 0 | DK141: 0 | DL141: 0 | DM141: 0 | DN141: 0 | DO141: 0 | DP141: 0 | DQ141: 0 | DR141: 0 | DS141: 0 | DT141: 0 | DU141: 0 | DV141: 0 | DW141: 0 | DX141: 0 | DY141: 0
C143: Liabilities and Capital
D144: Deposits | H144: =H140 -> 9750 | I144: =I140 -> 8666.666667 | J144: 7583.333333 | K144: 6500 | L144: 5416.666667 | M144: 4333.333333 | N144: 3250 | O144: 2166.666667 | P144: 1083.333333 | Q144: 0 | R144: 0 | S144: 0 | T144: 0 | U144: 0 | V144: 0 | W144: 0 | X144: 0 | Y144: 0 | Z144: 0 | AA144: 0 | AB144: 0 | AC144: 0 | AD144: 0 | AE144: 0 | AF144: 0 | AG144: 0 | AH144: 0 | AI144: 0 | AJ144: 0 | AK144: 0 | AL144: 0 | AM144: 0 | AN144: 0 | AO144: 0 | AP144: 0 | AQ144: 0 | AR144: 0 | AS144: 0 | AT144: 0 | AU144: 0 | AV144: 0 | AW144: 0 | AX144: 0 | AY144: 0 | AZ144: 0 | BA144: 0 | BB144: 0 | BC144: 0 | BD144: 0 | BE144: 0 | BF144: 0 | BG144: 0 | BH144: 0 | BI144: 0 | BJ144: 0 | BK144: 0 | BL144: 0 | BM144: 0 | BN144: 0 | BO144: 0 | BP144: 0 | BQ144: 0 | BR144: 0 | BS144: 0 | BT144: 0 | BU144: =BU140 -> 0 | BV144: 0 | BW144: 0 | BX144: 0 | BY144: 0 | BZ144: 0 | CA144: 0 | CB144: 0 | CC144: 0 | CD144: 0 | CE144: 0 | CF144: 0 | CG144: 0 | CH144: 0 | CI144: 0 | CJ144: 0 | CK144: 0 | CL144: 0 | CM144: 0 | CN144: 0 | CO144: 0 | CP144: 0 | CQ144: 0 | CR144: 0 | CS144: 0 | CT144: 0 | CU144: 0 | CV144: 0 | CW144: 0 | CX144: 0 | CY144: 0 | CZ144: 0 | DA144: 0 | DB144: 0 | DC144: 0 | DD144: 0 | DE144: 0 | DF144: 0 | DG144: 0 | DH144: 0 | DI144: 0 | DJ144: 0 | DK144: 0 | DL144: 0 | DM144: 0 | DN144: 0 | DO144: 0 | DP144: 0 | DQ144: 0 | DR144: 0 | DS144: 0 | DT144: 0 | DU144: 0 | DV144: 0 | DW144: 0 | DX144: 0 | DY144: 0
D145: Total Capital Required | H145: =H141-H144 -> 156 | I145: =I141-I144 -> 138.6666667 | J145: 121.3333333 | K145: 104 | L145: 86.66666667 | M145: 69.33333333 | N145: 52 | O145: 34.66666667 | P145: 17.33333333 | Q145: 0 | R145: 0 | S145: 0 | T145: 0 | U145: 0 | V145: 0 | W145: 0 | X145: 0 | Y145: 0 | Z145: 0 | AA145: 0 | AB145: 0 | AC145: 0 | AD145: 0 | AE145: 0 | AF145: 0 | AG145: 0 | AH145: 0 | AI145: 0 | AJ145: 0 | AK145: 0 | AL145: 0 | AM145: 0 | AN145: 0 | AO145: 0 | AP145: 0 | AQ145: 0 | AR145: 0 | AS145: 0 | AT145: 0 | AU145: 0 | AV145: 0 | AW145: 0 | AX145: 0 | AY145: 0 | AZ145: 0 | BA145: 0 | BB145: 0 | BC145: 0 | BD145: 0 | BE145: 0 | BF145: 0 | BG145: 0 | BH145: 0 | BI145: 0 | BJ145: 0 | BK145: 0 | BL145: 0 | BM145: 0 | BN145: 0 | BO145: 0 | BP145: 0 | BQ145: 0 | BR145: 0 | BS145: 0 | BT145: 0 | BU145: =BU141-BU144 -> 0 | BV145: 0 | BW145: 0 | BX145: 0 | BY145: 0 | BZ145: 0 | CA145: 0 | CB145: 0 | CC145: 0 | CD145: 0 | CE145: 0 | CF145: 0 | CG145: 0 | CH145: 0 | CI145: 0 | CJ145: 0 | CK145: 0 | CL145: 0 | CM145: 0 | CN145: 0 | CO145: 0 | CP145: 0 | CQ145: 0 | CR145: 0 | CS145: 0 | CT145: 0 | CU145: 0 | CV145: 0 | CW145: 0 | CX145: 0 | CY145: 0 | CZ145: 0 | DA145: 0 | DB145: 0 | DC145: 0 | DD145: 0 | DE145: 0 | DF145: 0 | DG145: 0 | DH145: 0 | DI145: 0 | DJ145: 0 | DK145: 0 | DL145: 0 | DM145: 0 | DN145: 0 | DO145: 0 | DP145: 0 | DQ145: 0 | DR145: 0 | DS145: 0 | DT145: 0 | DU145: 0 | DV145: 0 | DW145: 0 | DX145: 0 | DY145: 0
E146: Total | H146: =SUM(H144:H145) -> 9906 | I146: =SUM(I144:I145) -> 8805.333333 | J146: 7704.666667 | K146: 6604 | L146: 5503.333333 | M146: 4402.666667 | N146: 3302 | O146: 2201.333333 | P146: 1100.666667 | Q146: 0 | R146: 0 | S146: 0 | T146: 0 | U146: 0 | V146: 0 | W146: 0 | X146: 0 | Y146: 0 | Z146: 0 | AA146: 0 | AB146: 0 | AC146: 0 | AD146: 0 | AE146: 0 | AF146: 0 | AG146: 0 | AH146: 0 | AI146: 0 | AJ146: 0 | AK146: 0 | AL146: 0 | AM146: 0 | AN146: 0 | AO146: 0 | AP146: 0 | AQ146: 0 | AR146: 0 | AS146: 0 | AT146: 0 | AU146: 0 | AV146: 0 | AW146: 0 | AX146: 0 | AY146: 0 | AZ146: 0 | BA146: 0 | BB146: 0 | BC146: 0 | BD146: 0 | BE146: 0 | BF146: 0 | BG146: 0 | BH146: 0 | BI146: 0 | BJ146: 0 | BK146: 0 | BL146: 0 | BM146: 0 | BN146: 0 | BO146: 0 | BP146: 0 | BQ146: 0 | BR146: 0 | BS146: 0 | BT146: 0 | BU146: =SUM(BU144:BU145) -> 0 | BV146: 0 | BW146: 0 | BX146: 0 | BY146: 0 | BZ146: 0 | CA146: 0 | CB146: 0 | CC146: 0 | CD146: 0 | CE146: 0 | CF146: 0 | CG146: 0 | CH146: 0 | CI146: 0 | CJ146: 0 | CK146: 0 | CL146: 0 | CM146: 0 | CN146: 0 | CO146: 0 | CP146: 0 | CQ146: 0 | CR146: 0 | CS146: 0 | CT146: 0 | CU146: 0 | CV146: 0 | CW146: 0 | CX146: 0 | CY146: 0 | CZ146: 0 | DA146: 0 | DB146: 0 | DC146: 0 | DD146: 0 | DE146: 0 | DF146: 0 | DG146: 0 | DH146: 0 | DI146: 0 | DJ146: 0 | DK146: 0 | DL146: 0 | DM146: 0 | DN146: 0 | DO146: 0 | DP146: 0 | DQ146: 0 | DR146: 0 | DS146: 0 | DT146: 0 | DU146: 0 | DV146: 0 | DW146: 0 | DX146: 0 | DY146: 0
C148: Cost of Deposits | G148: ='RAROC Analysis'!H25/'IRR Analysis'!F8 -> 0.03 | H148: =$G$148*G144 -> 0 | I148: =$G$148*H144 -> 292.5 | J148: 260 | K148: 227.5 | L148: 195 | M148: 162.5 | N148: 130 | O148: 97.5 | P148: 65 | Q148: 32.5 | R148: 0 | S148: 0 | T148: 0 | U148: 0 | V148: 0 | W148: 0 | X148: 0 | Y148: 0 | Z148: 0 | AA148: 0 | AB148: 0 | AC148: 0 | AD148: 0 | AE148: 0 | AF148: 0 | AG148: 0 | AH148: 0 | AI148: 0 | AJ148: 0 | AK148: 0 | AL148: 0 | AM148: 0 | AN148: 0 | AO148: 0 | AP148: 0 | AQ148: 0 | AR148: 0 | AS148: 0 | AT148: 0 | AU148: 0 | AV148: 0 | AW148: 0 | AX148: 0 | AY148: 0 | AZ148: 0 | BA148: 0 | BB148: 0 | BC148: 0 | BD148: 0 | BE148: 0 | BF148: 0 | BG148: 0 | BH148: 0 | BI148: 0 | BJ148: 0 | BK148: 0 | BL148: 0 | BM148: 0 | BN148: 0 | BO148: 0 | BP148: 0 | BQ148: 0 | BR148: 0 | BS148: 0 | BT148: 0 | BU148: =$G$148*BT144 -> 0 | BV148: 0 | BW148: 0 | BX148: 0 | BY148: 0 | BZ148: 0 | CA148: 0 | CB148: 0 | CC148: 0 | CD148: 0 | CE148: 0 | CF148: 0 | CG148: 0 | CH148: 0 | CI148: 0 | CJ148: 0 | CK148: 0 | CL148: 0 | CM148: 0 | CN148: 0 | CO148: 0 | CP148: 0 | CQ148: 0 | CR148: 0 | CS148: 0 | CT148: 0 | CU148: 0 | CV148: 0 | CW148: 0 | CX148: 0 | CY148: 0 | CZ148: 0 | DA148: 0 | DB148: 0 | DC148: 0 | DD148: 0 | DE148: 0 | DF148: 0 | DG148: 0 | DH148: 0 | DI148: 0 | DJ148: 0 | DK148: 0 | DL148: 0 | DM148: 0 | DN148: 0 | DO148: 0 | DP148: 0 | DQ148: 0 | DR148: 0 | DS148: 0 | DT148: 0 | DU148: 0 | DV148: 0 | DW148: 0 | DX148: 0 | DY148: 0
C149: Return on Liquid Assets | G149: ='RAROC Analysis'!H26/'IRR Analysis'!F8 -> 0.015 | H149: =$G$149*G145 -> 0 | I149: =$G$149*H145 -> 2.34 | J149: 2.08 | K149: 1.82 | L149: 1.56 | M149: 1.3 | N149: 1.04 | O149: 0.78 | P149: 0.52 | Q149: 0.26 | R149: 0 | S149: 0 | T149: 0 | U149: 0 | V149: 0 | W149: 0 | X149: 0 | Y149: 0 | Z149: 0 | AA149: 0 | AB149: 0 | AC149: 0 | AD149: 0 | AE149: 0 | AF149: 0 | AG149: 0 | AH149: 0 | AI149: 0 | AJ149: 0 | AK149: 0 | AL149: 0 | AM149: 0 | AN149: 0 | AO149: 0 | AP149: 0 | AQ149: 0 | AR149: 0 | AS149: 0 | AT149: 0 | AU149: 0 | AV149: 0 | AW149: 0 | AX149: 0 | AY149: 0 | AZ149: 0 | BA149: 0 | BB149: 0 | BC149: 0 | BD149: 0 | BE149: 0 | BF149: 0 | BG149: 0 | BH149: 0 | BI149: 0 | BJ149: 0 | BK149: 0 | BL149: 0 | BM149: 0 | BN149: 0 | BO149: 0 | BP149: 0 | BQ149: 0 | BR149: 0 | BS149: 0 | BT149: 0 | BU149: =$G$149*BT145 -> 0 | BV149: 0 | BW149: 0 | BX149: 0 | BY149: 0 | BZ149: 0 | CA149: 0 | CB149: 0 | CC149: 0 | CD149: 0 | CE149: 0 | CF149: 0 | CG149: 0 | CH149: 0 | CI149: 0 | CJ149: 0 | CK149: 0 | CL149: 0 | CM149: 0 | CN149: 0 | CO149: 0 | CP149: 0 | CQ149: 0 | CR149: 0 | CS149: 0 | CT149: 0 | CU149: 0 | CV149: 0 | CW149: 0 | CX149: 0 | CY149: 0 | CZ149: 0 | DA149: 0 | DB149: 0 | DC149: 0 | DD149: 0 | DE149: 0 | DF149: 0 | DG149: 0 | DH149: 0 | DI149: 0 | DJ149: 0 | DK149: 0 | DL149: 0 | DM149: 0 | DN149: 0 | DO149: 0 | DP149: 0 | DQ149: 0 | DR149: 0 | DS149: 0 | DT149: 0 | DU149: 0 | DV149: 0 | DW149: 0 | DX149: 0 | DY149: 0
B151: Profit and Loss
C152: Interest Income from Loan | H152: =H44 -> 0 | I152: 690 | J152: 613.3333333 | K152: 536.6666667 | L152: 460 | M152: 383.3333333 | N152: 306.6666667 | O152: 230 | P152: 153.3333333 | Q152: 76.66666667 | R152: 0 | S152: 0 | T152: 0 | U152: 0 | V152: 0 | W152: 0 | X152: 0 | Y152: 0 | Z152: 0 | AA152: 0 | AB152: 0 | AC152: 0 | AD152: 0 | AE152: 0 | AF152: 0 | AG152: 0 | AH152: 0 | AI152: 0 | AJ152: 0 | AK152: 0 | AL152: 0 | AM152: 0 | AN152: =AN44 -> 0 | AO152: 0 | AP152: 0 | AQ152: 0 | AR152: 0 | AS152: 0 | AT152: 0 | AU152: 0 | AV152: 0 | AW152: 0 | AX152: 0 | AY152: 0 | AZ152: 0 | BA152: 0 | BB152: 0 | BC152: 0 | BD152: 0 | BE152: 0 | BF152: 0 | BG152: 0 | BH152: 0 | BI152: 0 | BJ152: 0 | BK152: 0 | BL152: 0 | BM152: 0 | BN152: 0 | BO152: 0 | BP152: 0 | BQ152: 0 | BR152: 0 | BS152: 0 | BT152: =BT44 -> 0 | BU152: 0 | BV152: 0 | BW152: 0 | BX152: 0 | BY152: 0 | BZ152: 0 | CA152: 0 | CB152: 0 | CC152: 0 | CD152: 0 | CE152: 0 | CF152: 0 | CG152: 0 | CH152: 0 | CI152: 0 | CJ152: 0 | CK152: 0 | CL152: 0 | CM152: 0 | CN152: 0 | CO152: 0 | CP152: 0 | CQ152: 0 | CR152: 0 | CS152: 0 | CT152: 0 | CU152: 0 | CV152: 0 | CW152: 0 | CX152: 0 | CY152: 0 | CZ152: =CZ44 -> 0 | DA152: 0 | DB152: 0 | DC152: 0 | DD152: 0 | DE152: 0 | DF152: 0 | DG152: 0 | DH152: 0 | DI152: 0 | DJ152: 0 | DK152: 0 | DL152: 0 | DM152: 0 | DN152: 0 | DO152: 0 | DP152: 0 | DQ152: 0 | DR152: 0 | DS152: 0 | DT152: 0 | DU152: 0 | DV152: 0 | DW152: 0 | DX152: 0 | DY152: 0
C153: Add: Fees Earned
C154: Add: Interest on Safe Investments | H154: =H149 -> 0 | I154: =I149 -> 2.34 | J154: 2.08 | K154: 1.82 | L154: 1.56 | M154: 1.3 | N154: 1.04 | O154: 0.78 | P154: 0.52 | Q154: 0.26 | R154: 0 | S154: 0 | T154: 0 | U154: 0 | V154: 0 | W154: 0 | X154: 0 | Y154: 0 | Z154: 0 | AA154: 0 | AB154: 0 | AC154: 0 | AD154: 0 | AE154: 0 | AF154: 0 | AG154: 0 | AH154: 0 | AI154: 0 | AJ154: 0 | AK154: 0 | AL154: 0 | AM154: 0 | AN154: 0 | AO154: 0 | AP154: 0 | AQ154: 0 | AR154: 0 | AS154: 0 | AT154: 0 | AU154: 0 | AV154: 0 | AW154: 0 | AX154: 0 | AY154: 0 | AZ154: 0 | BA154: 0 | BB154: 0 | BC154: 0 | BD154: 0 | BE154: 0 | BF154: 0 | BG154: 0 | BH154: 0 | BI154: 0 | BJ154: 0 | BK154: 0 | BL154: 0 | BM154: 0 | BN154: 0 | BO154: 0 | BP154: 0 | BQ154: 0 | BR154: 0 | BS154: 0 | BT154: 0 | BU154: =BU149 -> 0 | BV154: 0 | BW154: 0 | BX154: 0 | BY154: 0 | BZ154: 0 | CA154: 0 | CB154: 0 | CC154: 0 | CD154: 0 | CE154: 0 | CF154: 0 | CG154: 0 | CH154: 0 | CI154: 0 | CJ154: 0 | CK154: 0 | CL154: 0 | CM154: 0 | CN154: 0 | CO154: 0 | CP154: 0 | CQ154: 0 | CR154: 0 | CS154: 0 | CT154: 0 | CU154: 0 | CV154: 0 | CW154: 0 | CX154: 0 | CY154: 0 | CZ154: 0 | DA154: 0 | DB154: 0 | DC154: 0 | DD154: 0 | DE154: 0 | DF154: 0 | DG154: 0 | DH154: 0 | DI154: 0 | DJ154: 0 | DK154: 0 | DL154: 0 | DM154: 0 | DN154: 0 | DO154: 0 | DP154: 0 | DQ154: 0 | DR154: 0 | DS154: 0 | DT154: 0 | DU154: 0 | DV154: 0 | DW154: 0 | DX154: 0 | DY154: 0
C155: Less: Cost of Deposits | H155: =-H148 -> 0 | I155: =-I148 -> -292.5 | J155: -260 | K155: -227.5 | L155: -195 | M155: -162.5 | N155: -130 | O155: -97.5 | P155: -65 | Q155: -32.5 | R155: 0 | S155: 0 | T155: 0 | U155: 0 | V155: 0 | W155: 0 | X155: 0 | Y155: 0 | Z155: 0 | AA155: 0 | AB155: 0 | AC155: 0 | AD155: 0 | AE155: 0 | AF155: 0 | AG155: 0 | AH155: 0 | AI155: 0 | AJ155: 0 | AK155: 0 | AL155: 0 | AM155: 0 | AN155: 0 | AO155: 0 | AP155: 0 | AQ155: 0 | AR155: 0 | AS155: 0 | AT155: 0 | AU155: 0 | AV155: 0 | AW155: 0 | AX155: 0 | AY155: 0 | AZ155: 0 | BA155: 0 | BB155: 0 | BC155: 0 | BD155: 0 | BE155: 0 | BF155: 0 | BG155: 0 | BH155: 0 | BI155: 0 | BJ155: 0 | BK155: 0 | BL155: 0 | BM155: 0 | BN155: 0 | BO155: 0 | BP155: 0 | BQ155: 0 | BR155: 0 | BS155: 0 | BT155: 0 | BU155: =-BU148 -> 0 | BV155: 0 | BW155: 0 | BX155: 0 | BY155: 0 | BZ155: 0 | CA155: 0 | CB155: 0 | CC155: 0 | CD155: 0 | CE155: 0 | CF155: 0 | CG155: 0 | CH155: 0 | CI155: 0 | CJ155: 0 | CK155: 0 | CL155: 0 | CM155: 0 | CN155: 0 | CO155: 0 | CP155: 0 | CQ155: 0 | CR155: 0 | CS155: 0 | CT155: 0 | CU155: 0 | CV155: 0 | CW155: 0 | CX155: 0 | CY155: 0 | CZ155: 0 | DA155: 0 | DB155: 0 | DC155: 0 | DD155: 0 | DE155: 0 | DF155: 0 | DG155: 0 | DH155: 0 | DI155: 0 | DJ155: 0 | DK155: 0 | DL155: 0 | DM155: 0 | DN155: 0 | DO155: 0 | DP155: 0 | DQ155: 0 | DR155: 0 | DS155: 0 | DT155: 0 | DU155: 0 | DV155: 0 | DW155: 0 | DX155: 0 | DY155: 0
C156: Less: Loss Provision | H156: =-H124*H40 -> 0 | I156: -2.840400033 | J156: -3.554666593 | K156: -5.07126668 | L156: -4.453199989 | M156: -3.666666667 | N156: -2.52480003 | O156: -1.773400006 | P156: -1.031200007 | Q156: -0.5822666704 | R156: 0 | S156: 0 | T156: 0 | U156: 0 | V156: 0 | W156: 0 | X156: 0 | Y156: 0 | Z156: 0 | AA156: 0 | AB156: 0 | AC156: 0 | AD156: 0 | AE156: 0 | AF156: 0 | AG156: 0 | AH156: 0 | AI156: 0 | AJ156: 0 | AK156: 0 | AL156: 0 | AM156: 0 | AN156: =-AN124*AN40 -> 0 | AO156: 0 | AP156: 0 | AQ156: 0 | AR156: 0 | AS156: 0 | AT156: 0 | AU156: 0 | AV156: 0 | AW156: 0 | AX156: 0 | AY156: 0 | AZ156: 0 | BA156: 0 | BB156: 0 | BC156: 0 | BD156: 0 | BE156: 0 | BF156: 0 | BG156: 0 | BH156: 0 | BI156: 0 | BJ156: 0 | BK156: 0 | BL156: 0 | BM156: 0 | BN156: 0 | BO156: 0 | BP156: 0 | BQ156: 0 | BR156: 0 | BS156: 0 | BT156: =-BT124*BT40 -> 0 | BU156: 0 | BV156: 0 | BW156: 0 | BX156: 0 | BY156: 0 | BZ156: 0 | CA156: 0 | CB156: 0 | CC156: 0 | CD156: 0 | CE156: 0 | CF156: 0 | CG156: 0 | CH156: 0 | CI156: 0 | CJ156: 0 | CK156: 0 | CL156: 0 | CM156: 0 | CN156: 0 | CO156: 0 | CP156: 0 | CQ156: 0 | CR156: 0 | CS156: 0 | CT156: 0 | CU156: 0 | CV156: 0 | CW156: 0 | CX156: 0 | CY156: 0 | CZ156: =-CZ124*CZ40 -> 0 | DA156: 0 | DB156: 0 | DC156: 0 | DD156: 0 | DE156: 0 | DF156: 0 | DG156: 0 | DH156: 0 | DI156: 0 | DJ156: 0 | DK156: 0 | DL156: 0 | DM156: 0 | DN156: 0 | DO156: 0 | DP156: 0 | DQ156: 0 | DR156: 0 | DS156: 0 | DT156: 0 | DU156: 0 | DV156: 0 | DW156: 0 | DX156: 0 | DY156: 0
C157: Less: Expenses on Loan | G157: ='RAROC Analysis'!H27/F8 -> 0.005 | H157: =-$G$157*$F$11*(H3+H4) -> -50 | I157: -50 | J157: -50 | K157: -50 | L157: -50 | M157: -50 | N157: -50 | O157: -50 | P157: -50 | Q157: -50 | R157: 0 | S157: 0 | T157: 0 | U157: 0 | V157: 0 | W157: 0 | X157: 0 | Y157: 0 | Z157: 0 | AA157: 0 | AB157: 0 | AC157: 0 | AD157: 0 | AE157: 0 | AF157: 0 | AG157: 0 | AH157: 0 | AI157: 0 | AJ157: 0 | AK157: 0 | AL157: 0 | AM157: 0 | AN157: =-$G$157*$F$11*(AN3+AN4) -> 0 | AO157: 0 | AP157: 0 | AQ157: 0 | AR157: 0 | AS157: 0 | AT157: 0 | AU157: 0 | AV157: 0 | AW157: 0 | AX157: 0 | AY157: 0 | AZ157: 0 | BA157: 0 | BB157: 0 | BC157: 0 | BD157: 0 | BE157: 0 | BF157: 0 | BG157: 0 | BH157: 0 | BI157: 0 | BJ157: 0 | BK157: 0 | BL157: 0 | BM157: 0 | BN157: 0 | BO157: 0 | BP157: 0 | BQ157: 0 | BR157: 0 | BS157: 0 | BT157: =-$G$157*$F$11*(BT3+BT4) -> 0 | BU157: 0 | BV157: 0 | BW157: 0 | BX157: 0 | BY157: 0 | BZ157: 0 | CA157: 0 | CB157: 0 | CC157: 0 | CD157: 0 | CE157: 0 | CF157: 0 | CG157: 0 | CH157: 0 | CI157: 0 | CJ157: 0 | CK157: 0 | CL157: 0 | CM157: 0 | CN157: 0 | CO157: 0 | CP157: 0 | CQ157: 0 | CR157: 0 | CS157: 0 | CT157: 0 | CU157: 0 | CV157: 0 | CW157: 0 | CX157: 0 | CY157: 0 | CZ157: =-$G$157*$F$11*(CZ3+CZ4) -> 0 | DA157: 0 | DB157: 0 | DC157: 0 | DD157: 0 | DE157: 0 | DF157: 0 | DG157: 0 | DH157: 0 | DI157: 0 | DJ157: 0 | DK157: 0 | DL157: 0 | DM157: 0 | DN157: 0 | DO157: 0 | DP157: 0 | DQ157: 0 | DR157: 0 | DS157: 0 | DT157: 0 | DU157: 0 | DV157: 0 | DW157: 0 | DX157: 0 | DY157: 0
D158: Net Income from Loan | H158: =SUM(H152:H157) -> -50 | I158: =SUM(I152:I157) -> 346.9996 | J158: 301.8586667 | K158: 255.9154 | L158: 212.1068 | M158: 168.4666667 | N158: 125.1818666 | O158: 81.50659999 | P158: 37.82213333 | Q158: -6.155600004 | R158: 0 | S158: 0 | T158: 0 | U158: 0 | V158: 0 | W158: 0 | X158: 0 | Y158: 0 | Z158: 0 | AA158: 0 | AB158: 0 | AC158: 0 | AD158: 0 | AE158: 0 | AF158: 0 | AG158: 0 | AH158: 0 | AI158: 0 | AJ158: 0 | AK158: 0 | AL158: 0 | AM158: 0 | AN158: 0 | AO158: 0 | AP158: 0 | AQ158: 0 | AR158: 0 | AS158: 0 | AT158: 0 | AU158: 0 | AV158: 0 | AW158: 0 | AX158: 0 | AY158: 0 | AZ158: 0 | BA158: 0 | BB158: 0 | BC158: 0 | BD158: 0 | BE158: 0 | BF158: 0 | BG158: 0 | BH158: 0 | BI158: 0 | BJ158: 0 | BK158: 0 | BL158: 0 | BM158: 0 | BN158: 0 | BO158: 0 | BP158: 0 | BQ158: 0 | BR158: 0 | BS158: 0 | BT158: 0 | BU158: =SUM(BU152:BU157) -> 0 | BV158: 0 | BW158: 0 | BX158: 0 | BY158: 0 | BZ158: 0 | CA158: 0 | CB158: 0 | CC158: 0 | CD158: 0 | CE158: 0 | CF158: 0 | CG158: 0 | CH158: 0 | CI158: 0 | CJ158: 0 | CK158: 0 | CL158: 0 | CM158: 0 | CN158: 0 | CO158: 0 | CP158: 0 | CQ158: 0 | CR158: 0 | CS158: 0 | CT158: 0 | CU158: 0 | CV158: 0 | CW158: 0 | CX158: 0 | CY158: 0 | CZ158: 0 | DA158: 0 | DB158: 0 | DC158: 0 | DD158: 0 | DE158: 0 | DF158: 0 | DG158: 0 | DH158: 0 | DI158: 0 | DJ158: 0 | DK158: 0 | DL158: 0 | DM158: 0 | DN158: 0 | DO158: 0 | DP158: 0 | DQ158: 0 | DR158: 0 | DS158: 0 | DT158: 0 | DU158: 0 | DV158: 0 | DW158: 0 | DX158: 0 | DY158: 0
B160: Implied Equity Funding
C161: Opening Balance | H161: =G166 -> 0 | I161: =H166 -> 156 | J161: 138.6666667 | K161: 121.3333333 | L161: 104 | M161: 86.66666667 | N161: 69.33333333 | O161: 52 | P161: 34.66666667 | Q161: 17.33333333 | R161: 0 | S161: 0 | T161: 0 | U161: 0 | V161: 0 | W161: 0 | X161: 0 | Y161: 0 | Z161: 0 | AA161: 0 | AB161: 0 | AC161: 0 | AD161: 0 | AE161: 0 | AF161: 0 | AG161: 0 | AH161: 0 | AI161: 0 | AJ161: 0 | AK161: 0 | AL161: 0 | AM161: 0 | AN161: 0 | AO161: 0 | AP161: 0 | AQ161: 0 | AR161: 0 | AS161: 0 | AT161: 0 | AU161: 0 | AV161: 0 | AW161: 0 | AX161: 0 | AY161: 0 | AZ161: 0 | BA161: 0 | BB161: 0 | BC161: 0 | BD161: 0 | BE161: 0 | BF161: 0 | BG161: 0 | BH161: 0 | BI161: 0 | BJ161: 0 | BK161: 0 | BL161: 0 | BM161: 0 | BN161: 0 | BO161: 0 | BP161: 0 | BQ161: 0 | BR161: 0 | BS161: 0 | BT161: 0 | BU161: =BT166 -> 0 | BV161: 0 | BW161: 0 | BX161: 0 | BY161: 0 | BZ161: 0 | CA161: 0 | CB161: 0 | CC161: 0 | CD161: 0 | CE161: 0 | CF161: 0 | CG161: 0 | CH161: 0 | CI161: 0 | CJ161: 0 | CK161: 0 | CL161: 0 | CM161: 0 | CN161: 0 | CO161: 0 | CP161: 0 | CQ161: 0 | CR161: 0 | CS161: 0 | CT161: 0 | CU161: 0 | CV161: 0 | CW161: 0 | CX161: 0 | CY161: 0 | CZ161: 0 | DA161: 0 | DB161: 0 | DC161: 0 | DD161: 0 | DE161: 0 | DF161: 0 | DG161: 0 | DH161: 0 | DI161: 0 | DJ161: 0 | DK161: 0 | DL161: 0 | DM161: 0 | DN161: 0 | DO161: 0 | DP161: 0 | DQ161: 0 | DR161: 0 | DS161: 0 | DT161: 0 | DU161: 0 | DV161: 0 | DW161: 0 | DX161: 0 | DY161: 0
C162: Add: Income | H162: =H158 -> -50 | I162: =I158 -> 346.9996 | J162: 301.8586667 | K162: 255.9154 | L162: 212.1068 | M162: 168.4666667 | N162: 125.1818666 | O162: 81.50659999 | P162: 37.82213333 | Q162: -6.155600004 | R162: 0 | S162: 0 | T162: 0 | U162: 0 | V162: 0 | W162: 0 | X162: 0 | Y162: 0 | Z162: 0 | AA162: 0 | AB162: 0 | AC162: 0 | AD162: 0 | AE162: 0 | AF162: 0 | AG162: 0 | AH162: 0 | AI162: 0 | AJ162: 0 | AK162: 0 | AL162: 0 | AM162: 0 | AN162: 0 | AO162: 0 | AP162: 0 | AQ162: 0 | AR162: 0 | AS162: 0 | AT162: 0 | AU162: 0 | AV162: 0 | AW162: 0 | AX162: 0 | AY162: 0 | AZ162: 0 | BA162: 0 | BB162: 0 | BC162: 0 | BD162: 0 | BE162: 0 | BF162: 0 | BG162: 0 | BH162: 0 | BI162: 0 | BJ162: 0 | BK162: 0 | BL162: 0 | BM162: 0 | BN162: 0 | BO162: 0 | BP162: 0 | BQ162: 0 | BR162: 0 | BS162: 0 | BT162: 0 | BU162: =BU158 -> 0 | BV162: 0 | BW162: 0 | BX162: 0 | BY162: 0 | BZ162: 0 | CA162: 0 | CB162: 0 | CC162: 0 | CD162: 0 | CE162: 0 | CF162: 0 | CG162: 0 | CH162: 0 | CI162: 0 | CJ162: 0 | CK162: 0 | CL162: 0 | CM162: 0 | CN162: 0 | CO162: 0 | CP162: 0 | CQ162: 0 | CR162: 0 | CS162: 0 | CT162: 0 | CU162: 0 | CV162: 0 | CW162: 0 | CX162: 0 | CY162: 0 | CZ162: 0 | DA162: 0 | DB162: 0 | DC162: 0 | DD162: 0 | DE162: 0 | DF162: 0 | DG162: 0 | DH162: 0 | DI162: 0 | DJ162: 0 | DK162: 0 | DL162: 0 | DM162: 0 | DN162: 0 | DO162: 0 | DP162: 0 | DQ162: 0 | DR162: 0 | DS162: 0 | DT162: 0 | DU162: 0 | DV162: 0 | DW162: 0 | DX162: 0 | DY162: 0
C163: Subtotal | H163: =H161+H162 -> -50 | I163: =I161+I162 -> 502.9996 | J163: 440.5253334 | K163: 377.2487333 | L163: 316.1068 | M163: 255.1333333 | N163: 194.5152 | O163: 133.5066 | P163: 72.48879999 | Q163: 11.17773333 | R163: 0 | S163: 0 | T163: 0 | U163: 0 | V163: 0 | W163: 0 | X163: 0 | Y163: 0 | Z163: 0 | AA163: 0 | AB163: 0 | AC163: 0 | AD163: 0 | AE163: 0 | AF163: 0 | AG163: 0 | AH163: 0 | AI163: 0 | AJ163: 0 | AK163: 0 | AL163: 0 | AM163: 0 | AN163: 0 | AO163: 0 | AP163: 0 | AQ163: 0 | AR163: 0 | AS163: 0 | AT163: 0 | AU163: 0 | AV163: 0 | AW163: 0 | AX163: 0 | AY163: 0 | AZ163: 0 | BA163: 0 | BB163: 0 | BC163: 0 | BD163: 0 | BE163: 0 | BF163: 0 | BG163: 0 | BH163: 0 | BI163: 0 | BJ163: 0 | BK163: 0 | BL163: 0 | BM163: 0 | BN163: 0 | BO163: 0 | BP163: 0 | BQ163: 0 | BR163: 0 | BS163: 0 | BT163: 0 | BU163: =BU161+BU162 -> 0 | BV163: 0 | BW163: 0 | BX163: 0 | BY163: 0 | BZ163: 0 | CA163: 0 | CB163: 0 | CC163: 0 | CD163: 0 | CE163: 0 | CF163: 0 | CG163: 0 | CH163: 0 | CI163: 0 | CJ163: 0 | CK163: 0 | CL163: 0 | CM163: 0 | CN163: 0 | CO163: 0 | CP163: 0 | CQ163: 0 | CR163: 0 | CS163: 0 | CT163: 0 | CU163: 0 | CV163: 0 | CW163: 0 | CX163: 0 | CY163: 0 | CZ163: 0 | DA163: 0 | DB163: 0 | DC163: 0 | DD163: 0 | DE163: 0 | DF163: 0 | DG163: 0 | DH163: 0 | DI163: 0 | DJ163: 0 | DK163: 0 | DL163: 0 | DM163: 0 | DN163: 0 | DO163: 0 | DP163: 0 | DQ163: 0 | DR163: 0 | DS163: 0 | DT163: 0 | DU163: 0 | DV163: 0 | DW163: 0 | DX163: 0 | DY163: 0
C164: Required | H164: =H145 -> 156 | I164: =I145 -> 138.6666667 | J164: 121.3333333 | K164: 104 | L164: 86.66666667 | M164: 69.33333333 | N164: 52 | O164: 34.66666667 | P164: 17.33333333 | Q164: 0 | R164: 0 | S164: 0 | T164: 0 | U164: 0 | V164: 0 | W164: 0 | X164: 0 | Y164: 0 | Z164: 0 | AA164: 0 | AB164: 0 | AC164: 0 | AD164: 0 | AE164: 0 | AF164: 0 | AG164: 0 | AH164: 0 | AI164: 0 | AJ164: 0 | AK164: 0 | AL164: 0 | AM164: 0 | AN164: 0 | AO164: 0 | AP164: 0 | AQ164: 0 | AR164: 0 | AS164: 0 | AT164: 0 | AU164: 0 | AV164: 0 | AW164: 0 | AX164: 0 | AY164: 0 | AZ164: 0 | BA164: 0 | BB164: 0 | BC164: 0 | BD164: 0 | BE164: 0 | BF164: 0 | BG164: 0 | BH164: 0 | BI164: 0 | BJ164: 0 | BK164: 0 | BL164: 0 | BM164: 0 | BN164: 0 | BO164: 0 | BP164: 0 | BQ164: 0 | BR164: 0 | BS164: 0 | BT164: 0 | BU164: =BU145 -> 0 | BV164: 0 | BW164: 0 | BX164: 0 | BY164: 0 | BZ164: 0 | CA164: 0 | CB164: 0 | CC164: 0 | CD164: 0 | CE164: 0 | CF164: 0 | CG164: 0 | CH164: 0 | CI164: 0 | CJ164: 0 | CK164: 0 | CL164: 0 | CM164: 0 | CN164: 0 | CO164: 0 | CP164: 0 | CQ164: 0 | CR164: 0 | CS164: 0 | CT164: 0 | CU164: 0 | CV164: 0 | CW164: 0 | CX164: 0 | CY164: 0 | CZ164: 0 | DA164: 0 | DB164: 0 | DC164: 0 | DD164: 0 | DE164: 0 | DF164: 0 | DG164: 0 | DH164: 0 | DI164: 0 | DJ164: 0 | DK164: 0 | DL164: 0 | DM164: 0 | DN164: 0 | DO164: 0 | DP164: 0 | DQ164: 0 | DR164: 0 | DS164: 0 | DT164: 0 | DU164: 0 | DV164: 0 | DW164: 0 | DX164: 0 | DY164: 0
C165: Added Funding | H165: =H164-H163 -> 206 | I165: =I164-I163 -> -364.3329333 | J165: -319.1920001 | K165: -273.2487333 | L165: -229.4401333 | M165: -185.8 | N165: -142.5152 | O165: -98.83993333 | P165: -55.15546666 | Q165: -11.17773333 | R165: 0 | S165: 0 | T165: 0 | U165: 0 | V165: 0 | W165: 0 | X165: 0 | Y165: 0 | Z165: 0 | AA165: 0 | AB165: 0 | AC165: 0 | AD165: 0 | AE165: 0 | AF165: 0 | AG165: 0 | AH165: 0 | AI165: 0 | AJ165: 0 | AK165: 0 | AL165: 0 | AM165: 0 | AN165: 0 | AO165: 0 | AP165: 0 | AQ165: 0 | AR165: 0 | AS165: 0 | AT165: 0 | AU165: 0 | AV165: 0 | AW165: 0 | AX165: 0 | AY165: 0 | AZ165: 0 | BA165: 0 | BB165: 0 | BC165: 0 | BD165: 0 | BE165: 0 | BF165: 0 | BG165: 0 | BH165: 0 | BI165: 0 | BJ165: 0 | BK165: 0 | BL165: 0 | BM165: 0 | BN165: 0 | BO165: 0 | BP165: 0 | BQ165: 0 | BR165: 0 | BS165: 0 | BT165: 0 | BU165: =BU164-BU163 -> 0 | BV165: 0 | BW165: 0 | BX165: 0 | BY165: 0 | BZ165: 0 | CA165: 0 | CB165: 0 | CC165: 0 | CD165: 0 | CE165: 0 | CF165: 0 | CG165: 0 | CH165: 0 | CI165: 0 | CJ165: 0 | CK165: 0 | CL165: 0 | CM165: 0 | CN165: 0 | CO165: 0 | CP165: 0 | CQ165: 0 | CR165: 0 | CS165: 0 | CT165: 0 | CU165: 0 | CV165: 0 | CW165: 0 | CX165: 0 | CY165: 0 | CZ165: 0 | DA165: 0 | DB165: 0 | DC165: 0 | DD165: 0 | DE165: 0 | DF165: 0 | DG165: 0 | DH165: 0 | DI165: 0 | DJ165: 0 | DK165: 0 | DL165: 0 | DM165: 0 | DN165: 0 | DO165: 0 | DP165: 0 | DQ165: 0 | DR165: 0 | DS165: 0 | DT165: 0 | DU165: 0 | DV165: 0 | DW165: 0 | DX165: 0 | DY165: 0
C166: Closing Balance | H166: =H161+H162+H165 -> 156 | I166: =I161+I162+I165 -> 138.6666667 | J166: 121.3333333 | K166: 104 | L166: 86.66666667 | M166: 69.33333333 | N166: 52 | O166: 34.66666667 | P166: 17.33333333 | Q166: 0 | R166: 0 | S166: 0 | T166: 0 | U166: 0 | V166: 0 | W166: 0 | X166: 0 | Y166: 0 | Z166: 0 | AA166: 0 | AB166: 0 | AC166: 0 | AD166: 0 | AE166: 0 | AF166: 0 | AG166: 0 | AH166: 0 | AI166: 0 | AJ166: 0 | AK166: 0 | AL166: 0 | AM166: 0 | AN166: 0 | AO166: 0 | AP166: 0 | AQ166: 0 | AR166: 0 | AS166: 0 | AT166: 0 | AU166: 0 | AV166: 0 | AW166: 0 | AX166: 0 | AY166: 0 | AZ166: 0 | BA166: 0 | BB166: 0 | BC166: 0 | BD166: 0 | BE166: 0 | BF166: 0 | BG166: 0 | BH166: 0 | BI166: 0 | BJ166: 0 | BK166: 0 | BL166: 0 | BM166: 0 | BN166: 0 | BO166: 0 | BP166: 0 | BQ166: 0 | BR166: 0 | BS166: 0 | BT166: 0 | BU166: =BU161+BU162+BU165 -> 0 | BV166: 0 | BW166: 0 | BX166: 0 | BY166: 0 | BZ166: 0 | CA166: 0 | CB166: 0 | CC166: 0 | CD166: 0 | CE166: 0 | CF166: 0 | CG166: 0 | CH166: 0 | CI166: 0 | CJ166: 0 | CK166: 0 | CL166: 0 | CM166: 0 | CN166: 0 | CO166: 0 | CP166: 0 | CQ166: 0 | CR166: 0 | CS166: 0 | CT166: 0 | CU166: 0 | CV166: 0 | CW166: 0 | CX166: 0 | CY166: 0 | CZ166: 0 | DA166: 0 | DB166: 0 | DC166: 0 | DD166: 0 | DE166: 0 | DF166: 0 | DG166: 0 | DH166: 0 | DI166: 0 | DJ166: 0 | DK166: 0 | DL166: 0 | DM166: 0 | DN166: 0 | DO166: 0 | DP166: 0 | DQ166: 0 | DR166: 0 | DS166: 0 | DT166: 0 | DU166: 0 | DV166: 0 | DW166: 0 | DX166: 0 | DY166: 0
C168: Equity Cash Flow | F168: =SUM(H168:DY168) -> 1473.702133 | H168: =-H165 -> -206 | I168: =-I165 -> 364.3329333 | J168: 319.1920001 | K168: 273.2487333 | L168: 229.4401333 | M168: 185.8 | N168: 142.5152 | O168: 98.83993333 | P168: 55.15546666 | Q168: 11.17773333 | R168: 0 | S168: 0 | T168: 0 | U168: 0 | V168: 0 | W168: 0 | X168: 0 | Y168: 0 | Z168: 0 | AA168: 0 | AB168: 0 | AC168: 0 | AD168: 0 | AE168: 0 | AF168: 0 | AG168: 0 | AH168: 0 | AI168: 0 | AJ168: 0 | AK168: 0 | AL168: 0 | AM168: 0 | AN168: 0 | AO168: 0 | AP168: 0 | AQ168: 0 | AR168: 0 | AS168: 0 | AT168: 0 | AU168: 0 | AV168: 0 | AW168: 0 | AX168: 0 | AY168: 0 | AZ168: 0 | BA168: 0 | BB168: 0 | BC168: 0 | BD168: 0 | BE168: 0 | BF168: 0 | BG168: 0 | BH168: 0 | BI168: 0 | BJ168: 0 | BK168: 0 | BL168: 0 | BM168: 0 | BN168: 0 | BO168: 0 | BP168: 0 | BQ168: 0 | BR168: 0 | BS168: 0 | BT168: 0 | BU168: =-BU165 -> 0 | BV168: 0 | BW168: 0 | BX168: 0 | BY168: 0 | BZ168: 0 | CA168: 0 | CB168: 0 | CC168: 0 | CD168: 0 | CE168: 0 | CF168: 0 | CG168: 0 | CH168: 0 | CI168: 0 | CJ168: 0 | CK168: 0 | CL168: 0 | CM168: 0 | CN168: 0 | CO168: 0 | CP168: 0 | CQ168: 0 | CR168: 0 | CS168: 0 | CT168: 0 | CU168: 0 | CV168: 0 | CW168: 0 | CX168: 0 | CY168: 0 | CZ168: 0 | DA168: 0 | DB168: 0 | DC168: 0 | DD168: 0 | DE168: 0 | DF168: 0 | DG168: 0 | DH168: 0 | DI168: 0 | DJ168: 0 | DK168: 0 | DL168: 0 | DM168: 0 | DN168: 0 | DO168: 0 | DP168: 0 | DQ168: 0 | DR168: 0 | DS168: 0 | DT168: 0 | DU168: 0 | DV168: 0 | DW168: 0 | DX168: 0 | DY168: 0
C169: Equity IRR | F169: =IFERROR(XIRR(H168:DY168,H2:DY2,0.1),FALSE) -> 1.634147227
C171: New Capital for Loan | F171: =SUM(H171:DY171) -> 206 | H171: =MAX(-H168,0) -> 206 | I171: =MAX(-I168,0) -> 0 | J171: 0 | K171: 0 | L171: 0 | M171: 0 | N171: 0 | O171: 0 | P171: 0 | Q171: 0 | R171: 0 | S171: 0 | T171: 0 | U171: 0 | V171: 0 | W171: 0 | X171: 0 | Y171: 0 | Z171: 0 | AA171: 0 | AB171: 0 | AC171: 0 | AD171: 0 | AE171: 0 | AF171: 0 | AG171: 0 | AH171: 0 | AI171: 0 | AJ171: 0 | AK171: 0 | AL171: 0 | AM171: 0 | AN171: 0 | AO171: 0 | AP171: 0 | AQ171: 0 | AR171: 0 | AS171: 0 | AT171: 0 | AU171: 0 | AV171: 0 | AW171: 0 | AX171: 0 | AY171: 0 | AZ171: 0 | BA171: 0 | BB171: 0 | BC171: 0 | BD171: 0 | BE171: 0 | BF171: 0 | BG171: 0 | BH171: 0 | BI171: 0 | BJ171: 0 | BK171: 0 | BL171: 0 | BM171: 0 | BN171: 0 | BO171: 0 | BP171: 0 | BQ171: 0 | BR171: 0 | BS171: 0 | BT171: 0 | BU171: =MAX(-BU168,0) -> 0 | BV171: 0 | BW171: 0 | BX171: 0 | BY171: 0 | BZ171: 0 | CA171: 0 | CB171: 0 | CC171: 0 | CD171: 0 | CE171: 0 | CF171: 0 | CG171: 0 | CH171: 0 | CI171: 0 | CJ171: 0 | CK171: 0 | CL171: 0 | CM171: 0 | CN171: 0 | CO171: 0 | CP171: 0 | CQ171: 0 | CR171: 0 | CS171: 0 | CT171: 0 | CU171: 0 | CV171: 0 | CW171: 0 | CX171: 0 | CY171: 0 | CZ171: 0 | DA171: 0 | DB171: 0 | DC171: 0 | DD171: 0 | DE171: 0 | DF171: 0 | DG171: 0 | DH171: 0 | DI171: 0 | DJ171: 0 | DK171: 0 | DL171: 0 | DM171: 0 | DN171: 0 | DO171: 0 | DP171: 0 | DQ171: 0 | DR171: 0 | DS171: 0 | DT171: 0 | DU171: 0 | DV171: 0 | DW171: 0 | DX171: 0 | DY171: 0
B173: Alternative Method of Computing Implied Default
C175: Default Probability | F175: =prob_default(F56,H179:DB179,H180:DB180,F177,H79:DB79,G3+G4) -> 0.0271346688 | G175: 0.02 | H175: =IF(NOT(H4),$G$175,G175*(1+H79)) -> 0.02 | I175: =H175*(1+I79) -> 0.06184210526 | J175: 0.1113157895 | K175: 0.1594736842 | L175: 0.2028947368 | M175: 0.2442105263 | N175: 0.2786842105 | O175: 0.3092105263 | P175: 0.3368421053 | Q175: 0.3615789474 | R175: 0.3821052632 | S175: 0.3994736842 | T175: 0.4144736842 | U175: 0.4273684211 | V175: 0.4413157895 | W175: 0.4557183368 | X175: 0.470590918 | Y175: 0.4859488728 | Z175: 0.5018080417 | AA175: 0.518184782 | AB175: 0.5350959848 | AC175: 0.5525590927 | AD175: 0.5705921173 | AE175: 0.5892136581 | AF175: 0.6084429215 | AG175: 0.628299741 | AH175: 0.6488045971 | AI175: 0.6699786387 | AJ175: 0.6918437052 | AK175: 0.7144223482 | AL175: 0.7377378559 | AM175: 0.7618142761 | AN175: 0.7866764415 | AO175: =AN175*(1+AO79) -> 0.8123499953 | AP175: 0.8388614176 | AQ175: 0.8662380525 | AR175: 0.8945081367 | AS175: 0.9237008284 | AT175: 0.9538462372 | AU175: 0.9849754555 | AV175: 1.01712059 | AW175: 1.050314797 | AX175: 1.084592312 | AY175: 1.11998849 | AZ175: 1.156539838 | BA175: 1.194284057 | BB175: 1.233260076 | BC175: 1.273508096 | BD175: 1.315069628 | BE175: 1.357987541 | BF175: 1.4023061 | BG175: 1.448071016 | BH175: 1.495329491 | BI175: 1.544130269 | BJ175: 1.594523683 | BK175: 1.646561709 | BL175: 1.700298021 | BM175: 1.755788043 | BN175: 1.813089007 | BO175: 1.872260016 | BP175: 1.933362097 | BQ175: 1.996458274 | BR175: 2.061613624 | BS175: 2.12889535 | BT175: 2.198372846 | BU175: =BT175*(1+BU79) -> 2.270117772 | BV175: 2.344204128 | BW175: 2.420708327 | BX175: 2.499709276 | BY175: 2.581288458 | BZ175: 2.665530015 | CA175: 2.752520835 | CB175: 2.84235064 | CC175: 2.935112083 | CD175: 3.03090084 | CE175: 3.129815707 | CF175: 3.231958707 | CG175: 3.337435192 | CH175: 3.446353952 | CI175: 3.558827326 | CJ175: 3.674971321 | CK175: 3.79490573 | CL175: 3.918754254 | CM175: 4.046644633 | CN175: 4.178708775 | CO175: 4.315082891 | CP175: 4.455907641 | CQ175: 4.601328272 | CR175: 4.751494773 | CS175: 4.906562029 | CT175: 5.066689977 | CU175: 5.232043775 | CV175: 5.402793972 | CW175: 5.579116682 | CX175: 5.761193766 | CY175: 5.94921302 | CZ175: 6.143368371 | DA175: =CZ175*(1+DA79) -> 6.343860073 | DB175: 6.550894916 | DC175: 6.764686437 | DD175: 6.985455144 | DE175: 7.213428742 | DF175: 7.448842365 | DG175: 7.691938821 | DH175: 7.942968844 | DI175: 8.20219135 | DJ175: 8.469873703 | DK175: 8.746291995 | DL175: 9.031731327 | DM175: 9.326486106 | DN175: 9.630860345 | DO175: 9.945167979 | DP175: 10.26973319 | DQ175: 10.60489074 | DR175: 10.95098631 | DS175: 11.30837687 | DT175: 11.67743105 | DU175: 12.05852947 | DV175: 12.45206522 | DW175: 12.8584442 | DX175: 13.27808554 | DY175: 13.71142208
C176: Incremental Percent | H176: =IF(H75=1,H175,H4*(H175-G175))*1 -> 0.02 | I176: =IF(I75=1,I175,I175-H175) -> 0.04184210526 | J176: 0.04947368421 | K176: 0.04815789474 | L176: 0.04342105263 | M176: 0.04131578947 | N176: 0.03447368421 | O176: 0.03052631579 | P176: 0.02763157895 | Q176: 0.02473684211 | R176: 0.02052631579 | S176: 0.01736842105 | T176: 0.015 | U176: 0.01289473684 | V176: 0.01394736842 | W176: 0.01440254732 | X176: 0.01487258119 | Y176: 0.01535795484 | Z176: 0.01585916888 | AA176: 0.01637674028 | AB176: 0.01691120286 | AC176: 0.01746310788 | AD176: 0.01803302458 | AE176: 0.01862154077 | AF176: 0.01922926347 | AG176: 0.01985681948 | AH176: 0.02050485608 | AI176: 0.02117404165 | AJ176: 0.02186506641 | AK176: 0.02257864309 | AL176: 0.02331550767 | AM176: 0.02407642017 | AN176: 0.02486216541 | AO176: =IF(AO75=1,AO175,AO175-AN175) -> 0.02567355382 | AP176: 0.02651142226 | AQ176: 0.02737663493 | AR176: 0.02827008423 | AS176: 0.02919269165 | AT176: 0.03014540881 | AU176: 0.03112921833 | AV176: 0.03214513494 | AW176: 0.03319420646 | AX176: 0.03427751492 | AY176: 0.03539617767 | AZ176: 0.03655134849 | BA176: 0.03774421885 | BB176: 0.0389760191 | BC176: 0.04024801972 | BD176: 0.04156153268 | BE176: 0.04291791275 | BF176: 0.04431855892 | BG176: 0.04576491583 | BH176: 0.04725847527 | BI176: 0.04880077773 | BJ176: 0.05039341395 | BK176: 0.05203802659 | BL176: 0.05373631194 | BM176: 0.05549002163 | BN176: 0.05730096446 | BO176: 0.05917100825 | BP176: 0.06110208179 | BQ176: 0.06309617683 | BR176: 0.06515535009 | BS176: 0.06728172543 | BT176: 0.06947749602 | BU176: =IF(BU75=1,BU175,BU175-BT175) -> 0.07174492662 | BV176: 0.07408635587 | BW176: 0.07650419877 | BX176: 0.0790009491 | BY176: 0.08157918204 | BZ176: 0.08424155683 | CA176: 0.08699081946 | CB176: 0.08982980556 | CC176: 0.0927614433 | CD176: 0.09578875642 | CE176: 0.09891486731 | CF176: 0.1021430003 | CG176: 0.1054764849 | CH176: 0.1089187594 | CI176: 0.112473374 | CJ176: 0.1161439952 | CK176: 0.1199344089 | CL176: 0.1238485244 | CM176: 0.127890379 | CN176: 0.1320641414 | CO176: 0.1363741164 | CP176: 0.1408247495 | CQ176: 0.1454206311 | CR176: 0.1501665015 | CS176: 0.1550672555 | CT176: 0.160127948 | CU176: 0.1653537985 | CV176: 0.1707501971 | CW176: 0.1763227097 | CX176: 0.1820770838 | CY176: 0.1880192547 | CZ176: 0.194155351 | DA176: =IF(DA75=1,DA175,DA175-CZ175) -> 0.2004917018 | DB176: 0.2070348423 | DC176: 0.2137915213 | DD176: 0.2207687076 | DE176: 0.2279735977 | DF176: 0.2354136227 | DG176: 0.2430964565 | DH176: 0.2510300231 | DI176: 0.2592225054 | DJ176: 0.2676823532 | DK176: 0.276418292 | DL176: 0.2854393324 | DM176: 0.2947547785 | DN176: 0.3043742387 | DO176: 0.3143076344 | DP176: 0.3245652111 | DQ176: 0.3351575487 | DR176: 0.3460955721 | DS176: 0.3573905631 | DT176: 0.3690541714 | DU176: 0.381098427 | DV176: 0.3935357525 | DW176: 0.4063789759 | DX176: 0.419641344 | DY176: 0.4333365356
C177: Percent Loss | F177: ='RAROC Analysis'!H28 -> 0.6 | H177: =$F$177*H176 -> 0.012 | I177: 0.02510526316 | J177: 0.02968421053 | K177: 0.02889473684 | L177: 0.02605263158 | M177: 0.02478947368 | N177: 0.02068421053 | O177: 0.01831578947 | P177: 0.01657894737 | Q177: 0.01484210526 | R177: 0.01231578947 | S177: 0.01042105263 | T177: 0.009 | U177: 0.007736842105 | V177: 0.008368421053 | W177: 0.00864152839 | X177: 0.008923548713 | Y177: 0.009214772901 | Z177: 0.009515501327 | AA177: 0.009826044166 | AB177: 0.01014672172 | AC177: 0.01047786473 | AD177: 0.01081981475 | AE177: 0.01117292446 | AF177: 0.01153755808 | AG177: 0.01191409169 | AH177: 0.01230291365 | AI177: 0.01270442499 | AJ177: 0.01311903985 | AK177: 0.01354718585 | AL177: 0.0139893046 | AM177: 0.0144458521 | AN177: =$F$177*AN176 -> 0.01491729925 | AO177: 0.01540413229 | AP177: 0.01590685336 | AQ177: 0.01642598096 | AR177: 0.01696205054 | AS177: 0.01751561499 | AT177: 0.01808724529 | AU177: 0.018677531 | AV177: 0.01928708096 | AW177: 0.01991652388 | AX177: 0.02056650895 | AY177: 0.0212377066 | AZ177: 0.02193080909 | BA177: 0.02264653131 | BB177: 0.02338561146 | BC177: 0.02414881183 | BD177: 0.02493691961 | BE177: 0.02575074765 | BF177: 0.02659113535 | BG177: 0.0274589495 | BH177: 0.02835508516 | BI177: 0.02928046664 | BJ177: 0.03023604837 | BK177: 0.03122281596 | BL177: 0.03224178717 | BM177: 0.03329401298 | BN177: 0.03438057867 | BO177: 0.03550260495 | BP177: 0.03666124908 | BQ177: 0.0378577061 | BR177: 0.03909321005 | BS177: 0.04036903526 | BT177: =$F$177*BT176 -> 0.04168649761 | BU177: 0.04304695597 | BV177: 0.04445181352 | BW177: 0.04590251926 | BX177: 0.04740056946 | BY177: 0.04894750923 | BZ177: 0.0505449341 | CA177: 0.05219449167 | CB177: 0.05389788334 | CC177: 0.05565686598 | CD177: 0.05747325385 | CE177: 0.05934892039 | CF177: 0.06128580018 | CG177: 0.06328589095 | CH177: 0.06535125561 | CI177: 0.06748402442 | CJ177: 0.06968639714 | CK177: 0.07196064532 | CL177: 0.07430911466 | CM177: 0.07673422739 | CN177: 0.07923848481 | CO177: 0.08182446985 | CP177: 0.08449484971 | CQ177: 0.08725237868 | CR177: 0.09009990089 | CS177: 0.09304035332 | CT177: 0.09607676879 | CU177: 0.0992122791 | CV177: 0.1024501183 | CW177: 0.1057936258 | CX177: 0.1092462503 | CY177: 0.1128115528 | CZ177: =$F$177*CZ176 -> 0.1164932106 | DA177: 0.1202950211 | DB177: 0.1242209054 | DC177: 0.1282749128 | DD177: 0.1324612246 | DE177: 0.1367841586 | DF177: 0.1412481736 | DG177: 0.1458578739 | DH177: 0.1506180139 | DI177: 0.1555335032 | DJ177: 0.1606094119 | DK177: 0.1658509752 | DL177: 0.1712635994 | DM177: 0.1768528671 | DN177: 0.1826245432 | DO177: 0.1885845806 | DP177: 0.1947391267 | DQ177: 0.2010945292 | DR177: 0.2076573433 | DS177: 0.2144343379 | DT177: 0.2214325028 | DU177: 0.2286590562 | DV177: 0.2361214515 | DW177: 0.2438273856 | DX177: 0.2517848064 | DY177: 0.2600019214
C179: Net Cash Flow without Default | H179: =H48+H49+H50-H41+H45 -> -9750 | I179: 1801.111111 | J179: 1724.444444 | K179: 1647.777778 | L179: 1571.111111 | M179: 1494.444444 | N179: 1417.777778 | O179: 1341.111111 | P179: 1264.444444 | Q179: 1187.777778 | R179: 0 | S179: 0 | T179: 0 | U179: 0 | V179: 0 | W179: 0 | X179: 0 | Y179: 0 | Z179: 0 | AA179: 0 | AB179: 0 | AC179: 0 | AD179: 0 | AE179: 0 | AF179: 0 | AG179: 0 | AH179: 0 | AI179: 0 | AJ179: 0 | AK179: 0 | AL179: 0 | AM179: 0 | AN179: =AN48+AN49+AN50-AN41+AN45 -> 0 | AO179: 0 | AP179: 0 | AQ179: 0 | AR179: 0 | AS179: 0 | AT179: 0 | AU179: 0 | AV179: 0 | AW179: 0 | AX179: 0 | AY179: 0 | AZ179: 0 | BA179: 0 | BB179: 0 | BC179: 0 | BD179: 0 | BE179: 0 | BF179: 0 | BG179: 0 | BH179: 0 | BI179: 0 | BJ179: 0 | BK179: 0 | BL179: 0 | BM179: 0 | BN179: 0 | BO179: 0 | BP179: 0 | BQ179: 0 | BR179: 0 | BS179: 0 | BT179: =BT48+BT49+BT50-BT41+BT45 -> 0 | BU179: 0 | BV179: 0 | BW179: 0 | BX179: 0 | BY179: 0 | BZ179: 0 | CA179: 0 | CB179: 0 | CC179: 0 | CD179: 0 | CE179: 0 | CF179: 0 | CG179: 0 | CH179: 0 | CI179: 0 | CJ179: 0 | CK179: 0 | CL179: 0 | CM179: 0 | CN179: 0 | CO179: 0 | CP179: 0 | CQ179: 0 | CR179: 0 | CS179: 0 | CT179: 0 | CU179: 0 | CV179: 0 | CW179: 0 | CX179: 0 | CY179: 0 | CZ179: =CZ48+CZ49+CZ50-CZ41+CZ45 -> 0 | DA179: 0 | DB179: 0 | DC179: 0 | DD179: 0 | DE179: 0 | DF179: 0 | DG179: 0 | DH179: 0 | DI179: 0 | DJ179: 0 | DK179: 0 | DL179: 0 | DM179: 0 | DN179: 0 | DO179: 0 | DP179: 0 | DQ179: 0 | DR179: 0 | DS179: 0 | DT179: 0 | DU179: 0 | DV179: 0 | DW179: 0 | DX179: 0 | DY179: 0
C180: Debt Service | H180: =H45 -> 0 | I180: 1801.111111 | J180: 1724.444444 | K180: 1647.777778 | L180: 1571.111111 | M180: 1494.444444 | N180: 1417.777778 | O180: 1341.111111 | P180: 1264.444444 | Q180: 1187.777778 | R180: 0 | S180: 0 | T180: 0 | U180: 0 | V180: 0 | W180: 0 | X180: 0 | Y180: 0 | Z180: 0 | AA180: 0 | AB180: 0 | AC180: 0 | AD180: 0 | AE180: 0 | AF180: 0 | AG180: 0 | AH180: 0 | AI180: 0 | AJ180: 0 | AK180: 0 | AL180: 0 | AM180: 0 | AN180: =AN45 -> 0 | AO180: 0 | AP180: 0 | AQ180: 0 | AR180: 0 | AS180: 0 | AT180: 0 | AU180: 0 | AV180: 0 | AW180: 0 | AX180: 0 | AY180: 0 | AZ180: 0 | BA180: 0 | BB180: 0 | BC180: 0 | BD180: 0 | BE180: 0 | BF180: 0 | BG180: 0 | BH180: 0 | BI180: 0 | BJ180: 0 | BK180: 0 | BL180: 0 | BM180: 0 | BN180: 0 | BO180: 0 | BP180: 0 | BQ180: 0 | BR180: 0 | BS180: 0 | BT180: =BT45 -> 0 | BU180: 0 | BV180: 0 | BW180: 0 | BX180: 0 | BY180: 0 | BZ180: 0 | CA180: 0 | CB180: 0 | CC180: 0 | CD180: 0 | CE180: 0 | CF180: 0 | CG180: 0 | CH180: 0 | CI180: 0 | CJ180: 0 | CK180: 0 | CL180: 0 | CM180: 0 | CN180: 0 | CO180: 0 | CP180: 0 | CQ180: 0 | CR180: 0 | CS180: 0 | CT180: 0 | CU180: 0 | CV180: 0 | CW180: 0 | CX180: 0 | CY180: 0 | CZ180: =CZ45 -> 0 | DA180: 0 | DB180: 0 | DC180: 0 | DD180: 0 | DE180: 0 | DF180: 0 | DG180: 0 | DH180: 0 | DI180: 0 | DJ180: 0 | DK180: 0 | DL180: 0 | DM180: 0 | DN180: 0 | DO180: 0 | DP180: 0 | DQ180: 0 | DR180: 0 | DS180: 0 | DT180: 0 | DU180: 0 | DV180: 0 | DW180: 0 | DX180: 0 | DY180: 0
C181: Loss | H181: =H180*H177 -> 0 | I181: =I180*I177 -> 45.21736842 | J181: 51.18877193 | K181: 47.61210526 | L181: 40.93157895 | M181: 37.04649123 | N181: 29.32561404 | O181: 24.56350877 | P181: 20.96315789 | Q181: 17.62912281 | R181: 0 | S181: 0 | T181: 0 | U181: 0 | V181: 0 | W181: 0 | X181: 0 | Y181: 0 | Z181: 0 | AA181: 0 | AB181: 0 | AC181: 0 | AD181: 0 | AE181: 0 | AF181: 0 | AG181: 0 | AH181: 0 | AI181: 0 | AJ181: 0 | AK181: 0 | AL181: 0 | AM181: 0 | AN181: 0 | AO181: 0 | AP181: 0 | AQ181: 0 | AR181: 0 | AS181: 0 | AT181: 0 | AU181: 0 | AV181: 0 | AW181: 0 | AX181: 0 | AY181: 0 | AZ181: 0 | BA181: 0 | BB181: 0 | BC181: 0 | BD181: 0 | BE181: 0 | BF181: 0 | BG181: 0 | BH181: 0 | BI181: 0 | BJ181: 0 | BK181: 0 | BL181: 0 | BM181: 0 | BN181: 0 | BO181: 0 | BP181: 0 | BQ181: 0 | BR181: 0 | BS181: 0 | BT181: 0 | BU181: =BU180*BU177 -> 0 | BV181: 0 | BW181: 0 | BX181: 0 | BY181: 0 | BZ181: 0 | CA181: 0 | CB181: 0 | CC181: 0 | CD181: 0 | CE181: 0 | CF181: 0 | CG181: 0 | CH181: 0 | CI181: 0 | CJ181: 0 | CK181: 0 | CL181: 0 | CM181: 0 | CN181: 0 | CO181: 0 | CP181: 0 | CQ181: 0 | CR181: 0 | CS181: 0 | CT181: 0 | CU181: 0 | CV181: 0 | CW181: 0 | CX181: 0 | CY181: 0 | CZ181: 0 | DA181: 0 | DB181: 0 | DC181: 0 | DD181: 0 | DE181: 0 | DF181: 0 | DG181: 0 | DH181: 0 | DI181: 0 | DJ181: 0 | DK181: 0 | DL181: 0 | DM181: 0 | DN181: 0 | DO181: 0 | DP181: 0 | DQ181: 0 | DR181: 0 | DS181: 0 | DT181: 0 | DU181: 0 | DV181: 0 | DW181: 0 | DX181: 0 | DY181: 0
C182: Net Realised Debt Service | H182: =H179-H181 -> -9750 | I182: =I179-I181 -> 1755.893743 | J182: 1673.255673 | K182: 1600.165673 | L182: 1530.179532 | M182: 1457.397953 | N182: 1388.452164 | O182: 1316.547602 | P182: 1243.481287 | Q182: 1170.148655 | R182: 0 | S182: 0 | T182: 0 | U182: 0 | V182: 0 | W182: 0 | X182: 0 | Y182: 0 | Z182: 0 | AA182: 0 | AB182: 0 | AC182: 0 | AD182: 0 | AE182: 0 | AF182: 0 | AG182: 0 | AH182: 0 | AI182: 0 | AJ182: 0 | AK182: 0 | AL182: 0 | AM182: 0 | AN182: 0 | AO182: 0 | AP182: 0 | AQ182: 0 | AR182: 0 | AS182: 0 | AT182: 0 | AU182: 0 | AV182: 0 | AW182: 0 | AX182: 0 | AY182: 0 | AZ182: 0 | BA182: 0 | BB182: 0 | BC182: 0 | BD182: 0 | BE182: 0 | BF182: 0 | BG182: 0 | BH182: 0 | BI182: 0 | BJ182: 0 | BK182: 0 | BL182: 0 | BM182: 0 | BN182: 0 | BO182: 0 | BP182: 0 | BQ182: 0 | BR182: 0 | BS182: 0 | BT182: 0 | BU182: =BU179-BU181 -> 0 | BV182: 0 | BW182: 0 | BX182: 0 | BY182: 0 | BZ182: 0 | CA182: 0 | CB182: 0 | CC182: 0 | CD182: 0 | CE182: 0 | CF182: 0 | CG182: 0 | CH182: 0 | CI182: 0 | CJ182: 0 | CK182: 0 | CL182: 0 | CM182: 0 | CN182: 0 | CO182: 0 | CP182: 0 | CQ182: 0 | CR182: 0 | CS182: 0 | CT182: 0 | CU182: 0 | CV182: 0 | CW182: 0 | CX182: 0 | CY182: 0 | CZ182: 0 | DA182: 0 | DB182: 0 | DC182: 0 | DD182: 0 | DE182: 0 | DF182: 0 | DG182: 0 | DH182: 0 | DI182: 0 | DJ182: 0 | DK182: 0 | DL182: 0 | DM182: 0 | DN182: 0 | DO182: 0 | DP182: 0 | DQ182: 0 | DR182: 0 | DS182: 0 | DT182: 0 | DU182: 0 | DV182: 0 | DW182: 0 | DX182: 0 | DY182: 0
C183: Net Cash Flow | H183: =H179-H181 -> -9750 | I183: =I179-I181 -> 1755.893743 | J183: 1673.255673 | K183: 1600.165673 | L183: 1530.179532 | M183: 1457.397953 | N183: 1388.452164 | O183: 1316.547602 | P183: 1243.481287 | Q183: 1170.148655 | R183: 0 | S183: 0 | T183: 0 | U183: 0 | V183: 0 | W183: 0 | X183: 0 | Y183: 0 | Z183: 0 | AA183: 0 | AB183: 0 | AC183: 0 | AD183: 0 | AE183: 0 | AF183: 0 | AG183: 0 | AH183: 0 | AI183: 0 | AJ183: 0 | AK183: 0 | AL183: 0 | AM183: 0 | AN183: 0 | AO183: 0 | AP183: 0 | AQ183: 0 | AR183: 0 | AS183: 0 | AT183: 0 | AU183: 0 | AV183: 0 | AW183: 0 | AX183: 0 | AY183: 0 | AZ183: 0 | BA183: 0 | BB183: 0 | BC183: 0 | BD183: 0 | BE183: 0 | BF183: 0 | BG183: 0 | BH183: 0 | BI183: 0 | BJ183: 0 | BK183: 0 | BL183: 0 | BM183: 0 | BN183: 0 | BO183: 0 | BP183: 0 | BQ183: 0 | BR183: 0 | BS183: 0 | BT183: 0 | BU183: =BU179-BU181 -> 0 | BV183: 0 | BW183: 0 | BX183: 0 | BY183: 0 | BZ183: 0 | CA183: 0 | CB183: 0 | CC183: 0 | CD183: 0 | CE183: 0 | CF183: 0 | CG183: 0 | CH183: 0 | CI183: 0 | CJ183: 0 | CK183: 0 | CL183: 0 | CM183: 0 | CN183: 0 | CO183: 0 | CP183: 0 | CQ183: 0 | CR183: 0 | CS183: 0 | CT183: 0 | CU183: 0 | CV183: 0 | CW183: 0 | CX183: 0 | CY183: 0 | CZ183: 0 | DA183: 0 | DB183: 0 | DC183: 0 | DD183: 0 | DE183: 0 | DF183: 0 | DG183: 0 | DH183: 0 | DI183: 0 | DJ183: 0 | DK183: 0 | DL183: 0 | DM183: 0 | DN183: 0 | DO183: 0 | DP183: 0 | DQ183: 0 | DR183: 0 | DS183: 0 | DT183: 0 | DU183: 0 | DV183: 0 | DW183: 0 | DX183: 0 | DY183: 0
C185: IRR Realised | F185: =IRR(183:183) -> 0.06923375053
C186: Cost of Funding | F186: =F64 -> 0.03
C187: Difference | F187: =F185-F186 -> 0.03923375053
C189: Maturity in Periods | F189: =G4 -> 9
C190: Probability of Default | F190: =INDEX(175:175,MATCH(F189,73:73,0)) -> 0.3615789474
C193: Loan Balance | F193: =F84 -> 10000 | H193: =$F$193 -> 10000 | I193: 10000 | J193: 10000 | K193: 10000 | L193: 10000 | M193: 10000 | N193: 10000 | O193: 10000 | P193: 10000 | Q193: 10000 | R193: 10000 | S193: 10000 | T193: 10000 | U193: 10000 | V193: 10000 | W193: 10000 | X193: 10000 | Y193: 10000 | Z193: 10000 | AA193: 10000 | AB193: 10000 | AC193: 10000 | AD193: 10000 | AE193: 10000 | AF193: 10000 | AG193: 10000 | AH193: 10000 | AI193: 10000 | AJ193: 10000 | AK193: 10000 | AL193: 10000 | AM193: 10000 | AN193: =$F$193 -> 10000 | AO193: 10000 | AP193: 10000 | AQ193: 10000 | AR193: 10000 | AS193: 10000 | AT193: 10000 | AU193: 10000 | AV193: 10000 | AW193: 10000 | AX193: 10000 | AY193: 10000 | AZ193: 10000 | BA193: 10000 | BB193: 10000 | BC193: 10000 | BD193: 10000 | BE193: 10000 | BF193: 10000 | BG193: 10000 | BH193: 10000 | BI193: 10000 | BJ193: 10000 | BK193: 10000 | BL193: 10000 | BM193: 10000 | BN193: 10000 | BO193: 10000 | BP193: 10000 | BQ193: 10000 | BR193: 10000 | BS193: 10000 | BT193: =$F$193 -> 10000 | BU193: 10000 | BV193: 10000 | BW193: 10000 | BX193: 10000 | BY193: 10000 | BZ193: 10000 | CA193: 10000 | CB193: 10000 | CC193: 10000 | CD193: 10000 | CE193: 10000 | CF193: 10000 | CG193: 10000 | CH193: 10000 | CI193: 10000 | CJ193: 10000 | CK193: 10000 | CL193: 10000 | CM193: 10000 | CN193: 10000 | CO193: 10000 | CP193: 10000 | CQ193: 10000 | CR193: 10000 | CS193: 10000 | CT193: 10000 | CU193: 10000 | CV193: 10000 | CW193: 10000 | CX193: 10000 | CY193: 10000 | CZ193: =$F$193 -> 10000 | DA193: 10000 | DB193: 10000 | DC193: 10000 | DD193: 10000 | DE193: 10000 | DF193: 10000 | DG193: 10000 | DH193: 10000 | DI193: 10000 | DJ193: 10000 | DK193: 10000 | DL193: 10000 | DM193: 10000 | DN193: 10000 | DO193: 10000 | DP193: 10000 | DQ193: 10000 | DR193: 10000 | DS193: 10000 | DT193: 10000 | DU193: 10000 | DV193: 10000 | DW193: 10000 | DX193: 10000 | DY193: 10000
C194: Opening Balance | H194: =G197 -> 0 | I194: =H197 -> 10000 | J194: 10000 | K194: 10000 | L194: 10000 | M194: 10000 | N194: 10000 | O194: 10000 | P194: 10000 | Q194: 10000 | R194: 0 | S194: 0 | T194: 0 | U194: 0 | V194: 0 | W194: 0 | X194: 0 | Y194: 0 | Z194: 0 | AA194: 0 | AB194: 0 | AC194: 0 | AD194: 0 | AE194: 0 | AF194: 0 | AG194: 0 | AH194: 0 | AI194: 0 | AJ194: 0 | AK194: 0 | AL194: 0 | AM194: 0 | AN194: 0 | AO194: 0 | AP194: 0 | AQ194: 0 | AR194: 0 | AS194: 0 | AT194: 0 | AU194: 0 | AV194: 0 | AW194: 0 | AX194: 0 | AY194: 0 | AZ194: 0 | BA194: 0 | BB194: 0 | BC194: 0 | BD194: 0 | BE194: 0 | BF194: 0 | BG194: 0 | BH194: 0 | BI194: 0 | BJ194: 0 | BK194: 0 | BL194: 0 | BM194: 0 | BN194: 0 | BO194: 0 | BP194: 0 | BQ194: 0 | BR194: 0 | BS194: 0 | BT194: 0 | BU194: =BT197 -> 0 | BV194: 0 | BW194: 0 | BX194: 0 | BY194: 0 | BZ194: 0 | CA194: 0 | CB194: 0 | CC194: 0 | CD194: 0 | CE194: 0 | CF194: 0 | CG194: 0 | CH194: 0 | CI194: 0 | CJ194: 0 | CK194: 0 | CL194: 0 | CM194: 0 | CN194: 0 | CO194: 0 | CP194: 0 | CQ194: 0 | CR194: 0 | CS194: 0 | CT194: 0 | CU194: 0 | CV194: 0 | CW194: 0 | CX194: 0 | CY194: 0 | CZ194: 0 | DA194: 0 | DB194: 0 | DC194: 0 | DD194: 0 | DE194: 0 | DF194: 0 | DG194: 0 | DH194: 0 | DI194: 0 | DJ194: 0 | DK194: 0 | DL194: 0 | DM194: 0 | DN194: 0 | DO194: 0 | DP194: 0 | DQ194: 0 | DR194: 0 | DS194: 0 | DT194: 0 | DU194: 0 | DV194: 0 | DW194: 0 | DX194: 0 | DY194: 0
C195: Add: New Debt | F195: =F193 -> 10000 | H195: =H32 -> 10000 | I195: 0 | J195: 0 | K195: 0 | L195: 0 | M195: 0 | N195: 0 | O195: 0 | P195: 0 | Q195: 0 | R195: 0 | S195: 0 | T195: 0 | U195: 0 | V195: 0 | W195: 0 | X195: 0 | Y195: 0 | Z195: 0 | AA195: 0 | AB195: 0 | AC195: 0 | AD195: 0 | AE195: 0 | AF195: 0 | AG195: 0 | AH195: 0 | AI195: 0 | AJ195: 0 | AK195: 0 | AL195: 0 | AM195: 0 | AN195: =AN32 -> 0 | AO195: 0 | AP195: 0 | AQ195: 0 | AR195: 0 | AS195: 0 | AT195: 0 | AU195: 0 | AV195: 0 | AW195: 0 | AX195: 0 | AY195: 0 | AZ195: 0 | BA195: 0 | BB195: 0 | BC195: 0 | BD195: 0 | BE195: 0 | BF195: 0 | BG195: 0 | BH195: 0 | BI195: 0 | BJ195: 0 | BK195: 0 | BL195: 0 | BM195: 0 | BN195: 0 | BO195: 0 | BP195: 0 | BQ195: 0 | BR195: 0 | BS195: 0 | BT195: =BT32 -> 0 | BU195: 0 | BV195: 0 | BW195: 0 | BX195: 0 | BY195: 0 | BZ195: 0 | CA195: 0 | CB195: 0 | CC195: 0 | CD195: 0 | CE195: 0 | CF195: 0 | CG195: 0 | CH195: 0 | CI195: 0 | CJ195: 0 | CK195: 0 | CL195: 0 | CM195: 0 | CN195: 0 | CO195: 0 | CP195: 0 | CQ195: 0 | CR195: 0 | CS195: 0 | CT195: 0 | CU195: 0 | CV195: 0 | CW195: 0 | CX195: 0 | CY195: 0 | CZ195: =CZ32 -> 0 | DA195: 0 | DB195: 0 | DC195: 0 | DD195: 0 | DE195: 0 | DF195: 0 | DG195: 0 | DH195: 0 | DI195: 0 | DJ195: 0 | DK195: 0 | DL195: 0 | DM195: 0 | DN195: 0 | DO195: 0 | DP195: 0 | DQ195: 0 | DR195: 0 | DS195: 0 | DT195: 0 | DU195: 0 | DV195: 0 | DW195: 0 | DX195: 0 | DY195: 0
C196: Less: Repayment | F196: 1 | H196: =CHOOSE($F$196,(H86=$G$82)*H194,H37) -> 0 | I196: 0 | J196: 0 | K196: 0 | L196: 0 | M196: 0 | N196: 0 | O196: 0 | P196: 0 | Q196: 10000 | R196: 0 | S196: 0 | T196: 0 | U196: 0 | V196: 0 | W196: 0 | X196: 0 | Y196: 0 | Z196: 0 | AA196: 0 | AB196: 0 | AC196: 0 | AD196: 0 | AE196: 0 | AF196: 0 | AG196: 0 | AH196: 0 | AI196: 0 | AJ196: 0 | AK196: 0 | AL196: 0 | AM196: 0 | AN196: =CHOOSE($F$196,(AN86=$G$82)*AN194,AN37) -> 0 | AO196: 0 | AP196: 0 | AQ196: 0 | AR196: 0 | AS196: 0 | AT196: 0 | AU196: 0 | AV196: 0 | AW196: 0 | AX196: 0 | AY196: 0 | AZ196: 0 | BA196: 0 | BB196: 0 | BC196: 0 | BD196: 0 | BE196: 0 | BF196: 0 | BG196: 0 | BH196: 0 | BI196: 0 | BJ196: 0 | BK196: 0 | BL196: 0 | BM196: 0 | BN196: 0 | BO196: 0 | BP196: 0 | BQ196: 0 | BR196: 0 | BS196: 0 | BT196: =CHOOSE($F$196,(BT86=$G$82)*BT194,BT37) -> 0 | BU196: 0 | BV196: 0 | BW196: 0 | BX196: 0 | BY196: 0 | BZ196: 0 | CA196: 0 | CB196: 0 | CC196: 0 | CD196: 0 | CE196: 0 | CF196: 0 | CG196: 0 | CH196: 0 | CI196: 0 | CJ196: 0 | CK196: 0 | CL196: 0 | CM196: 0 | CN196: 0 | CO196: 0 | CP196: 0 | CQ196: 0 | CR196: 0 | CS196: 0 | CT196: 0 | CU196: 0 | CV196: 0 | CW196: 0 | CX196: 0 | CY196: 0 | CZ196: =CHOOSE($F$196,(CZ86=$G$82)*CZ194,CZ37) -> 0 | DA196: 0 | DB196: 0 | DC196: 0 | DD196: 0 | DE196: 0 | DF196: 0 | DG196: 0 | DH196: 0 | DI196: 0 | DJ196: 0 | DK196: 0 | DL196: 0 | DM196: 0 | DN196: 0 | DO196: 0 | DP196: 0 | DQ196: 0 | DR196: 0 | DS196: 0 | DT196: 0 | DU196: 0 | DV196: 0 | DW196: 0 | DX196: 0 | DY196: 0
C197: Closing Balance | H197: =H194+H195-H196 -> 10000 | I197: =I194+I195-I196 -> 10000 | J197: 10000 | K197: 10000 | L197: 10000 | M197: 10000 | N197: 10000 | O197: 10000 | P197: 10000 | Q197: 0 | R197: 0 | S197: 0 | T197: 0 | U197: 0 | V197: 0 | W197: 0 | X197: 0 | Y197: 0 | Z197: 0 | AA197: 0 | AB197: 0 | AC197: 0 | AD197: 0 | AE197: 0 | AF197: 0 | AG197: 0 | AH197: 0 | AI197: 0 | AJ197: 0 | AK197: 0 | AL197: 0 | AM197: 0 | AN197: 0 | AO197: 0 | AP197: 0 | AQ197: 0 | AR197: 0 | AS197: 0 | AT197: 0 | AU197: 0 | AV197: 0 | AW197: 0 | AX197: 0 | AY197: 0 | AZ197: 0 | BA197: 0 | BB197: 0 | BC197: 0 | BD197: 0 | BE197: 0 | BF197: 0 | BG197: 0 | BH197: 0 | BI197: 0 | BJ197: 0 | BK197: 0 | BL197: 0 | BM197: 0 | BN197: 0 | BO197: 0 | BP197: 0 | BQ197: 0 | BR197: 0 | BS197: 0 | BT197: 0 | BU197: =BU194+BU195-BU196 -> 0 | BV197: 0 | BW197: 0 | BX197: 0 | BY197: 0 | BZ197: 0 | CA197: 0 | CB197: 0 | CC197: 0 | CD197: 0 | CE197: 0 | CF197: 0 | CG197: 0 | CH197: 0 | CI197: 0 | CJ197: 0 | CK197: 0 | CL197: 0 | CM197: 0 | CN197: 0 | CO197: 0 | CP197: 0 | CQ197: 0 | CR197: 0 | CS197: 0 | CT197: 0 | CU197: 0 | CV197: 0 | CW197: 0 | CX197: 0 | CY197: 0 | CZ197: 0 | DA197: 0 | DB197: 0 | DC197: 0 | DD197: 0 | DE197: 0 | DF197: 0 | DG197: 0 | DH197: 0 | DI197: 0 | DJ197: 0 | DK197: 0 | DL197: 0 | DM197: 0 | DN197: 0 | DO197: 0 | DP197: 0 | DQ197: 0 | DR197: 0 | DS197: 0 | DT197: 0 | DU197: 0 | DV197: 0 | DW197: 0 | DX197: 0 | DY197: 0
C198: Interest | F198: =F83 -> 0.069 | H198: =H44 -> 0 | I198: 690 | J198: 613.3333333 | K198: 536.6666667 | L198: 460 | M198: 383.3333333 | N198: 306.6666667 | O198: 230 | P198: 153.3333333 | Q198: 76.66666667 | R198: 0 | S198: 0 | T198: 0 | U198: 0 | V198: 0 | W198: 0 | X198: 0 | Y198: 0 | Z198: 0 | AA198: 0 | AB198: 0 | AC198: 0 | AD198: 0 | AE198: 0 | AF198: 0 | AG198: 0 | AH198: 0 | AI198: 0 | AJ198: 0 | AK198: 0 | AL198: 0 | AM198: 0 | AN198: =AN44 -> 0 | AO198: 0 | AP198: 0 | AQ198: 0 | AR198: 0 | AS198: 0 | AT198: 0 | AU198: 0 | AV198: 0 | AW198: 0 | AX198: 0 | AY198: 0 | AZ198: 0 | BA198: 0 | BB198: 0 | BC198: 0 | BD198: 0 | BE198: 0 | BF198: 0 | BG198: 0 | BH198: 0 | BI198: 0 | BJ198: 0 | BK198: 0 | BL198: 0 | BM198: 0 | BN198: 0 | BO198: 0 | BP198: 0 | BQ198: 0 | BR198: 0 | BS198: 0 | BT198: =BT44 -> 0 | BU198: 0 | BV198: 0 | BW198: 0 | BX198: 0 | BY198: 0 | BZ198: 0 | CA198: 0 | CB198: 0 | CC198: 0 | CD198: 0 | CE198: 0 | CF198: 0 | CG198: 0 | CH198: 0 | CI198: 0 | CJ198: 0 | CK198: 0 | CL198: 0 | CM198: 0 | CN198: 0 | CO198: 0 | CP198: 0 | CQ198: 0 | CR198: 0 | CS198: 0 | CT198: 0 | CU198: 0 | CV198: 0 | CW198: 0 | CX198: 0 | CY198: 0 | CZ198: =CZ44 -> 0 | DA198: 0 | DB198: 0 | DC198: 0 | DD198: 0 | DE198: 0 | DF198: 0 | DG198: 0 | DH198: 0 | DI198: 0 | DJ198: 0 | DK198: 0 | DL198: 0 | DM198: 0 | DN198: 0 | DO198: 0 | DP198: 0 | DQ198: 0 | DR198: 0 | DS198: 0 | DT198: 0 | DU198: 0 | DV198: 0 | DW198: 0 | DX198: 0 | DY198: 0
C200: Incremental Default Percent | H200: =H176 -> 0.02 | I200: 0.04184210526 | J200: 0.04947368421 | K200: 0.04815789474 | L200: 0.04342105263 | M200: 0.04131578947 | N200: 0.03447368421 | O200: 0.03052631579 | P200: 0.02763157895 | Q200: 0.02473684211 | R200: 0.02052631579 | S200: 0.01736842105 | T200: 0.015 | U200: 0.01289473684 | V200: 0.01394736842 | W200: 0.01440254732 | X200: 0.01487258119 | Y200: 0.01535795484 | Z200: 0.01585916888 | AA200: 0.01637674028 | AB200: 0.01691120286 | AC200: 0.01746310788 | AD200: 0.01803302458 | AE200: 0.01862154077 | AF200: 0.01922926347 | AG200: 0.01985681948 | AH200: 0.02050485608 | AI200: 0.02117404165 | AJ200: 0.02186506641 | AK200: 0.02257864309 | AL200: 0.02331550767 | AM200: 0.02407642017 | AN200: =AN176 -> 0.02486216541 | AO200: 0.02567355382 | AP200: 0.02651142226 | AQ200: 0.02737663493 | AR200: 0.02827008423 | AS200: 0.02919269165 | AT200: 0.03014540881 | AU200: 0.03112921833 | AV200: 0.03214513494 | AW200: 0.03319420646 | AX200: 0.03427751492 | AY200: 0.03539617767 | AZ200: 0.03655134849 | BA200: 0.03774421885 | BB200: 0.0389760191 | BC200: 0.04024801972 | BD200: 0.04156153268 | BE200: 0.04291791275 | BF200: 0.04431855892 | BG200: 0.04576491583 | BH200: 0.04725847527 | BI200: 0.04880077773 | BJ200: 0.05039341395 | BK200: 0.05203802659 | BL200: 0.05373631194 | BM200: 0.05549002163 | BN200: 0.05730096446 | BO200: 0.05917100825 | BP200: 0.06110208179 | BQ200: 0.06309617683 | BR200: 0.06515535009 | BS200: 0.06728172543 | BT200: =BT176 -> 0.06947749602 | BU200: 0.07174492662 | BV200: 0.07408635587 | BW200: 0.07650419877 | BX200: 0.0790009491 | BY200: 0.08157918204 | BZ200: 0.08424155683 | CA200: 0.08699081946 | CB200: 0.08982980556 | CC200: 0.0927614433 | CD200: 0.09578875642 | CE200: 0.09891486731 | CF200: 0.1021430003 | CG200: 0.1054764849 | CH200: 0.1089187594 | CI200: 0.112473374 | CJ200: 0.1161439952 | CK200: 0.1199344089 | CL200: 0.1238485244 | CM200: 0.127890379 | CN200: 0.1320641414 | CO200: 0.1363741164 | CP200: 0.1408247495 | CQ200: 0.1454206311 | CR200: 0.1501665015 | CS200: 0.1550672555 | CT200: 0.160127948 | CU200: 0.1653537985 | CV200: 0.1707501971 | CW200: 0.1763227097 | CX200: 0.1820770838 | CY200: 0.1880192547 | CZ200: =CZ176 -> 0.194155351 | DA200: 0.2004917018 | DB200: 0.2070348423 | DC200: 0.2137915213 | DD200: 0.2207687076 | DE200: 0.2279735977 | DF200: 0.2354136227 | DG200: 0.2430964565 | DH200: 0.2510300231 | DI200: 0.2592225054 | DJ200: 0.2676823532 | DK200: 0.276418292 | DL200: 0.2854393324 | DM200: 0.2947547785 | DN200: 0.3043742387 | DO200: 0.3143076344 | DP200: 0.3245652111 | DQ200: 0.3351575487 | DR200: 0.3460955721 | DS200: 0.3573905631 | DT200: 0.3690541714 | DU200: 0.381098427 | DV200: 0.3935357525 | DW200: 0.4063789759 | DX200: 0.419641344 | DY200: 0.4333365356
C201: Loss Given Default | F201: =F177 -> 0.6 | H201: =$F$201 -> 0.6 | I201: 0.6 | J201: 0.6 | K201: 0.6 | L201: 0.6 | M201: 0.6 | N201: 0.6 | O201: 0.6 | P201: 0.6 | Q201: 0.6 | R201: 0.6 | S201: 0.6 | T201: 0.6 | U201: 0.6 | V201: 0.6 | W201: 0.6 | X201: 0.6 | Y201: 0.6 | Z201: 0.6 | AA201: 0.6 | AB201: 0.6 | AC201: 0.6 | AD201: 0.6 | AE201: 0.6 | AF201: 0.6 | AG201: 0.6 | AH201: 0.6 | AI201: 0.6 | AJ201: 0.6 | AK201: 0.6 | AL201: 0.6 | AM201: 0.6 | AN201: =$F$201 -> 0.6 | AO201: 0.6 | AP201: 0.6 | AQ201: 0.6 | AR201: 0.6 | AS201: 0.6 | AT201: 0.6 | AU201: 0.6 | AV201: 0.6 | AW201: 0.6 | AX201: 0.6 | AY201: 0.6 | AZ201: 0.6 | BA201: 0.6 | BB201: 0.6 | BC201: 0.6 | BD201: 0.6 | BE201: 0.6 | BF201: 0.6 | BG201: 0.6 | BH201: 0.6 | BI201: 0.6 | BJ201: 0.6 | BK201: 0.6 | BL201: 0.6 | BM201: 0.6 | BN201: 0.6 | BO201: 0.6 | BP201: 0.6 | BQ201: 0.6 | BR201: 0.6 | BS201: 0.6 | BT201: =$F$201 -> 0.6 | BU201: 0.6 | BV201: 0.6 | BW201: 0.6 | BX201: 0.6 | BY201: 0.6 | BZ201: 0.6 | CA201: 0.6 | CB201: 0.6 | CC201: 0.6 | CD201: 0.6 | CE201: 0.6 | CF201: 0.6 | CG201: 0.6 | CH201: 0.6 | CI201: 0.6 | CJ201: 0.6 | CK201: 0.6 | CL201: 0.6 | CM201: 0.6 | CN201: 0.6 | CO201: 0.6 | CP201: 0.6 | CQ201: 0.6 | CR201: 0.6 | CS201: 0.6 | CT201: 0.6 | CU201: 0.6 | CV201: 0.6 | CW201: 0.6 | CX201: 0.6 | CY201: 0.6 | CZ201: =$F$201 -> 0.6 | DA201: 0.6 | DB201: 0.6 | DC201: 0.6 | DD201: 0.6 | DE201: 0.6 | DF201: 0.6 | DG201: 0.6 | DH201: 0.6 | DI201: 0.6 | DJ201: 0.6 | DK201: 0.6 | DL201: 0.6 | DM201: 0.6 | DN201: 0.6 | DO201: 0.6 | DP201: 0.6 | DQ201: 0.6 | DR201: 0.6 | DS201: 0.6 | DT201: 0.6 | DU201: 0.6 | DV201: 0.6 | DW201: 0.6 | DX201: 0.6 | DY201: 0.6
C202: Incremental Loss Percent | H202: =H200*H201*(H3+H4) -> 0.012 | I202: 0.02510526316 | J202: 0.02968421053 | K202: 0.02889473684 | L202: 0.02605263158 | M202: 0.02478947368 | N202: 0.02068421053 | O202: 0.01831578947 | P202: 0.01657894737 | Q202: 0.01484210526 | R202: 0 | S202: 0 | T202: 0 | U202: 0 | V202: 0 | W202: 0 | X202: 0 | Y202: 0 | Z202: 0 | AA202: 0 | AB202: 0 | AC202: 0 | AD202: 0 | AE202: 0 | AF202: 0 | AG202: 0 | AH202: 0 | AI202: 0 | AJ202: 0 | AK202: 0 | AL202: 0 | AM202: 0 | AN202: =AN200*AN201*(AN3+AN4) -> 0 | AO202: 0 | AP202: 0 | AQ202: 0 | AR202: 0 | AS202: 0 | AT202: 0 | AU202: 0 | AV202: 0 | AW202: 0 | AX202: 0 | AY202: 0 | AZ202: 0 | BA202: 0 | BB202: 0 | BC202: 0 | BD202: 0 | BE202: 0 | BF202: 0 | BG202: 0 | BH202: 0 | BI202: 0 | BJ202: 0 | BK202: 0 | BL202: 0 | BM202: 0 | BN202: 0 | BO202: 0 | BP202: 0 | BQ202: 0 | BR202: 0 | BS202: 0 | BT202: =BT200*BT201*(BT3+BT4) -> 0 | BU202: 0 | BV202: 0 | BW202: 0 | BX202: 0 | BY202: 0 | BZ202: 0 | CA202: 0 | CB202: 0 | CC202: 0 | CD202: 0 | CE202: 0 | CF202: 0 | CG202: 0 | CH202: 0 | CI202: 0 | CJ202: 0 | CK202: 0 | CL202: 0 | CM202: 0 | CN202: 0 | CO202: 0 | CP202: 0 | CQ202: 0 | CR202: 0 | CS202: 0 | CT202: 0 | CU202: 0 | CV202: 0 | CW202: 0 | CX202: 0 | CY202: 0 | CZ202: =CZ200*CZ201*(CZ3+CZ4) -> 0 | DA202: 0 | DB202: 0 | DC202: 0 | DD202: 0 | DE202: 0 | DF202: 0 | DG202: 0 | DH202: 0 | DI202: 0 | DJ202: 0 | DK202: 0 | DL202: 0 | DM202: 0 | DN202: 0 | DO202: 0 | DP202: 0 | DQ202: 0 | DR202: 0 | DS202: 0 | DT202: 0 | DU202: 0 | DV202: 0 | DW202: 0 | DX202: 0 | DY202: 0
C204: Opening Balance | H204: =G207 -> 0 | I204: =H207 -> 120 | J204: 371.0526316 | K204: 667.8947368 | L204: 956.8421053 | M204: 1217.368421 | N204: 1465.263158 | O204: 1672.105263 | P204: 1855.263158 | Q204: 2021.052632 | R204: 0 | S204: 0 | T204: 0 | U204: 0 | V204: 0 | W204: 0 | X204: 0 | Y204: 0 | Z204: 0 | AA204: 0 | AB204: 0 | AC204: 0 | AD204: 0 | AE204: 0 | AF204: 0 | AG204: 0 | AH204: 0 | AI204: 0 | AJ204: 0 | AK204: 0 | AL204: 0 | AM204: 0 | AN204: 0 | AO204: 0 | AP204: 0 | AQ204: 0 | AR204: 0 | AS204: 0 | AT204: 0 | AU204: 0 | AV204: 0 | AW204: 0 | AX204: 0 | AY204: 0 | AZ204: 0 | BA204: 0 | BB204: 0 | BC204: 0 | BD204: 0 | BE204: 0 | BF204: 0 | BG204: 0 | BH204: 0 | BI204: 0 | BJ204: 0 | BK204: 0 | BL204: 0 | BM204: 0 | BN204: 0 | BO204: 0 | BP204: 0 | BQ204: 0 | BR204: 0 | BS204: 0 | BT204: 0 | BU204: =BT207 -> 0 | BV204: 0 | BW204: 0 | BX204: 0 | BY204: 0 | BZ204: 0 | CA204: 0 | CB204: 0 | CC204: 0 | CD204: 0 | CE204: 0 | CF204: 0 | CG204: 0 | CH204: 0 | CI204: 0 | CJ204: 0 | CK204: 0 | CL204: 0 | CM204: 0 | CN204: 0 | CO204: 0 | CP204: 0 | CQ204: 0 | CR204: 0 | CS204: 0 | CT204: 0 | CU204: 0 | CV204: 0 | CW204: 0 | CX204: 0 | CY204: 0 | CZ204: 0 | DA204: 0 | DB204: 0 | DC204: 0 | DD204: 0 | DE204: 0 | DF204: 0 | DG204: 0 | DH204: 0 | DI204: 0 | DJ204: 0 | DK204: 0 | DL204: 0 | DM204: 0 | DN204: 0 | DO204: 0 | DP204: 0 | DQ204: 0 | DR204: 0 | DS204: 0 | DT204: 0 | DU204: 0 | DV204: 0 | DW204: 0 | DX204: 0 | DY204: 0
C205: Add: Default | H205: =H202*H193 -> 120 | I205: 251.0526316 | J205: 296.8421053 | K205: 288.9473684 | L205: 260.5263158 | M205: 247.8947368 | N205: 206.8421053 | O205: 183.1578947 | P205: 165.7894737 | Q205: 148.4210526 | R205: 0 | S205: 0 | T205: 0 | U205: 0 | V205: 0 | W205: 0 | X205: 0 | Y205: 0 | Z205: 0 | AA205: 0 | AB205: 0 | AC205: 0 | AD205: 0 | AE205: 0 | AF205: 0 | AG205: 0 | AH205: 0 | AI205: 0 | AJ205: 0 | AK205: 0 | AL205: 0 | AM205: 0 | AN205: =AN202*AN193 -> 0 | AO205: 0 | AP205: 0 | AQ205: 0 | AR205: 0 | AS205: 0 | AT205: 0 | AU205: 0 | AV205: 0 | AW205: 0 | AX205: 0 | AY205: 0 | AZ205: 0 | BA205: 0 | BB205: 0 | BC205: 0 | BD205: 0 | BE205: 0 | BF205: 0 | BG205: 0 | BH205: 0 | BI205: 0 | BJ205: 0 | BK205: 0 | BL205: 0 | BM205: 0 | BN205: 0 | BO205: 0 | BP205: 0 | BQ205: 0 | BR205: 0 | BS205: 0 | BT205: 0 | BU205: =BU202*BU193 -> 0 | BV205: 0 | BW205: 0 | BX205: 0 | BY205: 0 | BZ205: 0 | CA205: 0 | CB205: 0 | CC205: 0 | CD205: 0 | CE205: 0 | CF205: 0 | CG205: 0 | CH205: 0 | CI205: 0 | CJ205: 0 | CK205: 0 | CL205: 0 | CM205: 0 | CN205: 0 | CO205: 0 | CP205: 0 | CQ205: 0 | CR205: 0 | CS205: 0 | CT205: 0 | CU205: 0 | CV205: 0 | CW205: 0 | CX205: 0 | CY205: 0 | CZ205: 0 | DA205: 0 | DB205: 0 | DC205: 0 | DD205: 0 | DE205: 0 | DF205: 0 | DG205: 0 | DH205: 0 | DI205: 0 | DJ205: 0 | DK205: 0 | DL205: 0 | DM205: 0 | DN205: 0 | DO205: 0 | DP205: 0 | DQ205: 0 | DR205: 0 | DS205: 0 | DT205: 0 | DU205: 0 | DV205: 0 | DW205: 0 | DX205: 0 | DY205: 0
C206: Less: Default Reduction in Repayment | H206: =(H204+H205)*H88 -> 0 | I206: 0 | J206: 0 | K206: 0 | L206: 0 | M206: 0 | N206: 0 | O206: 0 | P206: 0 | Q206: 2169.473684 | R206: 0 | S206: 0 | T206: 0 | U206: 0 | V206: 0 | W206: 0 | X206: 0 | Y206: 0 | Z206: 0 | AA206: 0 | AB206: 0 | AC206: 0 | AD206: 0 | AE206: 0 | AF206: 0 | AG206: 0 | AH206: 0 | AI206: 0 | AJ206: 0 | AK206: 0 | AL206: 0 | AM206: 0 | AN206: =(AN204+AN205)*AN88 -> 0 | AO206: 0 | AP206: 0 | AQ206: 0 | AR206: 0 | AS206: 0 | AT206: 0 | AU206: 0 | AV206: 0 | AW206: 0 | AX206: 0 | AY206: 0 | AZ206: 0 | BA206: 0 | BB206: 0 | BC206: 0 | BD206: 0 | BE206: 0 | BF206: 0 | BG206: 0 | BH206: 0 | BI206: 0 | BJ206: 0 | BK206: 0 | BL206: 0 | BM206: 0 | BN206: 0 | BO206: 0 | BP206: 0 | BQ206: 0 | BR206: 0 | BS206: 0 | BT206: =(BT204+BT205)*BT88 -> 0 | BU206: 0 | BV206: 0 | BW206: 0 | BX206: 0 | BY206: 0 | BZ206: 0 | CA206: 0 | CB206: 0 | CC206: 0 | CD206: 0 | CE206: 0 | CF206: 0 | CG206: 0 | CH206: 0 | CI206: 0 | CJ206: 0 | CK206: 0 | CL206: 0 | CM206: 0 | CN206: 0 | CO206: 0 | CP206: 0 | CQ206: 0 | CR206: 0 | CS206: 0 | CT206: 0 | CU206: 0 | CV206: 0 | CW206: 0 | CX206: 0 | CY206: 0 | CZ206: =(CZ204+CZ205)*CZ88 -> 0 | DA206: 0 | DB206: 0 | DC206: 0 | DD206: 0 | DE206: 0 | DF206: 0 | DG206: 0 | DH206: 0 | DI206: 0 | DJ206: 0 | DK206: 0 | DL206: 0 | DM206: 0 | DN206: 0 | DO206: 0 | DP206: 0 | DQ206: 0 | DR206: 0 | DS206: 0 | DT206: 0 | DU206: 0 | DV206: 0 | DW206: 0 | DX206: 0 | DY206: 0
C207: Closing Balance | H207: =H204+H205-H206 -> 120 | I207: =I204+I205-I206 -> 371.0526316 | J207: =J204+J205-J206 -> 667.8947368 | K207: 956.8421053 | L207: 1217.368421 | M207: 1465.263158 | N207: 1672.105263 | O207: 1855.263158 | P207: 2021.052632 | Q207: 0 | R207: 0 | S207: 0 | T207: 0 | U207: 0 | V207: 0 | W207: 0 | X207: 0 | Y207: 0 | Z207: 0 | AA207: 0 | AB207: 0 | AC207: 0 | AD207: 0 | AE207: 0 | AF207: 0 | AG207: 0 | AH207: 0 | AI207: 0 | AJ207: 0 | AK207: 0 | AL207: 0 | AM207: 0 | AN207: 0 | AO207: 0 | AP207: 0 | AQ207: 0 | AR207: 0 | AS207: 0 | AT207: 0 | AU207: 0 | AV207: 0 | AW207: 0 | AX207: 0 | AY207: 0 | AZ207: 0 | BA207: 0 | BB207: 0 | BC207: 0 | BD207: 0 | BE207: 0 | BF207: 0 | BG207: 0 | BH207: 0 | BI207: 0 | BJ207: 0 | BK207: 0 | BL207: 0 | BM207: 0 | BN207: 0 | BO207: 0 | BP207: 0 | BQ207: 0 | BR207: 0 | BS207: 0 | BT207: 0 | BU207: =BU204+BU205-BU206 -> 0 | BV207: 0 | BW207: 0 | BX207: 0 | BY207: 0 | BZ207: 0 | CA207: 0 | CB207: 0 | CC207: 0 | CD207: 0 | CE207: 0 | CF207: 0 | CG207: 0 | CH207: 0 | CI207: 0 | CJ207: 0 | CK207: 0 | CL207: 0 | CM207: 0 | CN207: 0 | CO207: 0 | CP207: 0 | CQ207: 0 | CR207: 0 | CS207: 0 | CT207: 0 | CU207: 0 | CV207: 0 | CW207: 0 | CX207: 0 | CY207: 0 | CZ207: 0 | DA207: 0 | DB207: 0 | DC207: 0 | DD207: 0 | DE207: 0 | DF207: 0 | DG207: 0 | DH207: 0 | DI207: 0 | DJ207: 0 | DK207: 0 | DL207: 0 | DM207: 0 | DN207: 0 | DO207: 0 | DP207: 0 | DQ207: 0 | DR207: 0 | DS207: 0 | DT207: 0 | DU207: 0 | DV207: 0 | DW207: 0 | DX207: 0 | DY207: 0
C208: Loss in Interest | F208: =F198 -> 0.069 | H208: =$F$208*H204 -> 0 | I208: 8.28 | J208: 25.60263158 | K208: 46.08473684 | L208: 66.02210526 | M208: 83.99842105 | N208: 101.1031579 | O208: 115.3752632 | P208: 128.0131579 | Q208: 139.4526316 | R208: 0 | S208: 0 | T208: 0 | U208: 0 | V208: 0 | W208: 0 | X208: 0 | Y208: 0 | Z208: 0 | AA208: 0 | AB208: 0 | AC208: 0 | AD208: 0 | AE208: 0 | AF208: 0 | AG208: 0 | AH208: 0 | AI208: 0 | AJ208: 0 | AK208: 0 | AL208: 0 | AM208: 0 | AN208: =$F$208*AN204 -> 0 | AO208: 0 | AP208: 0 | AQ208: 0 | AR208: 0 | AS208: 0 | AT208: 0 | AU208: 0 | AV208: 0 | AW208: 0 | AX208: 0 | AY208: 0 | AZ208: 0 | BA208: 0 | BB208: 0 | BC208: 0 | BD208: 0 | BE208: 0 | BF208: 0 | BG208: 0 | BH208: 0 | BI208: 0 | BJ208: 0 | BK208: 0 | BL208: 0 | BM208: 0 | BN208: 0 | BO208: 0 | BP208: 0 | BQ208: 0 | BR208: 0 | BS208: 0 | BT208: =$F$208*BT204 -> 0 | BU208: 0 | BV208: 0 | BW208: 0 | BX208: 0 | BY208: 0 | BZ208: 0 | CA208: 0 | CB208: 0 | CC208: 0 | CD208: 0 | CE208: 0 | CF208: 0 | CG208: 0 | CH208: 0 | CI208: 0 | CJ208: 0 | CK208: 0 | CL208: 0 | CM208: 0 | CN208: 0 | CO208: 0 | CP208: 0 | CQ208: 0 | CR208: 0 | CS208: 0 | CT208: 0 | CU208: 0 | CV208: 0 | CW208: 0 | CX208: 0 | CY208: 0 | CZ208: =$F$208*CZ204 -> 0 | DA208: 0 | DB208: 0 | DC208: 0 | DD208: 0 | DE208: 0 | DF208: 0 | DG208: 0 | DH208: 0 | DI208: 0 | DJ208: 0 | DK208: 0 | DL208: 0 | DM208: 0 | DN208: 0 | DO208: 0 | DP208: 0 | DQ208: 0 | DR208: 0 | DS208: 0 | DT208: 0 | DU208: 0 | DV208: 0 | DW208: 0 | DX208: 0 | DY208: 0
C210: Net Debt Service | H210: =H208+H196-H206+H198 -> 0 | I210: =I196-I206+I198-I208 -> 681.72 | J210: =J196-J206+J198-J208 -> 587.7307018 | K210: 490.5819298 | L210: 393.9778947 | M210: 299.3349123 | N210: 205.5635088 | O210: 114.6247368 | P210: 25.32017544 | Q210: 7767.740351 | R210: 0 | S210: 0 | T210: 0 | U210: 0 | V210: 0 | W210: 0 | X210: 0 | Y210: 0 | Z210: 0 | AA210: 0 | AB210: 0 | AC210: 0 | AD210: 0 | AE210: 0 | AF210: 0 | AG210: 0 | AH210: 0 | AI210: 0 | AJ210: 0 | AK210: 0 | AL210: 0 | AM210: 0 | AN210: 0 | AO210: 0 | AP210: 0 | AQ210: 0 | AR210: 0 | AS210: 0 | AT210: 0 | AU210: 0 | AV210: 0 | AW210: 0 | AX210: 0 | AY210: 0 | AZ210: 0 | BA210: 0 | BB210: 0 | BC210: 0 | BD210: 0 | BE210: 0 | BF210: 0 | BG210: 0 | BH210: 0 | BI210: 0 | BJ210: 0 | BK210: 0 | BL210: 0 | BM210: 0 | BN210: 0 | BO210: 0 | BP210: 0 | BQ210: 0 | BR210: 0 | BS210: 0 | BT210: 0 | BU210: 0 | BV210: =BV196-BV206+BV198-BV208 -> 0 | BW210: 0 | BX210: 0 | BY210: 0 | BZ210: 0 | CA210: 0 | CB210: 0 | CC210: 0 | CD210: 0 | CE210: 0 | CF210: 0 | CG210: 0 | CH210: 0 | CI210: 0 | CJ210: 0 | CK210: 0 | CL210: 0 | CM210: 0 | CN210: 0 | CO210: 0 | CP210: 0 | CQ210: 0 | CR210: 0 | CS210: 0 | CT210: 0 | CU210: 0 | CV210: 0 | CW210: 0 | CX210: 0 | CY210: 0 | CZ210: 0 | DA210: 0 | DB210: 0 | DC210: 0 | DD210: 0 | DE210: 0 | DF210: 0 | DG210: 0 | DH210: 0 | DI210: 0 | DJ210: 0 | DK210: 0 | DL210: 0 | DM210: 0 | DN210: 0 | DO210: 0 | DP210: 0 | DQ210: 0 | DR210: 0 | DS210: 0 | DT210: 0 | DU210: 0 | DV210: 0 | DW210: 0 | DX210: 0 | DY210: 0
C211: Draws Net of Fees | H211: =H41-H48-H49-H50 -> 9750 | I211: 0 | J211: 0 | K211: 0 | L211: 0 | M211: 0 | N211: 0 | O211: 0 | P211: 0 | Q211: 0 | R211: 0 | S211: 0 | T211: 0 | U211: 0 | V211: 0 | W211: 0 | X211: 0 | Y211: 0 | Z211: 0 | AA211: 0 | AB211: 0 | AC211: 0 | AD211: 0 | AE211: 0 | AF211: 0 | AG211: 0 | AH211: 0 | AI211: 0 | AJ211: 0 | AK211: 0 | AL211: 0 | AM211: 0 | AN211: =AN41-AN48-AN49-AN50 -> 0 | AO211: 0 | AP211: 0 | AQ211: 0 | AR211: 0 | AS211: 0 | AT211: 0 | AU211: 0 | AV211: 0 | AW211: 0 | AX211: 0 | AY211: 0 | AZ211: 0 | BA211: 0 | BB211: 0 | BC211: 0 | BD211: 0 | BE211: 0 | BF211: 0 | BG211: 0 | BH211: 0 | BI211: 0 | BJ211: 0 | BK211: 0 | BL211: 0 | BM211: 0 | BN211: 0 | BO211: 0 | BP211: 0 | BQ211: 0 | BR211: 0 | BS211: 0 | BT211: =BT41-BT48-BT49-BT50 -> 0 | BU211: 0 | BV211: 0 | BW211: 0 | BX211: 0 | BY211: 0 | BZ211: 0 | CA211: 0 | CB211: 0 | CC211: 0 | CD211: 0 | CE211: 0 | CF211: 0 | CG211: 0 | CH211: 0 | CI211: 0 | CJ211: 0 | CK211: 0 | CL211: 0 | CM211: 0 | CN211: 0 | CO211: 0 | CP211: 0 | CQ211: 0 | CR211: 0 | CS211: 0 | CT211: 0 | CU211: 0 | CV211: 0 | CW211: 0 | CX211: 0 | CY211: 0 | CZ211: =CZ41-CZ48-CZ49-CZ50 -> 0 | DA211: 0 | DB211: 0 | DC211: 0 | DD211: 0 | DE211: 0 | DF211: 0 | DG211: 0 | DH211: 0 | DI211: 0 | DJ211: 0 | DK211: 0 | DL211: 0 | DM211: 0 | DN211: 0 | DO211: 0 | DP211: 0 | DQ211: 0 | DR211: 0 | DS211: 0 | DT211: 0 | DU211: 0 | DV211: 0 | DW211: 0 | DX211: 0 | DY211: 0
C212: Net Cash Flow | H212: =H210-H211 -> -9750 | I212: =I210-I211 -> 681.72 | J212: 587.7307018 | K212: 490.5819298 | L212: 393.9778947 | M212: 299.3349123 | N212: 205.5635088 | O212: 114.6247368 | P212: 25.32017544 | Q212: 7767.740351 | R212: 0 | S212: 0 | T212: 0 | U212: 0 | V212: 0 | W212: 0 | X212: 0 | Y212: 0 | Z212: 0 | AA212: 0 | AB212: 0 | AC212: 0 | AD212: 0 | AE212: 0 | AF212: 0 | AG212: 0 | AH212: 0 | AI212: 0 | AJ212: 0 | AK212: 0 | AL212: 0 | AM212: 0 | AN212: 0 | AO212: 0 | AP212: 0 | AQ212: 0 | AR212: 0 | AS212: 0 | AT212: 0 | AU212: 0 | AV212: 0 | AW212: 0 | AX212: 0 | AY212: 0 | AZ212: 0 | BA212: 0 | BB212: 0 | BC212: 0 | BD212: 0 | BE212: 0 | BF212: 0 | BG212: 0 | BH212: 0 | BI212: 0 | BJ212: 0 | BK212: 0 | BL212: 0 | BM212: 0 | BN212: 0 | BO212: 0 | BP212: 0 | BQ212: 0 | BR212: 0 | BS212: 0 | BT212: 0 | BU212: =BU210-BU211 -> 0 | BV212: 0 | BW212: 0 | BX212: 0 | BY212: 0 | BZ212: 0 | CA212: 0 | CB212: 0 | CC212: 0 | CD212: 0 | CE212: 0 | CF212: 0 | CG212: 0 | CH212: 0 | CI212: 0 | CJ212: 0 | CK212: 0 | CL212: 0 | CM212: 0 | CN212: 0 | CO212: 0 | CP212: 0 | CQ212: 0 | CR212: 0 | CS212: 0 | CT212: 0 | CU212: 0 | CV212: 0 | CW212: 0 | CX212: 0 | CY212: 0 | CZ212: 0 | DA212: 0 | DB212: 0 | DC212: 0 | DD212: 0 | DE212: 0 | DF212: 0 | DG212: 0 | DH212: 0 | DI212: 0 | DJ212: 0 | DK212: 0 | DL212: 0 | DM212: 0 | DN212: 0 | DO212: 0 | DP212: 0 | DQ212: 0 | DR212: 0 | DS212: 0 | DT212: 0 | DU212: 0 | DV212: 0 | DW212: 0 | DX212: 0 | DY212: 0

Sheet Loan Inputs
B1: Alternative Loan Inputs | E1: =Loan_Code -> 8
F2: =E2+1 -> 1 | G2: 2 | H2: 3 | I2: 4 | J2: 5 | K2: 6 | L2: =K2+1 -> 7 | M2: 8
E3: =INDEX(F3:P3,$U$17) -> Customised Loan | F3: Senegal Rice Loan | G3: Senegal Rice Loan Adj | H3: Lurio Plantation Loan | I3: Lurio Plantation Loan | J3: Manufacturing Loan | K3: Real Estate Loan | L3: Hotel Loan | M3: Customised Loan | Q3: Customised Cell Links | S3: =TRANSPOSE(F3:N3) -> Senegal Rice Loan
S4: Senegal Rice Loan Adj | X4: Loan 1
D5: Loan Amount | E5: =INDEX(F5:P5,$U$17) -> 10000 | F5: =X5 -> 10000 | G5: =F5 -> 10000 | H5: 30000 | I5: 30000 | J5: 10000 | K5: 10000 | M5: =Q5*1000 -> 10000 | Q5: 10 | S5: Lurio Plantation Loan | W5: Senior lender 1 commitment | X5: 10000 | Y5: Loan amount | Z5: 30000000
D6: Base Interest Rate | E6: =INDEX(F6:P6,$U$17) -> 0.03 | F6: 0.03 | G6: =F6 -> 0.03 | H6: =Z7 -> 0.03 | I6: =H6 -> 0.03 | J6: =F6 -> 0.03 | K6: =H6 -> 0.03 | M6: =Q6/1000 -> 0.03 | Q6: 30 | S6: Lurio Plantation Loan | W6: Tenor (Years) | X6: 10 | Y6: Disbursement start date | Z6: 2012-07-01
D7: Credit Spread | E7: 0.039 | F7: =X9 -> 0.0583 | G7: 0.0583 | H7: =Z8 -> 0.045 | I7: =H7 -> 0.045 | J7: 0.05 | K7: 0.04 | M7: =Q7/1000 -> 0.039 | Q7: 39 | S7: Manufacturing Loan | W7: Grace period | X7: 3 | Y7: Libor | Z7: 0.03
D8: Up-front Fee | E8: 0.01 | F8: =X12 -> 0.015 | G8: 0.015 | H8: =Z15 -> 0.015 | I8: =H8 -> 0.015 | J8: 0.02 | K8: 0.02 | M8: =Q8/1000 -> 0.01 | Q8: 10 | S8: Real Estate Loan | W8: Base rate- 6 months Libor (euro) | X8: 0.0067 | Y8: Margin | Z8: 0.045
D9: Commitment Fee | E9: 0.015 | F9: =X11 -> 0.01 | G9: 0.01 | H9: =Z16 -> 0.01 | I9: =H9 -> 0.01 | J9: 0.01 | K9: 0.01 | M9: =Q9/1000 -> 0.015 | Q9: 15 | S9: Hotel Loan | W9: Applicable Margin | X9: 0.0583 | Y9: Interest rate | Z9: 0.075
D10: Other Fees | E10: 0 | F10: =X13/1000 -> 70 | G10: 70 | H10: =Z17*H5 -> 225 | I10: =H10 -> 225 | J10: 80 | K10: 80 | M10: =Q10 -> 0 | Q10: 0 | S10: Customised Loan | W10: Interest Rate | X10: 0.065 | Y10: Grace period (years) | Z10: 5
W11: Commitment Fee | X11: 0.01 | Y11: Loan period (maturity) (years) | Z11: 15
D12: Maturity | E12: 10 | F12: =X6 -> 10 | G12: 10 | H12: =Z11 -> 15 | I12: =H12 -> 15 | J12: 4 | K12: 10 | M12: =Q12 -> 10 | Q12: 10 | W12: Front-end-fee (%tage of loan) | X12: 0.015 | Y12: Loan repayment duration (years) | Z12: 10
D13: Grace Period | E13: 0 | F13: 0 | G13: 3 | H13: 0 | I13: 5 | J13: 1 | K13: 3 | M13: =Q13/10 -> 0 | Q13: 0 | W13: Due Diligence Appraisal Fee | X13: 70000 | Y13: Principle repayment style | Z13: 3
D14: Repayments | E14: 1 | F14: 1 | G14: 1 | H14: 1 | I14: 1 | J14: 2 | K14: 2 | M14: =Q14 -> 1 | Q14: 1
Y15: Upfront | Z15: 0.015
D16: Min DSCR | E16: 1.89 | F16: =X21 -> 1.407081365 | G16: 1.407081365 | H16: =Z21 -> 1.70482855 | I16: =AA21 -> 0 | J16: 3.5 | K16: 1.8 | M16: =Q16/100 -> 1.89 | Q16: 189 | U16: Loan Code | Y16: Commitement | Z16: 0.01
D17: Average DSCR | E17: 2.81 | F17: =X22 -> 2.567312278 | G17: 2.567312278 | H17: =Z22 -> 3.764975796 | I17: =AA22 -> 0 | J17: 3.5 | K17: 3.7 | M17: =Q17/100 -> 2.81 | Q17: 281 | T17: 8 | U17: 8 | Y17: Appraisal | Z17: 0.0075
D19: Debt to Capital | E19: 0.49 | F19: =X24 -> 0.55 | G19: 0.55 | H19: =Z24 -> 0.55 | I19: =AA24 -> 0 | J19: 0.45 | K19: 0.65 | M19: =Q19/100 -> 0.49 | Q19: 49
D21: Project IRR | E21: 0.2 | F21: =X28 -> 0.2740275323 | G21: 0.2740275323 | H21: 0.1882 | I21: 0.1882 | J21: 0.18 | K21: 0.4 | M21: =Q21/100 -> 0.2 | Q21: 20 | W21: Min DSCR | X21: 1.407081365 | Y21: Min DSCR | Z21: 1.70482855
W22: Average DSCR | X22: 2.567312278 | Y22: Average DSCR | Z22: 3.764975796
D23: EBITDA/Interest | E23: 3.5 | J23: 3.5 | M23: =Q23/100 -> 3.5 | Q23: 350
D24: Debt/EBITDA | E24: 4.5 | J24: 4.2 | M24: =Q24/100 -> 4.5 | Q24: 450 | W24: Debt to Capital Ratio | X24: 0.55 | Z24: 0.55
D26: Loan to Value | E26: 0.6 | K26: 0.7 | M26: =Q26/100 -> 0.6 | Q26: 60 | X26: Nominal IRR
W27: Equity | X27: 0.3631303608
W28: Project (Post Tax) | X28: 0.2740275323

Sheet Weights and Defaults
G1: Code | H1: Column
G2: =Notes!$R$20 -> 6 | H2: =MATCH(G2,4:4,0) -> 20
D4: Code Number for Industry | J4: 1 | L4: 2 | N4: 3 | P4: 4 | R4: 5 | T4: 6 | V4: 7 | X4: 8
G5: =INDEX(5:5,$H$2) -> Real Estate-Housing | H5: =INDEX(5:5,$H$2+1) -> Weight | J5: Agriculture | K5: Weight | L5: Social Projects | M5: Weight | N5: Industry | O5: Weight | P5: Electricity | Q5: Weight | R5: Infrastructure | S5: Weight | T5: Real Estate-Housing | U5: Weight | V5: Real Estate-Commercial | W5: Weight | X5: Real Estate - Hotel | Y5: Weight
D6: Industry Assesment
E7: Industry Price Variation | G7: =INDEX(7:7,$H$2) -> 7 | H7: =INDEX(7:7,$H$2+1) -> 0.2 | J7: 7 | K7: 0.25 | L7: 4 | M7: 0.25 | N7: 6 | O7: 0.25 | P7: 5 | Q7: 0.1 | R7: 7 | S7: 0.2 | T7: 7 | U7: 0.2 | V7: 7 | W7: 0.1 | X7: 7 | Y7: 0.2
E8: Industry Capital Intensity | G8: =INDEX(8:8,$H$2) -> 6 | H8: =INDEX(8:8,$H$2+1) -> 0.2 | J8: 5 | K8: 0.25 | L8: 4 | M8: 0.25 | N8: 7 | O8: 0.25 | P8: 5 | Q8: 0.1 | R8: 4 | S8: 0.3 | T8: 6 | U8: 0.2 | V8: 6 | W8: 0.2 | X8: 6 | Y8: 0.2
E9: Oblosense Risk | G9: =INDEX(9:9,$H$2) -> 4 | H9: =INDEX(9:9,$H$2+1) -> 0.1 | J9: 3 | K9: 0.25 | L9: 3 | M9: 0.25 | N9: 5 | O9: 0.25 | P9: 5 | Q9: 0.1 | R9: 4 | S9: 0.1 | T9: 4 | U9: 0.1 | V9: 4 | W9: 0.1 | X9: 4 | Y9: 0.2
E10: Operating Leverage | G10: =INDEX(10:10,$H$2) -> 6 | H10: =INDEX(10:10,$H$2+1) -> 0.2 | J10: 6 | K10: 0.25 | L10: 6 | M10: 0.25 | N10: 4 | O10: 0.25 | P10: 6 | Q10: 0.1 | R10: 6 | S10: 0.4 | T10: 6 | U10: 0.2 | V10: 6 | W10: 0.2 | X10: 6 | Y10: 0.2
E11: Contract Strength | G11: =INDEX(11:11,$H$2) -> 5 | H11: =INDEX(11:11,$H$2+1) -> 0.3 | P11: 2 | Q11: 0.6 | T11: 5 | U11: 0.3 | V11: 5 | W11: 0.4 | X11: 5 | Y11: 0.2
D12: Management Assessment
E13: Company Size | G13: =INDEX(13:13,$H$2) -> 5 | H13: =INDEX(13:13,$H$2+1) -> 0.05 | J13: 4 | K13: 0.1 | L13: 4 | M13: 0.1 | N13: 5 | O13: 0.15 | P13: 4 | Q13: 0.05 | R13: 4 | S13: 0.05 | T13: 5 | U13: 0.05 | V13: 5 | W13: 0.05 | X13: 5 | Y13: 0.05
E14: Reputation Assessment | G14: =INDEX(14:14,$H$2) -> 5 | H14: =INDEX(14:14,$H$2+1) -> 0.05 | J14: 4 | K14: 0.3 | L14: 4 | M14: 0.3 | N14: 4 | O14: 0.25 | P14: 5 | Q14: 0.15 | R14: 5 | S14: 0.05 | T14: 5 | U14: 0.05 | V14: 5 | W14: 0.05 | X14: 5 | Y14: 0.05
E15: Prior Projects | G15: =INDEX(15:15,$H$2) -> 5 | H15: =INDEX(15:15,$H$2+1) -> 0.2 | J15: 5 | K15: 0.1 | L15: 5 | M15: 0.1 | N15: 6 | O15: 0.1 | P15: 6 | Q15: 0.1 | R15: 6 | S15: 0.2 | T15: 5 | U15: 0.2 | V15: 5 | W15: 0.2 | X15: 5 | Y15: 0.2
E16: Business Plan Assessment | G16: =INDEX(16:16,$H$2) -> 5 | H16: =INDEX(16:16,$H$2+1) -> 0 | J16: 5 | L16: 5 | N16: 5 | P16: 4 | R16: 4 | T16: 5 | V16: 5 | X16: 5
E17: Excessive Project IRR | G17: =INDEX(17:17,$H$2) -> 5 | H17: =INDEX(17:17,$H$2+1) -> 0.7 | J17: 6 | K17: 0.5 | L17: 6 | M17: 0.5 | N17: 5 | O17: 0.5 | P17: 7 | Q17: 0.7 | R17: 7 | S17: 0.7 | T17: 5 | U17: 0.7 | V17: 5 | W17: 0.7 | X17: 5 | Y17: 0.7
D18: Capital Assessment
E19: Debt to Capital Ratio | H19: =INDEX(19:19,$H$2+1) -> 0.2 | K19: 0.33 | M19: 0.25 | O19: 0.35 | Q19: 0.3 | S19: 0.3 | U19: 0.2 | W19: 0.2 | Y19: 0.2
E20: Coverage Ratio - Minimum | H20: =INDEX(20:20,$H$2+1) -> 0.1 | K20: 0.33 | M20: 0.25 | O20: 0.1 | Q20: 0.3 | S20: 0.2 | U20: 0.1 | W20: 0.1 | Y20: 0.1
E21: Coverage Ratio - Average | H21: =INDEX(21:21,$H$2+1) -> 0.1 | K21: 0.33 | M21: 0.25 | O21: 0.1 | Q21: 0.3 | S21: 0.1 | U21: 0.1 | W21: 0.1 | Y21: 0.1
E22: Debt to EBITDA | H22: =INDEX(22:22,$H$2+1) -> 0.2 | M22: 0.25 | O22: 0.45 | Q22: 0.1 | U22: 0.2 | W22: 0.2 | Y22: 0.2
E23: PLCR/Loan to Value | H23: =INDEX(23:23,$H$2+1) -> 0.4 | S23: 0.4 | U23: 0.4 | W23: 0.4 | Y23: 0.4
D24: Collateral
E25: Collateral Included | G25: =INDEX(25:25,$H$2) -> 5 | H25: =INDEX(25:25,$H$2+1) -> 0.5 | J25: 5 | K25: 0.5 | L25: 5 | M25: 0.5 | N25: 5 | O25: 0.5 | P25: 5 | Q25: 0.5 | R25: 5 | S25: 0.5 | T25: 5 | U25: 0.5 | V25: 5 | W25: 0.5 | X25: 5 | Y25: 0.5
E26: Value of Collateral/Loan | G26: =INDEX(26:26,$H$2) -> 5 | H26: =INDEX(26:26,$H$2+1) -> 0.5 | J26: 5 | K26: 0.5 | L26: 5 | M26: 0.5 | N26: 5 | O26: 0.5 | P26: 5 | Q26: 0.5 | R26: 5 | S26: 0.5 | T26: 5 | U26: 0.5 | V26: 5 | W26: 0.5 | X26: 5 | Y26: 0.5
D27: Credit Enhancements
E28: DSRA | G28: =INDEX(28:28,$H$2) -> 5 | H28: =INDEX(28:28,$H$2+1) -> 0.5 | J28: 5 | K28: 0.5 | L28: 5 | M28: 0.5 | N28: 5 | O28: 0.5 | P28: 5 | Q28: 0.5 | R28: 5 | S28: 0.5 | T28: 5 | U28: 0.5 | V28: 5 | W28: 0.5 | X28: 5 | Y28: 0.5
E29: Dividend Lock-up Covenant | G29: =INDEX(29:29,$H$2) -> 5 | H29: =INDEX(29:29,$H$2+1) -> 0.5 | J29: 5 | K29: 0.5 | L29: 5 | M29: 0.5 | N29: 5 | O29: 0.5 | P29: 5 | Q29: 0.5 | R29: 5 | S29: 0.5 | T29: 5 | U29: 0.5 | V29: 5 | W29: 0.5 | X29: 5 | Y29: 0.5
F51: Cyclicality | G51: Competition | H51: Capital Intensity | I51: Technology | J51: Regulatory | K51: Energy
C52: General Industry | F52: H | G52: H | H52: H | I52: L | J52: M | K52: H
C53: Airlines | F53: H | G53: H | H53: H | I53: M | J53: M | K53: H
C54: Autos | F54: H | G54: H | H54: H | I54: M | J54: M | K54: M
C55: Auto Suppliers | F55: H | G55: H | H55: M | I55: H | J55: L | K55: L
C56: High Technology | F56: H | G56: H | H56: H | I56: M | J56: M | K56: M
C57: Mining | F57: H | G57: H | H57: H | I57: L | J57: M | K57: L
C58: Chemicals | F58: H | G58: H | H58: H | I58: L | J58: M | K58: H
C59: Hotels | F59: H | G59: H | H59: H | I59: L | J59: L | K59: M
C60: Shipping | F60: H | G60: H | H60: H | I60: L | J60: L | K60: M
C61: Comp Power | F61: H | G61: H | H61: M | I61: L | J61: H | K61: H
C62: Telecom | F62: M | G62: H | H62: H | I62: H | J62: H | K62: L

Sheet Bond Rating Simulation
B1: General Business | E1: Lowest FFO/Interest Acceptable | J1: Lowest FFO/Debt Acceptable | P1: Highest Debt to Capital Acceptable
E2: 1 | F2: 2 | G2: 3 | H2: 4 | K2: 1 | L2: 2 | M2: 3 | N2: 4 | Q2: 1 | R2: 2 | S2: 3 | T2: 4
E3: AA | F3: A | G3: BBB | H3: BB | I3: B | K3: AA | L3: A | M3: BBB | N3: BB | Q3: AA | R3: A | S3: BBB | T3: BB
D4: 1 | E4: 2.5 | F4: 1.5 | G4: 1 | J4: 1 | K4: 0.15 | L4: 0.1 | M4: 0.05 | N4: 0.01 | P4: 1 | Q4: 0.55 | R4: 0.6 | S4: 0.7
D5: 2 | E5: 3 | F5: 2 | G5: 1 | J5: 2 | K5: 0.2 | L5: 0.12 | M5: 0.08 | N5: 0.01 | P5: 2 | Q5: 0.52 | R5: 0.58 | S5: 0.68
D6: 3 | E6: 3.5 | F6: 2.5 | G6: 1.5 | H6: 1 | J6: 3 | K6: 0.25 | L6: 0.15 | M6: 0.1 | N6: 0.05 | P6: 3 | Q6: 0.5 | R6: 0.55 | S6: 0.65 | T6: 0.7
D7: 4 | E7: 4.2 | F7: 3.5 | G7: 2.5 | H7: 1.5 | J7: 4 | K7: 0.28 | L7: 0.2 | M7: 0.12 | N7: 0.08 | P7: 4 | Q7: 0.45 | R7: 0.52 | S7: 0.62 | T7: 0.68
D8: 5 | E8: 4.5 | F8: 3.8 | G8: 2.8 | H8: 1.8 | J8: 5 | K8: 0.3 | L8: 0.22 | M8: 0.15 | N8: 0.1 | P8: 5 | Q8: 0.42 | R8: 0.5 | S8: 0.62 | T8: 0.68
D9: 6 | E9: 5.2 | F9: 4.2 | G9: 3 | H9: 2 | J9: 6 | K9: 0.35 | L9: 0.28 | M9: 0.18 | N9: 0.12 | P9: 6 | Q9: 0.4 | R9: 0.48 | S9: 0.58 | T9: 0.62
D10: 7 | E10: 6.5 | F10: 4.5 | G10: 3.2 | H10: 2.2 | J10: 7 | K10: 0.45 | L10: 0.3 | M10: 0.2 | N10: 0.15 | P10: 7 | Q10: 0.38 | R10: 0.45 | S10: 0.55 | T10: 0.6
D11: 8 | E11: 7.5 | F11: 5.5 | G11: 3.5 | H11: 2.5 | J11: 8 | K11: 0.55 | L11: 0.4 | M11: 0.25 | N11: 0.15 | P11: 8 | Q11: 0.35 | R11: 0.42 | S11: 0.52 | T11: 0.58
D12: 9 | E12: 8.5 | F12: 7 | G12: 4 | H12: 2.8 | J12: 9 | K12: 0.65 | L12: 0.45 | M12: 0.3 | N12: 0.2 | P12: 9 | Q12: 0.32 | R12: 0.4 | S12: 0.5 | T12: 0.55
D13: 10 | E13: 9 | F13: 8 | G13: 4.5 | H13: 3 | J13: 10 | K13: 0.7 | L13: 0.55 | M13: 0.4 | N13: 0.25 | P13: 10 | Q13: 0.25 | R13: 0.35 | S13: 0.48 | T13: 0.52
D15: Ratio | E15: ='RAROC Analysis'!O25*0.8 -> 1.512 | J15: Debt/EBIT | K15: ='RAROC Analysis'!O27 -> 4.5 | P15: Debt/Cap | Q15: ='RAROC Analysis'!O24 -> 0.49
D16: Business Risk | E16: ='RAROC Analysis'!N3 -> 5.92 | F16: =E16 -> 5.92 | G16: =F16 -> 5.92 | H16: 5.92 | J16: FFO/Debt | K16: =interpolate_look_up_linear(K15,L116:R116,L109:R109) -> 0.1073333333 | P16: Business | Q16: =K17 -> 5.92 | R16: =Q16 -> 5.92 | S16: =R16 -> 5.92 | T16: 5.92
D17: Row Number | E17: =MATCH(E16,D4:D12) -> 5 | F17: =E17 -> 5 | G17: =F17 -> 5 | H17: 5 | J17: Business | K17: =E16 -> 5.92 | L17: =K17 -> 5.92 | M17: =L17 -> 5.92 | N17: 5.92 | P17: Row Number | Q17: =MATCH(Q16,P4:P13) -> 5 | R17: =Q17 -> 5 | S17: =R17 -> 5 | T17: 5
D18: Low Range | E18: =INDEX(E4:E12,E17) -> 4.5 | F18: =INDEX(F4:F12,F17) -> 3.8 | G18: =INDEX(G4:G12,G17) -> 2.8 | H18: =INDEX(H4:H12,H17) -> 1.8 | J18: Row Number | K18: =MATCH(K17,J4:J13) -> 5 | L18: =K18 -> 5 | M18: =L18 -> 5 | N18: 5 | P18: Low Range | Q18: =LOOKUP(Q17,$P$4:$P$13,Q4:Q13) -> 0.42 | R18: =LOOKUP(R17,$P$4:$P$13,R4:R13) -> 0.5 | S18: =LOOKUP(S17,$P$4:$P$13,S4:S13) -> 0.62 | T18: =LOOKUP(T17,$P$4:$P$13,T4:T13) -> 0.68
D19: High Range | E19: =INDEX(E4:E12,E17+1) -> 5.2 | F19: =INDEX(F4:F12,F17+1) -> 4.2 | G19: =INDEX(G4:G12,G17+1) -> 3 | H19: =INDEX(H4:H12,H17+1) -> 2 | J19: Low Range | K19: =LOOKUP(K17,J4:J13,K4:K13) -> 0.3 | L19: =LOOKUP(L17,K4:K13,L4:L13) -> 0.55 | M19: 0.4 | N19: 0.25 | P19: High Range | Q19: =INDEX(Q4:Q13,MATCH(Q17,$P$4:$P$13)+1) -> 0.4 | R19: =INDEX(R4:R13,MATCH(R17,$P$4:$P$13)+1) -> 0.48 | S19: =INDEX(S4:S13,MATCH(S17,$P$4:$P$13)+1) -> 0.58 | T19: =INDEX(T4:T13,MATCH(T17,$P$4:$P$13)+1) -> 0.62
D20: Interpolated | E20: =interpolate_look_up_linear(E16,$D$4:$D$12,E4:E12) -> 5.144 | F20: =interpolate_look_up_linear(F16,$D$4:$D$12,F4:F12) -> 4.168 | G20: =interpolate_look_up_linear(G16,$D$4:$D$12,G4:G12) -> 2.984 | H20: =interpolate_look_up_linear(H16,$D$4:$D$12,H4:H12) -> 1.984 | J20: High Range | K20: =INDEX(K4:K13,MATCH(K18,$J$4:$J$13)+1) -> 0.35 | L20: =INDEX(L4:L13,MATCH(L18,$J$4:$J$13)+1) -> 0.28 | M20: 0.18 | N20: 0.12 | P20: Interpolated | Q20: =interpolate_look_up_linear(Q16,$P$4:$P$13,Q4:Q13) -> 0.4016 | R20: =interpolate_look_up_linear(R16,$P$4:$P$13,R4:R13) -> 0.4816 | S20: =interpolate_look_up_linear(S16,$P$4:$P$13,S4:S13) -> 0.5832 | T20: =interpolate_look_up_linear(T16,$P$4:$P$13,T4:T13) -> 0.6248
D21: Bond Rating | E21: =IFERROR(INDEX(E3:H3,MATCH(E15,E20:H20,-1)+1),NA()) ->  | J21: Interpolated | K21: =interpolate_look_up_linear(K17,$J$4:$J$13,K4:K13) -> 0.346 | L21: =interpolate_look_up_linear(L17,$J$4:$J$13,L4:L13) -> 0.2752 | M21: 0.1776 | N21: 0.1184 | P21: Bond Rating | Q21: =IFERROR(INDEX(Q3:T3,MATCH(Q15,Q20:T20,1)+1),NA()) -> BBB
D22: Interpolated | E22: =interpolate_look_up_reverse(E15,E20:H20,E2:H2) -> 4 | J22: Bond Rating | K22: =IFERROR(INDEX(K3:N3,MATCH(K16,K21:N21,-1)+1),NA()) ->  | P22: Interpolated | Q22: =interpolate_look_up_linear(Q15,Q20:T20,E2:H2) -> 2.082677165
J23: Interpolated | K23: =interpolate_look_up_reverse(K16,K21:N21,E2:H2) -> 4
B26: Project Finance
E28: Lowest Minimum DSCR Acceptable | K28: Lowest Average DSCR Acceptable | P28: Highest Debt to Capital Acceptable
E29: 1 | F29: 2 | G29: 3 | H29: 4 | K29: 1 | L29: 2 | M29: 3 | N29: 4 | Q29: 1 | R29: 2 | S29: 3 | T29: 4
E30: AA | F30: A | G30: BBB | H30: BB | K30: AA | L30: A | M30: BBB | N30: BB | Q30: AA | R30: A | S30: BBB | T30: BB
D31: 1 | E31: 2 | F31: 1.5 | G31: 1.35 | H31: 1.05 | J31: 1 | K31: 2.7 | L31: 2.25 | M31: 2 | N31: 1.4 | P31: 1 | Q31: 0.6 | R31: 0.65 | S31: 0.7 | T31: 0.8
D32: 2 | E32: =E31+0.075 -> 2.075 | F32: =F31+0.075 -> 1.575 | G32: 1.425 | H32: 1.125 | J32: 2 | K32: =K31+0.1 -> 2.8 | L32: =L31+0.1 -> 2.35 | M32: =M31+0.1 -> 2.1 | N32: =N31+0.1 -> 1.5 | P32: 2 | Q32: =Q31-3% -> 0.57 | R32: =R31-3% -> 0.62 | S32: 0.67 | T32: 0.77
D33: 3 | E33: =E32+0.075 -> 2.15 | F33: =F32+0.075 -> 1.65 | G33: =G32+0.075 -> 1.5 | H33: =H32+0.075 -> 1.2 | J33: 3 | K33: =K32+0.1 -> 2.9 | L33: =L32+0.1 -> 2.45 | M33: =M32+0.1 -> 2.2 | N33: =N32+0.1 -> 1.6 | P33: 3 | Q33: =Q32-3% -> 0.54 | R33: =R32-3% -> 0.59 | S33: =S32-3% -> 0.64 | T33: =T32-3% -> 0.74
D34: 4 | E34: 2.225 | F34: 1.725 | G34: 1.575 | H34: 1.275 | J34: 4 | K34: 3 | L34: 2.55 | M34: 2.3 | N34: 1.7 | P34: 4 | Q34: 0.51 | R34: 0.56 | S34: 0.61 | T34: 0.71
D35: 5 | E35: 2.3 | F35: 1.8 | G35: 1.65 | H35: 1.35 | J35: 5 | K35: 3.1 | L35: 2.65 | M35: 2.4 | N35: 1.8 | P35: 5 | Q35: 0.48 | R35: 0.53 | S35: 0.58 | T35: 0.68
D36: 6 | E36: 2.375 | F36: 1.875 | G36: 1.725 | H36: 1.425 | J36: 6 | K36: 3.2 | L36: 2.75 | M36: 2.5 | N36: 1.9 | P36: 6 | Q36: 0.45 | R36: 0.5 | S36: 0.55 | T36: 0.65
D37: 7 | E37: 2.45 | F37: 1.95 | G37: 1.8 | H37: 1.5 | J37: 7 | K37: 3.3 | L37: 2.85 | M37: 2.6 | N37: 2 | P37: 7 | Q37: 0.42 | R37: 0.47 | S37: 0.52 | T37: 0.62
D38: 8 | E38: 2.525 | F38: 2.025 | G38: 1.875 | H38: 1.575 | J38: 8 | K38: 3.4 | L38: 2.95 | M38: 2.7 | N38: 2.1 | P38: 8 | Q38: 0.39 | R38: 0.44 | S38: 0.49 | T38: 0.59
D39: 9 | E39: 2.6 | F39: 2.1 | G39: 1.95 | H39: 1.65 | J39: 9 | K39: 3.5 | L39: 3.05 | M39: 2.8 | N39: 2.2 | P39: 9 | Q39: 0.36 | R39: 0.41 | S39: 0.46 | T39: 0.56
P40: 10 | Q40: 0.33 | R40: 0.38 | S40: 0.43 | T40: 0.53
D42: Ratio | E42: ='RAROC Analysis'!O25 -> 1.89 | J42: Ratio | K42: ='RAROC Analysis'!O26 -> 2.81 | P42: Debt/Cap | Q42: ='RAROC Analysis'!O24 -> 0.49
D43: Business Risk | E43: ='RAROC Analysis'!N3 -> 5.92 | F43: =E43 -> 5.92 | G43: =F43 -> 5.92 | H43: 5.92 | J43: Business Risk | K43: =E43 -> 5.92 | L43: =F43 -> 5.92 | M43: 5.92 | N43: 5.92 | P43: Business | Q43: =K43 -> 5.92 | R43: =L43 -> 5.92 | S43: 5.92 | T43: 5.92
D44: Row Number | E44: =MATCH(E43,$D$31:$D$39) -> 5 | F44: =MATCH(F43,$D$31:$D$39) -> 5 | G44: 5 | H44: 5 | J44: Row Number | K44: =MATCH(K43,$D$31:$D$39) -> 5 | L44: =MATCH(L43,$D$31:$D$39) -> 5 | M44: =MATCH(M43,$D$31:$D$39) -> 5 | N44: =MATCH(N43,$D$31:$D$39) -> 5 | P44: Row Number | Q44: =MATCH(Q43,$D$31:$D$39) -> 5 | R44: =MATCH(R43,$D$31:$D$39) -> 5 | S44: =MATCH(S43,$D$31:$D$39) -> 5 | T44: =MATCH(T43,$D$31:$D$39) -> 5
D45: Low Range | E45: =INDEX(E31:E39,E44) -> 2.3 | F45: =INDEX(F31:F39,F44) -> 1.8 | G45: 1.65 | H45: 1.35 | J45: Low Range | K45: =INDEX(K31:K39,K44) -> 3.1 | L45: =INDEX(L31:L39,L44) -> 2.65 | M45: =INDEX(M31:M39,M44) -> 2.4 | N45: =INDEX(N31:N39,N44) -> 1.8 | P45: Low Range | Q45: =INDEX(Q31:Q39,Q44) -> 0.48 | R45: =INDEX(R31:R39,R44) -> 0.53 | S45: =INDEX(S31:S39,S44) -> 0.58 | T45: =INDEX(T31:T39,T44) -> 0.68
D46: High Range | E46: =INDEX(E31:E39,E44+1) -> 2.375 | F46: =INDEX(F31:F39,F44+1) -> 1.875 | G46: 1.725 | H46: 1.425 | J46: High Range | K46: =INDEX(K31:K39,K44+1) -> 3.2 | L46: 2.75 | M46: 2.5 | N46: 1.9 | P46: High Range | Q46: =INDEX(Q31:Q39,Q44+1) -> 0.45 | R46: 0.5 | S46: 0.55 | T46: 0.65
D47: Interpolated | E47: =interpolate_look_up_linear(E43,$D$31:$D$39,E31:E39) -> 2.369 | F47: =interpolate_look_up_linear(F43,$D$31:$D$39,F31:F39) -> 1.869 | G47: 1.719 | H47: 1.419 | J47: Interpolated | K47: =interpolate_look_up_linear(K43,$D$31:$D$39,K31:K39) -> 3.192 | L47: 2.742 | M47: 2.492 | N47: 1.892 | P47: Interpolated | Q47: =interpolate_look_up_linear(Q43,$D$31:$D$39,Q31:Q39) -> 0.4524 | R47: 0.5024 | S47: 0.5524 | T47: 0.6524
D48: Bond Rating | E48: =INDEX(E30:H30,MATCH(E42,E47:H47,-1)+1) -> A | J48: Bond Rating | K48: =INDEX(K30:N30,MATCH(K42,K47:N47,-1)+1) -> A | P48: Bond Rating | Q48: =INDEX(Q30:T30,MATCH(Q42,Q47:T47,1)+1) -> A
D49: Interpolated | E49: =interpolate_look_up_reverse(E42,E47:H47,E29:H29) -> 1.957999916 | J49: Interpolated | K49: =interpolate_look_up_reverse(K42,K47:N47,K29:N29) -> 1.848889099 | P49: Interpolated | Q49: =interpolate_look_up_linear(Q42,Q47:T47,Q29:T29) -> 1.752
B53: Real Estate
E54: Lowest Minimum DSCR Acceptable | K54: Lowest Average DSCR Acceptable | P54: Highest Debt to Capital Acceptable
E55: 1 | F55: 2 | G55: 3 | H55: 4 | K55: 1 | L55: 2 | M55: 3 | N55: 4 | Q55: 1 | R55: 2 | S55: 3 | T55: 4
E56: AA | F56: A | G56: BBB | H56: BB | K56: AA | L56: A | M56: BBB | N56: BB | Q56: AA | R56: A | S56: BBB | T56: BB
D57: 1 | E57: 2.5 | F57: 1.6 | G57: 1.5 | H57: 1.1 | J57: 1 | K57: 3.5 | L57: 2.75 | M57: 2 | N57: 1.7 | P57: 1 | Q57: 0.6 | R57: 0.65 | S57: 0.7 | T57: 0.8
D58: 2 | E58: =E57+0.1 -> 2.6 | F58: =F57+0.1 -> 1.7 | G58: =G57+0.1 -> 1.6 | H58: =H57+0.1 -> 1.2 | J58: 2 | K58: =K57+0.1 -> 3.6 | L58: =L57+0.1 -> 2.85 | M58: =M57+0.1 -> 2.1 | N58: =N57+0.1 -> 1.8 | P58: 2 | Q58: =Q57-3% -> 0.57 | R58: =R57-3% -> 0.62 | S58: =S57-3% -> 0.67 | T58: =T57-3% -> 0.77
D59: 3 | E59: =E58+0.1 -> 2.7 | F59: =F58+0.1 -> 1.8 | G59: =G58+0.1 -> 1.7 | H59: =H58+0.1 -> 1.3 | J59: 3 | K59: =K58+0.1 -> 3.7 | L59: =L58+0.1 -> 2.95 | M59: =M58+0.1 -> 2.2 | N59: =N58+0.1 -> 1.9 | P59: 3 | Q59: =Q58-3% -> 0.54 | R59: 0.59 | S59: 0.64 | T59: 0.74
D60: 4 | E60: 2.8 | F60: 1.9 | G60: 1.8 | H60: 1.4 | J60: 4 | K60: 3.8 | L60: 3.05 | M60: 2.3 | N60: 2 | P60: 4 | Q60: 0.51 | R60: 0.56 | S60: 0.61 | T60: 0.71
D61: 5 | E61: 2.9 | F61: 2 | G61: 1.9 | H61: 1.5 | J61: 5 | K61: 3.9 | L61: 3.15 | M61: 2.4 | N61: 2.1 | P61: 5 | Q61: 0.48 | R61: 0.53 | S61: 0.58 | T61: 0.68
D62: 6 | E62: 3 | F62: 2.1 | G62: 2 | H62: 1.6 | J62: 6 | K62: 4 | L62: 3.25 | M62: 2.5 | N62: 2.2 | P62: 6 | Q62: 0.45 | R62: 0.5 | S62: 0.55 | T62: 0.65
D63: 7 | E63: 3.1 | F63: 2.2 | G63: 2.1 | H63: 1.7 | J63: 7 | K63: 4.1 | L63: 3.35 | M63: 2.6 | N63: 2.3 | P63: 7 | Q63: 0.42 | R63: 0.47 | S63: 0.52 | T63: 0.62
D64: 8 | E64: 3.2 | F64: 2.3 | G64: 2.2 | H64: 1.8 | J64: 8 | K64: 4.2 | L64: 3.45 | M64: 2.7 | N64: 2.4 | P64: 8 | Q64: 0.39 | R64: 0.44 | S64: 0.49 | T64: 0.59
D65: 9 | E65: 3.3 | F65: 2.4 | G65: 2.3 | H65: 1.9 | J65: 9 | K65: 4.3 | L65: 3.55 | M65: 2.8 | N65: 2.5 | P65: 9 | Q65: 0.36 | R65: 0.41 | S65: 0.46 | T65: 0.56
D66: 10 | E66: =E65+0.1 -> 3.4 | F66: =F65+0.1 -> 2.5 | G66: 2.4 | H66: =H65+0.1 -> 2 | J66: 10 | K66: =K65+0.1 -> 4.4 | L66: =L65+0.1 -> 3.65 | M66: =M65+0.1 -> 2.9 | N66: =N65+0.1 -> 2.6 | P66: 10 | Q66: 0.33 | R66: 0.38 | S66: 0.43 | T66: 0.53
D68: Ratio | E68: ='RAROC Analysis'!O25 -> 1.89 | J68: Ratio | K68: ='RAROC Analysis'!O26 -> 2.81 | P68: Debt/Cap | Q68: ='RAROC Analysis'!O24 -> 0.49
D69: Business Risk | E69: =E43 -> 5.92 | F69: =F43 -> 5.92 | G69: 5.92 | H69: 5.92 | J69: Business Risk | K69: =K43 -> 5.92 | L69: =L43 -> 5.92 | M69: 5.92 | N69: 5.92 | P69: Business | Q69: =K69 -> 5.92 | R69: =L69 -> 5.92 | S69: =M69 -> 5.92 | T69: =N69 -> 5.92
D70: Row Number | E70: =MATCH(E69,$D$57:$D$66) -> 5 | F70: =MATCH(F69,$D$57:$D$66) -> 5 | G70: 5 | H70: 5 | J70: Row Number | K70: =MATCH(K69,$D$57:$D$66) -> 5 | L70: =MATCH(L69,$D$57:$D$66) -> 5 | M70: =MATCH(M69,$D$57:$D$66) -> 5 | N70: =MATCH(N69,$D$57:$D$66) -> 5 | P70: Row Number | Q70: =MATCH(Q69,$D$57:$D$66) -> 5 | R70: =MATCH(R69,$D$57:$D$66) -> 5 | S70: =MATCH(S69,$D$57:$D$66) -> 5 | T70: =MATCH(T69,$D$57:$D$66) -> 5
D71: Low Range | E71: =INDEX(E57:E66,E70) -> 2.9 | F71: =INDEX(F57:F66,F70) -> 2 | G71: 1.9 | H71: 1.5 | J71: Low Range | K71: =INDEX(K57:K66,K70) -> 3.9 | L71: =INDEX(L57:L66,L70) -> 3.15 | M71: =INDEX(M57:M66,M70) -> 2.4 | N71: =INDEX(N57:N66,N70) -> 2.1 | P71: Low Range | Q71: =INDEX(Q57:Q66,Q70) -> 0.48 | R71: =INDEX(R57:R66,R70) -> 0.53 | S71: =INDEX(S57:S66,S70) -> 0.58 | T71: =INDEX(T57:T66,T70) -> 0.68
D72: High Range | E72: =INDEX(E57:E66,E70+1) -> 3 | F72: =INDEX(F57:F66,F70+1) -> 2.1 | G72: 2 | H72: 1.6 | J72: High Range | K72: =INDEX(K57:K66,K70+1) -> 4 | L72: =INDEX(L57:L66,L70+1) -> 3.25 | M72: 2.5 | N72: 2.2 | P72: High Range | Q72: =INDEX(Q57:Q66,Q70+1) -> 0.45 | R72: =INDEX(R57:R66,R70+1) -> 0.5 | S72: 0.55 | T72: 0.65
D73: Interpolated | E73: =interpolate_look_up_linear(E69,$D$57:$D$66,E57:E66) -> 2.992 | F73: =interpolate_look_up_linear(F69,$D$57:$D$66,F57:F66) -> 2.092 | G73: 1.992 | H73: 1.592 | J73: Interpolated | K73: =interpolate_look_up_linear(K69,$D$57:$D$66,K57:K66) -> 3.992 | L73: 3.242 | M73: 2.492 | N73: 2.192 | P73: Interpolated | Q73: =interpolate_look_up_linear(Q69,$D$57:$D$66,Q57:Q66) -> 0.4524 | R73: 0.5024 | S73: 0.5524 | T73: 0.6524
D74: Bond Rating | E74: =INDEX(E56:H56,MATCH(E68,E73:H73,-1)+1) -> BB | J74: Bond Rating | K74: =INDEX(K56:N56,MATCH(K68,K73:N73,-1)+1) -> BBB | P74: Bond Rating | Q74: =INDEX(Q56:T56,MATCH(Q68,Q73:T73,1)+1) -> A
D75: Interpolated | E75: =interpolate_look_up_reverse(E68,E73:H73,E55:H55) -> 3.254999984 | J75: Interpolated | K75: =interpolate_look_up_reverse(K68,K73:N73,K55:N55) -> 2.576000154 | P75: Interpolated | Q75: =interpolate_look_up_linear(Q68,Q73:T73,Q55:T55) -> 1.752
J79: •Electric Power: | N79: 1.3-1.4
J80: •Resources: | N80: 1.5-2.0
J81: •Telecoms: | N81: 1.5-2.0
J82: •Infrastructure: | N82: 1.2-1.6
J83: •Minimum ratio could dip to 1.5
K109: FFO/Total Debt | L109: 1.288 | M109: 0.554 | N109: 0.432 | O109: 0.308 | P109: 0.188 | Q109: 0.078 | R109: 0.016
K111: EBIT/Interest | L111: 21.4 | M111: 10.1 | N111: 6.1 | O111: 3.7 | P111: 2.1 | Q111: 0.8 | R111: 0.1
K112: EBITDA/Interest | L112: 26.5 | M112: 12.9 | N112: 9.1 | O112: 5.8 | P112: 3.4 | Q112: 1.8 | R112: 1.3
K115: Total Debt/FFO | L115: =1/L109 -> 0.7763975155 | M115: =1/M109 -> 1.805054152 | N115: 2.314814815 | O115: 3.246753247 | P115: 5.319148936 | Q115: 12.82051282 | R115: 62.5
K116: Total Debt/EBITDA | L116: 0.6 | M116: 1.2 | N116: 1.6 | O116: 2.3 | P116: 3.4 | Q116: 4.9 | R116: 6.3
K117: Pct Difference | L117: =L116/L115 -> 0.7728 | M117: =M116/M115 -> 0.6648 | N117: 0.6912 | O117: 0.7084 | P117: 0.6392 | Q117: 0.3822 | R117: 0.1008
AG152: Business Risk/Financial Risk
AG154: Business risk profile | AH154: Minimal | AI154: Modest | AJ154: Intermediate | AK154: Aggressive | AL154: Highly leveraged
AG155: Excellent | AH155: AAA | AI155: AA | AJ155: A | AK155: BBB | AL155: BB
AG156: Strong | AH156: AA | AI156: A | AJ156: A- | AK156: BBB- | AL156: BB-
AG157: Satisfactory | AH157: A | AI157: BBB+ | AJ157: BBB | AK157: BB+ | AL157: B+
AG158: Weak | AH158: BBB | AI158: BBB- | AJ158: BB+ | AK158: BB- | AL158: B
AG159: Vulnerable | AH159: BB | AI159: B+ | AJ159: B+ | AK159: B | AL159: B-
AG160: Financial risk indicative ratios* | AH160: Minimal | AI160: Modest | AJ160: Intermediate | AK160: Aggressive | AL160: Highly leveraged
AG161: Cash flow (Funds from operations/Debt) (%) | AH161: Over 60 | AI161: 45–60 | AJ161: 30–45 | AK161: 15–30 | AL161: Below 15
AG162: Debt leverage (Total debt/Capital) (%) | AH162: Below 25 | AI162: 25–35 | AJ162: 35–45 | AK162: 45–55 | AL162: Over 55
AG163: Debt/EBITDA (x) | AH163: <1.4 | AI163: 1.4–2.0 | AJ163: 2.0–3.0 | AK163: 3.0–4.5 | AL163: >4.5
AG165: FFO to Debt | AH165: 0.6 | AI165: =AVERAGE(45%,60%) -> 0.525 | AJ165: =AVERAGE(45%,30%) -> 0.375 | AK165: =AVERAGE(15%,30%) -> 0.225 | AL165: 0.15
AG166: Debt to EBITDA | AH166: 1.4 | AI166: =AVERAGE(1.4,2) -> 1.7 | AJ166: =AVERAGE(3,2) -> 2.5 | AK166: =AVERAGE(3,4.5) -> 3.75 | AL166: 4.5
AG167: Debt to FFO | AH167: =1/AH165 -> 1.666666667 | AI167: =1/AI165 -> 1.904761905 | AJ167: =1/AJ165 -> 2.666666667 | AK167: =1/AK165 -> 4.444444444 | AL167: =1/AL165 -> 6.666666667

Sheet Rating and PD
U1: Slope | V1: Intercept
B2: Inputs for Default Probability | E2: Year | F2: 1 | G2: 2 | H2: 3 | I2: 4 | J2: 5 | K2: 10 | L2: 15 | T2: Coeff | U2: =LINEST(F11:L11,F2:L2,,TRUE) -> 0.005585849057 | V2: -0.003490566038
C3: Cumulative Probabilities | E3: AAA | F3: 0 | G3: 0 | H3: 0.001 | I3: 0.002 | J3: 0.003 | K3: 0.007 | L3: 0.008 | T3: Std error | U3: 0.0001083214432 | V3: 0.0007980998259
E4: AA | F4: 0 | G4: 0.001 | H4: 0.001 | I4: 0.002 | J4: 0.003 | K4: 0.009 | L4: 0.013 | T4: R2 | U4: 0.9981232576 | V4: 0.001332963785
E5: A | F5: 0.001 | G5: 0.002 | H5: 0.003 | I5: 0.005 | J5: 0.007 | K5: 0.019 | L5: 0.028 | U5: 2659.190901 | V5: 5
E6: BBB | F6: 0.002 | G6: 0.007 | H6: 0.012 | I6: 0.019 | J6: 0.026 | K6: 0.054 | L6: 0.079
E7: BB | F7: 0.011 | G7: 0.031 | H7: 0.056 | I7: 0.08 | J7: 0.101 | K7: 0.175 | L7: 0.208 | T7: T-stat | U7: =U2/U3 -> 51.56734336 | V7: =V2/V3 -> -4.373595789
E8: B | F8: 0.05 | G8: 0.109 | H8: 0.159 | I8: 0.198 | J8: 0.226 | K8: 0.304 | L8: 0.35
E9: CCC/C | F9: 0.263 | G9: 0.347 | H9: 0.4 | I9: 0.432 | J9: 0.462 | K9: 0.518 | L9: 0.546 | T9: Slope | U9: =SLOPE(F11:L11,F2:L2) -> 0.005585849057
T10: Intercept | U10: =INTERCEPT(F11:L11,F2:L2) -> -0.003490566038
E11: =INDEX(E3:E9,$F$12) -> BBB | F11: =INDEX(F3:F9,$F$12) -> 0.002 | G11: =INDEX(G3:G9,$F$12) -> 0.007 | H11: =INDEX(H3:H9,$F$12) -> 0.012 | I11: =INDEX(I3:I9,$F$12) -> 0.019 | J11: =INDEX(J3:J9,$F$12) -> 0.026 | K11: =INDEX(K3:K9,$F$12) -> 0.054 | L11: =INDEX(L3:L9,$F$12) -> 0.079
E12: Code | F12: 4
B14: Updated Default Study | F14: 1 | G14: =F14+1 -> 2 | H14: 3 | I14: 4 | J14: 5 | K14: 6 | L14: 7 | M14: 8 | N14: 9 | O14: 10 | P14: 11 | Q14: 12 | R14: 13 | S14: 14 | T14: 15
E15: AAA | F15: =F202/100 -> 0 | G15: =G202/100 -> 0.0003 | H15: 0.0014 | I15: 0.0024 | J15: 0.0036 | K15: 0.0047 | L15: 0.0053 | M15: 0.0061 | N15: 0.0067 | O15: 0.0074 | P15: 0.0077 | Q15: 0.008 | R15: 0.0084 | S15: 0.0091 | T15: 0.0098
E16: AA | F16: =F203/100 -> 0.0002 | G16: 0.0007 | H16: 0.0013 | I16: 0.0024 | J16: 0.0035 | K16: 0.0046 | L16: 0.0056 | M16: 0.0065 | N16: 0.0073 | O16: 0.0082 | P16: 0.009 | Q16: 0.0097 | R16: 0.0105 | S16: 0.0112 | T16: 0.0119
E17: A | F17: =F204/100 -> 0.0007 | G17: 0.0016 | H17: 0.0027 | I17: 0.0041 | J17: 0.0057 | K17: 0.0075 | L17: 0.0095 | M17: 0.0113 | N17: 0.0132 | O17: 0.0151 | P17: 0.0169 | Q17: 0.0184 | R17: 0.02 | S17: 0.0215 | T17: 0.0232
E18: BBB | F18: =F205/100 -> 0.002 | G18: 0.0057 | H18: 0.0096 | I18: 0.0146 | J18: 0.0195 | K18: 0.0243 | L18: 0.0284 | M18: 0.0326 | N18: 0.0366 | O18: 0.0406 | P18: 0.0449 | Q18: 0.0484 | R18: 0.0517 | S18: 0.055 | T18: 0.0584
E19: BB | F19: =F206/100 -> 0.0076 | G19: 0.0235 | H19: 0.0423 | I19: 0.0606 | J19: 0.0771 | K19: 0.0928 | L19: 0.1059 | M19: 0.1175 | N19: 0.128 | O19: 0.1374 | P19: 0.1452 | Q19: 0.1518 | R19: 0.1575 | S19: 0.1624 | T19: 0.1677
E20: B | F20: =F207/100 -> 0.0388 | G20: 0.088 | H20: 0.1297 | I20: 0.1622 | J20: 0.187 | K20: 0.2072 | L20: 0.2237 | M20: 0.2369 | N20: 0.2482 | O20: 0.2591 | P20: 0.2682 | Q20: 0.2757 | R20: 0.2826 | S20: 0.2888 | T20: 0.2949
E21: CCC/C | F21: =F208/100 -> 0.2638 | G21: 0.3558 | H21: 0.4067 | I21: 0.4377 | J21: 0.4628 | K21: 0.4724 | L21: 0.4827 | M21: 0.4906 | N21: 0.5003 | O21: 0.5073 | P21: 0.5128 | Q21: 0.5194 | R21: 0.5272 | S21: 0.5338 | T21: 0.5338
D23: Cumulative Default | E23: =INDEX(E15:E21,$F$27) -> BB | F23: =INDEX(F15:F21,$F$27) -> 0.0076 | G23: =INDEX(G15:G21,$F$27) -> 0.0235 | H23: =INDEX(H15:H21,$F$27) -> 0.0423 | I23: =INDEX(I15:I21,$F$27) -> 0.0606 | J23: =INDEX(J15:J21,$F$27) -> 0.0771 | K23: =INDEX(K15:K21,$F$27) -> 0.0928 | L23: =INDEX(L15:L21,$F$27) -> 0.1059 | M23: =INDEX(M15:M21,$F$27) -> 0.1175 | N23: =INDEX(N15:N21,$F$27) -> 0.128 | O23: =INDEX(O15:O21,$F$27) -> 0.1374 | P23: =INDEX(P15:P21,$F$27) -> 0.1452 | Q23: =INDEX(Q15:Q21,$F$27) -> 0.1518 | R23: =INDEX(R15:R21,$F$27) -> 0.1575 | S23: =INDEX(S15:S21,$F$27) -> 0.1624 | T23: =INDEX(T15:T21,$F$27) -> 0.1677
D24: Incremental Default | E24: =E23 -> BB | F24: =F23 -> 0.0076 | G24: =G23-F23 -> 0.0159 | H24: =H23-G23 -> 0.0188 | I24: 0.0183 | J24: 0.0165 | K24: 0.0157 | L24: 0.0131 | M24: 0.0116 | N24: 0.0105 | O24: 0.0094 | P24: 0.0078 | Q24: 0.0066 | R24: 0.0057 | S24: 0.0049 | T24: 0.0053
E25: Pecent Increase | G25: =G23/F23-1 -> 2.092105263 | H25: =H23/G23-1 -> 0.8 | I25: 0.4326241135 | J25: 0.2722772277 | K25: 0.2036316472 | L25: 0.1411637931 | M25: 0.1095372993 | N25: 0.08936170213 | O25: 0.0734375 | P25: 0.05676855895 | Q25: 0.04545454545 | R25: 0.03754940711 | S25: 0.03111111111 | T25: 0.03263546798
E27: Code | F27: 5
B29: Hypothetical Cash Flow
D30: Loan Tenure | E30: 10 | F30: Spread | G30: =E60 -> 0.01474593021
D31: Interest Rate | E31: 0.03974606957
D32: Loss, Given Default | E32: 1
D33: Default Switch | E33: TRUE
D34: Default Method | E34: 1
D35: Bullet | E35: 2
D37: Period | E37: 0 | F37: =E37+1 -> 1 | G37: =F37+1 -> 2 | H37: 3 | I37: 4 | J37: 5 | K37: 6 | L37: 7 | M37: 8 | N37: 9 | O37: 10 | P37: 11 | Q37: 12 | R37: 13 | S37: 14 | T37: 15
D38: Switch | F38: =F37<=$E$30 -> TRUE | G38: =G37<=$E$30 -> TRUE | H38: =H37<=$E$30 -> TRUE | I38: =I37<=$E$30 -> TRUE | J38: =J37<=$E$30 -> TRUE | K38: =K37<=$E$30 -> TRUE | L38: =L37<=$E$30 -> TRUE | M38: =M37<=$E$30 -> TRUE | N38: =N37<=$E$30 -> TRUE | O38: =O37<=$E$30 -> TRUE | P38: =P37<=$E$30 -> FALSE | Q38: =Q37<=$E$30 -> FALSE | R38: =R37<=$E$30 -> FALSE | S38: =S37<=$E$30 -> FALSE | T38: =T37<=$E$30 -> FALSE
D39: Terminal Switch | F39: =F37=$E$30 -> FALSE | G39: =G37=$E$30 -> FALSE | H39: =H37=$E$30 -> FALSE | I39: =I37=$E$30 -> FALSE | J39: =J37=$E$30 -> FALSE | K39: =K37=$E$30 -> FALSE | L39: =L37=$E$30 -> FALSE | M39: =M37=$E$30 -> FALSE | N39: =N37=$E$30 -> FALSE | O39: =O37=$E$30 -> TRUE | P39: =P37=$E$30 -> FALSE | Q39: =Q37=$E$30 -> FALSE | R39: =R37=$E$30 -> FALSE | S39: =S37=$E$30 -> FALSE | T39: =T37=$E$30 -> FALSE
D40: Remaining Life | E40: =E30 -> 10 | F40: =E40 -> 10 | G40: =(F40-1)*G38 -> 9 | H40: 8 | I40: 7 | J40: 6 | K40: 5 | L40: 4 | M40: 3 | N40: 2 | O40: 1 | P40: 0 | Q40: 0 | R40: 0 | S40: 0 | T40: 0
D42: Loan Balance
D43: Opening Balance | F43: =E46 -> 1000 | G43: =F46 -> 1000 | H43: =G46 -> 1000 | I43: 1000 | J43: 1000 | K43: 1000 | L43: 1000 | M43: 1000 | N43: 1000 | O43: 1000 | P43: 0 | Q43: 0 | R43: 0 | S43: 0 | T43: 0
D44: Less: Repayment | E44: =1/$E$30 -> 0.1 | F44: =CHOOSE($E$35,$E$46*$E$44,(F37=$E$30)*F43)*F38 -> 0 | G44: =CHOOSE($E$35,$E$46*$E$44,(G37=$E$30)*G43)*G38 -> 0 | H44: =CHOOSE($E$35,$E$46*$E$44,(H37=$E$30)*H43)*H38 -> 0 | I44: =CHOOSE($E$35,$E$46*$E$44,(I37=$E$30)*I43)*I38 -> 0 | J44: =CHOOSE($E$35,$E$46*$E$44,(J37=$E$30)*J43)*J38 -> 0 | K44: =CHOOSE($E$35,$E$46*$E$44,(K37=$E$30)*K43)*K38 -> 0 | L44: =CHOOSE($E$35,$E$46*$E$44,(L37=$E$30)*L43)*L38 -> 0 | M44: =CHOOSE($E$35,$E$46*$E$44,(M37=$E$30)*M43)*M38 -> 0 | N44: =CHOOSE($E$35,$E$46*$E$44,(N37=$E$30)*N43)*N38 -> 0 | O44: =CHOOSE($E$35,$E$46*$E$44,(O37=$E$30)*O43)*O38 -> 1000 | P44: =CHOOSE($E$35,$E$46*$E$44,(P37=$E$30)*P43)*P38 -> 0 | Q44: =CHOOSE($E$35,$E$46*$E$44,(Q37=$E$30)*Q43)*Q38 -> 0 | R44: =CHOOSE($E$35,$E$46*$E$44,(R37=$E$30)*R43)*R38 -> 0 | S44: =CHOOSE($E$35,$E$46*$E$44,(S37=$E$30)*S43)*S38 -> 0 | T44: =CHOOSE($E$35,$E$46*$E$44,(T37=$E$30)*T43)*T38 -> 0
D45: Less: Default
D46: Closing Balance | E46: 1000 | F46: =F43-F44-F45 -> 1000 | G46: =G43-G44-G45 -> 1000 | H46: =H43-H44-H45 -> 1000 | I46: 1000 | J46: 1000 | K46: 1000 | L46: 1000 | M46: 1000 | N46: 1000 | O46: 0 | P46: 0 | Q46: 0 | R46: 0 | S46: 0 | T46: 0
